Workbook

Sheet Récap
A1: Consignes de navigabilité | P1: Visites | W1: Kardex | AP1: Pesée | AY1: Inventaire | BF1: Section 6
BF2: Rallye
A3: N° dordre | G3: Données | L3: Traitement | P3: N° d'ordre | R3: Données | W3: N° dordre | AD3: Donnéees | AL3: Traitement | AP3: D | AQ3: d | AR3: Mise à niveau | AS3: Référence | AT3: Bras de levier | AV3: Limites de centrage (N / U) | AY3: Inventaire | BC3: Corrections éventuelles | BG3: Opérations | BI3: Visites horaires | BQ3: Visites cal. | BU3: Effectivité
A4: Auto | B4: A lancer | C4: Choisi | D4: A supprimer | E4: Choisi | F4: N° d'ordre lancé final | G4: Référence | H4: Titre | I4: SB | J4: Éch. cal. | K4: Éch. hor. | L4: Onglet | M4: Exécution | N4: Justif | P4: A lancer | Q4: Auto | R4: Visite | S4: Echéance calendaire | T4: Éch. hor. | U4: Pour report | W4: Auto | Y4: A lancer | Z4: Choisi | AA4: A supprimer | AB4: Choisi | AC4: N° d'ordre lancé final | AD4: Opération | AE4: Remplacement | AF4: Lien entre opérations | AG4: Equipment | AH4: P/N | AI4: S/N | AJ4: Éch. cal. | AK4: Éch. hor. | AL4: Onglet | AM4: Exécution | AN4: P/N - S/N | AY4: X / O | AZ4: Equipement | BA4: Marque - Type | BB4: Nombre | BC4: Masse | BD4: Moment | BF4: A lancer | BG4: Ref | BH4: Opération | BI4: 25 heures | BJ4: 50 heures | BK4: 100 heures | BL4: 200 heures | BM4: 500 heures | BN4: 1000 heures | BO4: 1650 heures | BP4: Pas de visite horaire | BQ4: 1 an | BR4: 3 ans | BS4: 6 ans | BT4: Pas de visite calendaire | BU4: F-GBKS | BV4: F-TEST
A5: 1 | B5: - | C5: - | D5: 1 | E5: - | F5: 1 | G5: F-1982-089 | H5: Corrosion | I5: BS Rallye n° 133-2 | J5: 2016-09-03 | K5: 9792.42 | L5: CN avion | M5: 277 | N5: 280 | P5: 1 | R5: 50 heures | S5: - | T5: 9780.04 | U5: 50 | W5: - | X5: - | Y5: 1 | Z5: - | AA5: - | AB5: - | AD5: Pesée avion | AG5: Pesée avion | AH5: - | AI5: - | AJ5: X | AK5: 2017-11-05 | AL5: Kardex | AM5: 13 | AN5: 12 | AP5: 1.71 | AQ5: 0.633 | AR5: Longeron supérieur de coque horizontal (Rail de verrière) | AS5: Bord d'attaque de la corde de référence située à 0,657 m derrière la cloison pare feu | AT5: Pilote | AU5: 0.29 | AV5: 500 | AW5: 0.16 | AY5: X | AZ5: Hélice | BA5: Sensenisch | BB5: 1 | BG5: 05-00 | BH5: GENERALITES | BO5: X | BU5: X | BV5: X
A6: 2 | B6: - | C6: - | D6: 2 | E6: - | F6: 2 | G6: F-1986-160 R1 | H6: Stabilisateur horizontal | I6: BS Rallye n° 145-1 | J6: X | K6: 9792.42 | L6: CN avion | M6: 286 | N6: 290 | P6: 2 | R6: 100 heures | S6: - | T6: 9782.42 | U6: 100 | W6: - | X6: - | Y6: 2 | Z6: - | AA6: - | AB6: - | AD6: Alternateur - RG | AE6: 1 | AG6: Alternateur | AH6: ALY8520R | AI6: H-O090399 | AJ6: 11879.52 | AK6: X | AL6: Kardex | AM6: 23 | AN6: 21 | AT6: Pilote | AU6: 0.29 | AV6: 500 | AW6: 0.16 | AY6: X | AZ6: Hélice | BA6: Sensenisch | BB6: 1 | BG6: 05-01 | BH6: Effectuer un vol de contrôle en sortie de visite. Au cours du vol, noter les paramètres sur un compte rendu et tous les résultats | BO6: X | BU6: X | BV6: X
A7: 3 | B7: - | C7: - | D7: 3 | E7: - | F7: 3 | G7: F-2000-174 | H7: Manilles de commandes de gouvernes de profondeur et de direction - 100 h. | I7: BS Rallye n° 155-27 § E.1 | J7: X | K7: 9792.42 | L7: CN avion | M7: 344 | N7: 346 | R7: 1000 heures | S7: - | T7: - | U7: 1000 | W7: 1 | X7: X | Y7: - | Z7: - | AA7: 1 | AB7: - | AC7: 1 | AD7: Balise de détresse - Test fonctionnel | AG7: 0 | AH7: 0 | AI7: 0 | AJ7: 9785.04 | AK7: X | AL7: Kardex | AM7: 29 | AN7: 27 | AT7: Pilote | AU7: 0.29 | AV7: 500 | AW7: 0.16 | AY7: X | AZ7: Hélice | BA7: Sensenisch | BB7: 1 | BG7: 21-00 | BH7: CONDITIONNEMENT D'AIR | BJ7: X | BK7: X | BO7: X | BQ7: X | BU7: X | BV7: X
A8: - | B8: 1 | C8: - | D8: - | E8: - | G8: F-2000-174 | H8: Manilles de commandes de gouvernes de profondeur et de direction - 600 h. | I8: BS Rallye n° 155-27 § E.2 | J8: X | K8: 10043.46 | L8: CN avion | M8: 348 | N8: 352 | Q8: 1 | R8: 1650 heures | S8: - | T8: 9961.84 | U8: 1650 | W8: - | X8: - | Y8: 3 | Z8: - | AA8: - | AB8: - | AD8: Tuyauterie d'essence du réservoir gauche - Fin de vie | AE8: 2 | AG8: Tuyauterie d'essence du réservoir gauche | AH8: 892.52.0.054.0 | AI8: 657030/09 | AJ8: X | AK8: 2019-03-29 | AL8: Kardex | AM8: 36 | AN8: 34 | AT8: Pilote | AU8: 0.29 | AV8: 500 | AW8: 0.16 | AY8: X | AZ8: Hélice | BA8: Sensenisch | BB8: 1 | BG8: 21-01 | BH8: Examen visuel des manches d'admission d'air frais. Fonctionnement des ouies d'entrée d'air et des commandes associées | BK8: X | BO8: X | BQ8: X | BU8: X | BV8: X
A9: 4 | B9: - | C9: - | D9: 4 | E9: - | F9: 4 | G9: F-2001-400 | H9: Bâti moteur | I9: BS Rallye n° 156-71 | J9: X | K9: 9790.04 | L9: CN avion | M9: 365 | N9: 369 | R9: 2000 heures | S9: - | T9: - | U9: 2000 | W9: - | X9: - | Y9: 4 | Z9: - | AA9: - | AB9: - | AD9: Tuyauterie d'essence du réservoir droit - Fin de vie | AE9: 3 | AG9: Tuyauterie d'essence du réservoir droit | AH9: 892.52.0.054.0 | AI9: 657030/09 | AJ9: X | AK9: 2017-03-29 | AL9: Kardex | AM9: 40 | AN9: 38 | AT9: Pilote | AU9: 0.29 | AV9: 500 | AW9: 0.16 | AY9: X | AZ9: Hélice | BA9: Sensenisch | BB9: 1 | BG9: 21-02 | BH9: Examen détaillé des boas et du système de chauffage, leurs fixations, étanchéité à l'oxyde de carbone, et commandes associées | BK9: X | BO9: X | BQ9: X | BU9: X | BV9: X
A10: 5 | B10: - | C10: - | D10: 5 | E10: - | F10: 5 | G10: 2015-0203 | H10: Axe de roue avant et vis de fixation - Inspection | I10: BS Rallye n° 150-32 Rev 3 | J10: X | K10: 9855.16 | L10: CN avion | M10: 384 | N10: 389 | R10: X | S10: - | T10: - | U10: X | W10: - | X10: - | Y10: 5 | Z10: - | AA10: - | AB10: - | AD10: Pompe à essence - RG | AE10: 4 | AG10: Pompe à essence | AH10: LW-15472 | AI10: H1413 | AJ10: 11879.52 | AK10: X | AL10: Kardex | AM10: 44 | AN10: 42 | AT10: Pilote | AU10: 0.29 | AV10: 500 | AW10: 0.16 | AY10: X | AZ10: Hélice | BA10: Sensenisch | BB10: 1 | BG10: 21-04 | BH10: Vérification manuelle du fonctionnement des commandes de climatisation | BJ10: X | BK10: X | BO10: X | BQ10: X | BU10: X | BV10: X
A11: - | B11: 2 | C11: - | D11: - | E11: - | G11: 2015-0203 | H11: Axe de roue avant et vis de fixation - Remplacement | I11: BS Rallye n° 150-32 Rev 3 | J11: X | K11: 10220.51 | L11: CN avion | M11: 391 | N11: 395 | W11: - | X11: - | Y11: 6 | Z11: - | AA11: - | AB11: - | AD11: Tuyauteries de frein - Fin de vie | AE11: 5 | AG11: Tuyauteries de frein | AH11: N7850091701 | AI11: Sans | AJ11: X | AK11: 2024-04-22 | AL11: Kardex | AM11: 54 | AN11: 52 | AT11: Pilote | AU11: 0.29 | AV11: 500 | AW11: 0.16 | AY11: X | AZ11: Hélice | BA11: Sensenisch | BB11: 1 | BG11: 21-05 | BH11: Inspection visuelle de la commande d'aération sur la verrière mobile. Tension du câble d'ouverture du volet de réglage | BK11: X | BO11: X | BQ11: X | BU11: X | BV11: X
A12: - | B12: 3 | C12: - | D12: - | E12: - | G12: US-2004-10-1 | H12: Boulon de fixation du pignon de vilebrequin | I12: Lycoming n°475C | J12: X | K12: Si choc hélice | L12: CN moteur | M12: 280 | N12: 283 | P12: 1 | R12: 1 an | S12: 2016-11-20 | T12: - | U12: 1 | W12: - | X12: - | Y12: 7 | Z12: - | AA12: - | AB12: - | AD12: VOR - Passage au banc | AE12: 6 | AG12: VOR | AH12: NR-2029 | AI12: 1685 | AJ12: X | AK12: 2021-07-16 | AL12: Kardex | AM12: 69 | AN12: 67 | AT12: Pilote | AU12: 0.29 | AV12: 500 | AW12: 0.16 | AY12: X | AZ12: Hélice | BA12: Sensenisch | BB12: 1 | BG12: 23-00 | BH12: COMMUNICATIONS | BJ12: X | BK12: X | BO12: X | BQ12: X | BU12: X | BV12: X
A13: - | B13: 4 | C13: - | D13: - | E13: - | G13: US-2004-10-14 corrigée | H13: Boulon de fixation du pignon de vilebrequin - Remplacement | I13: Lycoming n°475C | J13: X | K13: Si choc hélice | L13: CN moteur | M13: 285 | N13: 287 | R13: 2 an | S13: - | T13: - | U13: 2 | W13: - | X13: - | Y13: 8 | Z13: - | AA13: - | AB13: - | AD13: Compas - Compensation | AG13: Compas | AH13: C2300 | AI13: 2651 | AJ13: X | AK13: 2016-11-19 | AL13: Kardex | AM13: 78 | AN13: 76 | AT13: Pilote | AU13: 0.29 | AV13: 500 | AW13: 0.16 | AY13: X | AZ13: Hélice | BA13: Sensenisch | BB13: 1 | BG13: 23-01 | BH13: Examiner visuellement la fixation des aériens. Etat des antennes (corrosions) | BJ13: X | BK13: X | BO13: X | BQ13: X | BU13: X | BV13: X
A14: 6 | B14: - | C14: - | D14: 6 | E14: - | F14: 6 | G14: F-1977-168 | H14: Interrupteurs d’allumage Bendix | I14: Sans | J14: X | K14: 9792.42 | L14: CN équipmts | M14: 24 | N14: 28 | R14: 3 an | S14: - | T14: - | U14: 3 | W14: - | X14: - | Y14: 9 | Z14: - | AA14: - | AB14: - | AD14: Transpondeur - Test opérationnel - Fasc. P41-15 | AG14: Transpondeur | AH14: 066-1062-00 | AI14: 34238 | AJ14: X | AK14: 2017-01-19 | AL14: Kardex | AM14: 82 | AN14: 80 | AT14: Pilote | AU14: 0.29 | AV14: 500 | AW14: 0.16 | AY14: X | AZ14: Hélice | BA14: Sensenisch | BB14: 1 | BG14: 23-02 | BH14: Test de la balise de détresse | BJ14: X | BK14: X | BO14: X | BQ14: X | BU14: X | BV14: X
A15: - | B15: - | C15: - | D15: - | E15: - | R15: 4 an | S15: - | T15: - | U15: 4 | W15: - | X15: - | Y15: 10 | Z15: - | AA15: - | AB15: - | AD15: Transpondeur - Test fonctionnel - Fasc. P41-15 | AG15: Transpondeur | AH15: 066-1062-00 | AI15: 34238 | AJ15: X | AK15: 2020-01-19 | AL15: Kardex | AM15: 83 | AN15: 80 | AT15: Pilote | AU15: 0.29 | AV15: 500 | AW15: 0.16 | AY15: X | AZ15: Hélice | BA15: Sensenisch | BB15: 1 | BG15: 23-04 | BH15: Examen visuel des fixations de l'installation, de la protection des câblages radio et de la non interférence avec les commandes de vol | BK15: X | BO15: X | BQ15: X | BU15: X
A16: - | B16: - | C16: - | D16: - | E16: - | P16: Choisies | W16: - | X16: - | Y16: 11 | Z16: - | AA16: - | AB16: - | AD16: Hélice - RG | AE16: 7 | AG16: Hélice | AH16: 74DM6-0-56 | AI16: A-54663 | AJ16: 10983.55 | AK16: X | AL16: Kardex | AM16: 114 | AN16: 112 | AT16: Pilote | AU16: 0.29 | AV16: 500 | AW16: 0.16 | AY16: X | AZ16: Hélice | BA16: Sensenisch | BB16: 1 | BG16: 24-00 | BH16: GENERATION ELECTRIQUE | BJ16: X | BK16: X | BO16: X | BQ16: X | BU16: X | BV16: X
A17: - | B17: - | C17: - | D17: - | E17: - | P17: 1650 heures | Q17: 1650 | R17: Non | S17: 10000 | U17: 1650 | W17: - | X17: - | Y17: 12 | Z17: - | AA17: - | AB17: - | AD17: Moteur - Alternative TBO | AF17: 1 | AG17: Moteur | AH17: O-320-E2A | AI17: L-19951-27A | AJ17: 11479.52 | AK17: 2027-07-16 | AL17: Kardex | AM17: 120 | AN17: 118 | AT17: Pilote | AU17: 0.29 | AV17: 500 | AW17: 0.16 | AY17: X | AZ17: Hélice | BA17: Sensenisch | BB17: 1 | BG17: 24-01 | BH17: Vérification du niveau de l'électrolyte de la batterie. Vérification de l'état des cosses. Nettoyage éventuel | BJ17: X | BK17: X | BO17: X | BQ17: X | BU17: X | BV17: X
A18: - | B18: - | C18: - | D18: - | E18: - | R18: Pas de visite horaire | W18: - | X18: - | Y18: 13 | Z18: - | AA18: - | AB18: - | AD18: Moteur - Inspection corrosion | AF18: 1 | AG18: Moteur | AH18: O-320-E2A | AI18: L-19951-27A | AJ18: X | AK18: 2027-07-16 | AL18: Kardex | AM18: 121 | AN18: 118 | AT18: Pilote | AU18: 0.29 | AV18: 500 | AW18: 0.16 | AY18: X | AZ18: Hélice | BA18: Sensenisch | BB18: 1 | BG18: 24-04 | BH18: Dépose de la batterie, la mettre en charge. | BJ18: X | BK18: X | BO18: X | BQ18: X | BU18: X | BV18: X
A19: - | B19: - | C19: - | D19: - | E19: - | R19: 50 heures | S19: 50 | W19: - | X19: - | Y19: 14 | Z19: - | AA19: - | AB19: - | AD19: Moteur - RG | AE19: 8 | AF19: 1 | AG19: Moteur | AH19: O-320-E2A | AI19: L-19951-27A | AJ19: 11877.02 | AK19: X | AL19: Kardex | AM19: 122 | AN19: 118 | AY19: X | AZ19: Hélice | BA19: Sensenisch | BB19: 1 | BG19: 24-05 | BH19: Nettoyage des cosses batterie. Etat des conducteurs d'alimentation | BJ19: X | BK19: X | BO19: X | BQ19: X | BU19: X | BV19: X
A20: - | B20: - | C20: - | D20: - | E20: - | R20: 100 heures | S20: 100 | W20: - | X20: - | Y20: 15 | Z20: - | AA20: - | AB20: - | AD20: Tachymètre - Passage au banc | AE20: 9 | AG20: Tachymètre | AH20: D1-112-5023 | AI20: 34906 | AJ20: 11879.52 | AK20: X | AL20: Kardex | AM20: 129 | AN20: 127 | AP20: Débattement des gouvernes et tension des câbles | AY20: X | AZ20: Hélice | BA20: Sensenisch | BB20: 1 | BG20: 24-06 | BH20: Examen détaillé des charbons de l'alternateur (usure). | BO20: X | BU20: X | BV20: X
A21: - | B21: - | C21: - | D21: - | E21: - | R21: - | S21: - | W21: - | X21: X | Y21: 16 | Z21: - | AA21: - | AB21: - | AD21: Magnéto gauche - Inspection visuelle 100 h | AF21: 2 | AG21: Magnéto gauche | AH21: 4373 | AI21: 14051246 | AJ21: 9792.42 | AK21: X | AL21: Kardex | AM21: 135 | AN21: 133 | AY21: X | AZ21: Hélice | BA21: Sensenisch | BB21: 1 | BG21: 24-07 | BH21: Examen détaillé des câblages électriques et de leur fixations (pour usure ou interférences), des boîtes de raccordement, fusibles, disjoncteurs, contacteurs (pour état et fonctionnement). Mises à la masse | BO21: X | BQ21: X | BU21: X | BV21: X
A22: - | B22: - | C22: - | D22: - | E22: - | R22: - | S22: - | W22: 2 | X22: X | Y22: - | Z22: - | AA22: 2 | AB22: - | AC22: 2 | AD22: Magnéto gauche - Inspection 500 h | AF22: 2 | AG22: Magnéto gauche | AH22: 4373 | AI22: 14051246 | AJ22: 9979.52 | AK22: X | AL22: Kardex | AM22: 136 | AN22: 133 | AQ22: Débattements | AS22: Tension des câbles | AY22: X | AZ22: Hélice | BA22: Sensenisch | BB22: 1 | BG22: 24-08 | BH22: Examen détaillé des câblages électriques et raccordements dans le fond du fuselage arrière (interférences) | BO22: X | BQ22: X | BU22: X | BV22: X
A23: - | B23: - | C23: - | D23: - | E23: - | R23: - | S23: - | W23: - | X23: - | Y23: 17 | Z23: - | AA23: - | AB23: - | AD23: Magnéto gauche - RG | AE23: 10 | AF23: 2 | AG23: Magnéto gauche | AH23: 4373 | AI23: 14051246 | AJ23: 11877.02 | AK23: X | AL23: Kardex | AM23: 137 | AN23: 133 | AP23: Gouverne | AQ23: Débat. | AR23: Tol. | AS23: Valeur | AT23: Tol. | AY23: X | AZ23: Hélice | BA23: Sensenisch | BB23: 1 | BG23: 24-09 | BH23: Vérifier la présence de fusibles de rechange (le cas échéant) ou examen visuel des disjoncteurs (état et fonctionnement) | BJ23: X | BK23: X | BO23: X | BQ23: X | BU23: X | BV23: X
A24: - | B24: - | C24: - | D24: - | E24: - | R24: Non | W24: - | X24: X | Y24: 18 | Z24: - | AA24: - | AB24: - | AD24: Magnéto droite - Inspection visuelle 100 h | AF24: 3 | AG24: Magnéto droite | AH24: 4370 | AI24: 14081868 | AJ24: 9792.42 | AK24: X | AL24: Kardex | AM24: 141 | AN24: 139 | AP24: Ail. G. haut | AQ24: 17°30 | AR24: 1 | AS24: 28 | AT24: 3 | AY24: X | AZ24: Hélice | BA24: Sensenisch | BB24: 1 | BG24: 24-10 | BH24: Essai, mesure de l'isolement des conducteurs (MEGOHMETRE) | BO24: X | BU24: X | BV24: X
A25: - | B25: - | C25: - | D25: - | E25: - | R25: Pas de visite calendaire | W25: 3 | X25: X | Y25: - | Z25: - | AA25: 3 | AB25: - | AC25: 3 | AD25: Magnéto droite - Inspection 500 h | AF25: 3 | AG25: Magnéto droite | AH25: 4370 | AI25: 14081868 | AJ25: 9979.52 | AK25: X | AL25: Kardex | AM25: 142 | AN25: 139 | AP25: Ail. G. haut | AQ25: 17°30 | AR25: 1 | AS25: 28 | AT25: 3 | AY25: X | AZ25: Hélice | BA25: Sensenisch | BB25: 1 | BG25: 25-00 | BH25: AMENAGEMENTS | BJ25: X | BK25: X | BO25: X | BQ25: X | BU25: X | BV25: X
A26: - | B26: - | C26: - | D26: - | E26: - | R26: 1 an | S26: 1 | W26: - | X26: - | Y26: 19 | Z26: - | AA26: - | AB26: - | AD26: Magnéto droite - RG | AE26: 11 | AF26: 3 | AG26: Magnéto droite | AH26: 4370 | AI26: 14081868 | AJ26: 11877.02 | AK26: X | AL26: Kardex | AM26: 143 | AN26: 139 | AP26: Ail. G. haut | AQ26: 17°30 | AR26: 1 | AS26: 28 | AT26: 3 | AY26: X | AZ26: Hélice | BA26: Sensenisch | BB26: 1 | BG26: 25-01 | BH26: Examen visuel des sièges pilote et co-pilote et des systèmes de réglage de position et blocage associé | BJ26: X | BK26: X | BO26: X | BQ26: X | BU26: X | BV26: X
A27: - | B27: - | C27: - | D27: - | E27: - | R27: - | S27: - | W27: 4 | X27: X | Y27: - | Z27: - | AA27: 4 | AB27: - | AC27: 4 | AD27: Carburateur - BS Lycoming n° 366A | AF27: 4 | AG27: Carburateur | AH27: 10-4910-1FF | AI27: 75127808 | AJ27: 9792.42 | AK27: X | AL27: Kardex | AM27: 152 | AN27: 150 | AP27: Ail. G. haut | AQ27: 17°30 | AR27: 1 | AS27: 28 | AT27: 3 | AY27: X | AZ27: Hélice | BA27: Sensenisch | BB27: 1 | BG27: 25-02 | BH27: Examen détaillé, après dépose, des sièges pilote et co-pilote pour état des fixations, blocages, dossiers, pour criques | BO27: X | BQ27: X | BU27: X | BV27: X
A28: - | B28: - | C28: - | D28: - | E28: - | R28: - | S28: - | W28: - | X28: - | Y28: 20 | Z28: - | AA28: - | AB28: - | AD28: Carburateur - RG | AE28: 12 | AF28: 4 | AG28: Carburateur | AH28: 10-4910-1FF | AI28: 75127808 | AJ28: 11881.81 | AK28: X | AL28: Kardex | AM28: 153 | AN28: 150 | AP28: Ail. G. haut | AQ28: 17°30 | AR28: 1 | AS28: 28 | AT28: 3 | AY28: X | AZ28: Hélice | BA28: Sensenisch | BB28: 1 | BG28: 25-03 | BH28: Examen du siège arrière (ancrage fixation) | BJ28: X | BK28: X | BO28: X | BQ28: X | BU28: X | BV28: X
A29: - | B29: - | C29: - | D29: - | E29: - | W29: - | X29: - | Y29: 21 | Z29: - | AA29: - | AB29: - | AD29: Silencieux - RG | AE29: 13 | AG29: Silencieux | AH29: 892.56.0.008.0 | AI29: - | AJ29: 10211.46 | AK29: X | AL29: Kardex | AM29: 157 | AN29: 155 | AP29: Ail. G. haut | AQ29: 17°30 | AR29: 1 | AS29: 28 | AT29: 3 | AY29: X | AZ29: Hélice | BA29: Sensenisch | BB29: 1 | BG29: 25-04 | BH29: Examen détaillé, après dépose, du siège arrière | BO29: X | BQ29: X | BU29: X | BV29: X
A30: - | B30: - | C30: - | D30: - | E30: - | P30: Identification de l'avion | W30: - | X30: - | Y30: 22 | Z30: - | AA30: - | AB30: - | AD30: Tuyauterie du reniflard d'huile - Fin de vie | AE30: 14 | AG30: Tuyauterie du reniflard d'huile | AH30: 892.53.0.022.0 | AI30: - | AJ30: X | AK30: 2019-03-29 | AL30: Kardex | AM30: 167 | AN30: 165 | AP30: Ail. G. haut | AQ30: 17°30 | AR30: 1 | AS30: 28 | AT30: 3 | AY30: X | AZ30: Hélice | BA30: Sensenisch | BB30: 1 | BG30: 25-05 | BH30: Examen visuel des ceintures de sécurité et harnais pour état, usure. Vérification de la boucle pour fonctionnement, fixations ceintures et harnais | BJ30: X | BK30: X | BO30: X | BQ30: X | BU30: X | BV30: X
A31: - | B31: - | C31: - | D31: - | E31: - | P31: Constructeur | T31: SOCATA | W31: - | X31: - | Y31: 23 | Z31: - | AA31: - | AB31: - | AD31: Démarreur - RG | AE31: 15 | AG31: Démarreur | AH31: 149NL | AI31: FN201451 | AJ31: 11879.52 | AK31: X | AL31: Kardex | AM31: 173 | AN31: 171 | AP31: Ail. G. haut | AQ31: 17°30 | AR31: 1 | AS31: 28 | AT31: 3 | AY31: X | AZ31: Hélice | BA31: Sensenisch | BB31: 1 | BG31: 25-06 | BH31: Nettoyage éventuel et examen détaillé des ceintures, harnais et boucles. Remplacement des ceintures en mauvais état | BO31: X | BQ31: X | BU31: X | BV31: X
A32: - | B32: - | C32: - | D32: - | E32: - | P32: Type avion | T32: Rallye 150 ST | W32: - | X32: - | Y32: - | Z32: - | AA32: - | AB32: - | AP32: Ail. G. haut | AQ32: 17°30 | AR32: 1 | AS32: 28 | AT32: 3 | AY32: X | AZ32: Hélice | BA32: Sensenisch | BB32: 1 | BG32: 25-07 | BH32: Dépose des tapis de sol ou moquettes, nettoyage éventuel | BO32: X | BU32: X | BV32: X
A33: - | B33: - | C33: - | D33: - | E33: - | P33: N° de série | T33: 3142 | W33: - | X33: - | Y33: - | Z33: - | AA33: - | AB33: - | AP33: Ail. G. haut | AQ33: 17°30 | AR33: 1 | AS33: 28 | AT33: 3 | AY33: X | AZ33: Hélice | BA33: Sensenisch | BB33: 1 | BG33: 25-08 | BH33: Examen visuel au poste de pilotage de la présence et de la lisibilité des plaquettes indicatives réglementaires suivant fiche de navigabilité, manuel de vol ou CN soit, à titre permanent ou temporaire suivant CN | BK33: X | BO33: X | BQ33: X | BU33: X | BV33: X
A34: - | B34: - | C34: - | D34: - | E34: - | P34: Immatriculation | T34: F-TEST | W34: - | X34: - | Y34: - | Z34: - | AA34: - | AB34: - | AP34: Ail. G. haut | AQ34: 17°30 | AR34: 1 | AS34: 28 | AT34: 3 | BG34: 25-09 | BH34: Examen visuel dans la cabine, soute à bagages et extérieur de la présence des plaquettes réglementaires | BJ34: X | BK34: X | BO34: X | BQ34: X | BU34: X | BV34: X
A35: - | B35: - | C35: - | D35: - | E35: - | P35: Propriétaire | T35: Aéroclub du Gaillacois | W35: - | X35: - | Y35: - | Z35: - | AA35: - | AB35: - | AP35: Ail. G. haut | AQ35: 17°30 | AR35: 1 | AS35: 28 | AT35: 3 | BG35: 25-10 | BH35: Repose des tapis de sol, moquettes et sièges | BO35: X | BU35: X | BV35: X
A36: - | B36: - | C36: - | D36: - | E36: - | P36: Heures de vol | T36: 9735.04 | W36: - | X36: - | Y36: - | Z36: - | AA36: - | AB36: - | AP36: Ail. G. haut | AQ36: 17°30 | AR36: 1 | AS36: 28 | AT36: 3 | BG36: 27-00 | BH36: COMMANDES DE VOL | BJ36: X | BK36: X | BO36: X | BQ36: X | BU36: X | BV36: X
A37: - | B37: - | C37: - | D37: - | E37: - | W37: - | X37: - | Y37: - | Z37: - | AA37: - | AB37: - | AP37: Ail. G. haut | AQ37: 17°30 | AR37: 1 | AS37: 28 | AT37: 3 | BG37: 27-01 | BH37: Examen visuel des commandes de vol. Vérifier manuellement le fonctionnement des gouvernes | BJ37: X | BK37: X | BO37: X | BQ37: X | BU37: X | BV37: X
A38: - | B38: - | C38: - | D38: - | E38: - | P38: Heures moteur | W38: - | X38: - | Y38: - | Z38: - | AA38: - | AB38: - | AP38: Ail. G. haut | AQ38: 17°30 | AR38: 1 | AS38: 28 | AT38: 3 | BG38: 27-02 | BH38: Vérification de la tension des commandes (cordes à piano) | BK38: X | BO38: X | BQ38: X | BU38: X | BV38: X
A39: - | B39: - | C39: - | D39: - | E39: - | P39: Constructeur | T39: Lycoming | W39: - | X39: - | Y39: - | Z39: - | AA39: - | AB39: - | AP39: Ail. G. haut | AQ39: 17°30 | AR39: 1 | AS39: 28 | AT39: 3 | BG39: 27-03 | BH39: Vérifier le bon état des butées de commandes de vol, le cas échéant | BK39: X | BO39: X | BQ39: X | BU39: X | BV39: X
A40: - | B40: - | C40: - | D40: - | E40: - | P40: Type | T40: O-320-E2A | W40: - | X40: - | Y40: - | Z40: - | AA40: - | AB40: - | AP40: Ail. G. haut | AQ40: 17°30 | AR40: 1 | AS40: 28 | AT40: 3 | BG40: 27-04 | BH40: Débrancher les commandes de vol. Vérification sur toute la longueur et examen pour épingles, usure, corrosions (commandes souples). Frottement, usure, corrosion, jeux (commandes rigides), état des cosses, rotules | BO40: X | BU40: X | BV40: X
A41: - | B41: - | C41: - | D41: - | E41: - | P41: n° de série | T41: L-19951-27A | W41: - | X41: - | Y41: - | Z41: - | AA41: - | AB41: - | AP41: Ail. G. haut | AQ41: 17°30 | AR41: 1 | AS41: 28 | AT41: 3 | BG41: 27-05 | BH41: Examen détaillé des poulies, renvois, chaînes et pignons pour usure, rivets ébranlés. Contrôle du jeu des roulements, des palonniers, supports de palonniers, du manche, des rotules ou cardans de manche | BO41: X | BU41: X | BV41: X
A42: - | B42: - | C42: - | D42: - | E42: - | P42: Date de RG | T42: 2015-07-17 | W42: - | X42: - | Y42: - | Z42: - | AA42: - | AB42: - | AP42: Ail. G. haut | AQ42: 17°30 | AR42: 1 | AS42: 28 | AT42: 3 | BG42: 27-06 | BH42: Examen aux passages de cloison pour usure. Examen des guides câbles pour usure | BJ42: X | BK42: X | BO42: X | BQ42: X | BU42: X | BV42: X
A43: - | B43: - | C43: - | D43: - | E43: - | P43: Heures totales | T43: Inc | W43: - | X43: - | Y43: - | Z43: - | AA43: - | AB43: - | AP43: Ail. G. haut | AQ43: 17°30 | AR43: 1 | AS43: 28 | AT43: 3 | BG43: 27-07 | BH43: TACHE CRITIQUE : Rebrancher les commandes. Contrôle de la tension des câbles le cas échéant | BO43: X | BU43: X | BV43: X
A44: - | B44: - | C44: - | D44: - | E44: - | P44: Heures depuis RG | T44: 258.02 | W44: - | X44: - | Y44: - | Z44: - | AA44: - | AB44: - | AP44: Ail. G. haut | AQ44: 17°30 | AR44: 1 | AS44: 28 | AT44: 3 | BG44: 27-08 | BH44: Essai de fonctionnement des volets pour réglage, course. | BJ44: X | BK44: X | BO44: X | BQ44: X | BU44: X | BV44: X
A45: - | B45: - | C45: - | D45: - | E45: - | P45: Heures hélice | W45: - | X45: - | Y45: - | Z45: - | AA45: - | AB45: - | AP45: Ail. G. haut | AQ45: 17°30 | AR45: 1 | AS45: 28 | AT45: 3 | BG45: 27-09 | BH45: Après dépose, examen de la chaîne de commande des volets pour état (usure, corrosion) | BO45: X | BU45: X | BV45: X
A46: - | B46: - | C46: - | D46: - | E46: - | P46: Constructeur | T46: Sensenich | W46: - | X46: - | Y46: - | Z46: - | AA46: - | AB46: - | AP46: Ail. G. haut | AQ46: 17°30 | AR46: 1 | AS46: 28 | AT46: 3 | BG46: 27-10 | BH46: Vérification des débattements des ailerons et des volets, noter le résultat. Vérification visuelle de la position des volets (angle identique). Vérifier cette position avec le cran correspondant au poste pilote, ou avec l'indicateur, le cas échéant | BO46: X | BU46: X | BV46: X
A47: - | B47: - | C47: - | D47: - | E47: - | P47: Type | T47: 74DM6-0-56 | W47: - | X47: - | Y47: - | Z47: - | AA47: - | AB47: - | AP47: Ail. G. haut | AQ47: 17°30 | AR47: 1 | AS47: 28 | AT47: 3 | BG47: 27-11 | BH47: Examen visuel de l'état du revêtement des becs de bord d'attaque pour déformation, criques, déchirures | BJ47: X | BK47: X | BO47: X | BQ47: X | BU47: X | BV47: X
A48: - | B48: - | C48: - | D48: - | E48: - | P48: n° de série | T48: A-54663 | W48: - | X48: - | Y48: - | Z48: - | AA48: - | AB48: - | BG48: 27-12 | BH48: Examen visuel de la position des becs par rapport au profil (becs fermés) vrillage correct, voir BS 14/1 | BJ48: X | BK48: X | BO48: X | BQ48: X | BU48: X | BV48: X
A49: - | B49: - | C49: - | D49: - | E49: - | P49: Heures totales | T49: Inc | W49: - | X49: - | Y49: - | Z49: - | AA49: - | AB49: - | AP49: N° de ligne de la référence de dossier dans le fichier " Récap des docs.xls" | BG49: 27-13 | BH49: Examen approfondi du revêtement et structure des becs pour déformation, criques, corrosion | BO49: X | BU49: X | BV49: X
A50: Lancé auto | E50: A lancer supp | I50: A supprimer | P50: Heures depuis RG | T50: 751.49 | AP50: 183 | BG50: 27-14 | BH50: Sortie des becs, examen visuel des bras coulissants, des galets (jeu), des axes de liaison, des dash pots, colliers de commande de conjugaison, suivant BS 14/1 | BK50: X | BO50: X | BQ50: X | BU50: X | BV50: X
A51: 1 | B51: F-1982-089 | C51: Corrosion | D51: BS Rallye n° 133-2 | E51: 1 | F51: F-2000-174 | G51: Manilles de commandes de gouvernes de profondeur et de direction - 600 h. | H51: BS Rallye n° 155-27 § E.2 | I51: 1 | J51: F-1982-089 | K51: Corrosion | L51: BS Rallye n° 133-2 | BG51: 27-15 | BH51: Examen détaillé après dépose des éléments constituants des becs de fente, et mécanisme | BO51: X | BU51: X | BV51: X
A52: 2 | B52: F-1986-160 R1 | C52: Stabilisateur horizontal | D52: BS Rallye n° 145-1 | E52: 2 | F52: 2015-0203 | G52: Axe de roue avant et vis de fixation - Remplacement | H52: BS Rallye n° 150-32 Rev 3 | I52: 2 | J52: F-1986-160 R1 | K52: Stabilisateur horizontal | L52: BS Rallye n° 145-1 | P52: Infos de la documentation en vigueur | W52: Lancé auto | Y52: A lancer supp | AA52: A supprimer | BG52: 27-16 | BH52: Remontage des becs, régler et mesurer le décalage par rapport au profil | BO52: X | BU52: X | BV52: X
A53: 3 | B53: F-2000-174 | C53: Manilles de commandes de gouvernes de profondeur et de direction - 100 h. | D53: BS Rallye n° 155-27 § E.1 | E53: 3 | F53: US-2004-10-1 | G53: Boulon de fixation du pignon de vilebrequin | H53: Lycoming n°475C | I53: 3 | J53: F-2000-174 | K53: Manilles de commandes de gouvernes de profondeur et de direction - 100 h. | L53: BS Rallye n° 155-27 § E.1 | P53: Doc avion | S53: Manuel d'entretien Rallye révision 10 de 1988 | W53: 1 | X53: Balise de détresse - Test fonctionnel | Y53: 1 | Z53: Pesée avion | AA53: 1 | AB53: Balise de détresse - Test fonctionnel | BG53: 27-17 | BH53: Examen visuel des poulies d'extrémité des câbles | BK53: X | BO53: X | BQ53: X | BU53: X | BV53: X
A54: 4 | B54: F-2001-400 | C54: Bâti moteur | D54: BS Rallye n° 156-71 | E54: 4 | F54: US-2004-10-14 corrigée | G54: Boulon de fixation du pignon de vilebrequin - Remplacement | H54: Lycoming n°475C | I54: 4 | J54: F-2001-400 | K54: Bâti moteur | L54: BS Rallye n° 156-71 | P54: Doc moteur | S54: Lycoming Operators Manual O320 series 60297-30 | W54: 2 | X54: Magnéto gauche - Inspection 500 h | Y54: 2 | Z54: Alternateur - RG | AA54: 2 | AB54: Magnéto gauche - Inspection 500 h | BG54: 27-18 | BH54: Examen visuel de la bielle de commande de profondeur (état des rivets-jeux) | BO54: X | BU54: X | BV54: X
A55: 5 | B55: 2015-0203 | C55: Axe de roue avant et vis de fixation - Inspection | D55: BS Rallye n° 150-32 Rev 3 | F55: - | G55: - | H55: - | I55: 5 | J55: 2015-0203 | K55: Axe de roue avant et vis de fixation - Inspection | L55: BS Rallye n° 150-32 Rev 3 | P55: Doc hélice | S55: Sensenisch Repair Manual SPRM 590 | W55: 3 | X55: Magnéto droite - Inspection 500 h | Y55: 3 | Z55: Tuyauterie d'essence du réservoir gauche - Fin de vie | AA55: 3 | AB55: Magnéto droite - Inspection 500 h | BG55: 27-19 | BH55: Examen visuel du guignol de commande de profondeur suivant BS 89 | BK55: X | BO55: X | BQ55: X | BU55: X | BV55: X
A56: 6 | B56: F-1977-168 | C56: Interrupteurs d’allumage Bendix | D56: Sans | F56: - | G56: - | H56: - | I56: 6 | J56: F-1977-168 | K56: Interrupteurs d’allumage Bendix | L56: Sans | P56: Doc magnétos | S56: Manuel de Maintenance magnétos séries D4300/6300 | W56: 4 | X56: Carburateur - BS Lycoming n° 366A | Y56: 4 | Z56: Tuyauterie d'essence du réservoir droit - Fin de vie | AA56: 4 | AB56: Carburateur - BS Lycoming n° 366A | BG56: 27-20 | BH56: Examen visuel de la bielle de commande d'aileron au passage des galets (usure) suivant BS 33 | BJ56: X | BK56: X | BO56: X | BQ56: X | BU56: X | BV56: X
B57: - | C57: - | D57: - | F57: - | G57: - | H57: - | J57: - | K57: - | L57: - | P57: Programme d'entretien | S57: Aéroclub du Gaillacois | X57: - | Y57: 5 | Z57: Pompe à essence - RG | AB57: - | BG57: 27-21 | BH57: Examen visuel des bras supports d'ailerons et des articulations | BJ57: X | BK57: X | BO57: X | BQ57: X | BU57: X | BV57: X
B58: - | C58: - | D58: - | F58: - | G58: - | H58: - | J58: - | K58: - | L58: - | P58: Révision | S58: 2 | X58: - | Y58: 6 | Z58: Tuyauteries de frein - Fin de vie | AB58: - | BG58: 27-22 | BH58: Examen visuel du jeu des galets dans la glissière de volets. S'assurer de leur montage correct, BS 131 | BK58: X | BO58: X | BQ58: X | BU58: X | BV58: X
B59: - | C59: - | D59: - | F59: - | G59: - | H59: - | J59: - | K59: - | L59: - | P59: Date | S59: 2014-04-28 | X59: - | Y59: 7 | Z59: VOR - Passage au banc | AB59: - | BG59: 27-23 | BH59: Examen visuel du vérin électrique de commande de volets et micro rupteurs de fin de course (appareils équipés) | BO59: X | BU59: X | BV59: X
B60: - | C60: - | D60: - | F60: - | G60: - | H60: - | J60: - | K60: - | L60: - | P60: Amendement | S60: 0 | X60: - | Y60: 8 | Z60: Compas - Compensation | AB60: - | BG60: 27-24 | BH60: Examen visuel des articulations du système de commande des volets (absence de jeu) | BK60: X | BO60: X | BQ60: X | BU60: X | BV60: X
B61: - | C61: - | D61: - | F61: - | G61: - | H61: - | J61: - | K61: - | L61: - | P61: Date | S61: 2014-04-28 | X61: - | Y61: 9 | Z61: Transpondeur - Test opérationnel - Fasc. P41-15 | AB61: - | BG61: 27-25 | BH61: Commande manuelle pour handicapés (malonier). Graissage du tube coulissant | BK61: X | BO61: X | BQ61: X | BU61: X | BV61: X
B62: - | C62: - | D62: - | F62: - | G62: - | H62: - | J62: - | K62: - | L62: - | X62: - | Y62: 10 | Z62: Transpondeur - Test fonctionnel - Fasc. P41-15 | AB62: - | BG62: 27-26 | BH62: Commande manuelle pour handicapés (malonier).Examen visuel de la timonerie de commande de direction et des gaz. Absence de points durs | BJ62: X | BK62: X | BO62: X | BQ62: X | BU62: X | BV62: X
B63: - | C63: - | D63: - | F63: - | G63: - | H63: - | J63: - | K63: - | L63: - | P63: Dernière GV | X63: - | Y63: 11 | Z63: Hélice - RG | AB63: - | BG63: 27-27 | BH63: Freinage manuel pour handicapés : vérification fonctionnement et état (câbles, crémaillère) | BJ63: X | BK63: X | BO63: X | BQ63: X | BU63: X | BV63: X
B64: - | C64: - | D64: - | F64: - | G64: - | H64: - | J64: - | K64: - | L64: - | P64: 8311.84 | X64: - | Y64: 12 | Z64: Moteur - Alternative TBO | AB64: - | BG64: 28-00 | BH64: CIRCUIT CARBURANT | BJ64: X | BK64: X | BO64: X | BQ64: X | BU64: X | BV64: X
B65: - | C65: - | D65: - | F65: - | G65: - | H65: - | J65: - | K65: - | L65: - | X65: - | Y65: 13 | Z65: Moteur - Inspection corrosion | AB65: - | BG65: 28-01 | BH65: Examen visuel des bouchons de réservoirs (marquage, étanchéité, joint) | BJ65: X | BK65: X | BO65: X | BQ65: X | BU65: X | BV65: X
P66: Réf du dernier bon de lancement | X66: - | Y66: 14 | Z66: Moteur - RG | AB66: - | BG66: 28-02 | BH66: Examen visuel des réservoirs pour fuites, fixations | BJ66: X | BK66: X | BO66: X | BQ66: X | BU66: X | BV66: X
P67: 0 | X67: - | Y67: 15 | Z67: Tachymètre - Passage au banc | AB67: - | BG67: 28-03 | BH67: Vidange des réservoirs. Examen interne pour corrosion, pollution et externe pour fixations, déformations | BO67: X | BU67: X | BV67: X
P68: 2016 | Y68: 16 | Z68: Magnéto gauche - Inspection visuelle 100 h | BG68: 28-04 | BH68: Examen détaillé des circuits de carburant, fuite, usure, vieillissement ou déformation des tuyauteries. Examen visuel dans le fond du fuselage des canalisations du décanteur, état, absence de fuites | BO68: X | BU68: X | BV68: X
Y69: 17 | Z69: Magnéto gauche - RG | BG69: 28-05 | BH69: Remplacement des tuyauteries souples (tous les dix ans sans autre indication contraire du constructeur) | BQ69: X | BU69: X | BV69: X
P70: Mail RS OSAC | Y70: 18 | Z70: Magnéto droite - Inspection visuelle 100 h | BG70: 28-06 | BH70: Essai de la pompe électrique (fonctionnement, pression, débit) contrôle du fonctionnement des témoins si appareil équipé | BJ70: X | BK70: X | BO70: X | BQ70: X | BU70: X | BV70: X
P71: manu.cath@live.fr | Y71: 19 | Z71: Magnéto droite - RG | BG71: 28-07 | BH71: Examen visuel de l'élément filtrant de la pompe de gavage, et de son joint | BK71: X | BO71: X | BQ71: X | BU71: X | BV71: X
Y72: 20 | Z72: Carburateur - RG | BG72: 28-08 | BH72: Examen visuel des mises à l'air libre (obturation). Etat des circuits (tuyauteries, raccords) | BK72: X | BO72: X | BQ72: X | BU72: X | BV72: X
P73: Personnel | Y73: 21 | Z73: Silencieux - RG | BG73: 28-09 | BH73: Examen visuel des robinets pour fonctionnement, fixation, étanchéité, marquage position correcte avec réservoir sélectionné. Etanchéité robinet coupe feu | BK73: X | BO73: X | BQ73: X | BU73: X | BV73: X
P74: RN | R74: Manuel NAJAR | Y74: 22 | Z74: Tuyauterie du reniflard d'huile - Fin de vie | BG74: 28-10 | BH74: Essai du fonctionnement des jaugeurs électriques | BJ74: X | BK74: X | BO74: X | BQ74: X | BU74: X | BV74: X
P75: RN adj. | R75: Jean R. GIMENEZ | Y75: 23 | Z75: Démarreur - RG | BG75: 28-11 | BH75: Après dépose examen visuel du flotteur du jaugeur pour état | BO75: X | BU75: X | BV75: X
P76: Autre | R76: - | Z76: - | BG76: 28-12 | BH76: Etalonnage des jaugeurs | BO76: X | BU76: X | BV76: X
Z77: - | BG77: 31-00 | BH77: INSTRUMENTS | BJ77: X | BK77: X | BO77: X | BQ77: X | BU77: X | BV77: X
P78: Onglets des fichiers liés | Z78: - | BG78: 31-01 | BH78: Examen visuel des fixations et amortisseurs du tableau de bord | BO78: X | BQ78: X | BU78: X | BV78: X
P79: Récap dossier avion | S79: 'F:\Mecanique\Agrement G (Manu)\F-TEST\[F-TEST - Dossier avion rev 4.xlsm]Récap'! | Z79: - | BG79: 31-02 | BH79: Examen visuel des IB pour fixation, marquage et lisibilité | BJ79: X | BK79: X | BO79: X | BQ79: X | BU79: X | BV79: X
P80: Fiche avion | S80: 'F:\Mecanique\Agrement G (Manu)\F-TEST\[F-TEST - Dossier avion rev 4.xlsm]Fiche avion'! | Z80: - | BG80: 31-04 | BH80: Vérification du tube Pitot, obturation, fixation et position corrects | BJ80: X | BK80: X | BO80: X | BQ80: X | BU80: X | BV80: X
P81: Récap des doc | S81: 'F:\Mecanique\Agrement G (Manu)\[Récap des docs.xls]Récap'!$A:$AA | Z81: - | BG81: 31-05 | BH81: Examen détaillé des tuyauteries pression totale et statique | BO81: X | BU81: X | BV81: X
P82: Section 6 | S82: 'F:\Mecanique\Agrement G (Manu)\[Récap des docs.xls]Section 6 Rallye'! | Z82: - | BG82: 31-06 | BH82: Examen des prises statiques (obturation) | BJ82: X | BK82: X | BO82: X | BQ82: X | BU82: X | BV82: X
Z83: - | BG83: 31-07 | BH83: Vérifier la présence de la courbe de compensation du compas | BJ83: X | BK83: X | BO83: X | BQ83: X | BU83: X | BV83: X
P84: Immatriculations suivies | Z84: - | BG84: 31-09 | BH84: Purge du circuit anémomètrique par les 2 drains sous fuselage en avant du longeron | BJ84: X | BK84: X | BO84: X | BQ84: X | BU84: X | BV84: X
P85: F-GBKS | Z85: - | BG85: 31-10 | BH85: Après dépose du capot devant pare brise (ATA 53), inspection visuelle des connections et raccords des instruments de bord (serrage des câbles électriques des raccords) état des tuyauteries souples | BJ85: X | BK85: X | BO85: X | BQ85: X | BU85: X | BV85: X
P86: F-GCAR | Z86: - | BG86: 32-00 | BH86: TRAINS D'ATTERRISSAGE | BJ86: X | BK86: X | BO86: X | BQ86: X | BU86: X | BV86: X
P87: F-GDYA | Z87: - | BG87: 32-01 | BH87: Atterrisseurs principaux : dépose des carénages de roues et de jambes de train (démontage partiel le cas échéant) pour accès aux amortisseurs, freins, etc… | BJ87: X | BK87: X | BO87: X | BQ87: X | BU87: X | BV87: X
P88: F-GKBO | BG88: 32-03 | BH88: Atterrisseurs principaux : avions équipés d'amortisseurs hydrauliques (items 04 à 14) | BJ88: X | BK88: X | BO88: X | BQ88: X | BU88: X | BV88: X
P89: F-HBPY | BG89: 32-04 | BH89: Atterrisseurs principaux : examen visuel des fûts de trains, corps d'amortisseurs, tiges coulissantes (fuites, corrosion, piqûres), compas, freinage des composants (avion au sol). | BJ89: X | BK89: X | BO89: X | BQ89: X | BU89: X | BV89: X
P90: F-TEST | BG90: 32-05 | BH90: Atterrisseurs principaux : examen visuel des bras balanciers (déformation, jeu des articulations). Suivant couples de serrage du manuel d'entretien, vérifier le serrage de toutes les fixations (train avant également) | BK90: X | BO90: X | BQ90: X | BU90: X | BV90: X
BG91: 32-06 | BH91: Atterrisseurs principaux : examen visuel des boulons d'attache de train (avion au sol) | BK91: X | BO91: X | BQ91: X | BU91: X | BV91: X
BG92: 32-07 | BH92: Atterrisseurs principaux : essai du libre débattement du bras de fusée après avoir débranché l'amortisseur, jeu des attaches amortisseurs (train avant également). Examen des bagues de tourillonnement | BO92: X | BQ92: X | BU92: X | BV92: X
BG93: 32-08 | BH93: Atterrisseurs principaux : contrôle de la pression des amortisseurs de train principal (et à la demande) | BK93: X | BO93: X | BQ93: X | BU93: X | BV93: X
BG94: 32-09 | BH94: Atterrisseurs principaux : vérification visuelle de la course des amortisseurs | BJ94: X | BK94: X | BO94: X | BQ94: X | BU94: X | BV94: X
BG95: 32-10 | BH95: Atterrisseurs principaux : dépose de la tige amortisseur, remplacement des joints toriques, examen interne détaillé du corps d'amortisseur | BO95: X | BU95: X | BV95: X
BG96: 32-11 | BH96: Atterrisseurs principaux : remplissage des amortisseurs | BO96: X | BU96: X | BV96: X
BG97: 32-12 | BH97: Atterrisseurs principaux : dépose pour examen détaillé et révision éventuelle. Examen détaillé des fûts d'atterrisseur principal pour ressuage, " MELT-L-CHECK " ou équivalent dans la zone située autour de l'attache supérieure d'amortisseur et au-dessus de celle-ci, BS 32 et 48 | BO97: X | BU97: X | BV97: X
BG98: 32-13 | BH98: Atterrisseurs principaux : ressuage des fûts de trains et des compas, après décapage | BO98: X | BU98: X | BV98: X
BG99: 32-14 | BH99: Atterrisseurs principaux : inspection détaillée des attaches de train et des soudures sur la structure | BO99: X | BQ99: X | BU99: X | BV99: X
BG100: 32-15 | BH100: Atterrisseurs principaux : remontage du train principal (avions équipés d'amortisseurs hydrauliques) | BO100: X | BU100: X | BV100: X
BG101: 32-16 | BH101: Atterrisseur avant : vérification visuelle de la course de l'amortisseur, avion au sol | BJ101: X | BK101: X | BO101: X | BQ101: X | BU101: X | BV101: X
BG102: 32-17 | BH102: Atterrisseur avant : dépose des carénages de roue avant et jambe de train, état du pneu, avion au sol | BJ102: X | BK102: X | BO102: X | BQ102: X | BU102: X | BV102: X
BG103: 32-18 | BH103: Atterrisseur avant : examen visuel du fût de train avant, corps d'amortisseur, tige coulissante, pour fuites, corrosions, piqûres - compas, anti-shimmy - freinage des composants. | BJ103: X | BK103: X | BO103: X | BQ103: X | BU103: X | BV103: X
BG104: 32-19 | BH104: Atterrisseur avant : examen visuel des pattes supports de carénage train avant (si train avant soudé suivant BS 144) | BJ104: X | BK104: X | BO104: X | BQ104: X | BU104: X | BV104: X
BG105: 32-20 | BH105: Atterrisseur avant : examen visuel du sertissage de la bague de reprise de l'amortisseur avant. Examiner visuellement l'appui des deux branches du ressort de rappel dans l'axe. Effectuer les vérifications du train avant selon BS 42 | BJ105: X | BK105: X | BO105: X | BQ105: X | BU105: X | BV105: X
BG106: 32-21 | BH106: Atterrisseur avant : examen visuel des fixations de train avant sur cloison pare-feu, sur bâti moteur, pour état des soudures et des boulons | BJ106: X | BK106: X | BO106: X | BQ106: X | BU106: X | BV106: X
BG107: 32-22 | BH107: Atterrisseur avant : examen détaillé des équerres de fixation | BO107: X | BU107: X | BV107: X
BG108: 32-23 | BH108: Atterrisseur avant : contrôle de la pression de l'amortisseur | BK108: X | BO108: X | BQ108: X | BU108: X | BV108: X
BG109: 32-24 | BH109: Atterrisseur avant : remplissage de l'amortisseur | BO109: X | BU109: X | BV109: X
BG110: 32-25 | BH110: Atterrisseur avant : dépose pour examen détaillé et révision annuelle | BO110: X | BU110: X | BV110: X
BG111: 32-26 | BH111: Atterrisseur avant : démontage des éléments du train avant pour inspection détaillée : examen interne, remplacement des joints toriques et coupelles. Etat du palonnier d'orientation | BO111: X | BU111: X | BV111: X
BG112: 32-27 | BH112: Atterrisseur avant : ressuage du fût et des compas, après décapage | BO112: X | BU112: X | BV112: X
BG113: 32-28 | BH113: Atterrisseur avant : inspection détaillée des attaches, soit sur cloison pare-feu, pour criques, ovalisation, usure des attaches, soit sur bâti moteur, pour état des soudures | BO113: X | BU113: X | BV113: X
BG114: 32-29 | BH114: Atterrisseur avant : révision générale de l'anti-shimmy (si équipé) | BO114: X | BU114: X | BV114: X
BG115: 32-30 | BH115: Atterrisseur avant : remontage des éléments déposés | BJ115: X | BK115: X | BO115: X | BQ115: X | BU115: X | BV115: X
BG116: 32-31 | BH116: Atterrisseur avant : contrôle de l'efficacité de l'anti-shimmy (si équipé) | BK116: X | BO116: X | BQ116: X | BU116: X | BV116: X
BG117: 32-32 | BH117: Pneus : examen visuel pour usure, coupures, pression. Remplacement si nécessaire | BJ117: X | BK117: X | BO117: X | BQ117: X | BU117: X | BV117: X
BG118: 32-33 | BH118: Roues : examen visuel pour criques, usure par frottement, chocs | BJ118: X | BK118: X | BO118: X | BQ118: X | BU118: X | BV118: X
BG119: 32-34 | BH119: Roues : dépose pour examen détaillé des roulements, après nettoyage, pour usure. Graissage. ATTENTION : certains roulements étanches ne peuvent pas être nettoyés au white spirit ou autres hydrocarbures. | BO119: X | BU119: X | BV119: X
BG120: 32-35 | BH120: Roues : dépose des pneus, démontage des roues. Examen visuel des flasques, boulons de fixation, roulements. Examen interne des pneus. Etat des chambres. | BO120: X | BU120: X | BV120: X
BG121: 32-36 | BH121: Roues : remontage, état de la valve, pression | BO121: X | BU121: X | BV121: X
BG122: 32-37 | BH122: Roues : examen visuel du balourd de la roue avant, s'assurer que le triangle d'équilibre est à l'opposé de la valve de gonflage | BJ122: X | BK122: X | BO122: X | BQ122: X | BU122: X | BV122: X
BG123: 32-39 | BH123: Roues : examen visuel du jeu latéral de la roue avant | BJ123: X | BK123: X | BO123: X | BQ123: X | BU123: X | BV123: X
BG124: 32-40 | BH124: Freins : examen visuel des plaquettes pour usure. Etat des disques ou des tambours | BJ124: X | BK124: X | BO124: X | BQ124: X | BU124: X | BV124: X
BG125: 32-41 | BH125: Freins : examen visuel des tuyauteries pour entailles, usure, fuites. Examen visuel du circuit hydraulique | BJ125: X | BK125: X | BO125: X | BQ125: X | BU125: X | BV125: X
BG126: 32-43 | BH126: Freins : examen détaillé du bloc de frein et du maître cylindre - révision si nécessaire, remplacement des joints après dépose des éléments, rinçage du circuit, remontage des éléments déposés, remplissage du circuit hydraulique et purge | BO126: X | BU126: X | BV126: X
BG127: 32-44 | BH127: Freins : examen visuel de la commande de frein de parc - état du câble - examen visuel du bloc de frein de parc (si installé). | BJ127: X | BK127: X | BO127: X | BQ127: X | BU127: X | BV127: X
BG128: 32-45 | BH128: Freins : Dépose du bloc de frein de parc pour révision ou remise en état, puis remontage | BO128: X | BU128: X | BV128: X
BG129: 33-00 | BH129: ECLAIRAGE | BJ129: X | BK129: X | BO129: X | BQ129: X | BU129: X | BV129: X
BG130: 33-01 | BH130: Examen du fonctionnement de l'éclairage intérieur, tableau de bord | BJ130: X | BK130: X | BO130: X | BQ130: X | BU130: X | BV130: X
BG131: 33-02 | BH131: Examen du fonctionnement feux de position, phare d'atterrissage, anti-collision | BJ131: X | BK131: X | BO131: X | BQ131: X | BU131: X | BV131: X
BG132: 33-03 | BH132: Examen visuel des supports, câblage et circuits | BJ132: X | BK132: X | BO132: X | BQ132: X | BU132: X | BV132: X
BG133: 33-04 | BH133: Examen détaillé du circuit d'éclairage, essai de continuité : étanchéité des verrines | BO133: X | BU133: X | BV133: X
BG134: 34-00 | BH134: RADIONAVIGATION | BK134: X | BO134: X | BQ134: X | BU134: X | BV134: X
BG135: 34-01 | BH135: Examen visuel des instruments : horizon, bille aiguille pour fixation et état - lisibilité | BK135: X | BO135: X | BQ135: X | BU135: X | BV135: X
BG136: 36-00 | BH136: PNEUMATIQUE | BJ136: X | BK136: X | BO136: X | BQ136: X | BU136: X | BV136: X
BG137: 36-01 | BH137: Examen visuel de la pompe à vide, fixation, état et nettoyage du filtre | BK137: X | BO137: X | BQ137: X | BU137: X | BV137: X
BG138: 36-02 | BH138: Remplacer les filtres | BO138: X | BU138: X | BV138: X
BG139: 36-03 | BH139: Examen de l'état, de la fixation et du réglage du régulateur de dépression | BK139: X | BO139: X | BQ139: X | BU139: X | BV139: X
BG140: 36-04 | BH140: Examen du fonctionnement du circuit de dépression au point fixe. Contrôle au manomètre. | BJ140: X | BK140: X | BO140: X | BQ140: X | BU140: X | BV140: X
BG141: 52-00 | BH141: VERRIERE | BJ141: X | BK141: X | BO141: X | BQ141: X | BU141: X | BV141: X
BG142: 52-01 | BH142: Examen visuel de la verrière : état général, criques, fonctionnement des charnières, des galets sur la structure, des pions et butées, de la serrure, étanchéité, examen visuel des arceaux de verrière et des joints (étanchéité à la pluie) | BJ142: X | BK142: X | BO142: X | BQ142: X | BU142: X | BV142: X
BG143: 52-02 | BH143: Dépose de la verrière pour examen détaillé, usure des galets, graissage, réfection des garnitures d'étanchéité. Remplacement du plexiglas en cas criques, crazing, déformation. Fonctionnement des serrures | BO143: X | BU143: X | BV143: X
BG144: 52-03 | BH144: Inspection visuelle câble de commande et du verrouillage de la verrière | BK144: X | BO144: X | BQ144: X | BU144: X | BV144: X
BG145: 52-04 | BH145: Après nettoyage, inspection visuelle du fonctionnement de la verrière sur le rail supérieur (glissement doux) et de son engagement dans les deux rails inférieurs. Inspection visuelle des deux doigts inférieurs à l'arrière de la verrière. Absence de criques et d'entailles | BK145: X | BO145: X | BQ145: X | BU145: X | BV145: X
BG146: 52-05 | BH146: Inspection visuelle du pare brise (criques, crazing, visibilité). Nettoyage | BJ146: X | BK146: X | BO146: X | BQ146: X | BU146: X | BV146: X
BG147: 52-06 | BH147: Inspection détaillée du pare brise et de ses fixations après nettoyage et dégarnissage (si nécessaire) | BO147: X | BU147: X | BV147: X
BG148: 53-00 | BH148: FUSELAGE | BJ148: X | BK148: X | BO148: X | BQ148: X | BU148: X | BV148: X
BG149: 53-01 | BH149: Examen visuel du revêtement extérieur pour déformation, rivets ébranlés, points de soudure, collages (le cas échéant). Remplacer les vis oxydées | BJ149: X | BK149: X | BO149: X | BQ149: X | BU149: X | BV149: X
BG150: 53-02 | BH150: Dépose des planchers ou des portes de visite. Dégarnissage total ou partiel selon les types d'appareil | BO150: X | BU150: X | BV150: X
BG151: 53-03 | BH151: Dépose de l'arête dorsale, des raccordements d'ailes (Karman), du cône arrière et karmans latéraux de dérive, de la porte accès du fuselage arrière et du capot devant le pare brise | BK151: X | BO151: X | BQ151: X | BU151: X | BV151: X
BG152: 53-04 | BH152: Examen du revêtement interne, des lisses et couples, pour état (rivets ébranlés, corrosion) | BO152: X | BU152: X | BV152: X
BG153: 53-06 | BH153: Après dépose de la batterie, vérifier le bac de la batterie et les revêtements adjacents pour écoulement d'électrolyte. Etat des ventilations. Apporter une attention particulière à la cloison pare feu, au bâti moteur et aux équipements adjacents | BJ153: X | BK153: X | BO153: X | BQ153: X | BU153: X | BV153: X
BG154: 53-07 | BH154: Rincer le bac de la batterie - neutraliser les attaques chimiques | BJ154: X | BK154: X | BO154: X | BQ154: X | BU154: X | BV154: X
BG155: 53-08 | BH155: Examen détaillé après dépose des carénages, Karmans, cône arrière pour criques, ovalisation des fixations, corrosion ou déchirures | BK155: X | BO155: X | BQ155: X | BU155: X | BV155: X
BG156: 53-09 | BH156: Examen détaillé des fixations et supports des équipements (rivets, criques, corrosions) et du fond de coque pour corrosion | BO156: X | BU156: X | BV156: X
BG157: 53-10 | BH157: Examen visuel des rails de fixation des sièges (usure, corrosion, déformations fixations) et des ferrures d'attaches | BO157: X | BU157: X | BV157: X
BG158: 53-11 | BH158: Examen des ferrures d'attaches des ceintures de sécurité (déformations, corrosion, criques) | BO158: X | BU158: X | BV158: X
BG159: 53-12 | BH159: Examen détaillé des attaches de plan fixe horizontal et vertical (ou empennage papillon le cas échéant) | BO159: X | BU159: X | BV159: X
BG160: 53-13 | BH160: Examen approfondi des ferrures d'attache aile/fuselage (corrosion), ovalisation rayures ou marquages, criques | BO160: X | BU160: X | BV160: X
BG161: 53-14 | BH161: Remontage des planchers, portes de visites, garnissages | BO161: X | BU161: X | BV161: X
BG162: 53-16 | BH162: Inspection détaillée des renforts de passage de longerons de voilure dans fuselage (pour corrosion), BS 101 | BK162: X | BO162: X | BU162: X | BV162: X
BG163: 53-17 | BH163: Remontage des éléments déposés | BK163: X | BO163: X | BQ163: X | BU163: X | BV163: X
BG164: 54-00 | BH164: COMPARTIMENT MOTEUR | BJ164: X | BK164: X | BO164: X | BQ164: X | BU164: X | BV164: X
BG165: 54-01 | BH165: Examen visuel de la cloison pare feu, étanchéité et fixation, déformations éventuelles, étanchéité, supports de fixation d'équipements, passages de cloisons des commandes, tuyauteries et câblages | BJ165: X | BK165: X | BO165: X | BQ165: X | BU165: X | BV165: X
BG166: 54-02 | BH166: Examen détaillé de la structure et fixation de la cloison pare feu pour rivets ébranlés, déformations, criques, corrosion, étanchéité | BO166: X | BU166: X | BV166: X
BG167: 54-03 | BH167: Inspection détaillée des ferrures de fixation du bâti moteur sur la cloison pare feu (MET " L " CHECK ou ARDROX ou équivalent), BS 86 | BO167: X | BU167: X | BV167: X
BG168: 54-04 | BH168: Vérification (loupe x10) des ferrures d'attache du bâti moteur pour criques, corrosions, ovalisations, protections. Torquage éventuel suivant instructions du constructeur | BO168: X | BU168: X | BV168: X
BG169: 54-05 | BH169: Vérification (loupe x10) des boulons d'attache du bâti moteur, corrosion, usure, ovalisation, protection.. Torquage éventuel suivant l'instruction du constructeur | BO169: X | BU169: X | BV169: X
BG170: 54-06 | BH170: Inspection visuelle des joints entre capots et cloison pare feu | BJ170: X | BK170: X | BO170: X | BQ170: X | BU170: X | BV170: X
BG171: 55-00 | BH171: EMPENNAGES | BJ171: X | BK171: X | BO171: X | BQ171: X | BU171: X | BV171: X
BG172: 55-01 | BH172: Examen visuel du revêtement plan fixe horizontal (ou plan mobile) pour déformations, criques | BJ172: X | BK172: X | BO172: X | BQ172: X | BU172: X | BV172: X
BG173: 55-03 | BH173: Examen détaillé du revêtement de plan fixe horizontal (ou plan mobile) pour déformations, criques, rivetages, soudures | BO173: X | BQ173: X | BU173: X | BV173: X
BG174: 55-04 | BH174: Ouverture des portes de visites. Examen visuel interne plan fixe ou mobile : revêtement, nervures, lisses (corrosion, déformations, criques) | BK174: X | BO174: X | BQ174: X | BU174: X | BV174: X
BG175: 55-05 | BH175: Vérification des ferrures d'attaches et fixations (loupe x10) | BO175: X | BU175: X | BV175: X
BG176: 55-06 | BH176: Examen visuel de la ferrure centrale d'attache avant au plan fixe horizontal (criques) BS 40/1 | BK176: X | BO176: X | BQ176: X | BU176: X | BV176: X
BG177: 55-07 | BH177: Contrôle de torquage des boulons de fixation (clé dynamométrique) | BO177: X | BU177: X | BV177: X
BG178: 55-08 | BH178: Examen des charnières de profondeur (contrôle des jeux) | BJ178: X | BK178: X | BO178: X | BQ178: X | BU178: X | BV178: X
BG179: 55-09 | BH179: Dépose de la profondeur si nécessaire | BO179: X | BU179: X | BV179: X
BG180: 55-13 | BH180: Examen du plan fixe vertical, du revêtement, pour déformations, corrosions, criques, rivetage ou soudure | BJ180: X | BK180: X | BO180: X | BQ180: X | BU180: X | BV180: X
BG181: 55-15 | BH181: Examen détaillé du plan fixe vertical et de ses fixations | BO181: X | BQ181: X | BU181: X | BV181: X
BG182: 55-16 | BH182: Ouverture des portes de visites. Examen interne de la structure du plan fixe ou mobile : revêtement, nervures, lisses, pour criques, corrosions, déformations | BK182: X | BO182: X | BQ182: X | BU182: X | BV182: X
BG183: 55-17 | BH183: Examen détaillé des ferrures d'attache et fixation dérive | BO183: X | BU183: X | BV183: X
BG184: 55-18 | BH184: Vérification torquage des boulons de fixations (clé dynamométrique) | BO184: X | BU184: X | BV184: X
BG185: 55-19 | BH185: Examen des paliers supports de direction (jeux) | BJ185: X | BK185: X | BO185: X | BQ185: X | BU185: X | BV185: X
BG186: 55-20 | BH186: Dépose de la gouverne de direction si nécessaire | BO186: X | BU186: X | BV186: X
BG187: 55-23 | BH187: Examen des saumons (fixation, déchirures) de plans fixes | BJ187: X | BK187: X | BO187: X | BQ187: X | BU187: X | BV187: X
BG188: 55-24 | BH188: Examen des flettners de direction, de profondeur, fixation des commandes, déformations, jeux | BK188: X | BO188: X | BQ188: X | BU188: X | BV188: X
BG189: 55-25 | BH189: Examen fixation des commandes de flettners direction et profondeur, des charnières (usure) | BO189: X | BU189: X | BV189: X
BG190: 55-26 | BH190: TACHE CRITIQUE : remontage des gouvernes de direction et profondeur, régler, vérifier et noter les débattements | BO190: X | BU190: X | BV190: X
BG191: 55-27 | BH191: Brancher les commandes de flettners direction et profondeur, régler et vérifier, noter les débattements. Vérifier les positions à l'indicateur au poste de pilotage | BO191: X | BU191: X | BV191: X
BG192: 57-00 | BH192: AILES | BJ192: X | BK192: X | BO192: X | BQ192: X | BU192: X | BV192: X
BG193: 57-01 | BH193: Dépose des saumons d'ailes G et D | BK193: X | BO193: X | BU193: X | BV193: X
BG194: 57-02 | BH194: Examen visuel de la voilure pour déformation, chocs, état des revêtements. | BJ194: X | BK194: X | BO194: X | BQ194: X | BU194: X | BV194: X
BG195: 57-03 | BH195: Examen visuel (rivets ébranlés) du revêtement extrados voilure et en particulier dans la zone figurant au BS 142 | BJ195: X | BK195: X | BO195: X | BQ195: X | BU195: X | BV195: X
BG196: 57-04 | BH196: Examen détaillé du longeron principal de voilure, du faux longeron, des nervures, lisses (corrosion, déformations, torquage des boulons de fixation), après dépose des portes de visites, carénages, garnissage, au passage du longeron, si nécessaire | BO196: X | BU196: X | BV196: X
BG197: 57-05 | BH197: Examen visuel de la structure des réservoirs de carburant, étanchéité (si réservoirs structuraux - autre cas voir ATA 28) | BK197: X | BO197: X | BU197: X | BV197: X
BG198: 57-06 | BH198: Vérification détaillée de la structure voilure aux attaches de train principal (rivets ébranlés, déformations, oxydation) | BO198: X | BQ198: X | BU198: X | BV198: X
BG199: 57-07 | BH199: Examen visuel de la zone située autour de l'attache supérieure du train principal (criques) | BO199: X | BQ199: X | BU199: X | BV199: X
BG200: 57-08 | BH200: Démontage pour vérification (sondage) d'un boulon d'attache de demi-voilure (état, corrosion, fretting, serrage) | BO200: X | BU200: X | BV200: X
... 110 more rows

Sheet Profil

Sheet BL
B1: BON DE LANCEMENT N° | R1: =IF(Récap!P68=YEAR(TODAY()),IF(Récap!P67="","01",IF(Récap!P67<9,"0"&Récap!P67+1,TEXT(Récap!P67+1,0))),"01")&"/"&YEAR(TODAY())&"/"&RIGHT(U8,2) -> 01/2016/ST | AJ1: =MIN(AB123:AB1572) -> 
AJ2: =MAX(AB123:AB1572) -> 
E4: Aéroclub du Gaillacois - Agrément n° FR-MG.0206
B7: CONSTRUCTEUR | I7: TYPE AVION | P7: NUMERO DE SERIE | U7: IMMATRICULATION
B8: =Récap!T31 -> SOCATA | I8: =Récap!T32 -> Rallye 150 ST | P8: =Récap!T33 -> 3142 | U8: =IF(Récap!T34="","",Récap!T34) -> F-TEST
B10: VISITES | H10: PROGRAMME D'ENTRETIEN | N10: ED. | P10: DATE | T10: AMDT. | V10: DATE
B11: =IF(Récap!U17="","",Récap!U17) -> 1650 | H11: =Récap!S57 -> Aéroclub du Gaillacois | N11: =Récap!S58 -> 2 | P11: =Récap!S59 -> 2014-04-28 | T11: =Récap!S60 -> 0 | V11: =Récap!S61 -> 2014-04-28
B12: =IF(Récap!U24="","",Récap!U24) -> 
B14: DOCUMENTS DE MAINTENANCE CONSTRUCTEUR A UTILISER
B15: =Récap!S53 -> Manuel d'entretien Rallye révision 10 de 1988 | N15: =Récap!S55 -> Sensenisch Repair Manual SPRM 590
B16: =Récap!S54 -> Lycoming Operators Manual O320 series 60297-30 | N16: =Récap!S56 -> Manuel de Maintenance magnétos séries D4300/6300
B18: CONSIGNES DE NAVIGABILITE
B19: Consigne de navigabilité | U19: Bulletin de service
A20: =IF(MAX(A$18:A19)+1>MAX(Récap!$F$5:$F$49),"",MAX(A$18:A19)+1) -> 1 | B20: =IF(A20>MAX(Récap!F:F),"Pas de consigne de navigabilité",CONCATENATE(VLOOKUP(A20,Récap!F:H,2,FALSE)," - ",VLOOKUP(A20,Récap!F:H,3,FALSE))) -> F-1982-089 - Corrosion | U20: =IF(A20>MAX(Récap!F:F),"-",VLOOKUP(A20,Récap!F:I,4,FALSE)) -> BS Rallye n° 133-2
A22: =IF(MAX(A$18:A21)+1>MAX(Récap!$F$5:$F$49),"",MAX(A$18:A21)+1) -> 2 | B22: =IF(A22>MAX(Récap!F:F),"-",CONCATENATE(VLOOKUP(A22,Récap!F:H,2,FALSE)," - ",VLOOKUP(A22,Récap!F:H,3,FALSE))) -> F-1986-160 R1 - Stabilisateur horizontal | U22: =IF(A22>MAX(Récap!F:F),"-",VLOOKUP(A22,Récap!F:I,4,FALSE)) -> BS Rallye n° 145-1
A24: =IF(MAX(A$18:A23)+1>MAX(Récap!$F$5:$F$49),"",MAX(A$18:A23)+1) -> 3 | B24: =IF(A24>MAX(Récap!F:F),"-",CONCATENATE(VLOOKUP(A24,Récap!F:H,2,FALSE)," - ",VLOOKUP(A24,Récap!F:H,3,FALSE))) -> F-2000-174 - Manilles de commandes de gouvernes de profondeur et de direction - 100 h. | U24: =IF(A24>MAX(Récap!F:F),"-",VLOOKUP(A24,Récap!F:I,4,FALSE)) -> BS Rallye n° 155-27 § E.1
A26: =IF(MAX(A$18:A25)+1>MAX(Récap!$F$5:$F$49),"",MAX(A$18:A25)+1) -> 4 | B26: =IF(A26>MAX(Récap!F:F),"-",CONCATENATE(VLOOKUP(A26,Récap!F:H,2,FALSE)," - ",VLOOKUP(A26,Récap!F:H,3,FALSE))) -> F-2001-400 - Bâti moteur | U26: =IF(A26>MAX(Récap!F:F),"-",VLOOKUP(A26,Récap!F:I,4,FALSE)) -> BS Rallye n° 156-71
A28: =IF(MAX(A$18:A27)+1>MAX(Récap!$F$5:$F$49),"",MAX(A$18:A27)+1) -> 5 | B28: =IF(A28>MAX(Récap!F:F),"-",CONCATENATE(VLOOKUP(A28,Récap!F:H,2,FALSE)," - ",VLOOKUP(A28,Récap!F:H,3,FALSE))) -> 2015-0203 - Axe de roue avant et vis de fixation - Inspection | U28: =IF(A28>MAX(Récap!F:F),"-",VLOOKUP(A28,Récap!F:I,4,FALSE)) -> BS Rallye n° 150-32 Rev 3
A30: =IF(MAX(A$18:A29)+1>MAX(Récap!$F$5:$F$49),"",MAX(A$18:A29)+1) -> 6 | B30: =IF(A30>MAX(Récap!F:F),"-",CONCATENATE(VLOOKUP(A30,Récap!F:H,2,FALSE)," - ",VLOOKUP(A30,Récap!F:H,3,FALSE))) -> F-1977-168 - Interrupteurs d’allumage Bendix | U30: =IF(A30>MAX(Récap!F:F),"-",VLOOKUP(A30,Récap!F:I,4,FALSE)) -> Sans
A32: =IF(MAX(A$18:A31)+1>MAX(Récap!$F$5:$F$49),"",MAX(A$18:A31)+1) ->  | B32: =IF(A32>MAX(Récap!F:F),"-",CONCATENATE(VLOOKUP(A32,Récap!F:H,2,FALSE)," - ",VLOOKUP(A32,Récap!F:H,3,FALSE))) -> - | U32: =IF(A32>MAX(Récap!F:F),"-",VLOOKUP(A32,Récap!F:I,4,FALSE)) -> -
A34: =IF(MAX(A$18:A33)+1>MAX(Récap!$F$5:$F$49),"",MAX(A$18:A33)+1) ->  | B34: =IF(A34>MAX(Récap!F:F),"-",CONCATENATE(VLOOKUP(A34,Récap!F:H,2,FALSE)," - ",VLOOKUP(A34,Récap!F:H,3,FALSE))) -> - | U34: =IF(A34>MAX(Récap!F:F),"-",VLOOKUP(A34,Récap!F:I,4,FALSE)) -> -
A36: =IF(MAX(A$18:A35)+1>MAX(Récap!$F$5:$F$49),"",MAX(A$18:A35)+1) ->  | B36: =IF(A36>MAX(Récap!F:F),"-",CONCATENATE(VLOOKUP(A36,Récap!F:H,2,FALSE)," - ",VLOOKUP(A36,Récap!F:H,3,FALSE))) -> - | U36: =IF(A36>MAX(Récap!F:F),"-",VLOOKUP(A36,Récap!F:I,4,FALSE)) -> -
A38: =IF(MAX(A$18:A37)+1>MAX(Récap!$F$5:$F$49),"",MAX(A$18:A37)+1) ->  | B38: =IF(A38>MAX(Récap!F:F),"-",CONCATENATE(VLOOKUP(A38,Récap!F:H,2,FALSE)," - ",VLOOKUP(A38,Récap!F:H,3,FALSE))) -> - | U38: =IF(A38>MAX(Récap!F:F),"-",VLOOKUP(A38,Récap!F:I,4,FALSE)) -> -
A40: =IF(MAX(A$18:A39)+1>MAX(Récap!$F$5:$F$49),"",MAX(A$18:A39)+1) ->  | B40: =IF(A40>MAX(Récap!F:F),"-",CONCATENATE(VLOOKUP(A40,Récap!F:H,2,FALSE)," - ",VLOOKUP(A40,Récap!F:H,3,FALSE))) -> - | U40: =IF(A40>MAX(Récap!F:F),"-",VLOOKUP(A40,Récap!F:I,4,FALSE)) -> -
A42: =IF(MAX(A$18:A41)+1>MAX(Récap!$F$5:$F$49),"",MAX(A$18:A41)+1) ->  | B42: =IF(A42>MAX(Récap!F:F),"-",CONCATENATE(VLOOKUP(A42,Récap!F:H,2,FALSE)," - ",VLOOKUP(A42,Récap!F:H,3,FALSE))) -> - | U42: =IF(A42>MAX(Récap!F:F),"-",VLOOKUP(A42,Récap!F:I,4,FALSE)) -> -
A44: =IF(MAX(A$18:A43)+1>MAX(Récap!$F$5:$F$49),"",MAX(A$18:A43)+1) ->  | B44: =IF(A44>MAX(Récap!F:F),"-",CONCATENATE(VLOOKUP(A44,Récap!F:H,2,FALSE)," - ",VLOOKUP(A44,Récap!F:H,3,FALSE))) -> - | U44: =IF(A44>MAX(Récap!F:F),"-",VLOOKUP(A44,Récap!F:I,4,FALSE)) -> -
A46: =IF(MAX(A$18:A45)+1>MAX(Récap!$F$5:$F$49),"",MAX(A$18:A45)+1) ->  | B46: =IF(A46>MAX(Récap!F:F),"-",CONCATENATE(VLOOKUP(A46,Récap!F:H,2,FALSE)," - ",VLOOKUP(A46,Récap!F:H,3,FALSE))) -> - | U46: =IF(A46>MAX(Récap!F:F),"-",VLOOKUP(A46,Récap!F:I,4,FALSE)) -> -
A48: =IF(MAX(A$18:A47)+1>MAX(Récap!$F$5:$F$49),"",MAX(A$18:A47)+1) ->  | B48: =IF(A48>MAX(Récap!F:F),"-",CONCATENATE(VLOOKUP(A48,Récap!F:H,2,FALSE)," - ",VLOOKUP(A48,Récap!F:H,3,FALSE))) -> - | U48: =IF(A48>MAX(Récap!F:F),"-",VLOOKUP(A48,Récap!F:I,4,FALSE)) -> -
A50: =IF(MAX(A$18:A49)+1>MAX(Récap!$F$5:$F$49),"",MAX(A$18:A49)+1) ->  | B50: =IF(A50>MAX(Récap!F:F),"-",CONCATENATE(VLOOKUP(A50,Récap!F:H,2,FALSE)," - ",VLOOKUP(A50,Récap!F:H,3,FALSE))) -> - | U50: =IF(A50>MAX(Récap!F:F),"-",VLOOKUP(A50,Récap!F:I,4,FALSE)) -> -
A52: =IF(MAX(A$18:A51)+1>MAX(Récap!$F$5:$F$49),"",MAX(A$18:A51)+1) ->  | B52: =IF(A52>MAX(Récap!F:F),"-",CONCATENATE(VLOOKUP(A52,Récap!F:H,2,FALSE)," - ",VLOOKUP(A52,Récap!F:H,3,FALSE))) -> - | U52: =IF(A52>MAX(Récap!F:F),"-",VLOOKUP(A52,Récap!F:I,4,FALSE)) -> -
A54: =IF(MAX(A$18:A53)+1>MAX(Récap!$F$5:$F$49),"",MAX(A$18:A53)+1) ->  | B54: =IF(A54>MAX(Récap!F:F),"-",CONCATENATE(VLOOKUP(A54,Récap!F:H,2,FALSE)," - ",VLOOKUP(A54,Récap!F:H,3,FALSE))) -> - | U54: =IF(A54>MAX(Récap!F:F),"-",VLOOKUP(A54,Récap!F:I,4,FALSE)) -> -
A56: =IF(MAX(A$18:A55)+1>MAX(Récap!$F$5:$F$49),"",MAX(A$18:A55)+1) ->  | B56: =IF(A56>MAX(Récap!F:F),"-",CONCATENATE(VLOOKUP(A56,Récap!F:H,2,FALSE)," - ",VLOOKUP(A56,Récap!F:H,3,FALSE))) -> - | U56: =IF(A56>MAX(Récap!F:F),"-",VLOOKUP(A56,Récap!F:I,4,FALSE)) -> -
A58: =IF(MAX(A$18:A57)+1>MAX(Récap!$F$5:$F$49),"",MAX(A$18:A57)+1) ->  | B58: =IF(A58>MAX(Récap!F:F),"-",CONCATENATE(VLOOKUP(A58,Récap!F:H,2,FALSE)," - ",VLOOKUP(A58,Récap!F:H,3,FALSE))) -> - | U58: =IF(A58>MAX(Récap!F:F),"-",VLOOKUP(A58,Récap!F:I,4,FALSE)) -> -
A60: =IF(MAX(A$18:A59)+1>MAX(Récap!$F$5:$F$49),"",MAX(A$18:A59)+1) ->  | B60: =IF(A60>MAX(Récap!F:F),"-",CONCATENATE(VLOOKUP(A60,Récap!F:H,2,FALSE)," - ",VLOOKUP(A60,Récap!F:H,3,FALSE))) -> - | U60: =IF(A60>MAX(Récap!F:F),"-",VLOOKUP(A60,Récap!F:I,4,FALSE)) -> -
A62: =IF(MAX(A$18:A61)+1>MAX(Récap!$F$5:$F$49),"",MAX(A$18:A61)+1) ->  | B62: =IF(A62>MAX(Récap!F:F),"-",CONCATENATE(VLOOKUP(A62,Récap!F:H,2,FALSE)," - ",VLOOKUP(A62,Récap!F:H,3,FALSE))) -> - | U62: =IF(A62>MAX(Récap!F:F),"-",VLOOKUP(A62,Récap!F:I,4,FALSE)) -> -
B64: Formulaire du 18 juillet 2011 | O64: =CONCATENATE("Bon de lancement ",$R$1," - Page 1 / 2") -> Bon de lancement 01/2016/ST - Page 1 / 2
B65: TRAVAUX SUPPLEMENTAIRES PROGRAMMES
A67: 1 | B67: =IF(A67<=MAX(Récap!AC:AC),VLOOKUP(A67,Récap!AC:AD,2,FALSE),IF(B107="-","Pas de travaux supplémentaires programmés","-")) -> Balise de détresse - Test fonctionnel
A69: =A67+1 -> 2 | B69: =IF(A69>MAX(Récap!AC:AC),"-",VLOOKUP(A69,Récap!AC:AD,2,FALSE)) -> Magnéto gauche - Inspection 500 h
A71: =A69+1 -> 3 | B71: =IF(A71>MAX(Récap!AC:AC),"-",VLOOKUP(A71,Récap!AC:AD,2,FALSE)) -> Magnéto droite - Inspection 500 h
A73: =A71+1 -> 4 | B73: =IF(A73>MAX(Récap!AC:AC),"-",VLOOKUP(A73,Récap!AC:AD,2,FALSE)) -> Carburateur - BS Lycoming n° 366A
A75: =A73+1 -> 5 | B75: =IF(A75>MAX(Récap!AC:AC),"-",VLOOKUP(A75,Récap!AC:AD,2,FALSE)) -> -
A77: =A75+1 -> 6 | B77: =IF(A77>MAX(Récap!AC:AC),"-",VLOOKUP(A77,Récap!AC:AD,2,FALSE)) -> -
A79: =A77+1 -> 7 | B79: =IF(A79>MAX(Récap!AC:AC),"-",VLOOKUP(A79,Récap!AC:AD,2,FALSE)) -> -
A81: =A79+1 -> 8 | B81: =IF(A81>MAX(Récap!AC:AC),"-",VLOOKUP(A81,Récap!AC:AD,2,FALSE)) -> -
A83: =A81+1 -> 9 | B83: =IF(A83>MAX(Récap!AC:AC),"-",VLOOKUP(A83,Récap!AC:AD,2,FALSE)) -> -
A85: =A83+1 -> 10 | B85: =IF(A85>MAX(Récap!AC:AC),"-",VLOOKUP(A85,Récap!AC:AD,2,FALSE)) -> -
A87: =A85+1 -> 11 | B87: =IF(A87>MAX(Récap!AC:AC),"-",VLOOKUP(A87,Récap!AC:AD,2,FALSE)) -> -
A89: =A87+1 -> 12 | B89: =IF(A89>MAX(Récap!AC:AC),"-",VLOOKUP(A89,Récap!AC:AD,2,FALSE)) -> -
A91: =A89+1 -> 13 | B91: =IF(A91>MAX(Récap!AC:AC),"-",VLOOKUP(A91,Récap!AC:AD,2,FALSE)) -> -
A93: =A91+1 -> 14 | B93: =IF(A93>MAX(Récap!AC:AC),"-",VLOOKUP(A93,Récap!AC:AD,2,FALSE)) -> -
A95: =A93+1 -> 15 | B95: =IF(A95>MAX(Récap!AC:AC),"-",VLOOKUP(A95,Récap!AC:AD,2,FALSE)) -> -
A97: =A95+1 -> 16 | B97: =IF(A97>MAX(Récap!AC:AC),"-",VLOOKUP(A97,Récap!AC:AD,2,FALSE)) -> -
A99: =A97+1 -> 17 | B99: =IF(A99>MAX(Récap!AC:AC),"-",VLOOKUP(A99,Récap!AC:AD,2,FALSE)) -> -
A101: =A99+1 -> 18 | B101: =IF(A101>MAX(Récap!AC:AC),"-",VLOOKUP(A101,Récap!AC:AD,2,FALSE)) -> -
A103: =A101+1 -> 19 | B103: =IF(A103>MAX(Récap!AC:AC),"-",VLOOKUP(A103,Récap!AC:AD,2,FALSE)) -> -
A105: =A103+1 -> 20 | B105: =IF(A105>MAX(Récap!AC:AC),"-",VLOOKUP(A105,Récap!AC:AD,2,FALSE)) -> -
A107: =A105+1 -> 21 | B107: -
A109: =A107+1 -> 22 | B109: -
A111: =A109+1 -> 23 | B111: -
A113: =A111+1 -> 24 | B113: -
B116: Le Responsable Navigabilité : | J116: Visa | R116: Acceptation du Responsable Entretien :
C118: Date : | E118: =TODAY() -> 2016-05-15
C120: Nom : | E120: Manuel NAJAR
B122: Formulaire du 18 juillet 2011 | O122: =CONCATENATE("Bon de lancement ",$R$1," - Page 2 / 2") -> Bon de lancement 01/2016/ST - Page 2 / 2
AB123: =IF($B126="X",ROW(A123),"") -> 
B124: N° | D124: DESIGNATION | U124: RESULTAT | W124: EXECUTANTS
A126: 1 | B126: =IF($A126<=Récap!$BF$3+1+1,VLOOKUP($A126,Récap!$BF$5:$BH$310,2,FALSE),"X") ->  | D126: =IF($A126=Récap!$BF$3+1,"FIN DE LA LISTE DES OPERATIONS D'ENTRETIEN A EFFECTUER",IF($A126<=Récap!$BF$3+1,VLOOKUP($A126,Récap!$BF$5:$BH$310,3,FALSE),"X")) -> 
A130: 2 | B130: =IF($A130<=Récap!$BF$3+1,VLOOKUP($A130,Récap!$BF$5:$BH$310,2,FALSE),"X") ->  | D130: =IF($A130=Récap!$BF$3+1,"FIN DE LA LISTE DES OPERATIONS D'ENTRETIEN A EFFECTUER",IF($A130<=Récap!$BF$3+1,VLOOKUP($A130,Récap!$BF$5:$BH$310,3,FALSE),"X")) -> 
A134: =A130+1 -> 3 | B134: =IF($A134<=Récap!$BF$3+1,VLOOKUP($A134,Récap!$BF$5:$BH$310,2,FALSE),"X") ->  | D134: =IF($A134=Récap!$BF$3+1,"FIN DE LA LISTE DES OPERATIONS D'ENTRETIEN A EFFECTUER",IF($A134<=Récap!$BF$3+1,VLOOKUP($A134,Récap!$BF$5:$BH$310,3,FALSE),"X")) -> 
A138: =A134+1 -> 4 | B138: =IF($A138<=Récap!$BF$3+1,VLOOKUP($A138,Récap!$BF$5:$BH$310,2,FALSE),"X") ->  | D138: =IF($A138=Récap!$BF$3+1,"FIN DE LA LISTE DES OPERATIONS D'ENTRETIEN A EFFECTUER",IF($A138<=Récap!$BF$3+1,VLOOKUP($A138,Récap!$BF$5:$BH$310,3,FALSE),"X")) -> 
A142: =A138+1 -> 5 | B142: =IF($A142<=Récap!$BF$3+1,VLOOKUP($A142,Récap!$BF$5:$BH$310,2,FALSE),"X") ->  | D142: =IF($A142=Récap!$BF$3+1,"FIN DE LA LISTE DES OPERATIONS D'ENTRETIEN A EFFECTUER",IF($A142<=Récap!$BF$3+1,VLOOKUP($A142,Récap!$BF$5:$BH$310,3,FALSE),"X")) -> 
A146: =A142+1 -> 6 | B146: =IF($A146<=Récap!$BF$3+1,VLOOKUP($A146,Récap!$BF$5:$BH$310,2,FALSE),"X") ->  | D146: =IF($A146=Récap!$BF$3+1,"FIN DE LA LISTE DES OPERATIONS D'ENTRETIEN A EFFECTUER",IF($A146<=Récap!$BF$3+1,VLOOKUP($A146,Récap!$BF$5:$BH$310,3,FALSE),"X")) -> 
A150: =A146+1 -> 7 | B150: =IF($A150<=Récap!$BF$3+1,VLOOKUP($A150,Récap!$BF$5:$BH$310,2,FALSE),"X") ->  | D150: =IF($A150=Récap!$BF$3+1,"FIN DE LA LISTE DES OPERATIONS D'ENTRETIEN A EFFECTUER",IF($A150<=Récap!$BF$3+1,VLOOKUP($A150,Récap!$BF$5:$BH$310,3,FALSE),"X")) -> 
A154: =A150+1 -> 8 | B154: =IF($A154<=Récap!$BF$3+1,VLOOKUP($A154,Récap!$BF$5:$BH$310,2,FALSE),"X") ->  | D154: =IF($A154=Récap!$BF$3+1,"FIN DE LA LISTE DES OPERATIONS D'ENTRETIEN A EFFECTUER",IF($A154<=Récap!$BF$3+1,VLOOKUP($A154,Récap!$BF$5:$BH$310,3,FALSE),"X")) -> 
A158: =A154+1 -> 9 | B158: =IF($A158<=Récap!$BF$3+1,VLOOKUP($A158,Récap!$BF$5:$BH$310,2,FALSE),"X") ->  | D158: =IF($A158=Récap!$BF$3+1,"FIN DE LA LISTE DES OPERATIONS D'ENTRETIEN A EFFECTUER",IF($A158<=Récap!$BF$3+1,VLOOKUP($A158,Récap!$BF$5:$BH$310,3,FALSE),"X")) -> 
A162: =A158+1 -> 10 | B162: =IF($A162<=Récap!$BF$3+1,VLOOKUP($A162,Récap!$BF$5:$BH$310,2,FALSE),"X") ->  | D162: =IF($A162=Récap!$BF$3+1,"FIN DE LA LISTE DES OPERATIONS D'ENTRETIEN A EFFECTUER",IF($A162<=Récap!$BF$3+1,VLOOKUP($A162,Récap!$BF$5:$BH$310,3,FALSE),"X")) -> 
A166: =A162+1 -> 11 | B166: =IF($A166<=Récap!$BF$3+1,VLOOKUP($A166,Récap!$BF$5:$BH$310,2,FALSE),"X") ->  | D166: =IF($A166=Récap!$BF$3+1,"FIN DE LA LISTE DES OPERATIONS D'ENTRETIEN A EFFECTUER",IF($A166<=Récap!$BF$3+1,VLOOKUP($A166,Récap!$BF$5:$BH$310,3,FALSE),"X")) -> 
A170: =A166+1 -> 12 | B170: =IF($A170<=Récap!$BF$3+1,VLOOKUP($A170,Récap!$BF$5:$BH$310,2,FALSE),"X") ->  | D170: =IF($A170=Récap!$BF$3+1,"FIN DE LA LISTE DES OPERATIONS D'ENTRETIEN A EFFECTUER",IF($A170<=Récap!$BF$3+1,VLOOKUP($A170,Récap!$BF$5:$BH$310,3,FALSE),"X")) -> 
A174: =A170+1 -> 13 | B174: =IF($A174<=Récap!$BF$3+1,VLOOKUP($A174,Récap!$BF$5:$BH$310,2,FALSE),"X") ->  | D174: =IF($A174=Récap!$BF$3+1,"FIN DE LA LISTE DES OPERATIONS D'ENTRETIEN A EFFECTUER",IF($A174<=Récap!$BF$3+1,VLOOKUP($A174,Récap!$BF$5:$BH$310,3,FALSE),"X")) -> 
B180: Formulaire du 18 octobre 2011 | I180: =CONCATENATE("Annexe au Bon de lancement / Dossier de travaux ",$R$1," - Page ",Z180," / ",AA180) ->  | Z180: =IF(B126="X",0,AB122+1) ->  | AA180: =MAX($Z$123:$Z$1514) ->  | AB180: =IF($B126="X",ROW(A180),"") -> 
AB181: =IF($B184="X",ROW(A181),"") -> 
B182: N° | D182: DESIGNATION | U182: RESULTAT | W182: EXECUTANTS
A184: =A174+1 -> 14 | B184: =IF($A184<=Récap!$BF$3+1,VLOOKUP($A184,Récap!$BF$5:$BH$310,2,FALSE),"X") ->  | D184: =IF($A184=Récap!$BF$3+1,"FIN DE LA LISTE DES OPERATIONS D'ENTRETIEN A EFFECTUER",IF($A184<=Récap!$BF$3+1,VLOOKUP($A184,Récap!$BF$5:$BH$310,3,FALSE),"X")) -> 
A188: =A184+1 -> 15 | B188: =IF($A188<=Récap!$BF$3+1,VLOOKUP($A188,Récap!$BF$5:$BH$310,2,FALSE),"X") ->  | D188: =IF($A188=Récap!$BF$3+1,"FIN DE LA LISTE DES OPERATIONS D'ENTRETIEN A EFFECTUER",IF($A188<=Récap!$BF$3+1,VLOOKUP($A188,Récap!$BF$5:$BH$310,3,FALSE),"X")) -> 
A192: =A188+1 -> 16 | B192: =IF($A192<=Récap!$BF$3+1,VLOOKUP($A192,Récap!$BF$5:$BH$310,2,FALSE),"X") ->  | D192: =IF($A192=Récap!$BF$3+1,"FIN DE LA LISTE DES OPERATIONS D'ENTRETIEN A EFFECTUER",IF($A192<=Récap!$BF$3+1,VLOOKUP($A192,Récap!$BF$5:$BH$310,3,FALSE),"X")) -> 
A196: =A192+1 -> 17 | B196: =IF($A196<=Récap!$BF$3+1,VLOOKUP($A196,Récap!$BF$5:$BH$310,2,FALSE),"X") ->  | D196: =IF($A196=Récap!$BF$3+1,"FIN DE LA LISTE DES OPERATIONS D'ENTRETIEN A EFFECTUER",IF($A196<=Récap!$BF$3+1,VLOOKUP($A196,Récap!$BF$5:$BH$310,3,FALSE),"X")) -> 
A200: =A196+1 -> 18 | B200: =IF($A200<=Récap!$BF$3+1,VLOOKUP($A200,Récap!$BF$5:$BH$310,2,FALSE),"X") ->  | D200: =IF($A200=Récap!$BF$3+1,"FIN DE LA LISTE DES OPERATIONS D'ENTRETIEN A EFFECTUER",IF($A200<=Récap!$BF$3+1,VLOOKUP($A200,Récap!$BF$5:$BH$310,3,FALSE),"X")) -> 
A204: =A200+1 -> 19 | B204: =IF($A204<=Récap!$BF$3+1,VLOOKUP($A204,Récap!$BF$5:$BH$310,2,FALSE),"X") ->  | D204: =IF($A204=Récap!$BF$3+1,"FIN DE LA LISTE DES OPERATIONS D'ENTRETIEN A EFFECTUER",IF($A204<=Récap!$BF$3+1,VLOOKUP($A204,Récap!$BF$5:$BH$310,3,FALSE),"X")) -> 
A208: =A204+1 -> 20 | B208: =IF($A208<=Récap!$BF$3+1,VLOOKUP($A208,Récap!$BF$5:$BH$310,2,FALSE),"X") ->  | D208: =IF($A208=Récap!$BF$3+1,"FIN DE LA LISTE DES OPERATIONS D'ENTRETIEN A EFFECTUER",IF($A208<=Récap!$BF$3+1,VLOOKUP($A208,Récap!$BF$5:$BH$310,3,FALSE),"X")) -> 
A212: =A208+1 -> 21 | B212: =IF($A212<=Récap!$BF$3+1,VLOOKUP($A212,Récap!$BF$5:$BH$310,2,FALSE),"X") ->  | D212: =IF($A212=Récap!$BF$3+1,"FIN DE LA LISTE DES OPERATIONS D'ENTRETIEN A EFFECTUER",IF($A212<=Récap!$BF$3+1,VLOOKUP($A212,Récap!$BF$5:$BH$310,3,FALSE),"X")) -> 
A216: =A212+1 -> 22 | B216: =IF($A216<=Récap!$BF$3+1,VLOOKUP($A216,Récap!$BF$5:$BH$310,2,FALSE),"X") ->  | D216: =IF($A216=Récap!$BF$3+1,"FIN DE LA LISTE DES OPERATIONS D'ENTRETIEN A EFFECTUER",IF($A216<=Récap!$BF$3+1,VLOOKUP($A216,Récap!$BF$5:$BH$310,3,FALSE),"X")) -> 
A220: =A216+1 -> 23 | B220: =IF($A220<=Récap!$BF$3+1,VLOOKUP($A220,Récap!$BF$5:$BH$310,2,FALSE),"X") ->  | D220: =IF($A220=Récap!$BF$3+1,"FIN DE LA LISTE DES OPERATIONS D'ENTRETIEN A EFFECTUER",IF($A220<=Récap!$BF$3+1,VLOOKUP($A220,Récap!$BF$5:$BH$310,3,FALSE),"X")) -> 
A224: =A220+1 -> 24 | B224: =IF($A224<=Récap!$BF$3+1,VLOOKUP($A224,Récap!$BF$5:$BH$310,2,FALSE),"X") ->  | D224: =IF($A224=Récap!$BF$3+1,"FIN DE LA LISTE DES OPERATIONS D'ENTRETIEN A EFFECTUER",IF($A224<=Récap!$BF$3+1,VLOOKUP($A224,Récap!$BF$5:$BH$310,3,FALSE),"X")) -> 
A228: =A224+1 -> 25 | B228: =IF($A228<=Récap!$BF$3+1,VLOOKUP($A228,Récap!$BF$5:$BH$310,2,FALSE),"X") ->  | D228: =IF($A228=Récap!$BF$3+1,"FIN DE LA LISTE DES OPERATIONS D'ENTRETIEN A EFFECTUER",IF($A228<=Récap!$BF$3+1,VLOOKUP($A228,Récap!$BF$5:$BH$310,3,FALSE),"X")) -> 
A232: =A228+1 -> 26 | B232: =IF($A232<=Récap!$BF$3+1,VLOOKUP($A232,Récap!$BF$5:$BH$310,2,FALSE),"X") ->  | D232: =IF($A232=Récap!$BF$3+1,"FIN DE LA LISTE DES OPERATIONS D'ENTRETIEN A EFFECTUER",IF($A232<=Récap!$BF$3+1,VLOOKUP($A232,Récap!$BF$5:$BH$310,3,FALSE),"X")) -> 
B238: Formulaire du 18 octobre 2011 | I238: =CONCATENATE("Annexe au Bon de lancement / Dossier de travaux ",$R$1," - Page ",Z238," / ",AA238) ->  | Z238: =IF(B184="X",0,Z180+1) ->  | AA238: =MAX($Z$123:$Z$1514) ->  | AB238: =IF($B184="X",ROW(A238),"") -> 
AB239: =IF($B242="X",ROW(A239),"") -> 
B240: N° | D240: DESIGNATION | U240: RESULTAT | W240: EXECUTANTS
A242: =A232+1 -> 27 | B242: =IF($A242<=Récap!$BF$3+1,VLOOKUP($A242,Récap!$BF$5:$BH$310,2,FALSE),"X") ->  | D242: =IF($A242=Récap!$BF$3+1,"FIN DE LA LISTE DES OPERATIONS D'ENTRETIEN A EFFECTUER",IF($A242<=Récap!$BF$3+1,VLOOKUP($A242,Récap!$BF$5:$BH$310,3,FALSE),"X")) -> 
A246: =A242+1 -> 28 | B246: =IF($A246<=Récap!$BF$3+1,VLOOKUP($A246,Récap!$BF$5:$BH$310,2,FALSE),"X") ->  | D246: =IF($A246=Récap!$BF$3+1,"FIN DE LA LISTE DES OPERATIONS D'ENTRETIEN A EFFECTUER",IF($A246<=Récap!$BF$3+1,VLOOKUP($A246,Récap!$BF$5:$BH$310,3,FALSE),"X")) -> 
A250: =A246+1 -> 29 | B250: =IF($A250<=Récap!$BF$3+1,VLOOKUP($A250,Récap!$BF$5:$BH$310,2,FALSE),"X") ->  | D250: =IF($A250=Récap!$BF$3+1,"FIN DE LA LISTE DES OPERATIONS D'ENTRETIEN A EFFECTUER",IF($A250<=Récap!$BF$3+1,VLOOKUP($A250,Récap!$BF$5:$BH$310,3,FALSE),"X")) -> 
A254: =A250+1 -> 30 | B254: =IF($A254<=Récap!$BF$3+1,VLOOKUP($A254,Récap!$BF$5:$BH$310,2,FALSE),"X") ->  | D254: =IF($A254=Récap!$BF$3+1,"FIN DE LA LISTE DES OPERATIONS D'ENTRETIEN A EFFECTUER",IF($A254<=Récap!$BF$3+1,VLOOKUP($A254,Récap!$BF$5:$BH$310,3,FALSE),"X")) -> 
A258: =A254+1 -> 31 | B258: =IF($A258<=Récap!$BF$3+1,VLOOKUP($A258,Récap!$BF$5:$BH$310,2,FALSE),"X") ->  | D258: =IF($A258=Récap!$BF$3+1,"FIN DE LA LISTE DES OPERATIONS D'ENTRETIEN A EFFECTUER",IF($A258<=Récap!$BF$3+1,VLOOKUP($A258,Récap!$BF$5:$BH$310,3,FALSE),"X")) -> 
A262: =A258+1 -> 32 | B262: =IF($A262<=Récap!$BF$3+1,VLOOKUP($A262,Récap!$BF$5:$BH$310,2,FALSE),"X") ->  | D262: =IF($A262=Récap!$BF$3+1,"FIN DE LA LISTE DES OPERATIONS D'ENTRETIEN A EFFECTUER",IF($A262<=Récap!$BF$3+1,VLOOKUP($A262,Récap!$BF$5:$BH$310,3,FALSE),"X")) -> 
A266: =A262+1 -> 33 | B266: =IF($A266<=Récap!$BF$3+1,VLOOKUP($A266,Récap!$BF$5:$BH$310,2,FALSE),"X") ->  | D266: =IF($A266=Récap!$BF$3+1,"FIN DE LA LISTE DES OPERATIONS D'ENTRETIEN A EFFECTUER",IF($A266<=Récap!$BF$3+1,VLOOKUP($A266,Récap!$BF$5:$BH$310,3,FALSE),"X")) -> 
A270: =A266+1 -> 34 | B270: =IF($A270<=Récap!$BF$3+1,VLOOKUP($A270,Récap!$BF$5:$BH$310,2,FALSE),"X") ->  | D270: =IF($A270=Récap!$BF$3+1,"FIN DE LA LISTE DES OPERATIONS D'ENTRETIEN A EFFECTUER",IF($A270<=Récap!$BF$3+1,VLOOKUP($A270,Récap!$BF$5:$BH$310,3,FALSE),"X")) -> 
A274: =A270+1 -> 35 | B274: =IF($A274<=Récap!$BF$3+1,VLOOKUP($A274,Récap!$BF$5:$BH$310,2,FALSE),"X") ->  | D274: =IF($A274=Récap!$BF$3+1,"FIN DE LA LISTE DES OPERATIONS D'ENTRETIEN A EFFECTUER",IF($A274<=Récap!$BF$3+1,VLOOKUP($A274,Récap!$BF$5:$BH$310,3,FALSE),"X")) -> 
A278: =A274+1 -> 36 | B278: =IF($A278<=Récap!$BF$3+1,VLOOKUP($A278,Récap!$BF$5:$BH$310,2,FALSE),"X") ->  | D278: =IF($A278=Récap!$BF$3+1,"FIN DE LA LISTE DES OPERATIONS D'ENTRETIEN A EFFECTUER",IF($A278<=Récap!$BF$3+1,VLOOKUP($A278,Récap!$BF$5:$BH$310,3,FALSE),"X")) -> 
A282: =A278+1 -> 37 | B282: =IF($A282<=Récap!$BF$3+1,VLOOKUP($A282,Récap!$BF$5:$BH$310,2,FALSE),"X") ->  | D282: =IF($A282=Récap!$BF$3+1,"FIN DE LA LISTE DES OPERATIONS D'ENTRETIEN A EFFECTUER",IF($A282<=Récap!$BF$3+1,VLOOKUP($A282,Récap!$BF$5:$BH$310,3,FALSE),"X")) -> 
A286: =A282+1 -> 38 | B286: =IF($A286<=Récap!$BF$3+1,VLOOKUP($A286,Récap!$BF$5:$BH$310,2,FALSE),"X") ->  | D286: =IF($A286=Récap!$BF$3+1,"FIN DE LA LISTE DES OPERATIONS D'ENTRETIEN A EFFECTUER",IF($A286<=Récap!$BF$3+1,VLOOKUP($A286,Récap!$BF$5:$BH$310,3,FALSE),"X")) -> 
A290: =A286+1 -> 39 | B290: =IF($A290<=Récap!$BF$3+1,VLOOKUP($A290,Récap!$BF$5:$BH$310,2,FALSE),"X") ->  | D290: =IF($A290=Récap!$BF$3+1,"FIN DE LA LISTE DES OPERATIONS D'ENTRETIEN A EFFECTUER",IF($A290<=Récap!$BF$3+1,VLOOKUP($A290,Récap!$BF$5:$BH$310,3,FALSE),"X")) -> 
B296: Formulaire du 18 octobre 2011 | I296: =CONCATENATE("Annexe au Bon de lancement / Dossier de travaux ",$R$1," - Page ",Z296," / ",AA296) ->  | Z296: =IF(B242="X",0,Z238+1) ->  | AA296: =MAX($Z$123:$Z$1514) ->  | AB296: =IF($B242="X",ROW(A296),"") -> 
AB297: =IF($B300="X",ROW(A297),"") -> 
B298: N° | D298: DESIGNATION | U298: RESULTAT | W298: EXECUTANTS
A300: =A290+1 -> 40 | B300: =IF($A300<=Récap!$BF$3+1,VLOOKUP($A300,Récap!$BF$5:$BH$310,2,FALSE),"X") ->  | D300: =IF($A300=Récap!$BF$3+1,"FIN DE LA LISTE DES OPERATIONS D'ENTRETIEN A EFFECTUER",IF($A300<=Récap!$BF$3+1,VLOOKUP($A300,Récap!$BF$5:$BH$310,3,FALSE),"X")) -> 
A304: =A300+1 -> 41 | B304: =IF($A304<=Récap!$BF$3+1,VLOOKUP($A304,Récap!$BF$5:$BH$310,2,FALSE),"X") ->  | D304: =IF($A304=Récap!$BF$3+1,"FIN DE LA LISTE DES OPERATIONS D'ENTRETIEN A EFFECTUER",IF($A304<=Récap!$BF$3+1,VLOOKUP($A304,Récap!$BF$5:$BH$310,3,FALSE),"X")) -> 
A308: =A304+1 -> 42 | B308: =IF($A308<=Récap!$BF$3+1,VLOOKUP($A308,Récap!$BF$5:$BH$310,2,FALSE),"X") ->  | D308: =IF($A308=Récap!$BF$3+1,"FIN DE LA LISTE DES OPERATIONS D'ENTRETIEN A EFFECTUER",IF($A308<=Récap!$BF$3+1,VLOOKUP($A308,Récap!$BF$5:$BH$310,3,FALSE),"X")) -> 
A312: =A308+1 -> 43 | B312: =IF($A312<=Récap!$BF$3+1,VLOOKUP($A312,Récap!$BF$5:$BH$310,2,FALSE),"X") ->  | D312: =IF($A312=Récap!$BF$3+1,"FIN DE LA LISTE DES OPERATIONS D'ENTRETIEN A EFFECTUER",IF($A312<=Récap!$BF$3+1,VLOOKUP($A312,Récap!$BF$5:$BH$310,3,FALSE),"X")) -> 
A316: =A312+1 -> 44 | B316: =IF($A316<=Récap!$BF$3+1,VLOOKUP($A316,Récap!$BF$5:$BH$310,2,FALSE),"X") ->  | D316: =IF($A316=Récap!$BF$3+1,"FIN DE LA LISTE DES OPERATIONS D'ENTRETIEN A EFFECTUER",IF($A316<=Récap!$BF$3+1,VLOOKUP($A316,Récap!$BF$5:$BH$310,3,FALSE),"X")) -> 
A320: =A316+1 -> 45 | B320: =IF($A320<=Récap!$BF$3+1,VLOOKUP($A320,Récap!$BF$5:$BH$310,2,FALSE),"X") ->  | D320: =IF($A320=Récap!$BF$3+1,"FIN DE LA LISTE DES OPERATIONS D'ENTRETIEN A EFFECTUER",IF($A320<=Récap!$BF$3+1,VLOOKUP($A320,Récap!$BF$5:$BH$310,3,FALSE),"X")) -> 
A324: =A320+1 -> 46 | B324: =IF($A324<=Récap!$BF$3+1,VLOOKUP($A324,Récap!$BF$5:$BH$310,2,FALSE),"X") ->  | D324: =IF($A324=Récap!$BF$3+1,"FIN DE LA LISTE DES OPERATIONS D'ENTRETIEN A EFFECTUER",IF($A324<=Récap!$BF$3+1,VLOOKUP($A324,Récap!$BF$5:$BH$310,3,FALSE),"X")) -> 
A328: =A324+1 -> 47 | B328: =IF($A328<=Récap!$BF$3+1,VLOOKUP($A328,Récap!$BF$5:$BH$310,2,FALSE),"X") ->  | D328: =IF($A328=Récap!$BF$3+1,"FIN DE LA LISTE DES OPERATIONS D'ENTRETIEN A EFFECTUER",IF($A328<=Récap!$BF$3+1,VLOOKUP($A328,Récap!$BF$5:$BH$310,3,FALSE),"X")) -> 
A332: =A328+1 -> 48 | B332: =IF($A332<=Récap!$BF$3+1,VLOOKUP($A332,Récap!$BF$5:$BH$310,2,FALSE),"X") ->  | D332: =IF($A332=Récap!$BF$3+1,"FIN DE LA LISTE DES OPERATIONS D'ENTRETIEN A EFFECTUER",IF($A332<=Récap!$BF$3+1,VLOOKUP($A332,Récap!$BF$5:$BH$310,3,FALSE),"X")) -> 
A336: =A332+1 -> 49 | B336: =IF($A336<=Récap!$BF$3+1,VLOOKUP($A336,Récap!$BF$5:$BH$310,2,FALSE),"X") ->  | D336: =IF($A336=Récap!$BF$3+1,"FIN DE LA LISTE DES OPERATIONS D'ENTRETIEN A EFFECTUER",IF($A336<=Récap!$BF$3+1,VLOOKUP($A336,Récap!$BF$5:$BH$310,3,FALSE),"X")) -> 
A340: =A336+1 -> 50 | B340: =IF($A340<=Récap!$BF$3+1,VLOOKUP($A340,Récap!$BF$5:$BH$310,2,FALSE),"X") ->  | D340: =IF($A340=Récap!$BF$3+1,"FIN DE LA LISTE DES OPERATIONS D'ENTRETIEN A EFFECTUER",IF($A340<=Récap!$BF$3+1,VLOOKUP($A340,Récap!$BF$5:$BH$310,3,FALSE),"X")) -> 
A344: =A340+1 -> 51 | B344: =IF($A344<=Récap!$BF$3+1,VLOOKUP($A344,Récap!$BF$5:$BH$310,2,FALSE),"X") ->  | D344: =IF($A344=Récap!$BF$3+1,"FIN DE LA LISTE DES OPERATIONS D'ENTRETIEN A EFFECTUER",IF($A344<=Récap!$BF$3+1,VLOOKUP($A344,Récap!$BF$5:$BH$310,3,FALSE),"X")) -> 
A348: =A344+1 -> 52 | B348: =IF($A348<=Récap!$BF$3+1,VLOOKUP($A348,Récap!$BF$5:$BH$310,2,FALSE),"X") ->  | D348: =IF($A348=Récap!$BF$3+1,"FIN DE LA LISTE DES OPERATIONS D'ENTRETIEN A EFFECTUER",IF($A348<=Récap!$BF$3+1,VLOOKUP($A348,Récap!$BF$5:$BH$310,3,FALSE),"X")) -> 
B354: Formulaire du 18 octobre 2011 | I354: =CONCATENATE("Annexe au Bon de lancement / Dossier de travaux ",$R$1," - Page ",Z354," / ",AA354) ->  | Z354: =IF(B300="X",0,Z296+1) ->  | AA354: =MAX($Z$123:$Z$1514) ->  | AB354: =IF($B300="X",ROW(A354),"") -> 
AB355: =IF($B358="X",ROW(A355),"") -> 
B356: N° | D356: DESIGNATION | U356: RESULTAT | W356: EXECUTANTS
A358: =A348+1 -> 53 | B358: =IF($A358<=Récap!$BF$3+1,VLOOKUP($A358,Récap!$BF$5:$BH$310,2,FALSE),"X") ->  | D358: =IF($A358=Récap!$BF$3+1,"FIN DE LA LISTE DES OPERATIONS D'ENTRETIEN A EFFECTUER",IF($A358<=Récap!$BF$3+1,VLOOKUP($A358,Récap!$BF$5:$BH$310,3,FALSE),"X")) -> 
A362: =A358+1 -> 54 | B362: =IF($A362<=Récap!$BF$3+1,VLOOKUP($A362,Récap!$BF$5:$BH$310,2,FALSE),"X") ->  | D362: =IF($A362=Récap!$BF$3+1,"FIN DE LA LISTE DES OPERATIONS D'ENTRETIEN A EFFECTUER",IF($A362<=Récap!$BF$3+1,VLOOKUP($A362,Récap!$BF$5:$BH$310,3,FALSE),"X")) -> 
A366: =A362+1 -> 55 | B366: =IF($A366<=Récap!$BF$3+1,VLOOKUP($A366,Récap!$BF$5:$BH$310,2,FALSE),"X") ->  | D366: =IF($A366=Récap!$BF$3+1,"FIN DE LA LISTE DES OPERATIONS D'ENTRETIEN A EFFECTUER",IF($A366<=Récap!$BF$3+1,VLOOKUP($A366,Récap!$BF$5:$BH$310,3,FALSE),"X")) -> 
A370: =A366+1 -> 56 | B370: =IF($A370<=Récap!$BF$3+1,VLOOKUP($A370,Récap!$BF$5:$BH$310,2,FALSE),"X") ->  | D370: =IF($A370=Récap!$BF$3+1,"FIN DE LA LISTE DES OPERATIONS D'ENTRETIEN A EFFECTUER",IF($A370<=Récap!$BF$3+1,VLOOKUP($A370,Récap!$BF$5:$BH$310,3,FALSE),"X")) -> 
A374: =A370+1 -> 57 | B374: =IF($A374<=Récap!$BF$3+1,VLOOKUP($A374,Récap!$BF$5:$BH$310,2,FALSE),"X") ->  | D374: =IF($A374=Récap!$BF$3+1,"FIN DE LA LISTE DES OPERATIONS D'ENTRETIEN A EFFECTUER",IF($A374<=Récap!$BF$3+1,VLOOKUP($A374,Récap!$BF$5:$BH$310,3,FALSE),"X")) -> 
A378: =A374+1 -> 58 | B378: =IF($A378<=Récap!$BF$3+1,VLOOKUP($A378,Récap!$BF$5:$BH$310,2,FALSE),"X") ->  | D378: =IF($A378=Récap!$BF$3+1,"FIN DE LA LISTE DES OPERATIONS D'ENTRETIEN A EFFECTUER",IF($A378<=Récap!$BF$3+1,VLOOKUP($A378,Récap!$BF$5:$BH$310,3,FALSE),"X")) -> 
A382: =A378+1 -> 59 | B382: =IF($A382<=Récap!$BF$3+1,VLOOKUP($A382,Récap!$BF$5:$BH$310,2,FALSE),"X") ->  | D382: =IF($A382=Récap!$BF$3+1,"FIN DE LA LISTE DES OPERATIONS D'ENTRETIEN A EFFECTUER",IF($A382<=Récap!$BF$3+1,VLOOKUP($A382,Récap!$BF$5:$BH$310,3,FALSE),"X")) -> 
A386: =A382+1 -> 60 | B386: =IF($A386<=Récap!$BF$3+1,VLOOKUP($A386,Récap!$BF$5:$BH$310,2,FALSE),"X") ->  | D386: =IF($A386=Récap!$BF$3+1,"FIN DE LA LISTE DES OPERATIONS D'ENTRETIEN A EFFECTUER",IF($A386<=Récap!$BF$3+1,VLOOKUP($A386,Récap!$BF$5:$BH$310,3,FALSE),"X")) -> 
A390: =A386+1 -> 61 | B390: =IF($A390<=Récap!$BF$3+1,VLOOKUP($A390,Récap!$BF$5:$BH$310,2,FALSE),"X") ->  | D390: =IF($A390=Récap!$BF$3+1,"FIN DE LA LISTE DES OPERATIONS D'ENTRETIEN A EFFECTUER",IF($A390<=Récap!$BF$3+1,VLOOKUP($A390,Récap!$BF$5:$BH$310,3,FALSE),"X")) -> 
A394: =A390+1 -> 62 | B394: =IF($A394<=Récap!$BF$3+1,VLOOKUP($A394,Récap!$BF$5:$BH$310,2,FALSE),"X") ->  | D394: =IF($A394=Récap!$BF$3+1,"FIN DE LA LISTE DES OPERATIONS D'ENTRETIEN A EFFECTUER",IF($A394<=Récap!$BF$3+1,VLOOKUP($A394,Récap!$BF$5:$BH$310,3,FALSE),"X")) -> 
A398: =A394+1 -> 63 | B398: =IF($A398<=Récap!$BF$3+1,VLOOKUP($A398,Récap!$BF$5:$BH$310,2,FALSE),"X") ->  | D398: =IF($A398=Récap!$BF$3+1,"FIN DE LA LISTE DES OPERATIONS D'ENTRETIEN A EFFECTUER",IF($A398<=Récap!$BF$3+1,VLOOKUP($A398,Récap!$BF$5:$BH$310,3,FALSE),"X")) -> 
A402: =A398+1 -> 64 | B402: =IF($A402<=Récap!$BF$3+1,VLOOKUP($A402,Récap!$BF$5:$BH$310,2,FALSE),"X") ->  | D402: =IF($A402=Récap!$BF$3+1,"FIN DE LA LISTE DES OPERATIONS D'ENTRETIEN A EFFECTUER",IF($A402<=Récap!$BF$3+1,VLOOKUP($A402,Récap!$BF$5:$BH$310,3,FALSE),"X")) -> 
A406: =A402+1 -> 65 | B406: =IF($A406<=Récap!$BF$3+1,VLOOKUP($A406,Récap!$BF$5:$BH$310,2,FALSE),"X") ->  | D406: =IF($A406=Récap!$BF$3+1,"FIN DE LA LISTE DES OPERATIONS D'ENTRETIEN A EFFECTUER",IF($A406<=Récap!$BF$3+1,VLOOKUP($A406,Récap!$BF$5:$BH$310,3,FALSE),"X")) -> 
B412: Formulaire du 18 octobre 2011 | I412: =CONCATENATE("Annexe au Bon de lancement / Dossier de travaux ",$R$1," - Page ",Z412," / ",AA412) ->  | Z412: =IF(B358="X",0,Z354+1) ->  | AA412: =MAX($Z$123:$Z$1514) ->  | AB412: =IF($B358="X",ROW(A412),"") -> 
AB413: =IF($B416="X",ROW(A413),"") -> 
B414: N° | D414: DESIGNATION | U414: RESULTAT | W414: EXECUTANTS
A416: =A406+1 -> 66 | B416: =IF($A416<=Récap!$BF$3+1,VLOOKUP($A416,Récap!$BF$5:$BH$310,2,FALSE),"X") ->  | D416: =IF($A416=Récap!$BF$3+1,"FIN DE LA LISTE DES OPERATIONS D'ENTRETIEN A EFFECTUER",IF($A416<=Récap!$BF$3+1,VLOOKUP($A416,Récap!$BF$5:$BH$310,3,FALSE),"X")) -> 
A420: =A416+1 -> 67 | B420: =IF($A420<=Récap!$BF$3+1,VLOOKUP($A420,Récap!$BF$5:$BH$310,2,FALSE),"X") ->  | D420: =IF($A420=Récap!$BF$3+1,"FIN DE LA LISTE DES OPERATIONS D'ENTRETIEN A EFFECTUER",IF($A420<=Récap!$BF$3+1,VLOOKUP($A420,Récap!$BF$5:$BH$310,3,FALSE),"X")) -> 
A424: =A420+1 -> 68 | B424: =IF($A424<=Récap!$BF$3+1,VLOOKUP($A424,Récap!$BF$5:$BH$310,2,FALSE),"X") ->  | D424: =IF($A424=Récap!$BF$3+1,"FIN DE LA LISTE DES OPERATIONS D'ENTRETIEN A EFFECTUER",IF($A424<=Récap!$BF$3+1,VLOOKUP($A424,Récap!$BF$5:$BH$310,3,FALSE),"X")) -> 
A428: =A424+1 -> 69 | B428: =IF($A428<=Récap!$BF$3+1,VLOOKUP($A428,Récap!$BF$5:$BH$310,2,FALSE),"X") ->  | D428: =IF($A428=Récap!$BF$3+1,"FIN DE LA LISTE DES OPERATIONS D'ENTRETIEN A EFFECTUER",IF($A428<=Récap!$BF$3+1,VLOOKUP($A428,Récap!$BF$5:$BH$310,3,FALSE),"X")) -> 
A432: =A428+1 -> 70 | B432: =IF($A432<=Récap!$BF$3+1,VLOOKUP($A432,Récap!$BF$5:$BH$310,2,FALSE),"X") ->  | D432: =IF($A432=Récap!$BF$3+1,"FIN DE LA LISTE DES OPERATIONS D'ENTRETIEN A EFFECTUER",IF($A432<=Récap!$BF$3+1,VLOOKUP($A432,Récap!$BF$5:$BH$310,3,FALSE),"X")) -> 
A436: =A432+1 -> 71 | B436: =IF($A436<=Récap!$BF$3+1,VLOOKUP($A436,Récap!$BF$5:$BH$310,2,FALSE),"X") ->  | D436: =IF($A436=Récap!$BF$3+1,"FIN DE LA LISTE DES OPERATIONS D'ENTRETIEN A EFFECTUER",IF($A436<=Récap!$BF$3+1,VLOOKUP($A436,Récap!$BF$5:$BH$310,3,FALSE),"X")) -> 
A440: =A436+1 -> 72 | B440: =IF($A440<=Récap!$BF$3+1,VLOOKUP($A440,Récap!$BF$5:$BH$310,2,FALSE),"X") ->  | D440: =IF($A440=Récap!$BF$3+1,"FIN DE LA LISTE DES OPERATIONS D'ENTRETIEN A EFFECTUER",IF($A440<=Récap!$BF$3+1,VLOOKUP($A440,Récap!$BF$5:$BH$310,3,FALSE),"X")) -> 
A444: =A440+1 -> 73 | B444: =IF($A444<=Récap!$BF$3+1,VLOOKUP($A444,Récap!$BF$5:$BH$310,2,FALSE),"X") ->  | D444: =IF($A444=Récap!$BF$3+1,"FIN DE LA LISTE DES OPERATIONS D'ENTRETIEN A EFFECTUER",IF($A444<=Récap!$BF$3+1,VLOOKUP($A444,Récap!$BF$5:$BH$310,3,FALSE),"X")) -> 
A448: =A444+1 -> 74 | B448: =IF($A448<=Récap!$BF$3+1,VLOOKUP($A448,Récap!$BF$5:$BH$310,2,FALSE),"X") ->  | D448: =IF($A448=Récap!$BF$3+1,"FIN DE LA LISTE DES OPERATIONS D'ENTRETIEN A EFFECTUER",IF($A448<=Récap!$BF$3+1,VLOOKUP($A448,Récap!$BF$5:$BH$310,3,FALSE),"X")) -> 
A452: =A448+1 -> 75 | B452: =IF($A452<=Récap!$BF$3+1,VLOOKUP($A452,Récap!$BF$5:$BH$310,2,FALSE),"X") ->  | D452: =IF($A452=Récap!$BF$3+1,"FIN DE LA LISTE DES OPERATIONS D'ENTRETIEN A EFFECTUER",IF($A452<=Récap!$BF$3+1,VLOOKUP($A452,Récap!$BF$5:$BH$310,3,FALSE),"X")) -> 
A456: =A452+1 -> 76 | B456: =IF($A456<=Récap!$BF$3+1,VLOOKUP($A456,Récap!$BF$5:$BH$310,2,FALSE),"X") ->  | D456: =IF($A456=Récap!$BF$3+1,"FIN DE LA LISTE DES OPERATIONS D'ENTRETIEN A EFFECTUER",IF($A456<=Récap!$BF$3+1,VLOOKUP($A456,Récap!$BF$5:$BH$310,3,FALSE),"X")) -> 
A460: =A456+1 -> 77 | B460: =IF($A460<=Récap!$BF$3+1,VLOOKUP($A460,Récap!$BF$5:$BH$310,2,FALSE),"X") ->  | D460: =IF($A460=Récap!$BF$3+1,"FIN DE LA LISTE DES OPERATIONS D'ENTRETIEN A EFFECTUER",IF($A460<=Récap!$BF$3+1,VLOOKUP($A460,Récap!$BF$5:$BH$310,3,FALSE),"X")) -> 
A464: =A460+1 -> 78 | B464: =IF($A464<=Récap!$BF$3+1,VLOOKUP($A464,Récap!$BF$5:$BH$310,2,FALSE),"X") ->  | D464: =IF($A464=Récap!$BF$3+1,"FIN DE LA LISTE DES OPERATIONS D'ENTRETIEN A EFFECTUER",IF($A464<=Récap!$BF$3+1,VLOOKUP($A464,Récap!$BF$5:$BH$310,3,FALSE),"X")) -> 
B470: Formulaire du 18 octobre 2011 | I470: =CONCATENATE("Annexe au Bon de lancement / Dossier de travaux ",$R$1," - Page ",Z470," / ",AA470) ->  | Z470: =IF(B416="X",0,Z412+1) ->  | AA470: =MAX($Z$123:$Z$1514) ->  | AB470: =IF($B416="X",ROW(A470),"") -> 
AB471: =IF($B474="X",ROW(A471),"") -> 
B472: N° | D472: DESIGNATION | U472: RESULTAT | W472: EXECUTANTS
A474: =A464+1 -> 79 | B474: =IF($A474<=Récap!$BF$3+1,VLOOKUP($A474,Récap!$BF$5:$BH$310,2,FALSE),"X") ->  | D474: =IF($A474=Récap!$BF$3+1,"FIN DE LA LISTE DES OPERATIONS D'ENTRETIEN A EFFECTUER",IF($A474<=Récap!$BF$3+1,VLOOKUP($A474,Récap!$BF$5:$BH$310,3,FALSE),"X")) -> 
A478: =A474+1 -> 80 | B478: =IF($A478<=Récap!$BF$3+1,VLOOKUP($A478,Récap!$BF$5:$BH$310,2,FALSE),"X") ->  | D478: =IF($A478=Récap!$BF$3+1,"FIN DE LA LISTE DES OPERATIONS D'ENTRETIEN A EFFECTUER",IF($A478<=Récap!$BF$3+1,VLOOKUP($A478,Récap!$BF$5:$BH$310,3,FALSE),"X")) -> 
A482: =A478+1 -> 81 | B482: =IF($A482<=Récap!$BF$3+1,VLOOKUP($A482,Récap!$BF$5:$BH$310,2,FALSE),"X") ->  | D482: =IF($A482=Récap!$BF$3+1,"FIN DE LA LISTE DES OPERATIONS D'ENTRETIEN A EFFECTUER",IF($A482<=Récap!$BF$3+1,VLOOKUP($A482,Récap!$BF$5:$BH$310,3,FALSE),"X")) -> 
A486: =A482+1 -> 82 | B486: =IF($A486<=Récap!$BF$3+1,VLOOKUP($A486,Récap!$BF$5:$BH$310,2,FALSE),"X") ->  | D486: =IF($A486=Récap!$BF$3+1,"FIN DE LA LISTE DES OPERATIONS D'ENTRETIEN A EFFECTUER",IF($A486<=Récap!$BF$3+1,VLOOKUP($A486,Récap!$BF$5:$BH$310,3,FALSE),"X")) -> 
A490: =A486+1 -> 83 | B490: =IF($A490<=Récap!$BF$3+1,VLOOKUP($A490,Récap!$BF$5:$BH$310,2,FALSE),"X") ->  | D490: =IF($A490=Récap!$BF$3+1,"FIN DE LA LISTE DES OPERATIONS D'ENTRETIEN A EFFECTUER",IF($A490<=Récap!$BF$3+1,VLOOKUP($A490,Récap!$BF$5:$BH$310,3,FALSE),"X")) -> 
A494: =A490+1 -> 84 | B494: =IF($A494<=Récap!$BF$3+1,VLOOKUP($A494,Récap!$BF$5:$BH$310,2,FALSE),"X") ->  | D494: =IF($A494=Récap!$BF$3+1,"FIN DE LA LISTE DES OPERATIONS D'ENTRETIEN A EFFECTUER",IF($A494<=Récap!$BF$3+1,VLOOKUP($A494,Récap!$BF$5:$BH$310,3,FALSE),"X")) -> 
A498: =A494+1 -> 85 | B498: =IF($A498<=Récap!$BF$3+1,VLOOKUP($A498,Récap!$BF$5:$BH$310,2,FALSE),"X") ->  | D498: =IF($A498=Récap!$BF$3+1,"FIN DE LA LISTE DES OPERATIONS D'ENTRETIEN A EFFECTUER",IF($A498<=Récap!$BF$3+1,VLOOKUP($A498,Récap!$BF$5:$BH$310,3,FALSE),"X")) -> 
A502: =A498+1 -> 86 | B502: =IF($A502<=Récap!$BF$3+1,VLOOKUP($A502,Récap!$BF$5:$BH$310,2,FALSE),"X") ->  | D502: =IF($A502=Récap!$BF$3+1,"FIN DE LA LISTE DES OPERATIONS D'ENTRETIEN A EFFECTUER",IF($A502<=Récap!$BF$3+1,VLOOKUP($A502,Récap!$BF$5:$BH$310,3,FALSE),"X")) -> 
A506: =A502+1 -> 87 | B506: =IF($A506<=Récap!$BF$3+1,VLOOKUP($A506,Récap!$BF$5:$BH$310,2,FALSE),"X") ->  | D506: =IF($A506=Récap!$BF$3+1,"FIN DE LA LISTE DES OPERATIONS D'ENTRETIEN A EFFECTUER",IF($A506<=Récap!$BF$3+1,VLOOKUP($A506,Récap!$BF$5:$BH$310,3,FALSE),"X")) -> 
A510: =A506+1 -> 88 | B510: =IF($A510<=Récap!$BF$3+1,VLOOKUP($A510,Récap!$BF$5:$BH$310,2,FALSE),"X") ->  | D510: =IF($A510=Récap!$BF$3+1,"FIN DE LA LISTE DES OPERATIONS D'ENTRETIEN A EFFECTUER",IF($A510<=Récap!$BF$3+1,VLOOKUP($A510,Récap!$BF$5:$BH$310,3,FALSE),"X")) -> 
A514: =A510+1 -> 89 | B514: =IF($A514<=Récap!$BF$3+1,VLOOKUP($A514,Récap!$BF$5:$BH$310,2,FALSE),"X") ->  | D514: =IF($A514=Récap!$BF$3+1,"FIN DE LA LISTE DES OPERATIONS D'ENTRETIEN A EFFECTUER",IF($A514<=Récap!$BF$3+1,VLOOKUP($A514,Récap!$BF$5:$BH$310,3,FALSE),"X")) -> 
A518: =A514+1 -> 90 | B518: =IF($A518<=Récap!$BF$3+1,VLOOKUP($A518,Récap!$BF$5:$BH$310,2,FALSE),"X") ->  | D518: =IF($A518=Récap!$BF$3+1,"FIN DE LA LISTE DES OPERATIONS D'ENTRETIEN A EFFECTUER",IF($A518<=Récap!$BF$3+1,VLOOKUP($A518,Récap!$BF$5:$BH$310,3,FALSE),"X")) -> 
A522: =A518+1 -> 91 | B522: =IF($A522<=Récap!$BF$3+1,VLOOKUP($A522,Récap!$BF$5:$BH$310,2,FALSE),"X") ->  | D522: =IF($A522=Récap!$BF$3+1,"FIN DE LA LISTE DES OPERATIONS D'ENTRETIEN A EFFECTUER",IF($A522<=Récap!$BF$3+1,VLOOKUP($A522,Récap!$BF$5:$BH$310,3,FALSE),"X")) -> 
B528: Formulaire du 18 octobre 2011 | I528: =CONCATENATE("Annexe au Bon de lancement / Dossier de travaux ",$R$1," - Page ",Z528," / ",AA528) ->  | Z528: =IF(B474="X",0,Z470+1) ->  | AA528: =MAX($Z$123:$Z$1514) ->  | AB528: =IF($B474="X",ROW(A528),"") -> 
AB529: =IF($B532="X",ROW(A529),"") -> 
B530: N° | D530: DESIGNATION | U530: RESULTAT | W530: EXECUTANTS
A532: =A522+1 -> 92 | B532: =IF($A532<=Récap!$BF$3+1,VLOOKUP($A532,Récap!$BF$5:$BH$310,2,FALSE),"X") ->  | D532: =IF($A532=Récap!$BF$3+1,"FIN DE LA LISTE DES OPERATIONS D'ENTRETIEN A EFFECTUER",IF($A532<=Récap!$BF$3+1,VLOOKUP($A532,Récap!$BF$5:$BH$310,3,FALSE),"X")) -> 
A536: =A532+1 -> 93 | B536: =IF($A536<=Récap!$BF$3+1,VLOOKUP($A536,Récap!$BF$5:$BH$310,2,FALSE),"X") ->  | D536: =IF($A536=Récap!$BF$3+1,"FIN DE LA LISTE DES OPERATIONS D'ENTRETIEN A EFFECTUER",IF($A536<=Récap!$BF$3+1,VLOOKUP($A536,Récap!$BF$5:$BH$310,3,FALSE),"X")) -> 
A540: =A536+1 -> 94 | B540: =IF($A540<=Récap!$BF$3+1,VLOOKUP($A540,Récap!$BF$5:$BH$310,2,FALSE),"X") ->  | D540: =IF($A540=Récap!$BF$3+1,"FIN DE LA LISTE DES OPERATIONS D'ENTRETIEN A EFFECTUER",IF($A540<=Récap!$BF$3+1,VLOOKUP($A540,Récap!$BF$5:$BH$310,3,FALSE),"X")) -> 
A544: =A540+1 -> 95 | B544: =IF($A544<=Récap!$BF$3+1,VLOOKUP($A544,Récap!$BF$5:$BH$310,2,FALSE),"X") ->  | D544: =IF($A544=Récap!$BF$3+1,"FIN DE LA LISTE DES OPERATIONS D'ENTRETIEN A EFFECTUER",IF($A544<=Récap!$BF$3+1,VLOOKUP($A544,Récap!$BF$5:$BH$310,3,FALSE),"X")) -> 
A548: =A544+1 -> 96 | B548: =IF($A548<=Récap!$BF$3+1,VLOOKUP($A548,Récap!$BF$5:$BH$310,2,FALSE),"X") ->  | D548: =IF($A548=Récap!$BF$3+1,"FIN DE LA LISTE DES OPERATIONS D'ENTRETIEN A EFFECTUER",IF($A548<=Récap!$BF$3+1,VLOOKUP($A548,Récap!$BF$5:$BH$310,3,FALSE),"X")) -> 
A552: =A548+1 -> 97 | B552: =IF($A552<=Récap!$BF$3+1,VLOOKUP($A552,Récap!$BF$5:$BH$310,2,FALSE),"X") ->  | D552: =IF($A552=Récap!$BF$3+1,"FIN DE LA LISTE DES OPERATIONS D'ENTRETIEN A EFFECTUER",IF($A552<=Récap!$BF$3+1,VLOOKUP($A552,Récap!$BF$5:$BH$310,3,FALSE),"X")) -> 
A556: =A552+1 -> 98 | B556: =IF($A556<=Récap!$BF$3+1,VLOOKUP($A556,Récap!$BF$5:$BH$310,2,FALSE),"X") ->  | D556: =IF($A556=Récap!$BF$3+1,"FIN DE LA LISTE DES OPERATIONS D'ENTRETIEN A EFFECTUER",IF($A556<=Récap!$BF$3+1,VLOOKUP($A556,Récap!$BF$5:$BH$310,3,FALSE),"X")) -> 
A560: =A556+1 -> 99 | B560: =IF($A560<=Récap!$BF$3+1,VLOOKUP($A560,Récap!$BF$5:$BH$310,2,FALSE),"X") ->  | D560: =IF($A560=Récap!$BF$3+1,"FIN DE LA LISTE DES OPERATIONS D'ENTRETIEN A EFFECTUER",IF($A560<=Récap!$BF$3+1,VLOOKUP($A560,Récap!$BF$5:$BH$310,3,FALSE),"X")) -> 
A564: =A560+1 -> 100 | B564: =IF($A564<=Récap!$BF$3+1,VLOOKUP($A564,Récap!$BF$5:$BH$310,2,FALSE),"X") ->  | D564: =IF($A564=Récap!$BF$3+1,"FIN DE LA LISTE DES OPERATIONS D'ENTRETIEN A EFFECTUER",IF($A564<=Récap!$BF$3+1,VLOOKUP($A564,Récap!$BF$5:$BH$310,3,FALSE),"X")) -> 
A568: =A564+1 -> 101 | B568: =IF($A568<=Récap!$BF$3+1,VLOOKUP($A568,Récap!$BF$5:$BH$310,2,FALSE),"X") ->  | D568: =IF($A568=Récap!$BF$3+1,"FIN DE LA LISTE DES OPERATIONS D'ENTRETIEN A EFFECTUER",IF($A568<=Récap!$BF$3+1,VLOOKUP($A568,Récap!$BF$5:$BH$310,3,FALSE),"X")) -> 
A572: =A568+1 -> 102 | B572: =IF($A572<=Récap!$BF$3+1,VLOOKUP($A572,Récap!$BF$5:$BH$310,2,FALSE),"X") ->  | D572: =IF($A572=Récap!$BF$3+1,"FIN DE LA LISTE DES OPERATIONS D'ENTRETIEN A EFFECTUER",IF($A572<=Récap!$BF$3+1,VLOOKUP($A572,Récap!$BF$5:$BH$310,3,FALSE),"X")) -> 
A576: =A572+1 -> 103 | B576: =IF($A576<=Récap!$BF$3+1,VLOOKUP($A576,Récap!$BF$5:$BH$310,2,FALSE),"X") ->  | D576: =IF($A576=Récap!$BF$3+1,"FIN DE LA LISTE DES OPERATIONS D'ENTRETIEN A EFFECTUER",IF($A576<=Récap!$BF$3+1,VLOOKUP($A576,Récap!$BF$5:$BH$310,3,FALSE),"X")) -> 
A580: =A576+1 -> 104 | B580: =IF($A580<=Récap!$BF$3+1,VLOOKUP($A580,Récap!$BF$5:$BH$310,2,FALSE),"X") ->  | D580: =IF($A580=Récap!$BF$3+1,"FIN DE LA LISTE DES OPERATIONS D'ENTRETIEN A EFFECTUER",IF($A580<=Récap!$BF$3+1,VLOOKUP($A580,Récap!$BF$5:$BH$310,3,FALSE),"X")) -> 
B586: Formulaire du 18 octobre 2011 | I586: =CONCATENATE("Annexe au Bon de lancement / Dossier de travaux ",$R$1," - Page ",Z586," / ",AA586) ->  | Z586: =IF(B532="X",0,Z528+1) ->  | AA586: =MAX($Z$123:$Z$1514) ->  | AB586: =IF($B532="X",ROW(A586),"") -> 
AB587: =IF($B590="X",ROW(A587),"") -> 
B588: N° | D588: DESIGNATION | U588: RESULTAT | W588: EXECUTANTS
A590: =A580+1 -> 105 | B590: =IF($A590<=Récap!$BF$3+1,VLOOKUP($A590,Récap!$BF$5:$BH$310,2,FALSE),"X") ->  | D590: =IF($A590=Récap!$BF$3+1,"FIN DE LA LISTE DES OPERATIONS D'ENTRETIEN A EFFECTUER",IF($A590<=Récap!$BF$3+1,VLOOKUP($A590,Récap!$BF$5:$BH$310,3,FALSE),"X")) -> 
A594: =A590+1 -> 106 | B594: =IF($A594<=Récap!$BF$3+1,VLOOKUP($A594,Récap!$BF$5:$BH$310,2,FALSE),"X") ->  | D594: =IF($A594=Récap!$BF$3+1,"FIN DE LA LISTE DES OPERATIONS D'ENTRETIEN A EFFECTUER",IF($A594<=Récap!$BF$3+1,VLOOKUP($A594,Récap!$BF$5:$BH$310,3,FALSE),"X")) -> 
A598: =A594+1 -> 107 | B598: =IF($A598<=Récap!$BF$3+1,VLOOKUP($A598,Récap!$BF$5:$BH$310,2,FALSE),"X") ->  | D598: =IF($A598=Récap!$BF$3+1,"FIN DE LA LISTE DES OPERATIONS D'ENTRETIEN A EFFECTUER",IF($A598<=Récap!$BF$3+1,VLOOKUP($A598,Récap!$BF$5:$BH$310,3,FALSE),"X")) -> 
A602: =A598+1 -> 108 | B602: =IF($A602<=Récap!$BF$3+1,VLOOKUP($A602,Récap!$BF$5:$BH$310,2,FALSE),"X") ->  | D602: =IF($A602=Récap!$BF$3+1,"FIN DE LA LISTE DES OPERATIONS D'ENTRETIEN A EFFECTUER",IF($A602<=Récap!$BF$3+1,VLOOKUP($A602,Récap!$BF$5:$BH$310,3,FALSE),"X")) -> 
A606: =A602+1 -> 109 | B606: =IF($A606<=Récap!$BF$3+1,VLOOKUP($A606,Récap!$BF$5:$BH$310,2,FALSE),"X") ->  | D606: =IF($A606=Récap!$BF$3+1,"FIN DE LA LISTE DES OPERATIONS D'ENTRETIEN A EFFECTUER",IF($A606<=Récap!$BF$3+1,VLOOKUP($A606,Récap!$BF$5:$BH$310,3,FALSE),"X")) -> 
... 285 more rows

Sheet CR
E1: COMPTE RENDU DE TRAVAUX N° | R1: =IF(BL!R1="","",BL!R1) -> 01/2016/ST | Z1: RAS | AB1: Liste des intervenants | AG1: APRSseurs | AK1: N° de licence | AO1: Certificats libératoires | AW1: Ancien moteur | AX1: Nouv. moteur | AY1: Ancienne hélice | AZ1: Nouv. Hélice
Z2: Reporté | AA2: =IF(AND(AB2<>"",AB2<>"Voir page n° 5",COUNTIF($AG$2:$AJ$7,AB2)=0),IF(COUNTIF($B$1:$Y$345,AB2)>0,MAX($AA$1:AA1)+1,""),"") ->  | AB2: =VLOOKUP(AB$1,[1]Récap!$A$1:$H$65536,2,FALSE) -> J.R. GIMENEZ | AG2: =VLOOKUP(AG$1,[1]Récap!$A$1:$H$65536,2,FALSE) -> J.R. GIMENEZ | AK2: =VLOOKUP(AK$1,[1]Récap!$A$1:$H$65536,2,FALSE) -> FR66.006687 | AO2: =VLOOKUP(AO$1,[1]Récap!$A$1:$H$65536,2,FALSE) -> EASA Form one | AV2: Constructeur | AW2: =Récap!T39 -> Lycoming | AX2: =AW2 -> Lycoming | AY2: =Récap!T46 -> Sensenich | AZ2: =AY2 -> Sensenich
Z3: Annulé | AA3: =IF(AND(AB3<>"",AB3<>"Voir page n° 5",COUNTIF($AG$2:$AJ$7,AB3)=0),IF(COUNTIF($B$1:$Y$345,AB3)>0,MAX($AA$1:AA2)+1,""),"") -> 1 | AB3: =VLOOKUP(AB$1,[1]Récap!$A$1:$H$65536,3,FALSE) -> A. MANN | AG3: =VLOOKUP(AG$1,[1]Récap!$A$1:$H$65536,3,FALSE) -> - | AK3: =VLOOKUP(AK$1,[1]Récap!$A$1:$H$65536,3,FALSE) -> - | AO3: =VLOOKUP(AO$1,[1]Récap!$A$1:$H$65536,3,FALSE) -> JAA Form one | AV3: Type | AW3: =Récap!T40 -> O-320-E2A | AX3: =IF(ISERROR(VLOOKUP("Moteur",$AE:$AQ,9,FALSE)),"",VLOOKUP("Moteur",$AE:$AQ,9,FALSE)) ->  | AY3: =Récap!T47 -> 74DM6-0-56 | AZ3: =IF(ISERROR(VLOOKUP("Hélice",$AE:$AQ,9,FALSE)),"",VLOOKUP("Hélice",$AE:$AQ,9,FALSE)) -> 
E4: Aéroclub du Gaillacois - Agrément n° FR.MF-007 | Z4: E/S | AA4: =IF(AND(AB4<>"",AB4<>"Voir page n° 5",COUNTIF($AG$2:$AJ$7,AB4)=0),IF(COUNTIF($B$1:$Y$345,AB4)>0,MAX($AA$1:AA3)+1,""),"") ->  | AB4: =VLOOKUP(AB$1,[1]Récap!$A$1:$H$65536,4,FALSE) -> Voir page n° 5 | AG4: =VLOOKUP(AG$1,[1]Récap!$A$1:$H$65536,4,FALSE) -> - | AK4: =VLOOKUP(AK$1,[1]Récap!$A$1:$H$65536,4,FALSE) -> - | AO4: =VLOOKUP(AO$1,[1]Récap!$A$1:$H$65536,4,FALSE) -> FAA Form 8130-3 | AV4: S/N | AW4: =Récap!T41 -> L-19951-27A | AX4: =IF(ISERROR(VLOOKUP("Moteur",$AE:$AQ,10,FALSE)),"",VLOOKUP("Moteur",$AE:$AQ,10,FALSE)) ->  | AY4: =Récap!T48 -> A-54663 | AZ4: =IF(ISERROR(VLOOKUP("Hélice",$AE:$AQ,10,FALSE)),"",VLOOKUP("Hélice",$AE:$AQ,10,FALSE)) -> 
Z5: Voir TS | AA5: =IF(AND(AB5<>"",AB5<>"Voir page n° 5",COUNTIF($AG$2:$AJ$7,AB5)=0),IF(COUNTIF($B$1:$Y$345,AB5)>0,MAX($AA$1:AA4)+1,""),"") ->  | AB5: =VLOOKUP(AB$1,[1]Récap!$A$1:$H$65536,5,FALSE) -> - | AG5: =VLOOKUP(AG$1,[1]Récap!$A$1:$H$65536,5,FALSE) -> - | AK5: =VLOOKUP(AK$1,[1]Récap!$A$1:$H$65536,5,FALSE) -> - | AO5: =VLOOKUP(AO$1,[1]Récap!$A$1:$H$65536,5,FALSE) -> Certif. de conf. | AV5: Heures totales | AW5: =IF(Récap!$T43="Inc","Inc",Récap!$T43+$P$11-Récap!$T$36) -> Inc | AX5: =IF(ISERROR(VLOOKUP("Moteur",$AE:$AQ,12,FALSE)),"",VLOOKUP("Moteur",$AE:$AQ,12,FALSE)) ->  | AY5: =IF(Récap!$T49="Inc","Inc",Récap!$T49+$P$11-Récap!$T$36) -> Inc | AZ5: =IF(ISERROR(VLOOKUP("Hélice",$AE:$AQ,12,FALSE)),"",VLOOKUP("Hélice",$AE:$AQ,12,FALSE)) -> 
AA6: =IF(AND(AB6<>"",AB6<>"Voir page n° 5",COUNTIF($AG$2:$AJ$7,AB6)=0),IF(COUNTIF($B$1:$Y$345,AB6)>0,MAX($AA$1:AA5)+1,""),"") ->  | AB6: =VLOOKUP(AB$1,[1]Récap!$A$1:$H$65536,6,FALSE) -> - | AG6: =VLOOKUP(AG$1,[1]Récap!$A$1:$H$65536,6,FALSE) -> - | AK6: =VLOOKUP(AK$1,[1]Récap!$A$1:$H$65536,6,FALSE) -> - | AO6: =VLOOKUP(AO$1,[1]Récap!$A$1:$H$65536,6,FALSE) -> TCCA Form one | AV6: Heures depuis RG | AW6: =IF(Récap!$T44="Inc","Inc",Récap!$T44+$P$11-Récap!$T$36) -> -9477.02 | AX6: =IF(ISERROR(VLOOKUP("Moteur",$AE:$AQ,11,FALSE)),"",VLOOKUP("Moteur",$AE:$AQ,11,FALSE)) ->  | AY6: =IF(Récap!$T50="Inc","Inc",Récap!$T50+$P$11-Récap!$T$36) -> -8983.55 | AZ6: =IF(ISERROR(VLOOKUP("Hélice",$AE:$AQ,11,FALSE)),"",VLOOKUP("Hélice",$AE:$AQ,11,FALSE)) -> 
B7: Date d'entrée en visite : | M7: Date de sortie : | V7: Heure : | AA7: =IF(AND(AB7<>"",AB7<>"Voir page n° 5",COUNTIF($AG$2:$AJ$7,AB7)=0),IF(COUNTIF($B$1:$Y$345,AB7)>0,MAX($AA$1:AA6)+1,""),"") ->  | AB7: =VLOOKUP(AB$1,[1]Récap!$A$1:$H$65536,7,FALSE) -> - | AG7: =VLOOKUP(AG$1,[1]Récap!$A$1:$H$65536,7,FALSE) -> - | AK7: =VLOOKUP(AK$1,[1]Récap!$A$1:$H$65536,7,FALSE) -> - | AO7: =VLOOKUP(AO$1,[1]Récap!$A$1:$H$65536,7,FALSE) -> TCCA Form 24-0078 | AV7: A retenir | AW7: =IF(AX3="",AW3,AX3) -> O-320-E2A | AY7: =IF(AZ3="",AY3,AZ3) -> 74DM6-0-56
Z8: CR en PDF | AA8: =LEFT(CELL("nomfichier"),FIND("[",CELL("nomfichier"),1)-1)&BL!U8&" - Dossier de travaux "&RIGHT(LEFT(R1,7),4)&"-"&LEFT(R1,2)&".pdf" -> F:\Mecanique\Agrement G (Manu)\F-TEST - Dossier de travaux 2016-01.pdf | AB8: =Récap!P71 -> manu.cath@live.fr | AW8: =IF(AX4="",AW4,AX4) -> L-19951-27A | AY8: =IF(AZ4="",AY4,AZ4) -> A-54663
B9: Situation de l'appareil à l'issue des travaux | Z9: Alternate TBO | AA9: =LEFT(CELL("nomfichier"),FIND(")",CELL("nomfichier"),1))&"\Archives dossiers\"&BL!U8&" - Alternate TBO "&RIGHT(LEFT(R1,7),4)&"-"&LEFT(R1,2)&".pdf" -> F:\Mecanique\Agrement G (Manu)\Archives dossiers\F-TEST - Alternate TBO 2016-01.pdf | AW9: =IF(AX5="",AW5,AX5) -> Inc | AY9: =IF(AZ5="",AY5,AZ5) -> Inc
E10: Marque | H10: Type | M10: N° de série | P10: Hrs totales | S10: Hrs depuis GV / RG | W10: Cycles | Z10: Inspection corrosion | AA10: =LEFT(CELL("nomfichier"),FIND(")",CELL("nomfichier"),1))&"\Archives dossiers\"&BL!U8&" - Inspection corrosion "&RIGHT(LEFT(R1,7),4)&"-"&LEFT(R1,2)&".xlsm" -> F:\Mecanique\Agrement G (Manu)\Archives dossiers\F-TEST - Inspection corrosion 2016-01.xlsm | AW10: =IF(AX6="",AW6,AX6) -> -9477.02 | AY10: =IF(AZ6="",AY6,AZ6) -> -8983.55
B11: Cellule | E11: =BL!B8 -> SOCATA | H11: =BL!I8 -> Rallye 150 ST | M11: =BL!P8 -> 3142 | S11: =IF(P11="","",P11-Récap!P64) ->  | W11: =IF(H11="CAP 10B","","N/A") -> N/A | Z11: Dossier avion pour MàJ | AA11: =LEFT(CELL("nomfichier"),FIND(")",CELL("nomfichier"),1))&"\"&BL!U8&"\"&BL!U8&" - Dossier avion rev 4.xlsm" -> F:\Mecanique\Agrement G (Manu)\F-TEST\F-TEST - Dossier avion rev 4.xlsm
B12: Moteur | E12: =AW2 -> Lycoming | H12: =AW7 -> O-320-E2A | M12: =AW8 -> L-19951-27A | P12: =IF(P11="","",AW9) ->  | S12: =IF(P11="","",AW10) ->  | W12: N/A | Z12: Transfert fichier dans archives dossiers | AA12: =LEFT(CELL("nomfichier"),FIND(")",CELL("nomfichier"),1))&"\Archives dossiers\" -> F:\Mecanique\Agrement G (Manu)\Archives dossiers\ | AW12: =SUBTOTAL(3,AW64:AW354) -> 5
B13: Hélice | E13: =AY2 -> Sensenich | H13: =AY7 -> 74DM6-0-56 | M13: =AY8 -> A-54663 | P13: =IF(P11="","",AY9) ->  | S13: =IF(P11="","",AY10) ->  | W13: N/A | Z13: =MAX(Z15:Z154) -> 12
Z14: Report APRS | AD14: Remplacement | AH14: Traitement | AS14: Livrets mécano | AW14: Page
B15: Visites | L15: Résultat | N15: Exécution | Z15: Eff. | AA15: Rep. | AB15: Ann. | AC15: Op. | AD15: N° | AE15: Dés. | AF15: P/N | AG15: S/N | AH15: N° d'ordre pour traitement | AI15: Ong. | AJ15: Date | AK15: Hrs. Avion | AL15: Jus. | AM15: P/N | AN15: S/N | AO15: Hrs depuis fab/RG/PB | AP15: Hrs. totales | AQ15: Date de fab/RG/PB | AR15: Texte justif | AS15: =AB2 -> J.R. GIMENEZ | AT15: Op. | AU15: =AB3 -> A. MANN | AV15: Op.
B16: =BL!B11 -> 1650 | Z16: =IF(OR(B16="Pas de visite horaire",SUM(AA16:AB16)>0),"",MAX(Z$15:Z15)+1) -> 1 | AA16: =IF(L16=Z$2,MAX(AA$15:AA15)+1,"") ->  | AB16: =IF(L16=Z$3,MAX(AB$15:AB15)+1,"") ->  | AC16: ="Visite "&B16 -> Visite 1650 | AN16: =IF(Z16="","",VLOOKUP(B16,Récap!R5:U10,4,FALSE)) ->  | AS16: =IF(OR(Q16=$AS$15,N16=$AS$15),MAX(#REF!)+1,"") ->  | AT16: =IF(AS16="","",B16) ->  | AU16: =IF(OR(Q16=$AU$15,N16=$AU$15),MAX(#REF!)+1,"") ->  | AV16: =IF(AU16="","",B16) -> 
B17: =BL!B12 ->  | Z17: =IF(OR(B17="Pas de visite calendaire",SUM(AA17:AB17)>0),"",MAX(Z$15:Z16)+1) -> 2 | AA17: =IF(L17=Z$2,MAX(AA$15:AA16)+1,"") ->  | AB17: =IF(L17=Z$3,MAX(AB$15:AB16)+1,"") ->  | AC17: ="Visite "&B17 -> Visite | AN17: =IF(Z17="","",VLOOKUP(B17,Récap!R12:U15,4,FALSE)) ->  | AS17: =IF(OR(Q17=$AS$15,N17=$AS$15),MAX(AS$15:AS16)+1,"") ->  | AT17: =IF(AS17="","",B17) ->  | AU17: =IF(OR(Q17=$AU$15,N17=$AU$15),MAX(AU$15:AU16)+1,"") ->  | AV17: =IF(AU17="","",B17) -> 
AH18: =MAX(AH20:AH59) -> 6
B19: Consignes de navigabilité | U19: Résultat | W19: Exécution
A20: =BL!A20 -> 1 | B20: =IF(A20="","Pas de CN",VLOOKUP(A20,Récap!$F:$H,2,FALSE)) -> F-1982-089 | E20: =IF(A20="","Pas de consignes de navigabilité",VLOOKUP(A20,Récap!$F:$H,3,FALSE)) -> Corrosion | U20: RAS | Z20: =IF(OR(B20="Pas de CN",B20="-",,SUM(AA20:AB20)>0),"",MAX(Z$15:Z19)+1) -> 3 | AA20: =IF(U20=Z$2,MAX(AA$15:AA19)+1,"") ->  | AB20: =IF(U20=Z$3,MAX(AB$15:AB19)+1,"") ->  | AC20: =IF(Z20>0,"CN "&B20&" - "&E20,"") -> CN F-1982-089 - Corrosion | AH20: =IF(Z20="","",MAX(AH$19:AH19)+1) -> 1 | AI20: =IF(Z20<>"",VLOOKUP(A20,Récap!$F:$N,7,FALSE),"") -> CN avion | AJ20: =IF(Z20<>"",VLOOKUP(A20,Récap!$F:$N,8,FALSE),"") -> 277 | AL20: =IF(Z20<>"",VLOOKUP(A20,Récap!$F:$N,9,FALSE),"") -> 280 | AS20: =IF(AND(SUM(AA20:AB21)=0,OR(W21=$AS$15,W20=$AS$15)),MAX(AS$15:AS19)+1,"") ->  | AT20: =IF(AS20="","",B20) ->  | AU20: =IF(AND(SUM(AA20:AB21)=0,OR(W20=$AU$15,W21=$AU$15)),MAX(AU$15:AU19)+1,"") ->  | AV20: =IF(AU20="","",B20) -> 
A22: =BL!A22 -> 2 | B22: =IF(A22="","-",VLOOKUP(A22,Récap!$F:$H,2,FALSE)) -> F-1986-160 R1 | E22: =IF(A22="","-",VLOOKUP(A22,Récap!$F:$H,3,FALSE)) -> Stabilisateur horizontal | Z22: =IF(OR(B22="Pas de CN",B22="-",,SUM(AA22:AB22)>0),"",MAX(Z$15:Z21)+1) -> 4 | AA22: =IF(U22=Z$2,MAX(AA$15:AA21)+1,"") ->  | AB22: =IF(U22=Z$3,MAX(AB$15:AB21)+1,"") ->  | AC22: =IF(Z22>0,"CN "&B22&" - "&E22,"") -> CN F-1986-160 R1 - Stabilisateur horizontal | AH22: =IF(Z22="","",MAX(AH$19:AH21)+1) -> 2 | AI22: =IF(Z22<>"",VLOOKUP(A22,Récap!$F:$N,7,FALSE),"") -> CN avion | AJ22: =IF(Z22<>"",VLOOKUP(A22,Récap!$F:$N,8,FALSE),"") -> 286 | AL22: =IF(Z22<>"",VLOOKUP(A22,Récap!$F:$N,9,FALSE),"") -> 290 | AS22: =IF(AND(SUM(AA22:AB23)=0,OR(W23=$AS$15,W22=$AS$15)),MAX(AS$15:AS21)+1,"") ->  | AT22: =IF(AS22="","",B22) ->  | AU22: =IF(AND(SUM(AA22:AB23)=0,OR(W22=$AU$15,W23=$AU$15)),MAX(AU$15:AU21)+1,"") ->  | AV22: =IF(AU22="","",B22) -> 
A24: =BL!A24 -> 3 | B24: =IF(A24="","-",VLOOKUP(A24,Récap!$F:$H,2,FALSE)) -> F-2000-174 | E24: =IF(A24="","-",VLOOKUP(A24,Récap!$F:$H,3,FALSE)) -> Manilles de commandes de gouvernes de profondeur et de direction - 100 h. | Z24: =IF(OR(B24="Pas de CN",B24="-",,SUM(AA24:AB24)>0),"",MAX(Z$15:Z23)+1) -> 5 | AA24: =IF(U24=Z$2,MAX(AA$15:AA23)+1,"") ->  | AB24: =IF(U24=Z$3,MAX(AB$15:AB23)+1,"") ->  | AC24: =IF(Z24>0,"CN "&B24&" - "&E24,"") -> CN F-2000-174 - Manilles de commandes de gouvernes de profondeur et de direction - 100 h. | AH24: =IF(Z24="","",MAX(AH$19:AH23)+1) -> 3 | AI24: =IF(Z24<>"",VLOOKUP(A24,Récap!$F:$N,7,FALSE),"") -> CN avion | AJ24: =IF(Z24<>"",VLOOKUP(A24,Récap!$F:$N,8,FALSE),"") -> 344 | AL24: =IF(Z24<>"",VLOOKUP(A24,Récap!$F:$N,9,FALSE),"") -> 346 | AS24: =IF(AND(SUM(AA24:AB25)=0,OR(W25=$AS$15,W24=$AS$15)),MAX(AS$15:AS23)+1,"") ->  | AT24: =IF(AS24="","",B24) ->  | AU24: =IF(AND(SUM(AA24:AB25)=0,OR(W24=$AU$15,W25=$AU$15)),MAX(AU$15:AU23)+1,"") ->  | AV24: =IF(AU24="","",B24) -> 
A26: =BL!A26 -> 4 | B26: =IF(A26="","-",VLOOKUP(A26,Récap!$F:$H,2,FALSE)) -> F-2001-400 | E26: =IF(A26="","-",VLOOKUP(A26,Récap!$F:$H,3,FALSE)) -> Bâti moteur | Z26: =IF(OR(B26="Pas de CN",B26="-",,SUM(AA26:AB26)>0),"",MAX(Z$15:Z25)+1) -> 6 | AA26: =IF(U26=Z$2,MAX(AA$15:AA25)+1,"") ->  | AB26: =IF(U26=Z$3,MAX(AB$15:AB25)+1,"") ->  | AC26: =IF(Z26>0,"CN "&B26&" - "&E26,"") -> CN F-2001-400 - Bâti moteur | AH26: =IF(Z26="","",MAX(AH$19:AH25)+1) -> 4 | AI26: =IF(Z26<>"",VLOOKUP(A26,Récap!$F:$N,7,FALSE),"") -> CN avion | AJ26: =IF(Z26<>"",VLOOKUP(A26,Récap!$F:$N,8,FALSE),"") -> 365 | AL26: =IF(Z26<>"",VLOOKUP(A26,Récap!$F:$N,9,FALSE),"") -> 369 | AS26: =IF(AND(SUM(AA26:AB27)=0,OR(W27=$AS$15,W26=$AS$15)),MAX(AS$15:AS25)+1,"") ->  | AT26: =IF(AS26="","",B26) ->  | AU26: =IF(AND(SUM(AA26:AB27)=0,OR(W26=$AU$15,W27=$AU$15)),MAX(AU$15:AU25)+1,"") ->  | AV26: =IF(AU26="","",B26) -> 
A28: =BL!A28 -> 5 | B28: =IF(A28="","-",VLOOKUP(A28,Récap!$F:$H,2,FALSE)) -> 2015-0203 | E28: =IF(A28="","-",VLOOKUP(A28,Récap!$F:$H,3,FALSE)) -> Axe de roue avant et vis de fixation - Inspection | Z28: =IF(OR(B28="Pas de CN",B28="-",,SUM(AA28:AB28)>0),"",MAX(Z$15:Z27)+1) -> 7 | AA28: =IF(U28=Z$2,MAX(AA$15:AA27)+1,"") ->  | AB28: =IF(U28=Z$3,MAX(AB$15:AB27)+1,"") ->  | AC28: =IF(Z28>0,"CN "&B28&" - "&E28,"") -> CN 2015-0203 - Axe de roue avant et vis de fixation - Inspection | AH28: =IF(Z28="","",MAX(AH$19:AH27)+1) -> 5 | AI28: =IF(Z28<>"",VLOOKUP(A28,Récap!$F:$N,7,FALSE),"") -> CN avion | AJ28: =IF(Z28<>"",VLOOKUP(A28,Récap!$F:$N,8,FALSE),"") -> 384 | AL28: =IF(Z28<>"",VLOOKUP(A28,Récap!$F:$N,9,FALSE),"") -> 389 | AS28: =IF(AND(SUM(AA28:AB29)=0,OR(W29=$AS$15,W28=$AS$15)),MAX(AS$15:AS27)+1,"") ->  | AT28: =IF(AS28="","",B28) ->  | AU28: =IF(AND(SUM(AA28:AB29)=0,OR(W28=$AU$15,W29=$AU$15)),MAX(AU$15:AU27)+1,"") ->  | AV28: =IF(AU28="","",B28) -> 
A30: =BL!A30 -> 6 | B30: =IF(A30="","-",VLOOKUP(A30,Récap!$F:$H,2,FALSE)) -> F-1977-168 | E30: =IF(A30="","-",VLOOKUP(A30,Récap!$F:$H,3,FALSE)) -> Interrupteurs d’allumage Bendix | Z30: =IF(OR(B30="Pas de CN",B30="-",,SUM(AA30:AB30)>0),"",MAX(Z$15:Z29)+1) -> 8 | AA30: =IF(U30=Z$2,MAX(AA$15:AA29)+1,"") ->  | AB30: =IF(U30=Z$3,MAX(AB$15:AB29)+1,"") ->  | AC30: =IF(Z30>0,"CN "&B30&" - "&E30,"") -> CN F-1977-168 - Interrupteurs d’allumage Bendix | AH30: =IF(Z30="","",MAX(AH$19:AH29)+1) -> 6 | AI30: =IF(Z30<>"",VLOOKUP(A30,Récap!$F:$N,7,FALSE),"") -> CN équipmts | AJ30: =IF(Z30<>"",VLOOKUP(A30,Récap!$F:$N,8,FALSE),"") -> 24 | AL30: =IF(Z30<>"",VLOOKUP(A30,Récap!$F:$N,9,FALSE),"") -> 28 | AS30: =IF(AND(SUM(AA30:AB31)=0,OR(W31=$AS$15,W30=$AS$15)),MAX(AS$15:AS29)+1,"") ->  | AT30: =IF(AS30="","",B30) ->  | AU30: =IF(AND(SUM(AA30:AB31)=0,OR(W30=$AU$15,W31=$AU$15)),MAX(AU$15:AU29)+1,"") ->  | AV30: =IF(AU30="","",B30) -> 
A32: =BL!A32 ->  | B32: =IF(A32="","-",VLOOKUP(A32,Récap!$F:$H,2,FALSE)) -> - | E32: =IF(A32="","-",VLOOKUP(A32,Récap!$F:$H,3,FALSE)) -> - | Z32: =IF(OR(B32="Pas de CN",B32="-",,SUM(AA32:AB32)>0),"",MAX(Z$15:Z31)+1) ->  | AA32: =IF(U32=Z$2,MAX(AA$15:AA31)+1,"") ->  | AB32: =IF(U32=Z$3,MAX(AB$15:AB31)+1,"") ->  | AC32: =IF(Z32>0,"CN "&B32&" - "&E32,"") -> CN - - - | AH32: =IF(Z32="","",MAX(AH$19:AH31)+1) ->  | AI32: =IF(Z32<>"",VLOOKUP(A32,Récap!$F:$N,7,FALSE),"") ->  | AJ32: =IF(Z32<>"",VLOOKUP(A32,Récap!$F:$N,8,FALSE),"") ->  | AL32: =IF(Z32<>"",VLOOKUP(A32,Récap!$F:$N,9,FALSE),"") ->  | AS32: =IF(AND(SUM(AA32:AB33)=0,OR(W33=$AS$15,W32=$AS$15)),MAX(AS$15:AS31)+1,"") ->  | AT32: =IF(AS32="","",B32) ->  | AU32: =IF(AND(SUM(AA32:AB33)=0,OR(W32=$AU$15,W33=$AU$15)),MAX(AU$15:AU31)+1,"") ->  | AV32: =IF(AU32="","",B32) -> 
A34: =BL!A34 ->  | B34: =IF(A34="","-",VLOOKUP(A34,Récap!$F:$H,2,FALSE)) -> - | E34: =IF(A34="","-",VLOOKUP(A34,Récap!$F:$H,3,FALSE)) -> - | Z34: =IF(OR(B34="Pas de CN",B34="-",,SUM(AA34:AB34)>0),"",MAX(Z$15:Z33)+1) ->  | AA34: =IF(U34=Z$2,MAX(AA$15:AA33)+1,"") ->  | AB34: =IF(U34=Z$3,MAX(AB$15:AB33)+1,"") ->  | AC34: =IF(Z34>0,"CN "&B34&" - "&E34,"") -> CN - - - | AH34: =IF(Z34="","",MAX(AH$19:AH33)+1) ->  | AI34: =IF(Z34<>"",VLOOKUP(A34,Récap!$F:$N,7,FALSE),"") ->  | AJ34: =IF(Z34<>"",VLOOKUP(A34,Récap!$F:$N,8,FALSE),"") ->  | AL34: =IF(Z34<>"",VLOOKUP(A34,Récap!$F:$N,9,FALSE),"") ->  | AS34: =IF(AND(SUM(AA34:AB35)=0,OR(W35=$AS$15,W34=$AS$15)),MAX(AS$15:AS33)+1,"") ->  | AT34: =IF(AS34="","",B34) ->  | AU34: =IF(AND(SUM(AA34:AB35)=0,OR(W34=$AU$15,W35=$AU$15)),MAX(AU$15:AU33)+1,"") ->  | AV34: =IF(AU34="","",B34) -> 
A36: =BL!A36 ->  | B36: =IF(A36="","-",VLOOKUP(A36,Récap!$F:$H,2,FALSE)) -> - | E36: =IF(A36="","-",VLOOKUP(A36,Récap!$F:$H,3,FALSE)) -> - | Z36: =IF(OR(B36="Pas de CN",B36="-",,SUM(AA36:AB36)>0),"",MAX(Z$15:Z35)+1) ->  | AA36: =IF(U36=Z$2,MAX(AA$15:AA35)+1,"") ->  | AB36: =IF(U36=Z$3,MAX(AB$15:AB35)+1,"") ->  | AC36: =IF(Z36>0,"CN "&B36&" - "&E36,"") -> CN - - - | AH36: =IF(Z36="","",MAX(AH$19:AH35)+1) ->  | AI36: =IF(Z36<>"",VLOOKUP(A36,Récap!$F:$N,7,FALSE),"") ->  | AJ36: =IF(Z36<>"",VLOOKUP(A36,Récap!$F:$N,8,FALSE),"") ->  | AL36: =IF(Z36<>"",VLOOKUP(A36,Récap!$F:$N,9,FALSE),"") ->  | AS36: =IF(AND(SUM(AA36:AB37)=0,OR(W37=$AS$15,W36=$AS$15)),MAX(AS$15:AS35)+1,"") ->  | AT36: =IF(AS36="","",B36) ->  | AU36: =IF(AND(SUM(AA36:AB37)=0,OR(W36=$AU$15,W37=$AU$15)),MAX(AU$15:AU35)+1,"") ->  | AV36: =IF(AU36="","",B36) -> 
A38: =BL!A38 ->  | B38: =IF(A38="","-",VLOOKUP(A38,Récap!$F:$H,2,FALSE)) -> - | E38: =IF(A38="","-",VLOOKUP(A38,Récap!$F:$H,3,FALSE)) -> - | Z38: =IF(OR(B38="Pas de CN",B38="-",,SUM(AA38:AB38)>0),"",MAX(Z$15:Z37)+1) ->  | AA38: =IF(U38=Z$2,MAX(AA$15:AA37)+1,"") ->  | AB38: =IF(U38=Z$3,MAX(AB$15:AB37)+1,"") ->  | AC38: =IF(Z38>0,"CN "&B38&" - "&E38,"") -> CN - - - | AH38: =IF(Z38="","",MAX(AH$19:AH37)+1) ->  | AI38: =IF(Z38<>"",VLOOKUP(A38,Récap!$F:$N,7,FALSE),"") ->  | AJ38: =IF(Z38<>"",VLOOKUP(A38,Récap!$F:$N,8,FALSE),"") ->  | AL38: =IF(Z38<>"",VLOOKUP(A38,Récap!$F:$N,9,FALSE),"") ->  | AS38: =IF(AND(SUM(AA38:AB39)=0,OR(W39=$AS$15,W38=$AS$15)),MAX(AS$15:AS37)+1,"") ->  | AT38: =IF(AS38="","",B38) ->  | AU38: =IF(AND(SUM(AA38:AB39)=0,OR(W38=$AU$15,W39=$AU$15)),MAX(AU$15:AU37)+1,"") ->  | AV38: =IF(AU38="","",B38) -> 
A40: =BL!A40 ->  | B40: =IF(A40="","-",VLOOKUP(A40,Récap!$F:$H,2,FALSE)) -> - | E40: =IF(A40="","-",VLOOKUP(A40,Récap!$F:$H,3,FALSE)) -> - | Z40: =IF(OR(B40="Pas de CN",B40="-",,SUM(AA40:AB40)>0),"",MAX(Z$15:Z39)+1) ->  | AA40: =IF(U40=Z$2,MAX(AA$15:AA39)+1,"") ->  | AB40: =IF(U40=Z$3,MAX(AB$15:AB39)+1,"") ->  | AC40: =IF(Z40>0,"CN "&B40&" - "&E40,"") -> CN - - - | AH40: =IF(Z40="","",MAX(AH$19:AH39)+1) ->  | AI40: =IF(Z40<>"",VLOOKUP(A40,Récap!$F:$N,7,FALSE),"") ->  | AJ40: =IF(Z40<>"",VLOOKUP(A40,Récap!$F:$N,8,FALSE),"") ->  | AL40: =IF(Z40<>"",VLOOKUP(A40,Récap!$F:$N,9,FALSE),"") ->  | AS40: =IF(AND(SUM(AA40:AB41)=0,OR(W41=$AS$15,W40=$AS$15)),MAX(AS$15:AS39)+1,"") ->  | AT40: =IF(AS40="","",B40) ->  | AU40: =IF(AND(SUM(AA40:AB41)=0,OR(W40=$AU$15,W41=$AU$15)),MAX(AU$15:AU39)+1,"") ->  | AV40: =IF(AU40="","",B40) -> 
A42: =BL!A42 ->  | B42: =IF(A42="","-",VLOOKUP(A42,Récap!$F:$H,2,FALSE)) -> - | E42: =IF(A42="","-",VLOOKUP(A42,Récap!$F:$H,3,FALSE)) -> - | Z42: =IF(OR(B42="Pas de CN",B42="-",,SUM(AA42:AB42)>0),"",MAX(Z$15:Z41)+1) ->  | AA42: =IF(U42=Z$2,MAX(AA$15:AA41)+1,"") ->  | AB42: =IF(U42=Z$3,MAX(AB$15:AB41)+1,"") ->  | AC42: =IF(Z42>0,"CN "&B42&" - "&E42,"") -> CN - - - | AH42: =IF(Z42="","",MAX(AH$19:AH41)+1) ->  | AI42: =IF(Z42<>"",VLOOKUP(A42,Récap!$F:$N,7,FALSE),"") ->  | AJ42: =IF(Z42<>"",VLOOKUP(A42,Récap!$F:$N,8,FALSE),"") ->  | AL42: =IF(Z42<>"",VLOOKUP(A42,Récap!$F:$N,9,FALSE),"") ->  | AS42: =IF(AND(SUM(AA42:AB43)=0,OR(W43=$AS$15,W42=$AS$15)),MAX(AS$15:AS41)+1,"") ->  | AT42: =IF(AS42="","",B42) ->  | AU42: =IF(AND(SUM(AA42:AB43)=0,OR(W42=$AU$15,W43=$AU$15)),MAX(AU$15:AU41)+1,"") ->  | AV42: =IF(AU42="","",B42) -> 
A44: =BL!A44 ->  | B44: =IF(A44="","-",VLOOKUP(A44,Récap!$F:$H,2,FALSE)) -> - | E44: =IF(A44="","-",VLOOKUP(A44,Récap!$F:$H,3,FALSE)) -> - | Z44: =IF(OR(B44="Pas de CN",B44="-",,SUM(AA44:AB44)>0),"",MAX(Z$15:Z43)+1) ->  | AA44: =IF(U44=Z$2,MAX(AA$15:AA43)+1,"") ->  | AB44: =IF(U44=Z$3,MAX(AB$15:AB43)+1,"") ->  | AC44: =IF(Z44>0,"CN "&B44&" - "&E44,"") -> CN - - - | AH44: =IF(Z44="","",MAX(AH$19:AH43)+1) ->  | AI44: =IF(Z44<>"",VLOOKUP(A44,Récap!$F:$N,7,FALSE),"") ->  | AJ44: =IF(Z44<>"",VLOOKUP(A44,Récap!$F:$N,8,FALSE),"") ->  | AL44: =IF(Z44<>"",VLOOKUP(A44,Récap!$F:$N,9,FALSE),"") ->  | AS44: =IF(AND(SUM(AA44:AB45)=0,OR(W45=$AS$15,W44=$AS$15)),MAX(AS$15:AS43)+1,"") ->  | AT44: =IF(AS44="","",B44) ->  | AU44: =IF(AND(SUM(AA44:AB45)=0,OR(W44=$AU$15,W45=$AU$15)),MAX(AU$15:AU43)+1,"") ->  | AV44: =IF(AU44="","",B44) -> 
A46: =BL!A46 ->  | B46: =IF(A46="","-",VLOOKUP(A46,Récap!$F:$H,2,FALSE)) -> - | E46: =IF(A46="","-",VLOOKUP(A46,Récap!$F:$H,3,FALSE)) -> - | Z46: =IF(OR(B46="Pas de CN",B46="-",,SUM(AA46:AB46)>0),"",MAX(Z$15:Z45)+1) ->  | AA46: =IF(U46=Z$2,MAX(AA$15:AA45)+1,"") ->  | AB46: =IF(U46=Z$3,MAX(AB$15:AB45)+1,"") ->  | AC46: =IF(Z46>0,"CN "&B46&" - "&E46,"") -> CN - - - | AH46: =IF(Z46="","",MAX(AH$19:AH45)+1) ->  | AI46: =IF(Z46<>"",VLOOKUP(A46,Récap!$F:$N,7,FALSE),"") ->  | AJ46: =IF(Z46<>"",VLOOKUP(A46,Récap!$F:$N,8,FALSE),"") ->  | AL46: =IF(Z46<>"",VLOOKUP(A46,Récap!$F:$N,9,FALSE),"") ->  | AS46: =IF(AND(SUM(AA46:AB47)=0,OR(W47=$AS$15,W46=$AS$15)),MAX(AS$15:AS45)+1,"") ->  | AT46: =IF(AS46="","",B46) ->  | AU46: =IF(AND(SUM(AA46:AB47)=0,OR(W46=$AU$15,W47=$AU$15)),MAX(AU$15:AU45)+1,"") ->  | AV46: =IF(AU46="","",B46) -> 
A48: =BL!A48 ->  | B48: =IF(A48="","-",VLOOKUP(A48,Récap!$F:$H,2,FALSE)) -> - | E48: =IF(A48="","-",VLOOKUP(A48,Récap!$F:$H,3,FALSE)) -> - | Z48: =IF(OR(B48="Pas de CN",B48="-",,SUM(AA48:AB48)>0),"",MAX(Z$15:Z47)+1) ->  | AA48: =IF(U48=Z$2,MAX(AA$15:AA47)+1,"") ->  | AB48: =IF(U48=Z$3,MAX(AB$15:AB47)+1,"") ->  | AC48: =IF(Z48>0,"CN "&B48&" - "&E48,"") -> CN - - - | AH48: =IF(Z48="","",MAX(AH$19:AH47)+1) ->  | AI48: =IF(Z48<>"",VLOOKUP(A48,Récap!$F:$N,7,FALSE),"") ->  | AJ48: =IF(Z48<>"",VLOOKUP(A48,Récap!$F:$N,8,FALSE),"") ->  | AL48: =IF(Z48<>"",VLOOKUP(A48,Récap!$F:$N,9,FALSE),"") ->  | AS48: =IF(AND(SUM(AA48:AB49)=0,OR(W49=$AS$15,W48=$AS$15)),MAX(AS$15:AS47)+1,"") ->  | AT48: =IF(AS48="","",B48) ->  | AU48: =IF(AND(SUM(AA48:AB49)=0,OR(W48=$AU$15,W49=$AU$15)),MAX(AU$15:AU47)+1,"") ->  | AV48: =IF(AU48="","",B48) -> 
A50: =BL!A50 ->  | B50: =IF(A50="","-",VLOOKUP(A50,Récap!$F:$H,2,FALSE)) -> - | E50: =IF(A50="","-",VLOOKUP(A50,Récap!$F:$H,3,FALSE)) -> - | Z50: =IF(OR(B50="Pas de CN",B50="-",,SUM(AA50:AB50)>0),"",MAX(Z$15:Z49)+1) ->  | AA50: =IF(U50=Z$2,MAX(AA$15:AA49)+1,"") ->  | AB50: =IF(U50=Z$3,MAX(AB$15:AB49)+1,"") ->  | AC50: =IF(Z50>0,"CN "&B50&" - "&E50,"") -> CN - - - | AH50: =IF(Z50="","",MAX(AH$19:AH49)+1) ->  | AI50: =IF(Z50<>"",VLOOKUP(A50,Récap!$F:$N,7,FALSE),"") ->  | AJ50: =IF(Z50<>"",VLOOKUP(A50,Récap!$F:$N,8,FALSE),"") ->  | AL50: =IF(Z50<>"",VLOOKUP(A50,Récap!$F:$N,9,FALSE),"") ->  | AS50: =IF(AND(SUM(AA50:AB51)=0,OR(W51=$AS$15,W50=$AS$15)),MAX(AS$15:AS49)+1,"") ->  | AT50: =IF(AS50="","",B50) ->  | AU50: =IF(AND(SUM(AA50:AB51)=0,OR(W50=$AU$15,W51=$AU$15)),MAX(AU$15:AU49)+1,"") ->  | AV50: =IF(AU50="","",B50) -> 
A52: =BL!A52 ->  | B52: =IF(A52="","-",VLOOKUP(A52,Récap!$F:$H,2,FALSE)) -> - | E52: =IF(A52="","-",VLOOKUP(A52,Récap!$F:$H,3,FALSE)) -> - | Z52: =IF(OR(B52="Pas de CN",B52="-",,SUM(AA52:AB52)>0),"",MAX(Z$15:Z51)+1) ->  | AA52: =IF(U52=Z$2,MAX(AA$15:AA51)+1,"") ->  | AB52: =IF(U52=Z$3,MAX(AB$15:AB51)+1,"") ->  | AC52: =IF(Z52>0,"CN "&B52&" - "&E52,"") -> CN - - - | AH52: =IF(Z52="","",MAX(AH$19:AH51)+1) ->  | AI52: =IF(Z52<>"",VLOOKUP(A52,Récap!$F:$N,7,FALSE),"") ->  | AJ52: =IF(Z52<>"",VLOOKUP(A52,Récap!$F:$N,8,FALSE),"") ->  | AL52: =IF(Z52<>"",VLOOKUP(A52,Récap!$F:$N,9,FALSE),"") ->  | AS52: =IF(AND(SUM(AA52:AB53)=0,OR(W53=$AS$15,W52=$AS$15)),MAX(AS$15:AS51)+1,"") ->  | AT52: =IF(AS52="","",B52) ->  | AU52: =IF(AND(SUM(AA52:AB53)=0,OR(W52=$AU$15,W53=$AU$15)),MAX(AU$15:AU51)+1,"") ->  | AV52: =IF(AU52="","",B52) -> 
A54: =BL!A54 ->  | B54: =IF(A54="","-",VLOOKUP(A54,Récap!$F:$H,2,FALSE)) -> - | E54: =IF(A54="","-",VLOOKUP(A54,Récap!$F:$H,3,FALSE)) -> - | Z54: =IF(OR(B54="Pas de CN",B54="-",,SUM(AA54:AB54)>0),"",MAX(Z$15:Z53)+1) ->  | AA54: =IF(U54=Z$2,MAX(AA$15:AA53)+1,"") ->  | AB54: =IF(U54=Z$3,MAX(AB$15:AB53)+1,"") ->  | AC54: =IF(Z54>0,"CN "&B54&" - "&E54,"") -> CN - - - | AH54: =IF(Z54="","",MAX(AH$19:AH53)+1) ->  | AI54: =IF(Z54<>"",VLOOKUP(A54,Récap!$F:$N,7,FALSE),"") ->  | AJ54: =IF(Z54<>"",VLOOKUP(A54,Récap!$F:$N,8,FALSE),"") ->  | AL54: =IF(Z54<>"",VLOOKUP(A54,Récap!$F:$N,9,FALSE),"") ->  | AS54: =IF(AND(SUM(AA54:AB55)=0,OR(W55=$AS$15,W54=$AS$15)),MAX(AS$15:AS53)+1,"") ->  | AT54: =IF(AS54="","",B54) ->  | AU54: =IF(AND(SUM(AA54:AB55)=0,OR(W54=$AU$15,W55=$AU$15)),MAX(AU$15:AU53)+1,"") ->  | AV54: =IF(AU54="","",B54) -> 
A56: =BL!A56 ->  | B56: =IF(A56="","-",VLOOKUP(A56,Récap!$F:$H,2,FALSE)) -> - | E56: =IF(A56="","-",VLOOKUP(A56,Récap!$F:$H,3,FALSE)) -> - | Z56: =IF(OR(B56="Pas de CN",B56="-",,SUM(AA56:AB56)>0),"",MAX(Z$15:Z55)+1) ->  | AA56: =IF(U56=Z$2,MAX(AA$15:AA55)+1,"") ->  | AB56: =IF(U56=Z$3,MAX(AB$15:AB55)+1,"") ->  | AC56: =IF(Z56>0,"CN "&B56&" - "&E56,"") -> CN - - - | AH56: =IF(Z56="","",MAX(AH$19:AH55)+1) ->  | AI56: =IF(Z56<>"",VLOOKUP(A56,Récap!$F:$N,7,FALSE),"") ->  | AJ56: =IF(Z56<>"",VLOOKUP(A56,Récap!$F:$N,8,FALSE),"") ->  | AL56: =IF(Z56<>"",VLOOKUP(A56,Récap!$F:$N,9,FALSE),"") ->  | AS56: =IF(AND(SUM(AA56:AB57)=0,OR(W57=$AS$15,W56=$AS$15)),MAX(AS$15:AS55)+1,"") ->  | AT56: =IF(AS56="","",B56) ->  | AU56: =IF(AND(SUM(AA56:AB57)=0,OR(W56=$AU$15,W57=$AU$15)),MAX(AU$15:AU55)+1,"") ->  | AV56: =IF(AU56="","",B56) -> 
A58: =BL!A58 ->  | B58: =IF(A58="","-",VLOOKUP(A58,Récap!$F:$H,2,FALSE)) -> - | E58: =IF(A58="","-",VLOOKUP(A58,Récap!$F:$H,3,FALSE)) -> - | Z58: =IF(OR(B58="Pas de CN",B58="-",,SUM(AA58:AB58)>0),"",MAX(Z$15:Z57)+1) ->  | AA58: =IF(U58=Z$2,MAX(AA$15:AA57)+1,"") ->  | AB58: =IF(U58=Z$3,MAX(AB$15:AB57)+1,"") ->  | AC58: =IF(Z58>0,"CN "&B58&" - "&E58,"") -> CN - - - | AH58: =IF(Z58="","",MAX(AH$19:AH57)+1) ->  | AI58: =IF(Z58<>"",VLOOKUP(A58,Récap!$F:$N,7,FALSE),"") ->  | AJ58: =IF(Z58<>"",VLOOKUP(A58,Récap!$F:$N,8,FALSE),"") ->  | AL58: =IF(Z58<>"",VLOOKUP(A58,Récap!$F:$N,9,FALSE),"") ->  | AS58: =IF(AND(SUM(AA58:AB59)=0,OR(W59=$AS$15,W58=$AS$15)),MAX(AS$15:AS57)+1,"") ->  | AT58: =IF(AS58="","",B58) ->  | AU58: =IF(AND(SUM(AA58:AB59)=0,OR(W58=$AU$15,W59=$AU$15)),MAX(AU$15:AU57)+1,"") ->  | AV58: =IF(AU58="","",B58) -> 
B60: Notes :
B61: -
B62: -
B63: -
B64: Formulaire du 2 avril 2012 | O64: =CONCATENATE("Compte rendu du dossier de travaux ",$R$1," - Page "&SUBTOTAL(9,AW$16:AW64)&" / "&SUBTOTAL(9,AW$16:AW$354)) -> Compte rendu du dossier de travaux 01/2016/ST - Page 1 / 5 | AW64: 1
B65: Travaux supplémentaires programmés | W65: Exécution | AH65: =MAX(AH67:AH114) -> 4
B66: Désignation | U66: Résultat
A67: 1 | B67: =IF(BL!B67="","",BL!B67) -> Balise de détresse - Test fonctionnel | W67: A. MANN | Z67: =IF(OR(B67="Pas de travaux supplémentaires programmés",B67="-",SUM(AA67:AB67)>0),"",MAX(Z$15:Z66)+1) -> 9 | AA67: =IF(U67=Z$2,MAX(AA$15:AA66)+1,"") ->  | AB67: =IF(U67=Z$3,MAX(AB$15:AB66)+1,"") ->  | AC67: =B67 -> Balise de détresse - Test fonctionnel | AD67: =IF(AND(SUM(AA67:AB68)=0,A67<=MAX(Récap!AC$5:AC$45)),IF(VLOOKUP(A67,Récap!AC:AQ,3,FALSE)<>"",MAX(AD$65:AD66)+1,""),"") ->  | AE67: =IF(AD67<>"",A67,"") ->  | AH67: =IF(OR(Z67="",AD67<>""),"",MAX(AH$66:AH66)+1) -> 1 | AI67: =IF(AND($Z67<>"",AD67=""),VLOOKUP($A67,Récap!$AC:$AN,10,FALSE),"") -> Kardex | AJ67: =IF(AND($Z67<>"",AD67=""),VLOOKUP($A67,Récap!$AC:$AN,11,FALSE),"") -> 29 | AS67: =IF(AND(SUM(AA67:AB68)=0,OR(W68=$AS$15,W67=$AS$15)),MAX(AS$15:AS66)+1,"") ->  | AT67: =IF(AS67="","",B67) ->  | AU67: =IF(AND(SUM(AA67:AB68)=0,OR(W67=$AU$15,W68=$AU$15)),MAX(AU$15:AU66)+1,"") -> 1 | AV67: =IF(AU67="","",B67) -> Balise de détresse - Test fonctionnel
A69: =A67+1 -> 2 | B69: =IF(BL!B69="","",BL!B69) -> Magnéto gauche - Inspection 500 h | Z69: =IF(OR(B69="Pas de travaux supplémentaires programmés",B69="-",SUM(AA69:AB69)>0),"",MAX(Z$15:Z68)+1) -> 10 | AA69: =IF(U69=Z$2,MAX(AA$15:AA68)+1,"") ->  | AB69: =IF(U69=Z$3,MAX(AB$15:AB68)+1,"") ->  | AC69: =B69 -> Magnéto gauche - Inspection 500 h | AD69: =IF(AND(SUM(AA69:AB70)=0,A69<=MAX(Récap!AC$5:AC$45)),IF(VLOOKUP(A69,Récap!AC:AI,3,FALSE)<>"",MAX(AD$65:AD68)+1,""),"") ->  | AE69: =IF(AD69<>"",A69,"") ->  | AH69: =IF(OR(Z69="",AD69<>""),"",MAX(AH$66:AH68)+1) -> 2 | AI69: =IF(AND($Z69<>"",AD69=""),VLOOKUP($A69,Récap!$AC:$AN,10,FALSE),"") -> Kardex | AJ69: =IF(AND($Z69<>"",AD69=""),VLOOKUP($A69,Récap!$AC:$AN,11,FALSE),"") -> 136 | AS69: =IF(AND(SUM(AA69:AB70)=0,OR(W70=$AS$15,W69=$AS$15)),MAX(AS$15:AS68)+1,"") ->  | AT69: =IF(AS69="","",B69) ->  | AU69: =IF(AND(SUM(AA69:AB70)=0,OR(W69=$AU$15,W70=$AU$15)),MAX(AU$15:AU68)+1,"") ->  | AV69: =IF(AU69="","",B69) -> 
A71: =A69+1 -> 3 | B71: =IF(BL!B71="","",BL!B71) -> Magnéto droite - Inspection 500 h | Z71: =IF(OR(B71="Pas de travaux supplémentaires programmés",B71="-",SUM(AA71:AB71)>0),"",MAX(Z$15:Z70)+1) -> 11 | AA71: =IF(U71=Z$2,MAX(AA$15:AA70)+1,"") ->  | AB71: =IF(U71=Z$3,MAX(AB$15:AB70)+1,"") ->  | AC71: =B71 -> Magnéto droite - Inspection 500 h | AD71: =IF(AND(SUM(AA71:AB72)=0,A71<=MAX(Récap!AC$5:AC$45)),IF(VLOOKUP(A71,Récap!AC:AI,3,FALSE)<>"",MAX(AD$65:AD70)+1,""),"") ->  | AE71: =IF(AD71<>"",A71,"") ->  | AH71: =IF(OR(Z71="",AD71<>""),"",MAX(AH$66:AH70)+1) -> 3 | AI71: =IF(AND($Z71<>"",AD71=""),VLOOKUP($A71,Récap!$AC:$AN,10,FALSE),"") -> Kardex | AJ71: =IF(AND($Z71<>"",AD71=""),VLOOKUP($A71,Récap!$AC:$AN,11,FALSE),"") -> 142 | AS71: =IF(AND(SUM(AA71:AB72)=0,OR(W72=$AS$15,W71=$AS$15)),MAX(AS$15:AS70)+1,"") ->  | AT71: =IF(AS71="","",B71) ->  | AU71: =IF(AND(SUM(AA71:AB72)=0,OR(W71=$AU$15,W72=$AU$15)),MAX(AU$15:AU70)+1,"") ->  | AV71: =IF(AU71="","",B71) -> 
A73: =A71+1 -> 4 | B73: =IF(BL!B73="","",BL!B73) -> Carburateur - BS Lycoming n° 366A | Z73: =IF(OR(B73="Pas de travaux supplémentaires programmés",B73="-",SUM(AA73:AB73)>0),"",MAX(Z$15:Z72)+1) -> 12 | AA73: =IF(U73=Z$2,MAX(AA$15:AA72)+1,"") ->  | AB73: =IF(U73=Z$3,MAX(AB$15:AB72)+1,"") ->  | AC73: =B73 -> Carburateur - BS Lycoming n° 366A | AD73: =IF(AND(SUM(AA73:AB74)=0,A73<=MAX(Récap!AC$5:AC$45)),IF(VLOOKUP(A73,Récap!AC:AI,3,FALSE)<>"",MAX(AD$65:AD72)+1,""),"") ->  | AE73: =IF(AD73<>"",A73,"") ->  | AH73: =IF(OR(Z73="",AD73<>""),"",MAX(AH$66:AH72)+1) -> 4 | AI73: =IF(AND($Z73<>"",AD73=""),VLOOKUP($A73,Récap!$AC:$AN,10,FALSE),"") -> Kardex | AJ73: =IF(AND($Z73<>"",AD73=""),VLOOKUP($A73,Récap!$AC:$AN,11,FALSE),"") -> 152 | AS73: =IF(AND(SUM(AA73:AB74)=0,OR(W74=$AS$15,W73=$AS$15)),MAX(AS$15:AS72)+1,"") ->  | AT73: =IF(AS73="","",B73) ->  | AU73: =IF(AND(SUM(AA73:AB74)=0,OR(W73=$AU$15,W74=$AU$15)),MAX(AU$15:AU72)+1,"") ->  | AV73: =IF(AU73="","",B73) -> 
A75: =A73+1 -> 5 | B75: =IF(BL!B75="","",BL!B75) -> - | Z75: =IF(OR(B75="Pas de travaux supplémentaires programmés",B75="-",SUM(AA75:AB75)>0),"",MAX(Z$15:Z74)+1) ->  | AA75: =IF(U75=Z$2,MAX(AA$15:AA74)+1,"") ->  | AB75: =IF(U75=Z$3,MAX(AB$15:AB74)+1,"") ->  | AC75: =B75 -> - | AD75: =IF(AND(SUM(AA75:AB76)=0,A75<=MAX(Récap!AC$5:AC$45)),IF(VLOOKUP(A75,Récap!AC:AI,3,FALSE)<>"",MAX(AD$65:AD74)+1,""),"") ->  | AE75: =IF(AD75<>"",A75,"") ->  | AH75: =IF(OR(Z75="",AD75<>""),"",MAX(AH$66:AH74)+1) ->  | AI75: =IF(AND($Z75<>"",AD75=""),VLOOKUP($A75,Récap!$AC:$AN,10,FALSE),"") ->  | AJ75: =IF(AND($Z75<>"",AD75=""),VLOOKUP($A75,Récap!$AC:$AN,11,FALSE),"") ->  | AS75: =IF(AND(SUM(AA75:AB76)=0,OR(W76=$AS$15,W75=$AS$15)),MAX(AS$15:AS74)+1,"") ->  | AT75: =IF(AS75="","",B75) ->  | AU75: =IF(AND(SUM(AA75:AB76)=0,OR(W75=$AU$15,W76=$AU$15)),MAX(AU$15:AU74)+1,"") ->  | AV75: =IF(AU75="","",B75) -> 
A77: =A75+1 -> 6 | B77: =IF(BL!B77="","",BL!B77) -> - | Z77: =IF(OR(B77="Pas de travaux supplémentaires programmés",B77="-",SUM(AA77:AB77)>0),"",MAX(Z$15:Z76)+1) ->  | AA77: =IF(U77=Z$2,MAX(AA$15:AA76)+1,"") ->  | AB77: =IF(U77=Z$3,MAX(AB$15:AB76)+1,"") ->  | AC77: =B77 -> - | AD77: =IF(AND(SUM(AA77:AB78)=0,A77<=MAX(Récap!AC$5:AC$45)),IF(VLOOKUP(A77,Récap!AC:AI,3,FALSE)<>"",MAX(AD$65:AD76)+1,""),"") ->  | AE77: =IF(AD77<>"",A77,"") ->  | AH77: =IF(OR(Z77="",AD77<>""),"",MAX(AH$66:AH76)+1) ->  | AI77: =IF(AND($Z77<>"",AD77=""),VLOOKUP($A77,Récap!$AC:$AN,10,FALSE),"") ->  | AJ77: =IF(AND($Z77<>"",AD77=""),VLOOKUP($A77,Récap!$AC:$AN,11,FALSE),"") ->  | AS77: =IF(AND(SUM(AA77:AB78)=0,OR(W78=$AS$15,W77=$AS$15)),MAX(AS$15:AS76)+1,"") ->  | AT77: =IF(AS77="","",B77) ->  | AU77: =IF(AND(SUM(AA77:AB78)=0,OR(W77=$AU$15,W78=$AU$15)),MAX(AU$15:AU76)+1,"") ->  | AV77: =IF(AU77="","",B77) -> 
A79: =A77+1 -> 7 | B79: =IF(BL!B79="","",BL!B79) -> - | Z79: =IF(OR(B79="Pas de travaux supplémentaires programmés",B79="-",SUM(AA79:AB79)>0),"",MAX(Z$15:Z78)+1) ->  | AA79: =IF(U79=Z$2,MAX(AA$15:AA78)+1,"") ->  | AB79: =IF(U79=Z$3,MAX(AB$15:AB78)+1,"") ->  | AC79: =B79 -> - | AD79: =IF(AND(SUM(AA79:AB80)=0,A79<=MAX(Récap!AC$5:AC$45)),IF(VLOOKUP(A79,Récap!AC:AI,3,FALSE)<>"",MAX(AD$65:AD78)+1,""),"") ->  | AE79: =IF(AD79<>"",A79,"") ->  | AH79: =IF(OR(Z79="",AD79<>""),"",MAX(AH$66:AH78)+1) ->  | AI79: =IF(AND($Z79<>"",AD79=""),VLOOKUP($A79,Récap!$AC:$AN,10,FALSE),"") ->  | AJ79: =IF(AND($Z79<>"",AD79=""),VLOOKUP($A79,Récap!$AC:$AN,11,FALSE),"") ->  | AS79: =IF(AND(SUM(AA79:AB80)=0,OR(W80=$AS$15,W79=$AS$15)),MAX(AS$15:AS78)+1,"") ->  | AT79: =IF(AS79="","",B79) ->  | AU79: =IF(AND(SUM(AA79:AB80)=0,OR(W79=$AU$15,W80=$AU$15)),MAX(AU$15:AU78)+1,"") ->  | AV79: =IF(AU79="","",B79) -> 
A81: =A79+1 -> 8 | B81: =IF(BL!B81="","",BL!B81) -> - | Z81: =IF(OR(B81="Pas de travaux supplémentaires programmés",B81="-",SUM(AA81:AB81)>0),"",MAX(Z$15:Z80)+1) ->  | AA81: =IF(U81=Z$2,MAX(AA$15:AA80)+1,"") ->  | AB81: =IF(U81=Z$3,MAX(AB$15:AB80)+1,"") ->  | AC81: =B81 -> - | AD81: =IF(AND(SUM(AA81:AB82)=0,A81<=MAX(Récap!AC$5:AC$45)),IF(VLOOKUP(A81,Récap!AC:AI,3,FALSE)<>"",MAX(AD$65:AD80)+1,""),"") ->  | AE81: =IF(AD81<>"",A81,"") ->  | AH81: =IF(OR(Z81="",AD81<>""),"",MAX(AH$66:AH80)+1) ->  | AI81: =IF(AND($Z81<>"",AD81=""),VLOOKUP($A81,Récap!$AC:$AN,10,FALSE),"") ->  | AJ81: =IF(AND($Z81<>"",AD81=""),VLOOKUP($A81,Récap!$AC:$AN,11,FALSE),"") ->  | AS81: =IF(AND(SUM(AA81:AB82)=0,OR(W82=$AS$15,W81=$AS$15)),MAX(AS$15:AS80)+1,"") ->  | AT81: =IF(AS81="","",B81) ->  | AU81: =IF(AND(SUM(AA81:AB82)=0,OR(W81=$AU$15,W82=$AU$15)),MAX(AU$15:AU80)+1,"") ->  | AV81: =IF(AU81="","",B81) -> 
A83: =A81+1 -> 9 | B83: =IF(BL!B83="","",BL!B83) -> - | Z83: =IF(OR(B83="Pas de travaux supplémentaires programmés",B83="-",SUM(AA83:AB83)>0),"",MAX(Z$15:Z82)+1) ->  | AA83: =IF(U83=Z$2,MAX(AA$15:AA82)+1,"") ->  | AB83: =IF(U83=Z$3,MAX(AB$15:AB82)+1,"") ->  | AC83: =B83 -> - | AD83: =IF(AND(SUM(AA83:AB84)=0,A83<=MAX(Récap!AC$5:AC$45)),IF(VLOOKUP(A83,Récap!AC:AI,3,FALSE)<>"",MAX(AD$65:AD82)+1,""),"") ->  | AE83: =IF(AD83<>"",A83,"") ->  | AH83: =IF(OR(Z83="",AD83<>""),"",MAX(AH$66:AH82)+1) ->  | AI83: =IF(AND($Z83<>"",AD83=""),VLOOKUP($A83,Récap!$AC:$AN,10,FALSE),"") ->  | AJ83: =IF(AND($Z83<>"",AD83=""),VLOOKUP($A83,Récap!$AC:$AN,11,FALSE),"") ->  | AS83: =IF(AND(SUM(AA83:AB84)=0,OR(W84=$AS$15,W83=$AS$15)),MAX(AS$15:AS82)+1,"") ->  | AT83: =IF(AS83="","",B83) ->  | AU83: =IF(AND(SUM(AA83:AB84)=0,OR(W83=$AU$15,W84=$AU$15)),MAX(AU$15:AU82)+1,"") ->  | AV83: =IF(AU83="","",B83) -> 
A85: =A83+1 -> 10 | B85: =IF(BL!B85="","",BL!B85) -> - | Z85: =IF(OR(B85="Pas de travaux supplémentaires programmés",B85="-",SUM(AA85:AB85)>0),"",MAX(Z$15:Z84)+1) ->  | AA85: =IF(U85=Z$2,MAX(AA$15:AA84)+1,"") ->  | AB85: =IF(U85=Z$3,MAX(AB$15:AB84)+1,"") ->  | AC85: =B85 -> - | AD85: =IF(AND(SUM(AA85:AB86)=0,A85<=MAX(Récap!AC$5:AC$45)),IF(VLOOKUP(A85,Récap!AC:AI,3,FALSE)<>"",MAX(AD$65:AD84)+1,""),"") ->  | AE85: =IF(AD85<>"",A85,"") ->  | AH85: =IF(OR(Z85="",AD85<>""),"",MAX(AH$66:AH84)+1) ->  | AI85: =IF(AND($Z85<>"",AD85=""),VLOOKUP($A85,Récap!$AC:$AN,10,FALSE),"") ->  | AJ85: =IF(AND($Z85<>"",AD85=""),VLOOKUP($A85,Récap!$AC:$AN,11,FALSE),"") ->  | AS85: =IF(AND(SUM(AA85:AB86)=0,OR(W86=$AS$15,W85=$AS$15)),MAX(AS$15:AS84)+1,"") ->  | AT85: =IF(AS85="","",B85) ->  | AU85: =IF(AND(SUM(AA85:AB86)=0,OR(W85=$AU$15,W86=$AU$15)),MAX(AU$15:AU84)+1,"") ->  | AV85: =IF(AU85="","",B85) -> 
A87: =A85+1 -> 11 | B87: =IF(BL!B87="","",BL!B87) -> - | Z87: =IF(OR(B87="Pas de travaux supplémentaires programmés",B87="-",SUM(AA87:AB87)>0),"",MAX(Z$15:Z86)+1) ->  | AA87: =IF(U87=Z$2,MAX(AA$15:AA86)+1,"") ->  | AB87: =IF(U87=Z$3,MAX(AB$15:AB86)+1,"") ->  | AC87: =B87 -> - | AD87: =IF(AND(SUM(AA87:AB88)=0,A87<=MAX(Récap!AC$5:AC$45)),IF(VLOOKUP(A87,Récap!AC:AI,3,FALSE)<>"",MAX(AD$65:AD86)+1,""),"") ->  | AE87: =IF(AD87<>"",A87,"") ->  | AH87: =IF(OR(Z87="",AD87<>""),"",MAX(AH$66:AH86)+1) ->  | AI87: =IF(AND($Z87<>"",AD87=""),VLOOKUP($A87,Récap!$AC:$AN,10,FALSE),"") ->  | AJ87: =IF(AND($Z87<>"",AD87=""),VLOOKUP($A87,Récap!$AC:$AN,11,FALSE),"") ->  | AS87: =IF(AND(SUM(AA87:AB88)=0,OR(W88=$AS$15,W87=$AS$15)),MAX(AS$15:AS86)+1,"") ->  | AT87: =IF(AS87="","",B87) ->  | AU87: =IF(AND(SUM(AA87:AB88)=0,OR(W87=$AU$15,W88=$AU$15)),MAX(AU$15:AU86)+1,"") ->  | AV87: =IF(AU87="","",B87) -> 
A89: =A87+1 -> 12 | B89: =IF(BL!B89="","",BL!B89) -> - | Z89: =IF(OR(B89="Pas de travaux supplémentaires programmés",B89="-",SUM(AA89:AB89)>0),"",MAX(Z$15:Z88)+1) ->  | AA89: =IF(U89=Z$2,MAX(AA$15:AA88)+1,"") ->  | AB89: =IF(U89=Z$3,MAX(AB$15:AB88)+1,"") ->  | AC89: =B89 -> - | AD89: =IF(AND(SUM(AA89:AB90)=0,A89<=MAX(Récap!AC$5:AC$45)),IF(VLOOKUP(A89,Récap!AC:AI,3,FALSE)<>"",MAX(AD$65:AD88)+1,""),"") ->  | AE89: =IF(AD89<>"",A89,"") ->  | AH89: =IF(OR(Z89="",AD89<>""),"",MAX(AH$66:AH88)+1) ->  | AI89: =IF(AND($Z89<>"",AD89=""),VLOOKUP($A89,Récap!$AC:$AN,10,FALSE),"") ->  | AJ89: =IF(AND($Z89<>"",AD89=""),VLOOKUP($A89,Récap!$AC:$AN,11,FALSE),"") ->  | AS89: =IF(AND(SUM(AA89:AB90)=0,OR(W90=$AS$15,W89=$AS$15)),MAX(AS$15:AS88)+1,"") ->  | AT89: =IF(AS89="","",B89) ->  | AU89: =IF(AND(SUM(AA89:AB90)=0,OR(W89=$AU$15,W90=$AU$15)),MAX(AU$15:AU88)+1,"") ->  | AV89: =IF(AU89="","",B89) -> 
A91: =A89+1 -> 13 | B91: =IF(BL!B91="","",BL!B91) -> - | Z91: =IF(OR(B91="Pas de travaux supplémentaires programmés",B91="-",SUM(AA91:AB91)>0),"",MAX(Z$15:Z90)+1) ->  | AA91: =IF(U91=Z$2,MAX(AA$15:AA90)+1,"") ->  | AB91: =IF(U91=Z$3,MAX(AB$15:AB90)+1,"") ->  | AC91: =B91 -> - | AD91: =IF(AND(SUM(AA91:AB92)=0,A91<=MAX(Récap!AC$5:AC$45)),IF(VLOOKUP(A91,Récap!AC:AI,3,FALSE)<>"",MAX(AD$65:AD90)+1,""),"") ->  | AE91: =IF(AD91<>"",A91,"") ->  | AH91: =IF(OR(Z91="",AD91<>""),"",MAX(AH$66:AH90)+1) ->  | AI91: =IF(AND($Z91<>"",AD91=""),VLOOKUP($A91,Récap!$AC:$AN,10,FALSE),"") ->  | AJ91: =IF(AND($Z91<>"",AD91=""),VLOOKUP($A91,Récap!$AC:$AN,11,FALSE),"") ->  | AS91: =IF(AND(SUM(AA91:AB92)=0,OR(W92=$AS$15,W91=$AS$15)),MAX(AS$15:AS90)+1,"") ->  | AT91: =IF(AS91="","",B91) ->  | AU91: =IF(AND(SUM(AA91:AB92)=0,OR(W91=$AU$15,W92=$AU$15)),MAX(AU$15:AU90)+1,"") ->  | AV91: =IF(AU91="","",B91) -> 
A93: =A91+1 -> 14 | B93: =IF(BL!B93="","",BL!B93) -> - | Z93: =IF(OR(B93="Pas de travaux supplémentaires programmés",B93="-",SUM(AA93:AB93)>0),"",MAX(Z$15:Z92)+1) ->  | AA93: =IF(U93=Z$2,MAX(AA$15:AA92)+1,"") ->  | AB93: =IF(U93=Z$3,MAX(AB$15:AB92)+1,"") ->  | AC93: =B93 -> - | AD93: =IF(AND(SUM(AA93:AB94)=0,A93<=MAX(Récap!AC$5:AC$45)),IF(VLOOKUP(A93,Récap!AC:AI,3,FALSE)<>"",MAX(AD$65:AD92)+1,""),"") ->  | AE93: =IF(AD93<>"",A93,"") ->  | AH93: =IF(OR(Z93="",AD93<>""),"",MAX(AH$66:AH92)+1) ->  | AI93: =IF(AND($Z93<>"",AD93=""),VLOOKUP($A93,Récap!$AC:$AN,10,FALSE),"") ->  | AJ93: =IF(AND($Z93<>"",AD93=""),VLOOKUP($A93,Récap!$AC:$AN,11,FALSE),"") ->  | AS93: =IF(AND(SUM(AA93:AB94)=0,OR(W94=$AS$15,W93=$AS$15)),MAX(AS$15:AS92)+1,"") ->  | AT93: =IF(AS93="","",B93) ->  | AU93: =IF(AND(SUM(AA93:AB94)=0,OR(W93=$AU$15,W94=$AU$15)),MAX(AU$15:AU92)+1,"") ->  | AV93: =IF(AU93="","",B93) -> 
A95: =A93+1 -> 15 | B95: =IF(BL!B95="","",BL!B95) -> - | Z95: =IF(OR(B95="Pas de travaux supplémentaires programmés",B95="-",SUM(AA95:AB95)>0),"",MAX(Z$15:Z94)+1) ->  | AA95: =IF(U95=Z$2,MAX(AA$15:AA94)+1,"") ->  | AB95: =IF(U95=Z$3,MAX(AB$15:AB94)+1,"") ->  | AC95: =B95 -> - | AD95: =IF(AND(SUM(AA95:AB96)=0,A95<=MAX(Récap!AC$5:AC$45)),IF(VLOOKUP(A95,Récap!AC:AI,3,FALSE)<>"",MAX(AD$65:AD94)+1,""),"") ->  | AE95: =IF(AD95<>"",A95,"") ->  | AH95: =IF(OR(Z95="",AD95<>""),"",MAX(AH$66:AH94)+1) ->  | AI95: =IF(AND($Z95<>"",AD95=""),VLOOKUP($A95,Récap!$AC:$AN,10,FALSE),"") ->  | AJ95: =IF(AND($Z95<>"",AD95=""),VLOOKUP($A95,Récap!$AC:$AN,11,FALSE),"") ->  | AS95: =IF(AND(SUM(AA95:AB96)=0,OR(W96=$AS$15,W95=$AS$15)),MAX(AS$15:AS94)+1,"") ->  | AT95: =IF(AS95="","",B95) ->  | AU95: =IF(AND(SUM(AA95:AB96)=0,OR(W95=$AU$15,W96=$AU$15)),MAX(AU$15:AU94)+1,"") ->  | AV95: =IF(AU95="","",B95) -> 
A97: =A95+1 -> 16 | B97: =IF(BL!B97="","",BL!B97) -> - | Z97: =IF(OR(B97="Pas de travaux supplémentaires programmés",B97="-",SUM(AA97:AB97)>0),"",MAX(Z$15:Z96)+1) ->  | AA97: =IF(U97=Z$2,MAX(AA$15:AA96)+1,"") ->  | AB97: =IF(U97=Z$3,MAX(AB$15:AB96)+1,"") ->  | AC97: =B97 -> - | AD97: =IF(AND(SUM(AA97:AB98)=0,A97<=MAX(Récap!AC$5:AC$45)),IF(VLOOKUP(A97,Récap!AC:AI,3,FALSE)<>"",MAX(AD$65:AD96)+1,""),"") ->  | AE97: =IF(AD97<>"",A97,"") ->  | AH97: =IF(OR(Z97="",AD97<>""),"",MAX(AH$66:AH96)+1) ->  | AI97: =IF(AND($Z97<>"",AD97=""),VLOOKUP($A97,Récap!$AC:$AN,10,FALSE),"") ->  | AJ97: =IF(AND($Z97<>"",AD97=""),VLOOKUP($A97,Récap!$AC:$AN,11,FALSE),"") ->  | AS97: =IF(AND(SUM(AA97:AB98)=0,OR(W98=$AS$15,W97=$AS$15)),MAX(AS$15:AS96)+1,"") ->  | AT97: =IF(AS97="","",B97) ->  | AU97: =IF(AND(SUM(AA97:AB98)=0,OR(W97=$AU$15,W98=$AU$15)),MAX(AU$15:AU96)+1,"") ->  | AV97: =IF(AU97="","",B97) -> 
A99: =A97+1 -> 17 | B99: =IF(BL!B99="","",BL!B99) -> - | Z99: =IF(OR(B99="Pas de travaux supplémentaires programmés",B99="-",SUM(AA99:AB99)>0),"",MAX(Z$15:Z98)+1) ->  | AA99: =IF(U99=Z$2,MAX(AA$15:AA98)+1,"") ->  | AB99: =IF(U99=Z$3,MAX(AB$15:AB98)+1,"") ->  | AC99: =B99 -> - | AD99: =IF(AND(SUM(AA99:AB100)=0,A99<=MAX(Récap!AC$5:AC$45)),IF(VLOOKUP(A99,Récap!AC:AI,3,FALSE)<>"",MAX(AD$65:AD98)+1,""),"") ->  | AE99: =IF(AD99<>"",A99,"") ->  | AH99: =IF(OR(Z99="",AD99<>""),"",MAX(AH$66:AH98)+1) ->  | AI99: =IF(AND($Z99<>"",AD99=""),VLOOKUP($A99,Récap!$AC:$AN,10,FALSE),"") ->  | AJ99: =IF(AND($Z99<>"",AD99=""),VLOOKUP($A99,Récap!$AC:$AN,11,FALSE),"") ->  | AS99: =IF(AND(SUM(AA99:AB100)=0,OR(W100=$AS$15,W99=$AS$15)),MAX(AS$15:AS98)+1,"") ->  | AT99: =IF(AS99="","",B99) ->  | AU99: =IF(AND(SUM(AA99:AB100)=0,OR(W99=$AU$15,W100=$AU$15)),MAX(AU$15:AU98)+1,"") ->  | AV99: =IF(AU99="","",B99) -> 
A101: =A99+1 -> 18 | B101: =IF(BL!B101="","",BL!B101) -> - | Z101: =IF(OR(B101="Pas de travaux supplémentaires programmés",B101="-",SUM(AA101:AB101)>0),"",MAX(Z$15:Z100)+1) ->  | AA101: =IF(U101=Z$2,MAX(AA$15:AA100)+1,"") ->  | AB101: =IF(U101=Z$3,MAX(AB$15:AB100)+1,"") ->  | AC101: =B101 -> - | AD101: =IF(AND(SUM(AA101:AB102)=0,A101<=MAX(Récap!AC$5:AC$45)),IF(VLOOKUP(A101,Récap!AC:AI,3,FALSE)<>"",MAX(AD$65:AD100)+1,""),"") ->  | AE101: =IF(AD101<>"",A101,"") ->  | AH101: =IF(OR(Z101="",AD101<>""),"",MAX(AH$66:AH100)+1) ->  | AI101: =IF(AND($Z101<>"",AD101=""),VLOOKUP($A101,Récap!$AC:$AN,10,FALSE),"") ->  | AJ101: =IF(AND($Z101<>"",AD101=""),VLOOKUP($A101,Récap!$AC:$AN,11,FALSE),"") ->  | AS101: =IF(AND(SUM(AA101:AB102)=0,OR(W102=$AS$15,W101=$AS$15)),MAX(AS$15:AS100)+1,"") ->  | AT101: =IF(AS101="","",B101) ->  | AU101: =IF(AND(SUM(AA101:AB102)=0,OR(W101=$AU$15,W102=$AU$15)),MAX(AU$15:AU100)+1,"") ->  | AV101: =IF(AU101="","",B101) -> 
A103: =A101+1 -> 19 | B103: =IF(BL!B103="","",BL!B103) -> - | Z103: =IF(OR(B103="Pas de travaux supplémentaires programmés",B103="-",SUM(AA103:AB103)>0),"",MAX(Z$15:Z102)+1) ->  | AA103: =IF(U103=Z$2,MAX(AA$15:AA102)+1,"") ->  | AB103: =IF(U103=Z$3,MAX(AB$15:AB102)+1,"") ->  | AC103: =B103 -> - | AD103: =IF(AND(SUM(AA103:AB104)=0,A103<=MAX(Récap!AC$5:AC$45)),IF(VLOOKUP(A103,Récap!AC:AI,3,FALSE)<>"",MAX(AD$65:AD102)+1,""),"") ->  | AE103: =IF(AD103<>"",A103,"") ->  | AH103: =IF(OR(Z103="",AD103<>""),"",MAX(AH$66:AH102)+1) ->  | AI103: =IF(AND($Z103<>"",AD103=""),VLOOKUP($A103,Récap!$AC:$AN,10,FALSE),"") ->  | AJ103: =IF(AND($Z103<>"",AD103=""),VLOOKUP($A103,Récap!$AC:$AN,11,FALSE),"") ->  | AS103: =IF(AND(SUM(AA103:AB104)=0,OR(W104=$AS$15,W103=$AS$15)),MAX(AS$15:AS102)+1,"") ->  | AT103: =IF(AS103="","",B103) ->  | AU103: =IF(AND(SUM(AA103:AB104)=0,OR(W103=$AU$15,W104=$AU$15)),MAX(AU$15:AU102)+1,"") ->  | AV103: =IF(AU103="","",B103) -> 
A105: =A103+1 -> 20 | B105: =IF(BL!B105="","",BL!B105) -> - | Z105: =IF(OR(B105="Pas de travaux supplémentaires programmés",B105="-",SUM(AA105:AB105)>0),"",MAX(Z$15:Z104)+1) ->  | AA105: =IF(U105=Z$2,MAX(AA$15:AA104)+1,"") ->  | AB105: =IF(U105=Z$3,MAX(AB$15:AB104)+1,"") ->  | AC105: =B105 -> - | AD105: =IF(AND(SUM(AA105:AB106)=0,A105<=MAX(Récap!AC$5:AC$45)),IF(VLOOKUP(A105,Récap!AC:AI,3,FALSE)<>"",MAX(AD$65:AD104)+1,""),"") ->  | AE105: =IF(AD105<>"",A105,"") ->  | AH105: =IF(OR(Z105="",AD105<>""),"",MAX(AH$66:AH104)+1) ->  | AI105: =IF(AND($Z105<>"",AD105=""),VLOOKUP($A105,Récap!$AC:$AN,10,FALSE),"") ->  | AJ105: =IF(AND($Z105<>"",AD105=""),VLOOKUP($A105,Récap!$AC:$AN,11,FALSE),"") ->  | AS105: =IF(AND(SUM(AA105:AB106)=0,OR(W106=$AS$15,W105=$AS$15)),MAX(AS$15:AS104)+1,"") ->  | AT105: =IF(AS105="","",B105) ->  | AU105: =IF(AND(SUM(AA105:AB106)=0,OR(W105=$AU$15,W106=$AU$15)),MAX(AU$15:AU104)+1,"") ->  | AV105: =IF(AU105="","",B105) -> 
A107: =A105+1 -> 21 | B107: =IF(BL!B107="","",BL!B107) -> - | Z107: =IF(OR(B107="Pas de travaux supplémentaires programmés",B107="-",SUM(AA107:AB107)>0),"",MAX(Z$15:Z106)+1) ->  | AA107: =IF(U107=Z$2,MAX(AA$15:AA106)+1,"") ->  | AB107: =IF(U107=Z$3,MAX(AB$15:AB106)+1,"") ->  | AC107: =B107 -> - | AD107: =IF(AND(SUM(AA107:AB108)=0,A107<=MAX(Récap!AC$5:AC$45)),IF(VLOOKUP(A107,Récap!AC:AI,3,FALSE)<>"",MAX(AD$65:AD106)+1,""),"") ->  | AE107: =IF(AD107<>"",A107,"") ->  | AH107: =IF(OR(Z107="",AD107<>""),"",MAX(AH$66:AH106)+1) ->  | AI107: =IF(AND($Z107<>"",AD107=""),VLOOKUP($A107,Récap!$AC:$AN,10,FALSE),"") ->  | AJ107: =IF(AND($Z107<>"",AD107=""),VLOOKUP($A107,Récap!$AC:$AN,11,FALSE),"") ->  | AS107: =IF(AND(SUM(AA107:AB108)=0,OR(W108=$AS$15,W107=$AS$15)),MAX(AS$15:AS106)+1,"") ->  | AT107: =IF(AS107="","",B107) ->  | AU107: =IF(AND(SUM(AA107:AB108)=0,OR(W107=$AU$15,W108=$AU$15)),MAX(AU$15:AU106)+1,"") ->  | AV107: =IF(AU107="","",B107) -> 
A109: =A107+1 -> 22 | B109: =IF(BL!B109="","",BL!B109) -> - | Z109: =IF(OR(B109="Pas de travaux supplémentaires programmés",B109="-",SUM(AA109:AB109)>0),"",MAX(Z$15:Z108)+1) ->  | AA109: =IF(U109=Z$2,MAX(AA$15:AA108)+1,"") ->  | AB109: =IF(U109=Z$3,MAX(AB$15:AB108)+1,"") ->  | AC109: =B109 -> - | AD109: =IF(AND(SUM(AA109:AB110)=0,A109<=MAX(Récap!AC$5:AC$45)),IF(VLOOKUP(A109,Récap!AC:AI,3,FALSE)<>"",MAX(AD$65:AD108)+1,""),"") ->  | AE109: =IF(AD109<>"",A109,"") ->  | AH109: =IF(OR(Z109="",AD109<>""),"",MAX(AH$66:AH108)+1) ->  | AI109: =IF(AND($Z109<>"",AD109=""),VLOOKUP($A109,Récap!$AC:$AN,10,FALSE),"") ->  | AJ109: =IF(AND($Z109<>"",AD109=""),VLOOKUP($A109,Récap!$AC:$AN,11,FALSE),"") ->  | AS109: =IF(AND(SUM(AA109:AB110)=0,OR(W110=$AS$15,W109=$AS$15)),MAX(AS$15:AS108)+1,"") ->  | AT109: =IF(AS109="","",B109) ->  | AU109: =IF(AND(SUM(AA109:AB110)=0,OR(W109=$AU$15,W110=$AU$15)),MAX(AU$15:AU108)+1,"") ->  | AV109: =IF(AU109="","",B109) -> 
A111: =A109+1 -> 23 | B111: =IF(BL!B111="","",BL!B111) -> - | Z111: =IF(OR(B111="Pas de travaux supplémentaires programmés",B111="-",SUM(AA111:AB111)>0),"",MAX(Z$15:Z110)+1) ->  | AA111: =IF(U111=Z$2,MAX(AA$15:AA110)+1,"") ->  | AB111: =IF(U111=Z$3,MAX(AB$15:AB110)+1,"") ->  | AC111: =B111 -> - | AD111: =IF(AND(SUM(AA111:AB112)=0,A111<=MAX(Récap!AC$5:AC$45)),IF(VLOOKUP(A111,Récap!AC:AI,3,FALSE)<>"",MAX(AD$65:AD110)+1,""),"") ->  | AE111: =IF(AD111<>"",A111,"") ->  | AH111: =IF(OR(Z111="",AD111<>""),"",MAX(AH$66:AH110)+1) ->  | AI111: =IF(AND($Z111<>"",AD111=""),VLOOKUP($A111,Récap!$AC:$AN,10,FALSE),"") ->  | AJ111: =IF(AND($Z111<>"",AD111=""),VLOOKUP($A111,Récap!$AC:$AN,11,FALSE),"") ->  | AS111: =IF(AND(SUM(AA111:AB112)=0,OR(W112=$AS$15,W111=$AS$15)),MAX(AS$15:AS110)+1,"") ->  | AT111: =IF(AS111="","",B111) ->  | AU111: =IF(AND(SUM(AA111:AB112)=0,OR(W111=$AU$15,W112=$AU$15)),MAX(AU$15:AU110)+1,"") ->  | AV111: =IF(AU111="","",B111) -> 
A113: =A111+1 -> 24 | B113: =IF(BL!B113="","",BL!B113) -> - | Z113: =IF(OR(B113="Pas de travaux supplémentaires programmés",B113="-",SUM(AA113:AB113)>0),"",MAX(Z$15:Z112)+1) ->  | AA113: =IF(U113=Z$2,MAX(AA$15:AA112)+1,"") ->  | AB113: =IF(U113=Z$3,MAX(AB$15:AB112)+1,"") ->  | AC113: =B113 -> - | AD113: =IF(AND(SUM(AA113:AB114)=0,A113<=MAX(Récap!AC$5:AC$45)),IF(VLOOKUP(A113,Récap!AC:AI,3,FALSE)<>"",MAX(AD$65:AD112)+1,""),"") ->  | AE113: =IF(AD113<>"",A113,"") ->  | AH113: =IF(OR(Z113="",AD113<>""),"",MAX(AH$66:AH112)+1) ->  | AI113: =IF(AND($Z113<>"",AD113=""),VLOOKUP($A113,Récap!$AC:$AN,10,FALSE),"") ->  | AJ113: =IF(AND($Z113<>"",AD113=""),VLOOKUP($A113,Récap!$AC:$AN,11,FALSE),"") ->  | AS113: =IF(AND(SUM(AA113:AB114)=0,OR(W114=$AS$15,W113=$AS$15)),MAX(AS$15:AS112)+1,"") ->  | AT113: =IF(AS113="","",B113) ->  | AU113: =IF(AND(SUM(AA113:AB114)=0,OR(W113=$AU$15,W114=$AU$15)),MAX(AU$15:AU112)+1,"") ->  | AV113: =IF(AU113="","",B113) -> 
B115: Notes :
B116: -
B117: -
B118: -
B119: -
B120: -
B121: -
B122: =B64 -> Formulaire du 2 avril 2012 | O122: =CONCATENATE("Compte rendu du dossier de travaux ",$R$1," - Page "&SUBTOTAL(9,AW$16:AW122)&" / "&SUBTOTAL(9,AW$16:AW$354)) -> Compte rendu du dossier de travaux 01/2016/ST - Page 2 / 5 | AW122: 1
B123: Travaux supplémentaires découverts en visite | W123: Exécution
B124: Désignation | U124: Résultat
B125: Pas de travaux supplémentaires découverts en visite | Z125: =IF(OR(B125="Pas de travaux supplémentaires découverts en visite",B125="-",SUM(AA125:AB125)>0),"",MAX(Z$15:Z124)+1) ->  | AA125: =IF(U125=Z$2,MAX(AA$15:AA114)+1,"") ->  | AB125: =IF(U125=Z$3,MAX(AB$15:AB114)+1,"") ->  | AC125: =B125 -> Pas de travaux supplémentaires découverts en visite | AS125: =IF(AND(SUM(AA125:AB126)=0,OR(W126=$AS$15,W125=$AS$15)),MAX(AS$15:AS124)+1,"") ->  | AT125: =IF(AS125="","",B125) ->  | AU125: =IF(AND(SUM(AA125:AB126)=0,OR(W125=$AU$15,W126=$AU$15)),MAX(AU$15:AU124)+1,"") ->  | AV125: =IF(AU125="","",B125) -> 
B127: - | Z127: =IF(OR(B127="Pas de travaux supplémentaires découverts en visite",B127="-",SUM(AA127:AB127)>0),"",MAX(Z$15:Z126)+1) ->  | AA127: =IF(U127=Z$2,MAX(AA$15:AA127)+1,"") ->  | AB127: =IF(U127=Z$3,MAX(AB$15:AB127)+1,"") ->  | AC127: =B127 -> - | AS127: =IF(AND(SUM(AA127:AB128)=0,OR(W128=$AS$15,W127=$AS$15)),MAX(AS$15:AS126)+1,"") ->  | AT127: =IF(AS127="","",B127) ->  | AU127: =IF(AND(SUM(AA127:AB128)=0,OR(W127=$AU$15,W128=$AU$15)),MAX(AU$15:AU126)+1,"") ->  | AV127: =IF(AU127="","",B127) -> 
B129: - | Z129: =IF(OR(B129="Pas de travaux supplémentaires découverts en visite",B129="-",SUM(AA129:AB129)>0),"",MAX(Z$15:Z128)+1) ->  | AA129: =IF(U129=Z$2,MAX(AA$15:AA129)+1,"") ->  | AB129: =IF(U129=Z$3,MAX(AB$15:AB129)+1,"") ->  | AC129: =B129 -> - | AS129: =IF(AND(SUM(AA129:AB130)=0,OR(W130=$AS$15,W129=$AS$15)),MAX(AS$15:AS128)+1,"") ->  | AT129: =IF(AS129="","",B129) ->  | AU129: =IF(AND(SUM(AA129:AB130)=0,OR(W129=$AU$15,W130=$AU$15)),MAX(AU$15:AU128)+1,"") ->  | AV129: =IF(AU129="","",B129) -> 
B131: - | Z131: =IF(OR(B131="Pas de travaux supplémentaires découverts en visite",B131="-",SUM(AA131:AB131)>0),"",MAX(Z$15:Z130)+1) ->  | AA131: =IF(U131=Z$2,MAX(AA$15:AA131)+1,"") ->  | AB131: =IF(U131=Z$3,MAX(AB$15:AB131)+1,"") ->  | AC131: =B131 -> - | AS131: =IF(AND(SUM(AA131:AB132)=0,OR(W132=$AS$15,W131=$AS$15)),MAX(AS$15:AS130)+1,"") ->  | AT131: =IF(AS131="","",B131) ->  | AU131: =IF(AND(SUM(AA131:AB132)=0,OR(W131=$AU$15,W132=$AU$15)),MAX(AU$15:AU130)+1,"") ->  | AV131: =IF(AU131="","",B131) -> 
B133: - | Z133: =IF(OR(B133="Pas de travaux supplémentaires découverts en visite",B133="-",SUM(AA133:AB133)>0),"",MAX(Z$15:Z132)+1) ->  | AA133: =IF(U133=Z$2,MAX(AA$15:AA133)+1,"") ->  | AB133: =IF(U133=Z$3,MAX(AB$15:AB133)+1,"") ->  | AC133: =B133 -> - | AS133: =IF(AND(SUM(AA133:AB134)=0,OR(W134=$AS$15,W133=$AS$15)),MAX(AS$15:AS132)+1,"") ->  | AT133: =IF(AS133="","",B133) ->  | AU133: =IF(AND(SUM(AA133:AB134)=0,OR(W133=$AU$15,W134=$AU$15)),MAX(AU$15:AU132)+1,"") ->  | AV133: =IF(AU133="","",B133) -> 
B135: - | Z135: =IF(OR(B135="Pas de travaux supplémentaires découverts en visite",B135="-",SUM(AA135:AB135)>0),"",MAX(Z$15:Z134)+1) ->  | AA135: =IF(U135=Z$2,MAX(AA$15:AA135)+1,"") ->  | AB135: =IF(U135=Z$3,MAX(AB$15:AB135)+1,"") ->  | AC135: =B135 -> - | AS135: =IF(AND(SUM(AA135:AB136)=0,OR(W136=$AS$15,W135=$AS$15)),MAX(AS$15:AS134)+1,"") ->  | AT135: =IF(AS135="","",B135) ->  | AU135: =IF(AND(SUM(AA135:AB136)=0,OR(W135=$AU$15,W136=$AU$15)),MAX(AU$15:AU134)+1,"") ->  | AV135: =IF(AU135="","",B135) -> 
B137: - | Z137: =IF(OR(B137="Pas de travaux supplémentaires découverts en visite",B137="-",SUM(AA137:AB137)>0),"",MAX(Z$15:Z136)+1) ->  | AA137: =IF(U137=Z$2,MAX(AA$15:AA137)+1,"") ->  | AB137: =IF(U137=Z$3,MAX(AB$15:AB137)+1,"") ->  | AC137: =B137 -> - | AS137: =IF(AND(SUM(AA137:AB138)=0,OR(W138=$AS$15,W137=$AS$15)),MAX(AS$15:AS136)+1,"") ->  | AT137: =IF(AS137="","",B137) ->  | AU137: =IF(AND(SUM(AA137:AB138)=0,OR(W137=$AU$15,W138=$AU$15)),MAX(AU$15:AU136)+1,"") ->  | AV137: =IF(AU137="","",B137) -> 
B139: - | Z139: =IF(OR(B139="Pas de travaux supplémentaires découverts en visite",B139="-",SUM(AA139:AB139)>0),"",MAX(Z$15:Z138)+1) ->  | AA139: =IF(U139=Z$2,MAX(AA$15:AA139)+1,"") ->  | AB139: =IF(U139=Z$3,MAX(AB$15:AB139)+1,"") ->  | AC139: =B139 -> - | AS139: =IF(AND(SUM(AA139:AB140)=0,OR(W140=$AS$15,W139=$AS$15)),MAX(AS$15:AS138)+1,"") ->  | AT139: =IF(AS139="","",B139) ->  | AU139: =IF(AND(SUM(AA139:AB140)=0,OR(W139=$AU$15,W140=$AU$15)),MAX(AU$15:AU138)+1,"") ->  | AV139: =IF(AU139="","",B139) -> 
B141: - | Z141: =IF(OR(B141="Pas de travaux supplémentaires découverts en visite",B141="-",SUM(AA141:AB141)>0),"",MAX(Z$15:Z140)+1) ->  | AA141: =IF(U141=Z$2,MAX(AA$15:AA141)+1,"") ->  | AB141: =IF(U141=Z$3,MAX(AB$15:AB141)+1,"") ->  | AC141: =B141 -> - | AS141: =IF(AND(SUM(AA141:AB142)=0,OR(W142=$AS$15,W141=$AS$15)),MAX(AS$15:AS140)+1,"") ->  | AT141: =IF(AS141="","",B141) ->  | AU141: =IF(AND(SUM(AA141:AB142)=0,OR(W141=$AU$15,W142=$AU$15)),MAX(AU$15:AU140)+1,"") ->  | AV141: =IF(AU141="","",B141) -> 
B143: - | Z143: =IF(OR(B143="Pas de travaux supplémentaires découverts en visite",B143="-",SUM(AA143:AB143)>0),"",MAX(Z$15:Z142)+1) ->  | AA143: =IF(U143=Z$2,MAX(AA$15:AA143)+1,"") ->  | AB143: =IF(U143=Z$3,MAX(AB$15:AB143)+1,"") ->  | AC143: =B143 -> - | AS143: =IF(AND(SUM(AA143:AB144)=0,OR(W144=$AS$15,W143=$AS$15)),MAX(AS$15:AS142)+1,"") ->  | AT143: =IF(AS143="","",B143) ->  | AU143: =IF(AND(SUM(AA143:AB144)=0,OR(W143=$AU$15,W144=$AU$15)),MAX(AU$15:AU142)+1,"") ->  | AV143: =IF(AU143="","",B143) -> 
B145: - | Z145: =IF(OR(B145="Pas de travaux supplémentaires découverts en visite",B145="-",SUM(AA145:AB145)>0),"",MAX(Z$15:Z144)+1) ->  | AA145: =IF(U145=Z$2,MAX(AA$15:AA145)+1,"") ->  | AB145: =IF(U145=Z$3,MAX(AB$15:AB145)+1,"") ->  | AC145: =B145 -> - | AS145: =IF(AND(SUM(AA145:AB146)=0,OR(W146=$AS$15,W145=$AS$15)),MAX(AS$15:AS144)+1,"") ->  | AT145: =IF(AS145="","",B145) ->  | AU145: =IF(AND(SUM(AA145:AB146)=0,OR(W145=$AU$15,W146=$AU$15)),MAX(AU$15:AU144)+1,"") ->  | AV145: =IF(AU145="","",B145) -> 
B147: - | Z147: =IF(OR(B147="Pas de travaux supplémentaires découverts en visite",B147="-",SUM(AA147:AB147)>0),"",MAX(Z$15:Z146)+1) ->  | AA147: =IF(U147=Z$2,MAX(AA$15:AA147)+1,"") ->  | AB147: =IF(U147=Z$3,MAX(AB$15:AB147)+1,"") ->  | AC147: =B147 -> - | AS147: =IF(AND(SUM(AA147:AB148)=0,OR(W148=$AS$15,W147=$AS$15)),MAX(AS$15:AS146)+1,"") ->  | AT147: =IF(AS147="","",B147) ->  | AU147: =IF(AND(SUM(AA147:AB148)=0,OR(W147=$AU$15,W148=$AU$15)),MAX(AU$15:AU146)+1,"") ->  | AV147: =IF(AU147="","",B147) -> 
B149: - | Z149: =IF(OR(B149="Pas de travaux supplémentaires découverts en visite",B149="-",SUM(AA149:AB149)>0),"",MAX(Z$15:Z148)+1) ->  | AA149: =IF(U149=Z$2,MAX(AA$15:AA149)+1,"") ->  | AB149: =IF(U149=Z$3,MAX(AB$15:AB149)+1,"") ->  | AC149: =B149 -> - | AS149: =IF(AND(SUM(AA149:AB150)=0,OR(W150=$AS$15,W149=$AS$15)),MAX(AS$15:AS148)+1,"") ->  | AT149: =IF(AS149="","",B149) ->  | AU149: =IF(AND(SUM(AA149:AB150)=0,OR(W149=$AU$15,W150=$AU$15)),MAX(AU$15:AU148)+1,"") ->  | AV149: =IF(AU149="","",B149) -> 
B151: - | Z151: =IF(OR(B151="Pas de travaux supplémentaires découverts en visite",B151="-",SUM(AA151:AB151)>0),"",MAX(Z$15:Z150)+1) ->  | AA151: =IF(U151=Z$2,MAX(AA$15:AA151)+1,"") ->  | AB151: =IF(U151=Z$3,MAX(AB$15:AB151)+1,"") ->  | AC151: =B151 -> - | AS151: =IF(AND(SUM(AA151:AB152)=0,OR(W152=$AS$15,W151=$AS$15)),MAX(AS$15:AS150)+1,"") ->  | AT151: =IF(AS151="","",B151) ->  | AU151: =IF(AND(SUM(AA151:AB152)=0,OR(W151=$AU$15,W152=$AU$15)),MAX(AU$15:AU150)+1,"") ->  | AV151: =IF(AU151="","",B151) -> 
B153: - | Z153: =IF(OR(B153="Pas de travaux supplémentaires découverts en visite",B153="-",SUM(AA153:AB153)>0),"",MAX(Z$15:Z152)+1) ->  | AA153: =IF(U153=Z$2,MAX(AA$15:AA153)+1,"") ->  | AB153: =IF(U153=Z$3,MAX(AB$15:AB153)+1,"") ->  | AC153: =B153 -> - | AS153: =IF(AND(SUM(AA153:AB154)=0,OR(W154=$AS$15,W153=$AS$15)),MAX(AS$15:AS152)+1,"") ->  | AT153: =IF(AS153="","",B153) ->  | AU153: =IF(AND(SUM(AA153:AB154)=0,OR(W153=$AU$15,W154=$AU$15)),MAX(AU$15:AU152)+1,"") ->  | AV153: =IF(AU153="","",B153) -> 
B155: Travaux reportés
B156: Objet | M156: Motif | R156: Limite de report | X156: Val. G
A157: 1 | B157: =IF(MAX($AA$16:$AA$154)<A157,"Pas de travaux reportés",VLOOKUP(A157,$AA$16:$AC$154,3,FALSE)) -> Pas de travaux reportés | Z157: 1 | AA157: =IF(Z157="","",B157) -> Pas de travaux reportés
A159: =A157+1 -> 2 | B159: =IF(MAX($AA$16:$AA$154)<A159,"-",VLOOKUP(A159,AA16:AC154,3,FALSE)) -> - | Z159: =IF(B159="-","",MAX($Z$156:Z158)+1) ->  | AA159: =IF(Z159="","",B159) -> 
A161: =A159+1 -> 3 | B161: =IF(MAX($AA$16:$AA$154)<A161,"-",VLOOKUP(A161,AA18:AC156,3,FALSE)) -> - | Z161: =IF(B161="-","",MAX($Z$156:Z161)+1) ->  | AA161: =IF(Z161="","",B161) -> 
A163: =A161+1 -> 4 | B163: =IF(MAX($AA$16:$AA$154)<A163,"-",VLOOKUP(A163,AA20:AC158,3,FALSE)) -> - | Z163: =IF(B163="-","",MAX($Z$156:Z163)+1) ->  | AA163: =IF(Z163="","",B163) -> 
A165: =A163+1 -> 5 | B165: =IF(MAX($AA$16:$AA$154)<A165,"-",VLOOKUP(A165,AA22:AC160,3,FALSE)) -> - | Z165: =IF(B165="-","",MAX($Z$156:Z165)+1) ->  | AA165: =IF(Z165="","",B165) -> 
A167: =A165+1 -> 6 | B167: =IF(MAX($AA$16:$AA$154)<A167,"-",VLOOKUP(A167,AA24:AC162,3,FALSE)) -> - | Z167: =IF(B167="-","",MAX($Z$156:Z167)+1) ->  | AA167: =IF(Z167="","",B167) -> 
A169: =A167+1 -> 7 | B169: =IF(MAX($AA$16:$AA$154)<A169,"-",VLOOKUP(A169,AA26:AC164,3,FALSE)) -> - | Z169: =IF(B169="-","",MAX($Z$156:Z169)+1) ->  | AA169: =IF(Z169="","",B169) -> 
B171: Travaux annulés
B172: Objet | M172: Motif | X172: Val. G
A173: 1 | B173: =IF(MAX($AB$16:$AB$151)<A173,"Pas de travaux annulés",VLOOKUP(A157,$AB$16:$AC$151,2,FALSE)) -> Pas de travaux annulés | Z173: 1 | AA173: =IF(Z173="","",B173) -> Pas de travaux annulés
A175: =A173+1 -> 2 | B175: =IF(MAX($AB$16:$AB$151)<A175,"-",VLOOKUP(A175,$AB$16:$AB$151,2,FALSE)) -> - | Z175: =IF(B175="-","",MAX($Z$156:Z175)+1) ->  | AA175: =IF(Z175="","",B175) -> 
A177: =A175+1 -> 3 | B177: =IF(MAX($AB$16:$AB$151)<A177,"-",VLOOKUP(A177,$AB$16:$AB$151,2,FALSE)) -> - | Z177: =IF(B177="-","",MAX($Z$156:Z177)+1) ->  | AA177: =IF(Z177="","",B177) -> 
B180: =B122 -> Formulaire du 2 avril 2012 | O180: =CONCATENATE("Compte rendu du dossier de travaux ",$R$1," - Page "&SUBTOTAL(9,AW$16:AW180)&" / "&SUBTOTAL(9,AW$16:AW$354)) -> Compte rendu du dossier de travaux 01/2016/ST - Page 3 / 5 | AD180: =MAX(AD184:AD225) -> 0 | AW180: 1
B181: Pièces remplacées programmées
B182: Désignation | N182: P/N déposé | T182: S/N déposé
B183: P/N posé | G183: S/N posé | L183: Certificat de conformité
A184: 1 | B184: =IF(AE184="","-",AE184) -> - | N184: =IF(AF184="","-",AF184) -> - | T184: =IF(AG184="","-",AG184) -> - | AD184: =IF(B184="-","",MAX(AD$181,AD181)+1) ->  | AE184: =IF(A184>MAX($AD$67:$AD$114),"",VLOOKUP(VLOOKUP($A184,$AD$67:$AE$114,2,FALSE),Récap!$AC:$AI,5,FALSE)) ->  | AF184: =IF(A184>MAX($AD$67:$AD$114),"",VLOOKUP(VLOOKUP($A184,$AD$67:$AE$114,2,FALSE),Récap!$AC:$AI,6,FALSE)) ->  | AG184: =IF(A184>MAX($AD$67:$AD$114),"",VLOOKUP(VLOOKUP($A184,$AD$67:$AE$114,2,FALSE),Récap!$AC:$AI,7,FALSE)) ->  | AI184: =IF(AE184="","",VLOOKUP(VLOOKUP($A184,$AD$67:$AE$114,2,FALSE),Récap!$AC:$AN,10,FALSE)) ->  | AJ184: =IF(AF184="","",VLOOKUP(VLOOKUP($A184,$AD$67:$AE$114,2,FALSE),Récap!$AC:$AN,11,FALSE)) ->  | AK184: =IF(AG184="","",VLOOKUP(VLOOKUP($A184,$AD$67:$AE$114,2,FALSE),Récap!$AC:$AN,11,FALSE)) ->  | AM184: =IF(B184="-","",B185) ->  | AN184: =IF(B184="-","",G185) ->  | AO184: =IF(B184="-","",P186) ->  | AP184: =IF(B184="-","",W186) ->  | AQ184: =IF(B184="-","",G186) ->  | AR184: =IF(AE184="","",L185&" "&P185&" n° "&T185) -> 
P185: =IF(AND(B184<>"-",B184<>"Pas d'équipements remplacés"),"Emetteur","") -> 
B186: Date de fab/RG/PB : | J186: Heures depuis fab/RG/PB : | S186: Heures totales :
A187: 2 | B187: =IF(AE187="","-",AE187) -> - | N187: =IF(AF187="","-",AF187) -> - | T187: =IF(AG187="","-",AG187) -> - | AD187: =IF(B187="-","",MAX(AD$181,AD184)+1) ->  | AE187: =IF(A187>MAX($AD$67:$AD$114),"",VLOOKUP(VLOOKUP($A187,$AD$67:$AE$114,2,FALSE),Récap!$AC:$AI,5,FALSE)) ->  | AF187: =IF(A187>MAX($AD$67:$AD$114),"",VLOOKUP(VLOOKUP($A187,$AD$67:$AE$114,2,FALSE),Récap!$AC:$AI,6,FALSE)) ->  | AG187: =IF(A187>MAX($AD$67:$AD$114),"",VLOOKUP(VLOOKUP($A187,$AD$67:$AE$114,2,FALSE),Récap!$AC:$AI,7,FALSE)) ->  | AI187: =IF(AE187="","",VLOOKUP(VLOOKUP($A187,$AD$67:$AE$114,2,FALSE),Récap!$AC:$AN,10,FALSE)) ->  | AJ187: =IF(AF187="","",VLOOKUP(VLOOKUP($A187,$AD$67:$AE$114,2,FALSE),Récap!$AC:$AN,11,FALSE)) ->  | AK187: =IF(AG187="","",VLOOKUP(VLOOKUP($A187,$AD$67:$AE$114,2,FALSE),Récap!$AC:$AN,11,FALSE)) ->  | AM187: =IF(B187="-","",B188) ->  | AN187: =IF(B187="-","",G188) ->  | AO187: =IF(B187="-","",P189) ->  | AP187: =IF(B187="-","",W189) ->  | AQ187: =IF(B187="-","",G189) ->  | AR187: =IF(AE187="","",L188&" "&P188&" n° "&T188) -> 
P188: =IF(AND(B187<>"-",B187<>"Pas d'équipements remplacés"),"Emetteur","") -> 
B189: Date de fab/RG/PB : | J189: Heures depuis fab/RG/PB : | S189: Heures totales :
A190: 3 | B190: =IF(AE190="","-",AE190) -> - | N190: =IF(AF190="","-",AF190) -> - | T190: =IF(AG190="","-",AG190) -> - | AD190: =IF(B190="-","",MAX(AD$181,AD187)+1) ->  | AE190: =IF(A190>MAX($AD$67:$AD$114),"",VLOOKUP(VLOOKUP($A190,$AD$67:$AE$114,2,FALSE),Récap!$AC:$AI,5,FALSE)) ->  | AF190: =IF(A190>MAX($AD$67:$AD$114),"",VLOOKUP(VLOOKUP($A190,$AD$67:$AE$114,2,FALSE),Récap!$AC:$AI,6,FALSE)) ->  | AG190: =IF(A190>MAX($AD$67:$AD$114),"",VLOOKUP(VLOOKUP($A190,$AD$67:$AE$114,2,FALSE),Récap!$AC:$AI,7,FALSE)) ->  | AI190: =IF(AE190="","",VLOOKUP(VLOOKUP($A190,$AD$67:$AE$114,2,FALSE),Récap!$AC:$AN,10,FALSE)) ->  | AJ190: =IF(AF190="","",VLOOKUP(VLOOKUP($A190,$AD$67:$AE$114,2,FALSE),Récap!$AC:$AN,11,FALSE)) ->  | AK190: =IF(AG190="","",VLOOKUP(VLOOKUP($A190,$AD$67:$AE$114,2,FALSE),Récap!$AC:$AN,11,FALSE)) ->  | AM190: =IF(B190="-","",B191) ->  | AN190: =IF(B190="-","",G191) ->  | AO190: =IF(B190="-","",P192) ->  | AP190: =IF(B190="-","",W192) ->  | AQ190: =IF(B190="-","",G192) ->  | AR190: =IF(AE190="","",L191&" "&P191&" n° "&T191) -> 
P191: =IF(AND(B190<>"-",B190<>"Pas d'équipements remplacés"),"Emetteur","") -> 
B192: Date de fab/RG/PB : | J192: Heures depuis fab/RG/PB : | S192: Heures totales :
A193: 4 | B193: =IF(AE193="","-",AE193) -> - | N193: =IF(AF193="","-",AF193) -> - | T193: =IF(AG193="","-",AG193) -> - | AD193: =IF(B193="-","",MAX(AD$181,AD190)+1) ->  | AE193: =IF(A193>MAX($AD$67:$AD$114),"",VLOOKUP(VLOOKUP($A193,$AD$67:$AE$114,2,FALSE),Récap!$AC:$AI,5,FALSE)) ->  | AF193: =IF(A193>MAX($AD$67:$AD$114),"",VLOOKUP(VLOOKUP($A193,$AD$67:$AE$114,2,FALSE),Récap!$AC:$AI,6,FALSE)) ->  | AG193: =IF(A193>MAX($AD$67:$AD$114),"",VLOOKUP(VLOOKUP($A193,$AD$67:$AE$114,2,FALSE),Récap!$AC:$AI,7,FALSE)) ->  | AI193: =IF(AE193="","",VLOOKUP(VLOOKUP($A193,$AD$67:$AE$114,2,FALSE),Récap!$AC:$AN,10,FALSE)) ->  | AJ193: =IF(AF193="","",VLOOKUP(VLOOKUP($A193,$AD$67:$AE$114,2,FALSE),Récap!$AC:$AN,11,FALSE)) ->  | AK193: =IF(AG193="","",VLOOKUP(VLOOKUP($A193,$AD$67:$AE$114,2,FALSE),Récap!$AC:$AN,11,FALSE)) ->  | AM193: =IF(B193="-","",B194) ->  | AN193: =IF(B193="-","",G194) ->  | AO193: =IF(B193="-","",P195) ->  | AP193: =IF(B193="-","",W195) ->  | AQ193: =IF(B193="-","",G195) ->  | AR193: =IF(AE193="","",L194&" "&P194&" n° "&T194) -> 
P194: =IF(AND(B193<>"-",B193<>"Pas d'équipements remplacés"),"Emetteur","") -> 
B195: Date de fab/RG/PB : | J195: Heures depuis fab/RG/PB : | S195: Heures totales :
A196: 5 | B196: =IF(AE196="","-",AE196) -> - | N196: =IF(AF196="","-",AF196) -> - | T196: =IF(AG196="","-",AG196) -> - | AD196: =IF(B196="-","",MAX(AD$181,AD193)+1) ->  | AE196: =IF(A196>MAX($AD$67:$AD$114),"",VLOOKUP(VLOOKUP($A196,$AD$67:$AE$114,2,FALSE),Récap!$AC:$AI,5,FALSE)) ->  | AF196: =IF(A196>MAX($AD$67:$AD$114),"",VLOOKUP(VLOOKUP($A196,$AD$67:$AE$114,2,FALSE),Récap!$AC:$AI,6,FALSE)) ->  | AG196: =IF(A196>MAX($AD$67:$AD$114),"",VLOOKUP(VLOOKUP($A196,$AD$67:$AE$114,2,FALSE),Récap!$AC:$AI,7,FALSE)) ->  | AI196: =IF(AE196="","",VLOOKUP(VLOOKUP($A196,$AD$67:$AE$114,2,FALSE),Récap!$AC:$AN,10,FALSE)) ->  | AJ196: =IF(AF196="","",VLOOKUP(VLOOKUP($A196,$AD$67:$AE$114,2,FALSE),Récap!$AC:$AN,11,FALSE)) ->  | AK196: =IF(AG196="","",VLOOKUP(VLOOKUP($A196,$AD$67:$AE$114,2,FALSE),Récap!$AC:$AN,11,FALSE)) ->  | AM196: =IF(B196="-","",B197) ->  | AN196: =IF(B196="-","",G197) ->  | AO196: =IF(B196="-","",P198) ->  | AP196: =IF(B196="-","",W198) ->  | AQ196: =IF(B196="-","",G198) ->  | AR196: =IF(AE196="","",L197&" "&P197&" n° "&T197) -> 
P197: =IF(AND(B196<>"-",B196<>"Pas d'équipements remplacés"),"Emetteur","") -> 
B198: Date de fab/RG/PB : | J198: Heures depuis fab/RG/PB : | S198: Heures totales :
A199: 6 | B199: =IF(AE199="","-",AE199) -> - | N199: =IF(AF199="","-",AF199) -> - | T199: =IF(AG199="","-",AG199) -> - | AD199: =IF(B199="-","",MAX(AD$181,AD196)+1) ->  | AE199: =IF(A199>MAX($AD$67:$AD$114),"",VLOOKUP(VLOOKUP($A199,$AD$67:$AE$114,2,FALSE),Récap!$AC:$AI,5,FALSE)) ->  | AF199: =IF(A199>MAX($AD$67:$AD$114),"",VLOOKUP(VLOOKUP($A199,$AD$67:$AE$114,2,FALSE),Récap!$AC:$AI,6,FALSE)) ->  | AG199: =IF(A199>MAX($AD$67:$AD$114),"",VLOOKUP(VLOOKUP($A199,$AD$67:$AE$114,2,FALSE),Récap!$AC:$AI,7,FALSE)) ->  | AI199: =IF(AE199="","",VLOOKUP(VLOOKUP($A199,$AD$67:$AE$114,2,FALSE),Récap!$AC:$AN,10,FALSE)) ->  | AJ199: =IF(AF199="","",VLOOKUP(VLOOKUP($A199,$AD$67:$AE$114,2,FALSE),Récap!$AC:$AN,11,FALSE)) ->  | AK199: =IF(AG199="","",VLOOKUP(VLOOKUP($A199,$AD$67:$AE$114,2,FALSE),Récap!$AC:$AN,11,FALSE)) ->  | AM199: =IF(B199="-","",B200) ->  | AN199: =IF(B199="-","",G200) ->  | AO199: =IF(B199="-","",P201) ->  | AP199: =IF(B199="-","",W201) ->  | AQ199: =IF(B199="-","",G201) ->  | AR199: =IF(AE199="","",L200&" "&P200&" n° "&T200) -> 
P200: =IF(AND(B199<>"-",B199<>"Pas d'équipements remplacés"),"Emetteur","") -> 
B201: Date de fab/RG/PB : | J201: Heures depuis fab/RG/PB : | S201: Heures totales :
A202: 7 | B202: =IF(AE202="","-",AE202) -> - | N202: =IF(AF202="","-",AF202) -> - | T202: =IF(AG202="","-",AG202) -> - | AD202: =IF(B202="-","",MAX(AD$181,AD199)+1) ->  | AE202: =IF(A202>MAX($AD$67:$AD$114),"",VLOOKUP(VLOOKUP($A202,$AD$67:$AE$114,2,FALSE),Récap!$AC:$AI,5,FALSE)) ->  | AF202: =IF(A202>MAX($AD$67:$AD$114),"",VLOOKUP(VLOOKUP($A202,$AD$67:$AE$114,2,FALSE),Récap!$AC:$AI,6,FALSE)) ->  | AG202: =IF(A202>MAX($AD$67:$AD$114),"",VLOOKUP(VLOOKUP($A202,$AD$67:$AE$114,2,FALSE),Récap!$AC:$AI,7,FALSE)) ->  | AI202: =IF(AE202="","",VLOOKUP(VLOOKUP($A202,$AD$67:$AE$114,2,FALSE),Récap!$AC:$AN,10,FALSE)) ->  | AJ202: =IF(AF202="","",VLOOKUP(VLOOKUP($A202,$AD$67:$AE$114,2,FALSE),Récap!$AC:$AN,11,FALSE)) ->  | AK202: =IF(AG202="","",VLOOKUP(VLOOKUP($A202,$AD$67:$AE$114,2,FALSE),Récap!$AC:$AN,11,FALSE)) ->  | AM202: =IF(B202="-","",B203) ->  | AN202: =IF(B202="-","",G203) ->  | AO202: =IF(B202="-","",P204) ->  | AP202: =IF(B202="-","",W204) ->  | AQ202: =IF(B202="-","",G204) ->  | AR202: =IF(AE202="","",L203&" "&P203&" n° "&T203) -> 
P203: =IF(AND(B202<>"-",B202<>"Pas d'équipements remplacés"),"Emetteur","") -> 
B204: Date de fab/RG/PB : | J204: Heures depuis fab/RG/PB : | S204: Heures totales :
A205: 8 | B205: =IF(AE205="","-",AE205) -> - | N205: =IF(AF205="","-",AF205) -> - | T205: =IF(AG205="","-",AG205) -> - | AD205: =IF(B205="-","",MAX(AD$181,AD202)+1) ->  | AE205: =IF(A205>MAX($AD$67:$AD$114),"",VLOOKUP(VLOOKUP($A205,$AD$67:$AE$114,2,FALSE),Récap!$AC:$AI,5,FALSE)) ->  | AF205: =IF(A205>MAX($AD$67:$AD$114),"",VLOOKUP(VLOOKUP($A205,$AD$67:$AE$114,2,FALSE),Récap!$AC:$AI,6,FALSE)) ->  | AG205: =IF(A205>MAX($AD$67:$AD$114),"",VLOOKUP(VLOOKUP($A205,$AD$67:$AE$114,2,FALSE),Récap!$AC:$AI,7,FALSE)) ->  | AI205: =IF(AE205="","",VLOOKUP(VLOOKUP($A205,$AD$67:$AE$114,2,FALSE),Récap!$AC:$AN,10,FALSE)) ->  | AJ205: =IF(AF205="","",VLOOKUP(VLOOKUP($A205,$AD$67:$AE$114,2,FALSE),Récap!$AC:$AN,11,FALSE)) ->  | AK205: =IF(AG205="","",VLOOKUP(VLOOKUP($A205,$AD$67:$AE$114,2,FALSE),Récap!$AC:$AN,11,FALSE)) ->  | AM205: =IF(B205="-","",B206) ->  | AN205: =IF(B205="-","",G206) ->  | AO205: =IF(B205="-","",P207) ->  | AP205: =IF(B205="-","",W207) ->  | AQ205: =IF(B205="-","",G207) ->  | AR205: =IF(AE205="","",L206&" "&P206&" n° "&T206) -> 
P206: =IF(AND(B205<>"-",B205<>"Pas d'équipements remplacés"),"Emetteur","") -> 
B207: Date de fab/RG/PB : | J207: Heures depuis fab/RG/PB : | S207: Heures totales :
A208: 9 | B208: =IF(AE208="","-",AE208) -> - | N208: =IF(AF208="","-",AF208) -> - | T208: =IF(AG208="","-",AG208) -> - | AD208: =IF(B208="-","",MAX(AD$181,AD205)+1) ->  | AE208: =IF(A208>MAX($AD$67:$AD$114),"",VLOOKUP(VLOOKUP($A208,$AD$67:$AE$114,2,FALSE),Récap!$AC:$AI,5,FALSE)) ->  | AF208: =IF(A208>MAX($AD$67:$AD$114),"",VLOOKUP(VLOOKUP($A208,$AD$67:$AE$114,2,FALSE),Récap!$AC:$AI,6,FALSE)) ->  | AG208: =IF(A208>MAX($AD$67:$AD$114),"",VLOOKUP(VLOOKUP($A208,$AD$67:$AE$114,2,FALSE),Récap!$AC:$AI,7,FALSE)) ->  | AI208: =IF(AE208="","",VLOOKUP(VLOOKUP($A208,$AD$67:$AE$114,2,FALSE),Récap!$AC:$AN,10,FALSE)) ->  | AJ208: =IF(AF208="","",VLOOKUP(VLOOKUP($A208,$AD$67:$AE$114,2,FALSE),Récap!$AC:$AN,11,FALSE)) ->  | AK208: =IF(AG208="","",VLOOKUP(VLOOKUP($A208,$AD$67:$AE$114,2,FALSE),Récap!$AC:$AN,11,FALSE)) ->  | AM208: =IF(B208="-","",B209) ->  | AN208: =IF(B208="-","",G209) ->  | AO208: =IF(B208="-","",P210) ->  | AP208: =IF(B208="-","",W210) ->  | AQ208: =IF(B208="-","",G210) ->  | AR208: =IF(AE208="","",L209&" "&P209&" n° "&T209) -> 
P209: =IF(AND(B208<>"-",B208<>"Pas d'équipements remplacés"),"Emetteur","") -> 
B210: Date de fab/RG/PB : | J210: Heures depuis fab/RG/PB : | S210: Heures totales :
A211: 10 | B211: =IF(AE211="","-",AE211) -> - | N211: =IF(AF211="","-",AF211) -> - | T211: =IF(AG211="","-",AG211) -> - | AD211: =IF(B211="-","",MAX(AD$181,AD208)+1) ->  | AE211: =IF(A211>MAX($AD$67:$AD$114),"",VLOOKUP(VLOOKUP($A211,$AD$67:$AE$114,2,FALSE),Récap!$AC:$AI,5,FALSE)) ->  | AF211: =IF(A211>MAX($AD$67:$AD$114),"",VLOOKUP(VLOOKUP($A211,$AD$67:$AE$114,2,FALSE),Récap!$AC:$AI,6,FALSE)) ->  | AG211: =IF(A211>MAX($AD$67:$AD$114),"",VLOOKUP(VLOOKUP($A211,$AD$67:$AE$114,2,FALSE),Récap!$AC:$AI,7,FALSE)) ->  | AI211: =IF(AE211="","",VLOOKUP(VLOOKUP($A211,$AD$67:$AE$114,2,FALSE),Récap!$AC:$AN,10,FALSE)) ->  | AJ211: =IF(AF211="","",VLOOKUP(VLOOKUP($A211,$AD$67:$AE$114,2,FALSE),Récap!$AC:$AN,11,FALSE)) ->  | AK211: =IF(AG211="","",VLOOKUP(VLOOKUP($A211,$AD$67:$AE$114,2,FALSE),Récap!$AC:$AN,11,FALSE)) ->  | AM211: =IF(B211="-","",B212) ->  | AN211: =IF(B211="-","",G212) ->  | AO211: =IF(B211="-","",P213) ->  | AP211: =IF(B211="-","",W213) ->  | AQ211: =IF(B211="-","",G213) ->  | AR211: =IF(AE211="","",L212&" "&P212&" n° "&T212) -> 
P212: =IF(AND(B211<>"-",B211<>"Pas d'équipements remplacés"),"Emetteur","") -> 
B213: Date de fab/RG/PB : | J213: Heures depuis fab/RG/PB : | S213: Heures totales :
A214: 11 | B214: =IF(AE214="","-",AE214) -> - | N214: =IF(AF214="","-",AF214) -> - | T214: =IF(AG214="","-",AG214) -> - | AD214: =IF(B214="-","",MAX(AD$181,AD211)+1) ->  | AE214: =IF(A214>MAX($AD$67:$AD$114),"",VLOOKUP(VLOOKUP($A214,$AD$67:$AE$114,2,FALSE),Récap!$AC:$AI,5,FALSE)) ->  | AF214: =IF(A214>MAX($AD$67:$AD$114),"",VLOOKUP(VLOOKUP($A214,$AD$67:$AE$114,2,FALSE),Récap!$AC:$AI,6,FALSE)) ->  | AG214: =IF(A214>MAX($AD$67:$AD$114),"",VLOOKUP(VLOOKUP($A214,$AD$67:$AE$114,2,FALSE),Récap!$AC:$AI,7,FALSE)) ->  | AI214: =IF(AE214="","",VLOOKUP(VLOOKUP($A214,$AD$67:$AE$114,2,FALSE),Récap!$AC:$AN,10,FALSE)) ->  | AJ214: =IF(AF214="","",VLOOKUP(VLOOKUP($A214,$AD$67:$AE$114,2,FALSE),Récap!$AC:$AN,11,FALSE)) ->  | AK214: =IF(AG214="","",VLOOKUP(VLOOKUP($A214,$AD$67:$AE$114,2,FALSE),Récap!$AC:$AN,11,FALSE)) ->  | AM214: =IF(B214="-","",B215) ->  | AN214: =IF(B214="-","",G215) ->  | AO214: =IF(B214="-","",P216) ->  | AP214: =IF(B214="-","",W216) ->  | AQ214: =IF(B214="-","",G216) ->  | AR214: =IF(AE214="","",L215&" "&P215&" n° "&T215) -> 
P215: =IF(AND(B214<>"-",B214<>"Pas d'équipements remplacés"),"Emetteur","") -> 
B216: Date de fab/RG/PB : | J216: Heures depuis fab/RG/PB : | S216: Heures totales :
A217: 12 | B217: =IF(AE217="","-",AE217) -> - | N217: =IF(AF217="","-",AF217) -> - | T217: =IF(AG217="","-",AG217) -> - | AD217: =IF(B217="-","",MAX(AD$181,AD214)+1) ->  | AE217: =IF(A217>MAX($AD$67:$AD$114),"",VLOOKUP(VLOOKUP($A217,$AD$67:$AE$114,2,FALSE),Récap!$AC:$AI,5,FALSE)) ->  | AF217: =IF(A217>MAX($AD$67:$AD$114),"",VLOOKUP(VLOOKUP($A217,$AD$67:$AE$114,2,FALSE),Récap!$AC:$AI,6,FALSE)) ->  | AG217: =IF(A217>MAX($AD$67:$AD$114),"",VLOOKUP(VLOOKUP($A217,$AD$67:$AE$114,2,FALSE),Récap!$AC:$AI,7,FALSE)) ->  | AI217: =IF(AE217="","",VLOOKUP(VLOOKUP($A217,$AD$67:$AE$114,2,FALSE),Récap!$AC:$AN,10,FALSE)) ->  | AJ217: =IF(AF217="","",VLOOKUP(VLOOKUP($A217,$AD$67:$AE$114,2,FALSE),Récap!$AC:$AN,11,FALSE)) ->  | AK217: =IF(AG217="","",VLOOKUP(VLOOKUP($A217,$AD$67:$AE$114,2,FALSE),Récap!$AC:$AN,11,FALSE)) ->  | AM217: =IF(B217="-","",B218) ->  | AN217: =IF(B217="-","",G218) ->  | AO217: =IF(B217="-","",P219) ->  | AP217: =IF(B217="-","",W219) ->  | AQ217: =IF(B217="-","",G219) ->  | AR217: =IF(AE217="","",L218&" "&P218&" n° "&T218) -> 
P218: =IF(AND(B217<>"-",B217<>"Pas d'équipements remplacés"),"Emetteur","") -> 
B219: Date de fab/RG/PB : | J219: Heures depuis fab/RG/PB : | S219: Heures totales :
A220: 13 | B220: =IF(AE220="","-",AE220) -> - | N220: =IF(AF220="","-",AF220) -> - | T220: =IF(AG220="","-",AG220) -> - | AD220: =IF(B220="-","",MAX(AD$181,AD217)+1) ->  | AE220: =IF(A220>MAX($AD$67:$AD$114),"",VLOOKUP(VLOOKUP($A220,$AD$67:$AE$114,2,FALSE),Récap!$AC:$AI,5,FALSE)) ->  | AF220: =IF(A220>MAX($AD$67:$AD$114),"",VLOOKUP(VLOOKUP($A220,$AD$67:$AE$114,2,FALSE),Récap!$AC:$AI,6,FALSE)) ->  | AG220: =IF(A220>MAX($AD$67:$AD$114),"",VLOOKUP(VLOOKUP($A220,$AD$67:$AE$114,2,FALSE),Récap!$AC:$AI,7,FALSE)) ->  | AI220: =IF(AE220="","",VLOOKUP(VLOOKUP($A220,$AD$67:$AE$114,2,FALSE),Récap!$AC:$AN,10,FALSE)) ->  | AJ220: =IF(AF220="","",VLOOKUP(VLOOKUP($A220,$AD$67:$AE$114,2,FALSE),Récap!$AC:$AN,11,FALSE)) ->  | AK220: =IF(AG220="","",VLOOKUP(VLOOKUP($A220,$AD$67:$AE$114,2,FALSE),Récap!$AC:$AN,11,FALSE)) ->  | AM220: =IF(B220="-","",B221) ->  | AN220: =IF(B220="-","",G221) ->  | AO220: =IF(B220="-","",P222) ->  | AP220: =IF(B220="-","",W222) ->  | AQ220: =IF(B220="-","",G222) ->  | AR220: =IF(AE220="","",L221&" "&P221&" n° "&T221) -> 
P221: =IF(AND(B220<>"-",B220<>"Pas d'équipements remplacés"),"Emetteur","") -> 
B222: Date de fab/RG/PB : | J222: Heures depuis fab/RG/PB : | S222: Heures totales :
A223: 14 | B223: =IF(AE223="","-",AE223) -> - | N223: =IF(AF223="","-",AF223) -> - | T223: =IF(AG223="","-",AG223) -> - | AD223: =IF(B223="-","",MAX(AD$181,AD220)+1) ->  | AE223: =IF(A223>MAX($AD$67:$AD$114),"",VLOOKUP(VLOOKUP($A223,$AD$67:$AE$114,2,FALSE),Récap!$AC:$AI,5,FALSE)) ->  | AF223: =IF(A223>MAX($AD$67:$AD$114),"",VLOOKUP(VLOOKUP($A223,$AD$67:$AE$114,2,FALSE),Récap!$AC:$AI,6,FALSE)) ->  | AG223: =IF(A223>MAX($AD$67:$AD$114),"",VLOOKUP(VLOOKUP($A223,$AD$67:$AE$114,2,FALSE),Récap!$AC:$AI,7,FALSE)) ->  | AI223: =IF(AE223="","",VLOOKUP(VLOOKUP($A223,$AD$67:$AE$114,2,FALSE),Récap!$AC:$AN,10,FALSE)) ->  | AJ223: =IF(AF223="","",VLOOKUP(VLOOKUP($A223,$AD$67:$AE$114,2,FALSE),Récap!$AC:$AN,11,FALSE)) ->  | AK223: =IF(AG223="","",VLOOKUP(VLOOKUP($A223,$AD$67:$AE$114,2,FALSE),Récap!$AC:$AN,11,FALSE)) ->  | AM223: =IF(B223="-","",B224) ->  | AN223: =IF(B223="-","",G224) ->  | AO223: =IF(B223="-","",P225) ->  | AP223: =IF(B223="-","",W225) ->  | AQ223: =IF(B223="-","",G225) ->  | AR223: =IF(AE223="","",L224&" "&P224&" n° "&T224) -> 
P224: =IF(AND(B223<>"-",B223<>"Pas d'équipements remplacés"),"Emetteur","") -> 
B225: Date de fab/RG/PB : | J225: Heures depuis fab/RG/PB : | S225: Heures totales :
A226: 15 | B226: =IF(AE226="","-",AE226) -> - | N226: =IF(AF226="","-",AF226) -> - | T226: =IF(AG226="","-",AG226) -> - | AD226: =IF(B226="-","",MAX(AD$181,AD223)+1) ->  | AE226: =IF(A226>MAX($AD$67:$AD$114),"",VLOOKUP(VLOOKUP($A226,$AD$67:$AE$114,2,FALSE),Récap!$AC:$AI,5,FALSE)) ->  | AF226: =IF(A226>MAX($AD$67:$AD$114),"",VLOOKUP(VLOOKUP($A226,$AD$67:$AE$114,2,FALSE),Récap!$AC:$AI,6,FALSE)) ->  | AG226: =IF(A226>MAX($AD$67:$AD$114),"",VLOOKUP(VLOOKUP($A226,$AD$67:$AE$114,2,FALSE),Récap!$AC:$AI,7,FALSE)) ->  | AI226: =IF(AE226="","",VLOOKUP(VLOOKUP($A226,$AD$67:$AE$114,2,FALSE),Récap!$AC:$AN,10,FALSE)) ->  | AJ226: =IF(AF226="","",VLOOKUP(VLOOKUP($A226,$AD$67:$AE$114,2,FALSE),Récap!$AC:$AN,11,FALSE)) ->  | AK226: =IF(AG226="","",VLOOKUP(VLOOKUP($A226,$AD$67:$AE$114,2,FALSE),Récap!$AC:$AN,11,FALSE)) ->  | AM226: =IF(B226="-","",B227) ->  | AN226: =IF(B226="-","",G227) ->  | AO226: =IF(B226="-","",P228) ->  | AP226: =IF(B226="-","",W228) ->  | AQ226: =IF(B226="-","",G228) ->  | AR226: =IF(AE226="","",L227&" "&P227&" n° "&T227) -> 
P227: =IF(AND(B226<>"-",B226<>"Pas d'équipements remplacés"),"Emetteur","") -> 
B228: Date de fab/RG/PB : | J228: Heures depuis fab/RG/PB : | S228: Heures totales :
A229: 16 | B229: =IF(AE229="","-",AE229) -> - | N229: =IF(AF229="","-",AF229) -> - | T229: =IF(AG229="","-",AG229) -> - | AD229: =IF(B229="-","",MAX(AD$181,AD226)+1) ->  | AE229: =IF(A229>MAX($AD$67:$AD$114),"",VLOOKUP(VLOOKUP($A229,$AD$67:$AE$114,2,FALSE),Récap!$AC:$AI,5,FALSE)) ->  | AF229: =IF(A229>MAX($AD$67:$AD$114),"",VLOOKUP(VLOOKUP($A229,$AD$67:$AE$114,2,FALSE),Récap!$AC:$AI,6,FALSE)) ->  | AG229: =IF(A229>MAX($AD$67:$AD$114),"",VLOOKUP(VLOOKUP($A229,$AD$67:$AE$114,2,FALSE),Récap!$AC:$AI,7,FALSE)) ->  | AI229: =IF(AE229="","",VLOOKUP(VLOOKUP($A229,$AD$67:$AE$114,2,FALSE),Récap!$AC:$AN,10,FALSE)) ->  | AJ229: =IF(AF229="","",VLOOKUP(VLOOKUP($A229,$AD$67:$AE$114,2,FALSE),Récap!$AC:$AN,11,FALSE)) ->  | AK229: =IF(AG229="","",VLOOKUP(VLOOKUP($A229,$AD$67:$AE$114,2,FALSE),Récap!$AC:$AN,11,FALSE)) ->  | AM229: =IF(B229="-","",B230) ->  | AN229: =IF(B229="-","",G230) ->  | AO229: =IF(B229="-","",P231) ->  | AP229: =IF(B229="-","",W231) ->  | AQ229: =IF(B229="-","",G231) ->  | AR229: =IF(AE229="","",L230&" "&P230&" n° "&T230) -> 
P230: =IF(AND(B229<>"-",B229<>"Pas d'équipements remplacés"),"Emetteur","") -> 
B231: Date de fab/RG/PB : | J231: Heures depuis fab/RG/PB : | S231: Heures totales :
B232: Notes :
B233: -
B234: -
B235: -
B236: -
B237: -
B238: =B180 -> Formulaire du 2 avril 2012 | O238: =CONCATENATE("Compte rendu du dossier de travaux ",$R$1," - Page "&SUBTOTAL(9,AW$16:AW238)&" / "&SUBTOTAL(9,AW$16:AW$354)) -> Compte rendu du dossier de travaux 01/2016/ST - Page 4 / 5 | AW238: 1
B239: Pièces remplacées découvertes en visite
B240: Désignation | N240: P/N déposé | T240: S/N déposé
B241: P/N posé | G241: S/N posé | L241: Certificat de conformité
A242: =A229+1 -> 17 | B242: - | N242: - | T242: -
P243: =IF(OR(N242<>"-",T242<>"-"),"Emetteur","") -> 
B244: Date de fab/RG/PB : | J244: Heures depuis fab/RG/PB : | S244: Heures totales :
A245: =A242+1 -> 18 | B245: - | N245: - | T245: -
P246: =IF(OR(N245<>"-",T245<>"-"),"Emetteur","") -> 
B247: Date de fab/RG/PB : | J247: Heures depuis fab/RG/PB : | S247: Heures totales :
A248: =A245+1 -> 19 | B248: - | N248: - | T248: -
P249: =IF(OR(N248<>"-",T248<>"-"),"Emetteur","") -> 
B250: Date de fab/RG/PB : | J250: Heures depuis fab/RG/PB : | S250: Heures totales :
A251: =A248+1 -> 20 | B251: - | N251: - | T251: -
P252: =IF(OR(N251<>"-",T251<>"-"),"Emetteur","") -> 
B253: Date de fab/RG/PB : | J253: Heures depuis fab/RG/PB : | S253: Heures totales :
A254: =A251+1 -> 21 | B254: - | N254: - | T254: -
P255: =IF(OR(N254<>"-",T254<>"-"),"Emetteur","") -> 
B256: Date de fab/RG/PB : | J256: Heures depuis fab/RG/PB : | S256: Heures totales :
A257: =A254+1 -> 22 | B257: - | N257: - | T257: -
P258: =IF(OR(N257<>"-",T257<>"-"),"Emetteur","") -> 
B259: Date de fab/RG/PB : | J259: Heures depuis fab/RG/PB : | S259: Heures totales :
A260: =A257+1 -> 23 | B260: - | N260: - | T260: -
P261: =IF(OR(N260<>"-",T260<>"-"),"Emetteur","") -> 
B262: Date de fab/RG/PB : | J262: Heures depuis fab/RG/PB : | S262: Heures totales :
A263: =A260+1 -> 24 | B263: - | N263: - | T263: -
P264: =IF(OR(N263<>"-",T263<>"-"),"Emetteur","") -> 
B265: Date de fab/RG/PB : | J265: Heures depuis fab/RG/PB : | S265: Heures totales :
A266: =A263+1 -> 25 | B266: - | N266: - | T266: -
P267: =IF(OR(N266<>"-",T266<>"-"),"Emetteur","") -> 
B268: Date de fab/RG/PB : | J268: Heures depuis fab/RG/PB : | S268: Heures totales :
A269: =A266+1 -> 26 | B269: - | N269: - | T269: -
P270: =IF(OR(N269<>"-",T269<>"-"),"Emetteur","") -> 
... 54 more rows

Sheet Gouvernes
D1: COMPTE RENDU DE TRAVAUX N° | Q1: =IF(BL!R1="","",BL!R1) -> 01/2016/ST
D4: =CR!E4 -> Aéroclub du Gaillacois - Agrément n° FR.MF-007
A7: Débattement des gouvernes et tension des câbles
A9: Température :
A11: Document de référence :
A13: Gouvernes | Y13: =CR!B309 -> 0
G15: Débattements | P15: Tension câbles
G16: Théoriques | J16: Tolérance | M16: Relevés | P16: Théoriques | S16: Tolérance | V16: Relevés
A17: Aileron gauche | F17: H : | G17: =Récap!AQ24 -> 17°30 | J17: =Récap!AR24 -> 1 | P17: =Récap!AS24 -> 28 | S17: =Récap!AT24 -> 3
J18: =Récap!AR25 -> 1
F19: B : | G19: =Récap!AQ26 -> 17°30 | J19: =Récap!AR26 -> 1 | S19: =Récap!AT26 -> 3
J20: =Récap!AR27 -> 1
A21: Aileron droit | F21: H : | G21: =Récap!AQ28 -> 17°30 | J21: =Récap!AR28 -> 1 | P21: =Récap!AS28 -> 28 | S21: =Récap!AT28 -> 3
J22: =Récap!AR29 -> 1
F23: B : | G23: =Récap!AQ30 -> 17°30 | J23: =Récap!AR30 -> 1 | S23: =Récap!AT30 -> 3
J24: =Récap!AR31 -> 1
A25: Profondeur | F25: H : | G25: =Récap!AQ32 -> 17°30 | J25: =Récap!AR32 -> 1 | P25: =Récap!AS32 -> 28 | S25: =Récap!AT32 -> 3
J26: =Récap!AR33 -> 1
F27: B : | G27: =Récap!AQ34 -> 17°30 | J27: =Récap!AR34 -> 1 | S27: =Récap!AT34 -> 3
J28: =Récap!AR35 -> 1
A29: Direction | F29: G : | G29: =Récap!AQ36 -> 17°30 | J29: =Récap!AR36 -> 1 | P29: =Récap!AS36 -> 28 | S29: =Récap!AT36 -> 3
J30: =Récap!AR37 -> 1
F31: D : | G31: =Récap!AQ38 -> 17°30 | J31: =Récap!AR38 -> 1 | S31: =Récap!AT38 -> 3
J32: =Récap!AR39 -> 1
A33: Volets | G33: 1er cran | J33: =Récap!AR40 -> 1
G34: =Récap!AQ40 -> 17°30 | J34: =Récap!AR41 -> 1
G35: 2e cran | J35: =Récap!AR42 -> 1
G36: =Récap!AQ42 -> 17°30 | J36: =Récap!AR43 -> 1
A38: Compensateur
G40: Débattements | P40: Tension câbles
G41: Théoriques | J41: Tolérance | M41: Relevés | P41: Théoriques | S41: Tolérance | V41: Relevés
A42: Profondeur | G42: Cabré | M42: =CR!B309 -> 0
G43: =Récap!AQ44 -> 17°30 | J43: =Récap!AR44 -> 1
J44: =Récap!AR45 -> 1
G45: Piqué | M45: =CR!B311 -> Contrôles finaux
G46: =Récap!AQ46 -> 17°30 | J46: =Récap!AR46 -> 1
J47: =Récap!AR47 -> 1
A49: Commentaires
A50: -
A64: Formulaire du 15 juillet 2011 | N64: =CONCATENATE("Annexe 1 au dossier de travaux ",Q1," - Page 1 / 1") -> Annexe 1 au dossier de travaux 01/2016/ST - Page 1 / 1

Sheet Alt. TBO
A1: BON DE LANCEMENT N° | Q1: =IF(BL!R1="","",BL!R1) -> 01/2016/ST
D4: =BL!E4 -> Aéroclub du Gaillacois - Agrément n° FR-MG.0206
A7: FORMULAIRE DE TRANSMISSION DES DONNEES DE NAVIGABILITE - CONTROLES MOTEURS SELON FASCICULE OSAC G-41-11
Z10: =LEFT(CELL("nomfichier"),FIND("[",CELL("nomfichier"),1)-1)&BL!U8&" - Rapport Alternative TBO "&RIGHT(LEFT(P1,7),4)&"-"&LEFT(P1,2)&".pdf" -> F:\Mecanique\Agrement G (Manu)\F-TEST - Rapport Alternative TBO -.pdf
A11: Programme d'entretien
A12: Référence | F12: =BL!G1520 -> Aéroclub du Gaillacois
A13: Edition et révision | F13: =BL!G1521 -> Edition 2 du 28 avril 2014 - Révision 0 du 28 avr 2014
A14: Avion
A15: Constructeur | E15: =BL!F1523 -> SOCATA | K15: Modèle | N15: =BL!O1523 -> Rallye 150 ST | S15: N° de série | V15: =BL!W1523 -> 3142
A16: Immatriculation | E16: =BL!F1524 -> F-TEST | K16: ELA1 ou MTOW < 1200 kg | T16: =BL!U1524 -> Oui
A17: Moteur
A18: Constructeur | E18: =BL!F1526 -> Lycoming | K18: Modèle | N18: =BL!O1526 -> O-320-E2A | S18: N° de série | V18: =BL!W1526 -> L-19951-27A
A19: Potentiels horaires et calendaires recommandés par le constructeur | P19: =BL!Q1527 -> 2000 heures / 12 ans
A20: Date de fabrication ou de dernière Révision Générale | P20: =BL!Q1528 -> 2015-07-17
A21: Heures totales | P21: =CR!P12 -> 
A22: Heures depuis Révision Générale | P22: =CR!S12 -> 
A24: 1. CONTROLES DOCUMENTAIRES
A26: Les contrôles suivants ont été réalisés par le responsable de gestion de la navigabilité
C27: Le livret moteur est jour.
C28: Le moteur est à jour de l'entretien prévu au programme d'entretien approuvé.
C29: - Vérification du statut de l'entretien du moteur et de ses équipements (vies limites, potentiels, VP).
C30: Le moteur est à jour des consignes de navigabilité applicables.
C31: - Vérification du statut CN/AD du moteur et de ses équipements.
C32: Les éventuelles modifications / réparations du moteur et de ses équipements sont conformes à la Partie 21. (Indiquer N/A en l'absence de telles modifications / réparations).
C34: - Vérification du statut des modifications / réparations du moteur et de ses équipements.
A36: 2. HISTORIQUE UTILISATION
A38: Période couverte (minimum 100 h / 1 an) :
A39: Point | N39: Information ou référence de(s) pièce(s) jointe(s)
A40: Carburant utilisé | N40: =BL!O1548 -> 100LL
A41: Historique de la consommation d'huile dans les 10 dernières heures (conforme aux données constructeur) | N41: =BL!O1549 -> RAS
A44: Utilisation particulière de l'aéronef (cf chapitre 9.1 du guide G-41-11 : formation au pilotage, vol de nuit, IFR, baptême de l'air, travail aérien). | N44: =BL!O1552 -> - Formation au pilotage - Baptêmes de l'air
A48: Environnement d'exploitation (vol en conditions salines, vol en atmosphère poussiereuse, …) | N48: =BL!O1556 -> Non
A51: Défaut / incidents et mesures de dépannage et réparations prises | N51: =BL!O1559 -> N/A
A54: Pièces remplacées | N54: =BL!O1562 -> N/A
A57: 3. CONCLUSION
A59: Les contrôles effectués conformément au chapitre 9.2 du guide G-41-11 n'ont pas relevé d'anomalies et permettent de lancer :
A61: =BL!B1569 -> FALSE | C61: Une visite alternative TBO
A62: =BL!B1570 -> FALSE | C62: Une visite alternative TBO et une inspection anti corrosion
A64: Formulaire du 24 avril 2014 | H64: =CONCATENATE("Annexe au Bon de lancement ",P1," - Page 1 / 1") -> Annexe au Bon de lancement - Page 1 / 1
D65: COMPTE RENDU DE TRAVAUX N° | Q65: =IF(BL!R1="","",BL!R1) -> 01/2016/ST | Y65: =CR!B313 -> TRUE | Z65: =BL!AH1 -> 0
Y66: RAS | Z66: =BL!AH2 -> 0
Y67: Reporté
D68: =CR!$E$4 -> Aéroclub du Gaillacois - Agrément n° FR.MF-007 | Y68: Annulé
Y69: E/S
Y70: Voir TS
A71: Formulaire de transmission de données de navigabilité | Y71: Non acceptable
B73: Le formulaire de transmission des données de navigabilité a été transmis et les contrôles effectués par le responsable de gestion de navigabilité n'ont pas relevé d'anomalies.
A76: Taux de fuite des cylindres
B78: Le taux de fuite des cyidres est conforme aux données du constructeur (hors cadre agréé indiquer la référence, le n° d'outillage ainsi que sa date de péremption).
A81: Outil : | C81: N/A - Inspection réalisée en cadre agréé
B83: N° de cylindre | H83: 1 | L83: 2 | P83: 3 | T83: 4
B84: Pression différentielle
A86: Examen du moteur
A88: Etat externe :
B90: Contrôle | P90: Résultat
B92: Hélice : - Arbre d'entrainement (jeu excessif), - Face arrière flasque (corrosion).
B95: Carter (criques, corrosion).
B97: Peinture des cylindres (recherche de corrosion, brûlure, fuite, criques de culasse).
B100: Déflecteurs cylindre (présence, état, étanchéité).
B102: Magnétos (criques des fixations).
B104: Rampes d'allumage (état des blindages, test des rampes (claquage)).
B107: Bougies (usure, aspect, signe de consommation d'huile excessive).
B109: Joints des collecteurs d'admission (fuites).
B111: Filtre à air (état, propreté).
B113: Circuit d'échappement (criques, brûlure, fuite, fixation).
B115: Fuite ou suitement d'huile.
B117: Inspection du bâti moteur, de ses fixations (corrosion, crique, état des silentblocs).
B120: Inspection de l'alternateur et du démarreur, fixation, crique, câblage électrique, jeux.
A128: Formulaire du 30 avril 2014 | N128: =CONCATENATE("Annexe 2.1 au dossier de travaux ",CR!$R$1," - Page 1 / 2") -> Annexe 2.1 au dossier de travaux 01/2016/ST - Page 1 / 2
D129: COMPTE RENDU DE TRAVAUX N° | Q129: =CR!R1 -> 01/2016/ST | Y129: =CR!B374 -> 0 | Z129: =BL!AH62 -> 0
Y130: RAS | Z130: =BL!AH63 -> 0
Y131: Reporté
D132: =D68 -> Aéroclub du Gaillacois - Agrément n° FR.MF-007 | Y132: Annulé
Y133: E/S
Y134: Voir TS
A136: Etat interne :
B138: Contrôle | P138: Résultat
B140: Recherche de contamination par des particules métalliques (limaille) : - Filtre à huile (cartouche : inspection internet remplacement, crépine : insoection et nettoyage), - Bouchon mangétique.
B145: Dépose des cache-culbuteurs, inspection visuelle des culbuteurs, queues de soupape (jeux, dépôt de calamine au droit des guides d'échappement, brûlure).
A150: Mise en route et contrôle du bon fonctionnement des accessoires moteur
B152: Contrôle | P152: Résultat
B154: Démarreur.
B156: Alternateur ou dynamo (indicateur de charge).
B158: Pompe à essence mécanique si installée (indicateur de pression).
A161: Point fixe
B163: Paramètres | M163: Relevés | R163: T° ext. | U163: P. atm.
B165: Pression d'huile.
B167: Régime maxi (hélice à pas fixe) ou pression d'admission des gaz (hélices à pas variable).
B170: Régime ralenti (hélice à pas fixe) ou pression d'admission des gaz (hélices à pas variable).
B173: Sélection magnétos (gauche et droite) : mesure de la perte de tours. | M173: Gauche :
M175: Droite :
A192: Formulaire du 30 avril 2014 | N192: =CONCATENATE("Annexe 2.1 au dossier de travaux ",CR!$R$1," - Page 2 / 2") -> Annexe 2.1 au dossier de travaux 01/2016/ST - Page 2 / 2

Sheet Insp. corros°
D1: COMPTE RENDU DE TRAVAUX N° | Q1: =IF(BL!R1="","",BL!R1) -> 01/2016/ST | Y1: =CR!B331 -> FALSE | Z1: =BL!AH1 -> 0
Y2: RAS | Z2: =BL!AH2 -> 0
Y3: Reporté
D4: =CR!E4 -> Aéroclub du Gaillacois - Agrément n° FR.MF-007 | Y4: Annulé
Y5: E/S
Y6: Voir TS
Y7: Non acceptable
B8: Contrôle | P8: Résultat
B10: Recherche de traces de corroion, dépôts de combustion, frottements :
C12: Par examen endoscopique des cylindres | P12: Commentaires éventuels :
B13: ou
C14: Par examen visuel après dépose d'un cylindre.
B16: Inspection visuelle interne du moteur, recherche de corrosion, frottement, criques :
C18: Par examen endoscopique après dépose des magnétos | P18: Commentaires éventuels :
B19: ou
C20: Par examen visuel après dépose d'un cylindre.
A64: Formulaire du 30 avril 2014 | N64: =CONCATENATE("Annexe 2.2 au dossier de travaux ",CR!$R$1," - Page 1 / 1") -> Annexe 2.2 au dossier de travaux 01/2016/ST - Page 1 / 1

Sheet Pesée
R1: Date de fin de validité
I2: RAPPORT DE PESEE
R3: =IF(K8="","",DATE(YEAR(K8)+5,MONTH(K8),DAY(K8)-1)) -> 
I4: ET CENTRAGE AVION
C6: Arrêté du 22 novembre 1978 relatif aux certificats de navigabilité (CDN) Article 11
C7: Modèle de document à associer au CDN ou à inclure dans le manuel de vol de l’aéronef.
A8: Appareil type : | E8: =Récap!T32 -> Rallye 150 ST | I8: Date : | K8: =IF(CR!Q7="","",CR!Q7) ->  | P8: Signature :
A9: Immatriculation : | E9: =Récap!T34 -> F-TEST | I9: Lieu : | K9: Gaillac
A11: 1 | B11: PESEE
A15: D = | B15: =Récap!AP5 -> 1.71
A16: d = | B16: =Récap!AQ5 -> 0.633
A18: Mise à niveau :
A19: =Récap!AR5 -> Longeron supérieur de coque horizontal (Rail de verrière)
A22: Référence :
A23: =Récap!AS5 -> Bord d'attaque de la corde de référence située à 0,657 m derrière la cloison pare feu
A27: Masse à vide (kg) | P27: Distance du C.G.
D28: Masse lue | H28: Tare | L28: Masse nette | Q28: - aux roues principales
A29: Roue G | L29: =IF($E$9="","",D29+H29) -> 0 | Q29: D2 | R29: = | S29: p1 x D | U29: = | V29: =IF(L32=0,"",ROUND((L31*B15)/L32,3)) -> 
A30: Roue D | L30: =IF($E$9="","",D30+H30) -> 0 | S30: M
A31: Roue avant | L31: 0 | Q31: - à la référence
A32: Masse à vide mesurée (kg) | L32: =IF(SUM(L29:O31)=0,0,SUM(L29:O31)) -> 0 | Q32: x | R32: = | S32: d-D2 | U32: = | V32: =IF(L32=0,"",B16-V29) -> 
A34: 2 | B34: CORRECTIONS
A37: Valeurs lues | E37: Masse (kg) | J37: Bras de levier (m) | O37: Moment (par rapport à la référence) m.kg
E38: =IF(L32=0,"",L32) ->  | J38: =IF(L32=0,"",V32) ->  | O38: =IF(E38="","",J38*E38) -> 
O39: + | P39: =IF($A39="",0,IF(($E39*$J39)<0,0,ABS($J39*$E39))) -> 0 | T39: - | U39: =IF($A39="",0,IF(($E39*$J39)>0,0,ABS($J39*$E39))) -> 0
P40: =IF($A40="",0,IF(($E40*$J40)<0,0,ABS($J40*$E40))) -> 0 | U40: =IF($A40="",0,IF(($E40*$J40)>0,0,ABS($J40*$E40))) -> 0
P41: =IF($A41="",0,IF(($E41*$J41)<0,0,ABS($J41*$E41))) -> 0 | U41: =IF($A41="",0,IF(($E41*$J41)>0,0,ABS($J41*$E41))) -> 0
P42: 0 | U42: 0
P43: 0 | U43: 0
P44: =IF($A44="",0,IF(($E44*$J44)<0,0,ABS($J44*$E44))) -> 0 | U44: =IF($A44="",0,IF(($E44*$J44)>0,0,ABS($J44*$E44))) -> 0
A45: Résultats corrigés | E45: Masse à vide | J45: Distance du C.G. à vide | O45: Moments
E46: =IF(E9="","",SUM(E38:I44)) -> 0 | J46: =IF(J38="","",ROUND(O46/E46,3)) ->  | O46: =IF(L32=0,"",O38+SUM(P39:S44)-SUM(U39:X44)) -> 
A48: 3 | B48: LIMITES DE CENTRAGE
M51: Exemple de chargement | AA51: ="Cat "&Récap!AW11 -> Cat 0.16 | AC51: ="Cat "&Récap!AW12 -> Cat 0.16
P52: Masse | R52: Bras de levier | U52: Moment | AA52: =Récap!AV5 -> 500 | AB52: =Récap!AW5 -> 0.16 | AC52: =Récap!AV13 -> 500 | AD52: =Récap!AW13 -> 0.16 | AF52: =MIN(AB52:AB56)-0.02 -> 0.14
A53: =AA55 -> 500 | M53: Avion vide | P53: =E46 -> 0 | R53: =J46 ->  | U53: =O46 ->  | AA53: =Récap!AV6 -> 500 | AB53: =Récap!AW6 -> 0.16 | AC53: =Récap!AV14 -> 500 | AD53: =Récap!AW14 -> 0.16 | AF53: =MAX(AB52:AB56)+0.02 -> 0.18
M54: Pilote | R54: =Récap!AU5 -> 0.29 | U54: =IF(P54="","",ROUND(P54*R54,3)) ->  | AA54: =Récap!AV7 -> 500 | AB54: =Récap!AW7 -> 0.16 | AC54: =Récap!AV15 -> 500 | AD54: =Récap!AW15 -> 0.16
A55: =AA53 -> 500 | M55: PAX | O55: Av | R55: =Récap!AU5 -> 0.29 | U55: =IF(P55="","",ROUND(P55*R55,3)) ->  | AA55: =Récap!AV8 -> 500 | AB55: =Récap!AW8 -> 0.16 | AC55: =Récap!AV16 -> 500 | AD55: =Récap!AW16 -> 0.16
O56: Arr | R56: =Récap!AU6 -> 0.29 | U56: =IF(P56="","",ROUND(P56*R56,3)) ->  | AA56: =Récap!AV9 -> 500 | AB56: =Récap!AW9 -> 0.16 | AC56: =Récap!AV17 -> 500 | AD56: =Récap!AW17 -> 0.16
R57: =Récap!AU6 -> 0.29 | U57: =IF(P57="","",ROUND(P57*R57,3)) ->  | AA57: =Récap!AV10 -> 500 | AB57: =Récap!AW10 -> 0.16 | AC57: =IF(Récap!AV10="","",Récap!AV10) -> 500 | AD57: =IF(Récap!AW10="","",Récap!AW10) -> 0.16
M58: Bagages | R58: =Récap!AU7 -> 0.29 | U58: =IF(P58="","",ROUND(P58*R58,3)) ->  | AC58: Chargement
M59: Essence | O59: =VLOOKUP(E9&"-4",[1]Récap!$A$1:$P$65536,13,FALSE) -> Ailes | R59: =Récap!AU8 -> 0.29 | U59: =IF(R59="XXXX","XXXX",IF(P59="","",ROUND(P59*R59,3))) ->  | AA59: Décollage | AC59: =P61 -> 0 | AD59: =R61 -> 
O60: =VLOOKUP(E9&"-5",[1]Récap!$A$1:$P$65536,13,FALSE) -> Supp | R60: =Récap!AU9 -> 0.29 | U60: =IF(R60="XXXX","XXXX",IF(P60="","",ROUND(P60*R60,3))) ->  | AA60: Zéro fuel | AC60: =SUM(P53:Q58) -> 0 | AD60: =SUM(U53:U58)/AC60 -> 
M61: TOTAL | P61: =SUM(P53:Q60) -> 0 | R61: =IF(U61=0,"",ROUND(U61/P61,3)) ->  | U61: =SUM(U53:X60) -> 0
N62: =AA51 -> Cat 0.16 | P62: Pesée précedente | S62: Masse à vide :
C63: =AB52 -> 0.16 | F63: =AB54 -> 0.16 | K63: =AB55 -> 0.16 | N63: =AC51 -> Cat 0.16 | S63: Date :
A64: Formulaire du 30 septembre 2009 | N64: =CONCATENATE("Annexe 3 au dossier de travaux ",CR!R1," - Page 1 / 2") -> Annexe 3 au dossier de travaux 01/2016/ST - Page 1 / 2
A65: 4 | B65: INVENTAIRE
A68: Type avion | E68: =IF(E8="","",E8) -> Rallye 150 ST | I68: Immatriculation | M68: =IF(E9="","",E9) -> F-TEST | Q68: Date | T68: =IF(K8="","",K8) -> 
A70: Inventaire | Q70: Corrections éventuelles
A71: X / O | C71: Equipement | J71: Marque - Type | O71: Nombre | Q71: Masse | T71: Moment
A72: =IF(Récap!AY5="","",Récap!AY5) -> X | C72: =IF(Récap!AZ5="","",Récap!AZ5) -> Hélice | J72: =IF(Récap!BA5="","",Récap!BA5) -> Sensenisch | O72: =IF(Récap!BB5="","",Récap!BB5) -> 1 | Q72: =IF(Récap!BC5="","",Récap!BC5) ->  | T72: =IF(Récap!BD5="","",Récap!BD5) -> 
A73: =IF(Récap!AY6="","",Récap!AY6) -> X | C73: =IF(Récap!AZ6="","",Récap!AZ6) -> Hélice | J73: =IF(Récap!BA6="","",Récap!BA6) -> Sensenisch | O73: =IF(Récap!BB6="","",Récap!BB6) -> 1 | Q73: =IF(Récap!BC6="","",Récap!BC6) ->  | T73: =IF(Récap!BD6="","",Récap!BD6) -> 
A74: =IF(Récap!AY7="","",Récap!AY7) -> X | C74: =IF(Récap!AZ7="","",Récap!AZ7) -> Hélice | J74: =IF(Récap!BA7="","",Récap!BA7) -> Sensenisch | O74: =IF(Récap!BB7="","",Récap!BB7) -> 1 | Q74: =IF(Récap!BC7="","",Récap!BC7) ->  | T74: =IF(Récap!BD7="","",Récap!BD7) -> 
A75: =IF(Récap!AY8="","",Récap!AY8) -> X | C75: =IF(Récap!AZ8="","",Récap!AZ8) -> Hélice | J75: =IF(Récap!BA8="","",Récap!BA8) -> Sensenisch | O75: =IF(Récap!BB8="","",Récap!BB8) -> 1 | Q75: =IF(Récap!BC8="","",Récap!BC8) ->  | T75: =IF(Récap!BD8="","",Récap!BD8) -> 
A76: =IF(Récap!AY9="","",Récap!AY9) -> X | C76: =IF(Récap!AZ9="","",Récap!AZ9) -> Hélice | J76: =IF(Récap!BA9="","",Récap!BA9) -> Sensenisch | O76: =IF(Récap!BB9="","",Récap!BB9) -> 1 | Q76: =IF(Récap!BC9="","",Récap!BC9) ->  | T76: =IF(Récap!BD9="","",Récap!BD9) -> 
A77: =IF(Récap!AY10="","",Récap!AY10) -> X | C77: =IF(Récap!AZ10="","",Récap!AZ10) -> Hélice | J77: =IF(Récap!BA10="","",Récap!BA10) -> Sensenisch | O77: =IF(Récap!BB10="","",Récap!BB10) -> 1 | Q77: =IF(Récap!BC10="","",Récap!BC10) ->  | T77: =IF(Récap!BD10="","",Récap!BD10) -> 
A78: =IF(Récap!AY11="","",Récap!AY11) -> X | C78: =IF(Récap!AZ11="","",Récap!AZ11) -> Hélice | J78: =IF(Récap!BA11="","",Récap!BA11) -> Sensenisch | O78: =IF(Récap!BB11="","",Récap!BB11) -> 1 | Q78: =IF(Récap!BC11="","",Récap!BC11) ->  | T78: =IF(Récap!BD11="","",Récap!BD11) -> 
A79: =IF(Récap!AY12="","",Récap!AY12) -> X | C79: =IF(Récap!AZ12="","",Récap!AZ12) -> Hélice | J79: =IF(Récap!BA12="","",Récap!BA12) -> Sensenisch | O79: =IF(Récap!BB12="","",Récap!BB12) -> 1 | Q79: =IF(Récap!BC12="","",Récap!BC12) ->  | T79: =IF(Récap!BD12="","",Récap!BD12) -> 
A80: =IF(Récap!AY13="","",Récap!AY13) -> X | C80: =IF(Récap!AZ13="","",Récap!AZ13) -> Hélice | J80: =IF(Récap!BA13="","",Récap!BA13) -> Sensenisch | O80: =IF(Récap!BB13="","",Récap!BB13) -> 1 | Q80: =IF(Récap!BC13="","",Récap!BC13) ->  | T80: =IF(Récap!BD13="","",Récap!BD13) -> 
A81: =IF(Récap!AY14="","",Récap!AY14) -> X | C81: =IF(Récap!AZ14="","",Récap!AZ14) -> Hélice | J81: =IF(Récap!BA14="","",Récap!BA14) -> Sensenisch | O81: =IF(Récap!BB14="","",Récap!BB14) -> 1 | Q81: =IF(Récap!BC14="","",Récap!BC14) ->  | T81: =IF(Récap!BD14="","",Récap!BD14) -> 
A82: =IF(Récap!AY15="","",Récap!AY15) -> X | C82: =IF(Récap!AZ15="","",Récap!AZ15) -> Hélice | J82: =IF(Récap!BA15="","",Récap!BA15) -> Sensenisch | O82: =IF(Récap!BB15="","",Récap!BB15) -> 1 | Q82: =IF(Récap!BC15="","",Récap!BC15) ->  | T82: =IF(Récap!BD15="","",Récap!BD15) -> 
A83: =IF(Récap!AY16="","",Récap!AY16) -> X | C83: =IF(Récap!AZ16="","",Récap!AZ16) -> Hélice | J83: =IF(Récap!BA16="","",Récap!BA16) -> Sensenisch | O83: =IF(Récap!BB16="","",Récap!BB16) -> 1 | Q83: =IF(Récap!BC16="","",Récap!BC16) ->  | T83: =IF(Récap!BD16="","",Récap!BD16) -> 
A84: =IF(Récap!AY17="","",Récap!AY17) -> X | C84: =IF(Récap!AZ17="","",Récap!AZ17) -> Hélice | J84: =IF(Récap!BA17="","",Récap!BA17) -> Sensenisch | O84: =IF(Récap!BB17="","",Récap!BB17) -> 1 | Q84: =IF(Récap!BC17="","",Récap!BC17) ->  | T84: =IF(Récap!BD17="","",Récap!BD17) -> 
A85: =IF(Récap!AY18="","",Récap!AY18) -> X | C85: =IF(Récap!AZ18="","",Récap!AZ18) -> Hélice | J85: =IF(Récap!BA18="","",Récap!BA18) -> Sensenisch | O85: =IF(Récap!BB18="","",Récap!BB18) -> 1 | Q85: =IF(Récap!BC18="","",Récap!BC18) ->  | T85: =IF(Récap!BD18="","",Récap!BD18) -> 
A86: =IF(Récap!AY19="","",Récap!AY19) -> X | C86: =IF(Récap!AZ19="","",Récap!AZ19) -> Hélice | J86: =IF(Récap!BA19="","",Récap!BA19) -> Sensenisch | O86: =IF(Récap!BB19="","",Récap!BB19) -> 1 | Q86: =IF(Récap!BC19="","",Récap!BC19) ->  | T86: =IF(Récap!BD19="","",Récap!BD19) -> 
A87: =IF(Récap!AY20="","",Récap!AY20) -> X | C87: =IF(Récap!AZ20="","",Récap!AZ20) -> Hélice | J87: =IF(Récap!BA20="","",Récap!BA20) -> Sensenisch | O87: =IF(Récap!BB20="","",Récap!BB20) -> 1 | Q87: =IF(Récap!BC20="","",Récap!BC20) ->  | T87: =IF(Récap!BD20="","",Récap!BD20) -> 
A88: =IF(Récap!AY21="","",Récap!AY21) -> X | C88: =IF(Récap!AZ21="","",Récap!AZ21) -> Hélice | J88: =IF(Récap!BA21="","",Récap!BA21) -> Sensenisch | O88: =IF(Récap!BB21="","",Récap!BB21) -> 1 | Q88: =IF(Récap!BC21="","",Récap!BC21) ->  | T88: =IF(Récap!BD21="","",Récap!BD21) -> 
A89: =IF(Récap!AY22="","",Récap!AY22) -> X | C89: =IF(Récap!AZ22="","",Récap!AZ22) -> Hélice | J89: =IF(Récap!BA22="","",Récap!BA22) -> Sensenisch | O89: =IF(Récap!BB22="","",Récap!BB22) -> 1 | Q89: =IF(Récap!BC22="","",Récap!BC22) ->  | T89: =IF(Récap!BD22="","",Récap!BD22) -> 
A90: =IF(Récap!AY23="","",Récap!AY23) -> X | C90: =IF(Récap!AZ23="","",Récap!AZ23) -> Hélice | J90: =IF(Récap!BA23="","",Récap!BA23) -> Sensenisch | O90: =IF(Récap!BB23="","",Récap!BB23) -> 1 | Q90: =IF(Récap!BC23="","",Récap!BC23) ->  | T90: =IF(Récap!BD23="","",Récap!BD23) -> 
A91: =IF(Récap!AY24="","",Récap!AY24) -> X | C91: =IF(Récap!AZ24="","",Récap!AZ24) -> Hélice | J91: =IF(Récap!BA24="","",Récap!BA24) -> Sensenisch | O91: =IF(Récap!BB24="","",Récap!BB24) -> 1 | Q91: =IF(Récap!BC24="","",Récap!BC24) ->  | T91: =IF(Récap!BD24="","",Récap!BD24) -> 
A92: =IF(Récap!AY25="","",Récap!AY25) -> X | C92: =IF(Récap!AZ25="","",Récap!AZ25) -> Hélice | J92: =IF(Récap!BA25="","",Récap!BA25) -> Sensenisch | O92: =IF(Récap!BB25="","",Récap!BB25) -> 1 | Q92: =IF(Récap!BC25="","",Récap!BC25) ->  | T92: =IF(Récap!BD25="","",Récap!BD25) -> 
A93: =IF(Récap!AY26="","",Récap!AY26) -> X | C93: =IF(Récap!AZ26="","",Récap!AZ26) -> Hélice | J93: =IF(Récap!BA26="","",Récap!BA26) -> Sensenisch | O93: =IF(Récap!BB26="","",Récap!BB26) -> 1 | Q93: =IF(Récap!BC26="","",Récap!BC26) ->  | T93: =IF(Récap!BD26="","",Récap!BD26) -> 
A94: =IF(Récap!AY27="","",Récap!AY27) -> X | C94: =IF(Récap!AZ27="","",Récap!AZ27) -> Hélice | J94: =IF(Récap!BA27="","",Récap!BA27) -> Sensenisch | O94: =IF(Récap!BB27="","",Récap!BB27) -> 1 | Q94: =IF(Récap!BC27="","",Récap!BC27) ->  | T94: =IF(Récap!BD27="","",Récap!BD27) -> 
A95: =IF(Récap!AY28="","",Récap!AY28) -> X | C95: =IF(Récap!AZ28="","",Récap!AZ28) -> Hélice | J95: =IF(Récap!BA28="","",Récap!BA28) -> Sensenisch | O95: =IF(Récap!BB28="","",Récap!BB28) -> 1 | Q95: =IF(Récap!BC28="","",Récap!BC28) ->  | T95: =IF(Récap!BD28="","",Récap!BD28) -> 
A96: =IF(Récap!AY29="","",Récap!AY29) -> X | C96: =IF(Récap!AZ29="","",Récap!AZ29) -> Hélice | J96: =IF(Récap!BA29="","",Récap!BA29) -> Sensenisch | O96: =IF(Récap!BB29="","",Récap!BB29) -> 1 | Q96: =IF(Récap!BC29="","",Récap!BC29) ->  | T96: =IF(Récap!BD29="","",Récap!BD29) -> 
A97: =IF(Récap!AY30="","",Récap!AY30) -> X | C97: =IF(Récap!AZ30="","",Récap!AZ30) -> Hélice | J97: =IF(Récap!BA30="","",Récap!BA30) -> Sensenisch | O97: =IF(Récap!BB30="","",Récap!BB30) -> 1 | Q97: =IF(Récap!BC30="","",Récap!BC30) ->  | T97: =IF(Récap!BD30="","",Récap!BD30) -> 
A98: =IF(Récap!AY31="","",Récap!AY31) -> X | C98: =IF(Récap!AZ31="","",Récap!AZ31) -> Hélice | J98: =IF(Récap!BA31="","",Récap!BA31) -> Sensenisch | O98: =IF(Récap!BB31="","",Récap!BB31) -> 1 | Q98: =IF(Récap!BC31="","",Récap!BC31) ->  | T98: =IF(Récap!BD31="","",Récap!BD31) -> 
A99: =IF(Récap!AY32="","",Récap!AY32) -> X | C99: =IF(Récap!AZ32="","",Récap!AZ32) -> Hélice | J99: =IF(Récap!BA32="","",Récap!BA32) -> Sensenisch | O99: =IF(Récap!BB32="","",Récap!BB32) -> 1 | Q99: =IF(Récap!BC32="","",Récap!BC32) ->  | T99: =IF(Récap!BD32="","",Récap!BD32) -> 
A100: =IF(Récap!AY33="","",Récap!AY33) -> X | C100: =IF(Récap!AZ33="","",Récap!AZ33) -> Hélice | J100: =IF(Récap!BA33="","",Récap!BA33) -> Sensenisch | O100: =IF(Récap!BB33="","",Récap!BB33) -> 1 | Q100: =IF(Récap!BC33="","",Récap!BC33) ->  | T100: =IF(Récap!BD33="","",Récap!BD33) -> 
A101: =IF(Récap!AY34="","",Récap!AY34) ->  | C101: =IF(Récap!AZ34="","",Récap!AZ34) ->  | J101: =IF(Récap!BA34="","",Récap!BA34) ->  | O101: =IF(Récap!BB34="","",Récap!BB34) ->  | Q101: =IF(Récap!BC34="","",Récap!BC34) ->  | T101: =IF(Récap!BD34="","",Récap!BD34) -> 
A102: =IF(Récap!AY35="","",Récap!AY35) ->  | C102: =IF(Récap!AZ35="","",Récap!AZ35) ->  | J102: =IF(Récap!BA35="","",Récap!BA35) ->  | O102: =IF(Récap!BB35="","",Récap!BB35) ->  | Q102: =IF(Récap!BC35="","",Récap!BC35) ->  | T102: =IF(Récap!BD35="","",Récap!BD35) -> 
A103: =IF(Récap!AY36="","",Récap!AY36) ->  | C103: =IF(Récap!AZ36="","",Récap!AZ36) ->  | J103: =IF(Récap!BA36="","",Récap!BA36) ->  | O103: =IF(Récap!BB36="","",Récap!BB36) ->  | Q103: =IF(Récap!BC36="","",Récap!BC36) ->  | T103: =IF(Récap!BD36="","",Récap!BD36) -> 
A104: =IF(Récap!AY37="","",Récap!AY37) ->  | C104: =IF(Récap!AZ37="","",Récap!AZ37) ->  | J104: =IF(Récap!BA37="","",Récap!BA37) ->  | O104: =IF(Récap!BB37="","",Récap!BB37) ->  | Q104: =IF(Récap!BC37="","",Récap!BC37) ->  | T104: =IF(Récap!BD37="","",Récap!BD37) -> 
A105: =IF(Récap!AY38="","",Récap!AY38) ->  | C105: =IF(Récap!AZ38="","",Récap!AZ38) ->  | J105: =IF(Récap!BA38="","",Récap!BA38) ->  | O105: =IF(Récap!BB38="","",Récap!BB38) ->  | Q105: =IF(Récap!BC38="","",Récap!BC38) ->  | T105: =IF(Récap!BD38="","",Récap!BD38) -> 
A106: =IF(Récap!AY39="","",Récap!AY39) ->  | C106: =IF(Récap!AZ39="","",Récap!AZ39) ->  | J106: =IF(Récap!BA39="","",Récap!BA39) ->  | O106: =IF(Récap!BB39="","",Récap!BB39) ->  | Q106: =IF(Récap!BC39="","",Récap!BC39) ->  | T106: =IF(Récap!BD39="","",Récap!BD39) -> 
A107: =IF(Récap!AY40="","",Récap!AY40) ->  | C107: =IF(Récap!AZ40="","",Récap!AZ40) ->  | J107: =IF(Récap!BA40="","",Récap!BA40) ->  | O107: =IF(Récap!BB40="","",Récap!BB40) ->  | Q107: =IF(Récap!BC40="","",Récap!BC40) ->  | T107: =IF(Récap!BD40="","",Récap!BD40) -> 
A108: =IF(Récap!AY41="","",Récap!AY41) ->  | C108: =IF(Récap!AZ41="","",Récap!AZ41) ->  | J108: =IF(Récap!BA41="","",Récap!BA41) ->  | O108: =IF(Récap!BB41="","",Récap!BB41) ->  | Q108: =IF(Récap!BC41="","",Récap!BC41) ->  | T108: =IF(Récap!BD41="","",Récap!BD41) -> 
A109: =IF(Récap!AY42="","",Récap!AY42) ->  | C109: =IF(Récap!AZ42="","",Récap!AZ42) ->  | J109: =IF(Récap!BA42="","",Récap!BA42) ->  | O109: =IF(Récap!BB42="","",Récap!BB42) ->  | Q109: =IF(Récap!BC42="","",Récap!BC42) ->  | T109: =IF(Récap!BD42="","",Récap!BD42) -> 
A110: =IF(Récap!AY43="","",Récap!AY43) ->  | C110: =IF(Récap!AZ43="","",Récap!AZ43) ->  | J110: =IF(Récap!BA43="","",Récap!BA43) ->  | O110: =IF(Récap!BB43="","",Récap!BB43) ->  | Q110: =IF(Récap!BC43="","",Récap!BC43) ->  | T110: =IF(Récap!BD43="","",Récap!BD43) -> 
A111: =IF(Récap!AY44="","",Récap!AY44) ->  | C111: =IF(Récap!AZ44="","",Récap!AZ44) ->  | J111: =IF(Récap!BA44="","",Récap!BA44) ->  | O111: =IF(Récap!BB44="","",Récap!BB44) ->  | Q111: =IF(Récap!BC44="","",Récap!BC44) ->  | T111: =IF(Récap!BD44="","",Récap!BD44) -> 
A112: =IF(Récap!AY45="","",Récap!AY45) ->  | C112: =IF(Récap!AZ45="","",Récap!AZ45) ->  | J112: =IF(Récap!BA45="","",Récap!BA45) ->  | O112: =IF(Récap!BB45="","",Récap!BB45) ->  | Q112: =IF(Récap!BC45="","",Récap!BC45) ->  | T112: =IF(Récap!BD45="","",Récap!BD45) -> 
A113: =IF(Récap!AY46="","",Récap!AY46) ->  | C113: =IF(Récap!AZ46="","",Récap!AZ46) ->  | J113: =IF(Récap!BA46="","",Récap!BA46) ->  | O113: =IF(Récap!BB46="","",Récap!BB46) ->  | Q113: =IF(Récap!BC46="","",Récap!BC46) ->  | T113: =IF(Récap!BD46="","",Récap!BD46) -> 
A114: =IF(Récap!AY47="","",Récap!AY47) ->  | C114: =IF(Récap!AZ47="","",Récap!AZ47) ->  | J114: =IF(Récap!BA47="","",Récap!BA47) ->  | O114: =IF(Récap!BB47="","",Récap!BB47) ->  | Q114: =IF(Récap!BC47="","",Récap!BC47) ->  | T114: =IF(Récap!BD47="","",Récap!BD47) -> 
A115: =IF(Récap!AY48="","",Récap!AY48) ->  | C115: =IF(Récap!AZ48="","",Récap!AZ48) ->  | J115: =IF(Récap!BA48="","",Récap!BA48) ->  | O115: =IF(Récap!BB48="","",Récap!BB48) ->  | Q115: =IF(Récap!BC48="","",Récap!BC48) ->  | T115: =IF(Récap!BD48="","",Récap!BD48) -> 
A116: =IF(Récap!AY49="","",Récap!AY49) ->  | C116: =IF(Récap!AZ49="","",Récap!AZ49) ->  | J116: =IF(Récap!BA49="","",Récap!BA49) ->  | O116: =IF(Récap!BB49="","",Récap!BB49) ->  | Q116: =IF(Récap!BC49="","",Récap!BC49) ->  | T116: =IF(Récap!BD49="","",Récap!BD49) -> 
A117: =IF(Récap!AY50="","",Récap!AY50) ->  | C117: =IF(Récap!AZ50="","",Récap!AZ50) ->  | J117: =IF(Récap!BA50="","",Récap!BA50) ->  | O117: =IF(Récap!BB50="","",Récap!BB50) ->  | Q117: =IF(Récap!BC50="","",Récap!BC50) ->  | T117: =IF(Récap!BD50="","",Récap!BD50) -> 
A118: =IF(Récap!AY51="","",Récap!AY51) ->  | C118: =IF(Récap!AZ51="","",Récap!AZ51) ->  | J118: =IF(Récap!BA51="","",Récap!BA51) ->  | O118: =IF(Récap!BB51="","",Récap!BB51) ->  | Q118: =IF(Récap!BC51="","",Récap!BC51) ->  | T118: =IF(Récap!BD51="","",Récap!BD51) -> 
A119: =IF(Récap!AY52="","",Récap!AY52) ->  | C119: =IF(Récap!AZ52="","",Récap!AZ52) ->  | J119: =IF(Récap!BA52="","",Récap!BA52) ->  | O119: =IF(Récap!BB52="","",Récap!BB52) ->  | Q119: =IF(Récap!BC52="","",Récap!BC52) ->  | T119: =IF(Récap!BD52="","",Récap!BD52) -> 
A120: =IF(Récap!AY53="","",Récap!AY53) ->  | C120: =IF(Récap!AZ53="","",Récap!AZ53) ->  | J120: =IF(Récap!BA53="","",Récap!BA53) ->  | O120: =IF(Récap!BB53="","",Récap!BB53) ->  | Q120: =IF(Récap!BC53="","",Récap!BC53) ->  | T120: =IF(Récap!BD53="","",Récap!BD53) -> 
A121: =IF(Récap!AY54="","",Récap!AY54) ->  | C121: =IF(Récap!AZ54="","",Récap!AZ54) ->  | J121: =IF(Récap!BA54="","",Récap!BA54) ->  | O121: =IF(Récap!BB54="","",Récap!BB54) ->  | Q121: =IF(Récap!BC54="","",Récap!BC54) ->  | T121: =IF(Récap!BD54="","",Récap!BD54) -> 
A122: =IF(Récap!AY55="","",Récap!AY55) ->  | C122: =IF(Récap!AZ55="","",Récap!AZ55) ->  | J122: =IF(Récap!BA55="","",Récap!BA55) ->  | O122: =IF(Récap!BB55="","",Récap!BB55) ->  | Q122: =IF(Récap!BC55="","",Récap!BC55) ->  | T122: =IF(Récap!BD55="","",Récap!BD55) -> 
A123: =IF(Récap!AY56="","",Récap!AY56) ->  | C123: =IF(Récap!AZ56="","",Récap!AZ56) ->  | J123: =IF(Récap!BA56="","",Récap!BA56) ->  | O123: =IF(Récap!BB56="","",Récap!BB56) ->  | Q123: =IF(Récap!BC56="","",Récap!BC56) ->  | T123: =IF(Récap!BD56="","",Récap!BD56) -> 
C124: X | D124: Inclus dans la masse à vide
C125: O | D125: Non utilisé sur l'appareil
C126: (1) | D126: Rayer la mention inutile
A128: =A64 -> Formulaire du 30 septembre 2009 | N128: =CONCATENATE("Annexe 3 au dossier de travaux ",CR!R1," - Page 2 / 2") -> Annexe 3 au dossier de travaux 01/2016/ST - Page 2 / 2

Sheet Vol de contrôle
D1: PROGRAMME DE VOL DE CONTRÔLE COMPLET
D4: =CR!$E$4 -> Aéroclub du Gaillacois - Agrément n° FR.MF-007
A7: 1 - INFORMATIONS GENERALES
A9: Type avion | D9: =CR!H11 -> Rallye 150 ST | H9: N° de série | K9: =CR!M11 -> 3142 | M9: Immat. | O9: =BL!$U$8 -> F-TEST | Q9: Pilote
A10: Date | H10: Lieu | M10: Masse | S10: QFE
A11: Temp. ext. | G11: Vent | M11: Cond. météo.
A13: 2 - EQUIPEMENTS SPECIAUX
A14: -
A15: -
A16: -
A17: -
A18: -
A19: 3 - INSPECTION EXTERIEURE
A20: -
A21: -
A22: -
A23: -
A24: 4 - INSPECTION INTERIEURE
A26: Erreur press. d'admission | G26: Erreur altimètre | M26: Erreur variomètre | S26: Erreur température ext.
A28: Sélection réservoir d'ess. | G28: Quantité essence réservoir | M28: Pression ess. / débitmètre | S28: Volets de capot
A31: 5 - MISE EN ROUTE
A33: Pression d'huile | G33: Débit d'essence | M33: Voltmètre | S33: Coupe feu : mess. Voyant
A35: Pression d'essence | G35: Ampèremètre | M35: Dépression gyros | S35: VHF com/nav, intercom, ELT
A38: 6 - ROULAGE
A40: Freins | G40: Instruments gyroscopiques | M40: Conjugaison | S40: Pilote automatique
A43: 7 - POINT FIXE
A45: Régime | G45: Magnéto gauche | M45: Magnéto droite | S45: Magnéto gauche / droite
A46: 2000
A47: Réchauffage carburateur | G47: Température carburateur | M47: Pression d'huile | S47: Température d'huile
A50: Plein gaz - Régime :
A51: Pression d'admission | G51: Pression d'ess. / débitmètre | M51: Pression d'huile | S51: Température d'huile
A54: Ralenti - Régime :
A55: Pression d'huile | G55: Essai coupure (- 1000 tr/min)
A58: 8 - DECOLLAGE
A60: QFU | G60: Erreur compas | M60: Vitesse de décollage | S60: Régime
A62: Pression d'admission | G62: Pression d'ess. / débitmètre
A64: Formulaire du 15 juillet 2011 | N64: =CONCATENATE("Annexe 4 au dossier de travaux ",CR!R1," - Page 1 / 2") -> Annexe 4 au dossier de travaux 01/2016/ST - Page 1 / 2
A65: 9 - MONTEE
D67: VI | G67: Trim | J67: Vz | M67: Régime PG | P67: PA | S67: Press carb | V67: Press huile
A68: Début montée
A69: Fin montée
D70: T° huile | G70: T° cylindres | J70: Suction | M70: Richesse
A71: Début montée
A72: Fin montée
A74: 10 - PALIER
A76: Zp | G76: Température extérieure | M76: Volets de capot fermés
A78: Régime | G78: Température cylindres | M78: Pression d'admission | S78: Pression d'ess. / débitmètre
A79: Plein gaz | G79: Plein gaz | M79: Plein gaz | S79: Plein gaz
A80: 0.75 | G80: 0.75 | M80: 0.75 | S80: 0.75
A81: Pression d'huile | G81: Température d'huile | M81: Vi | S81: Trim de profondeur
A82: Plein gaz | G82: Plein gaz | M82: Plein gaz | S82: Plein gaz
A83: 0.75 | G83: 0.75 | M83: 0.75 | S83: 0.75
A85: Réchauffage carburateur tiré
A86: Température | G86: Admission de secours
A89: 11 - STABILITE
A91: Inclinaison | G91: Position de la bille | M91: Position du manche | S91: Trim de profondeur
A94: 12 - DECROCHAGE
I96: Vitesse de sortie des becs / alarme | Q96: Vitesse de décrochage
A97: Vs - Configuration lisse
A98: Vs1 - Configuration décollage
A99: Vs2 - Configuration atterrissage
A101: 13 - COMPORTEMENT
A103: VNE | G103: Régime | M103: Tenue verrière / capot
A105: Fonctionnement instruments | G105: Commandes | M105: Chauffage / Ventilation | S105: VHF com / Nav
A108: 14 - ARRET MOTEUR
A110: Ralenti | G110: Coupure
A113: 15 - COMMENTAIRES
A114: -
A115: -
A116: -
A117: -
A118: -
A119: -
A120: -
A121: -
A122: =A64 -> Formulaire du 15 juillet 2011 | N122: =CONCATENATE("Annexe 4 au dossier de travaux ",CR!R1," - Page 2 / 2") -> Annexe 4 au dossier de travaux 01/2016/ST - Page 2 / 2

Sheet APRS
A1: 1. | B1: Approving competent authority / Country | N1: 2. | AO1: 3. | AP1: Form tracking number | BC1: Travaux effectués | BG1: Travaux reportés
B2: Authorité compétente / Pays | N2: AIRCRAFT CERTIFICATE OF RELEASE TO SERVICE | AP2: N° de repère du formulaire | BC2: N° d'ordre | BD2: Opération | BE2: Concaténation | BG2: N° d'ordre | BH2: Opération | BI2: Concaténation
AO3: =IF(CR!R1="","",CR!R1) -> 01/2016/ST | BB3: =IF(CR!AG4="","",CR!AG4) -> - | BC3: =IF(MAX(CR!Z$15:Z$154)>0,1,"") -> 1 | BD3: =IF(BC3="","",VLOOKUP(BC3,CR!$Z$15:$AC154,4,FALSE)) -> Visite 1650 | BE3: =IF(BC3="","",BD3) -> Visite 1650 | BG3: =IF(MAX(CR!$Z$157:$Z$170)>0,1,"") -> 1 | BH3: =IF(BG3="","",VLOOKUP(BG3,CR!$Z$157:$AA$170,2,FALSE)) -> Pas de travaux reportés | BI3: =BH3 -> Pas de travaux reportés
A4: DIRECTION GENERALE DE | N4: Certificat d'approbation pour remise en service d'aéronef | BB4: =IF(CR!AG5="","",CR!AG5) -> - | BC4: =IF(MAX(BC$3:BC3)+1>MAX(CR!Z$16:Z$145),"",BC3+1) -> 2 | BD4: =IF(BC4="","",VLOOKUP(BC4,CR!$Z$15:$AC154,4,FALSE)) -> Visite | BE4: =IF(BC4="","",BE3&" ; "&BD4) -> Visite 1650 ; Visite | BG4: =IF(MAX(CR!$Z$157:$Z$170)>BG3,BG3+1,"") ->  | BH4: =IF(BG4="","",VLOOKUP(BG4,CR!$Z$149:$AA$161,2,FALSE)) ->  | BI4: =IF(BH4="","",BI3&" ; "&BH4) -> 
A5: L'AVIATION CIVILE | BB5: =IF(CR!AG6="","",CR!AG6) -> - | BC5: =IF(MAX(BC$3:BC4)+1>MAX(CR!Z$16:Z$145),"",BC4+1) -> 3 | BD5: =IF(BC5="","",VLOOKUP(BC5,CR!$Z$15:$AC154,4,FALSE)) -> CN F-1982-089 - Corrosion | BE5: =IF(BC5="","",BE4&" ; "&BD5) -> Visite 1650 ; Visite ; CN F-1982-089 - Corrosion | BG5: =IF(MAX(CR!$Z$157:$Z$170)>BG4,BG4+1,"") ->  | BH5: =IF(BG5="","",VLOOKUP(BG5,CR!$Z$149:$AA$161,2,FALSE)) ->  | BI5: =IF(BH5="","",BI4&" ; "&BH5) -> 
A6: FRANCE | BC6: =IF(MAX(BC$3:BC5)+1>MAX(CR!Z$16:Z$145),"",BC5+1) -> 4 | BD6: =IF(BC6="","",VLOOKUP(BC6,CR!$Z$15:$AC154,4,FALSE)) -> CN F-1986-160 R1 - Stabilisateur horizontal | BE6: Visite 1650 ; Visite ; CN F-1982-089 - Corrosion ; CN F-1986-160 R1 - Stabilisateur horizontal | BG6: =IF(MAX(CR!$Z$157:$Z$170)>BG5,BG5+1,"") ->  | BH6: =IF(BG6="","",VLOOKUP(BG6,CR!$Z$149:$AA$161,2,FALSE)) -> 
A7: 4. | B7: Approval organisation name and address | R7: Aéro-club du Gaillacois | AO7: 5. | AP7: Work order / Contract / Invoice | BC7: =IF(MAX(BC$3:BC6)+1>MAX(CR!Z$16:Z$145),"",BC6+1) -> 5 | BD7: =IF(BC7="","",VLOOKUP(BC7,CR!$Z$15:$AC154,4,FALSE)) -> CN F-2000-174 - Manilles de commandes de gouvernes de profondeur et de direction - 100 h. | BE7: Visite 1650 ; Visite ; CN F-1982-089 - Corrosion ; CN F-1986-160 R1 - Stabilisateur horizontal ; CN F-2000-174 - Manilles de commandes de gouvernes de profondeur et de direction - 100 h. | BG7: =IF(MAX(CR!$Z$157:$Z$170)>BG6,BG6+1,"") ->  | BH7: =IF(BG7="","",VLOOKUP(BG7,CR!$Z$149:$AA$161,2,FALSE)) -> 
B8: Nom et adresse de l'organisme agréé | R8: Aérodrome de Gaillac | AP8: Bon de commande / Contrat / Facture | BC8: =IF(MAX(BC$3:BC7)+1>MAX(CR!Z$16:Z$145),"",BC7+1) -> 6 | BD8: =IF(BC8="","",VLOOKUP(BC8,CR!$Z$15:$AC154,4,FALSE)) -> CN F-2001-400 - Bâti moteur | BE8: Visite 1650 ; Visite ; CN F-1982-089 - Corrosion ; CN F-1986-160 R1 - Stabilisateur horizontal ; CN F-2000-174 - Manilles de commandes de gouvernes de profondeur et de direction - 100 h. ; CN F-2001-400 - Bâti moteur | BG8: =IF(MAX(CR!$Z$157:$Z$170)>BG7,BG7+1,"") ->  | BH8: =IF(BG8="","",VLOOKUP(BG8,CR!$Z$149:$AA$161,2,FALSE)) -> 
R9: 81600 Gaillac | AO9: =IF(BL!R1="","",BL!R1) -> 01/2016/ST | BC9: =IF(MAX(BC$3:BC8)+1>MAX(CR!Z$16:Z$145),"",BC8+1) -> 7 | BD9: =IF(BC9="","",VLOOKUP(BC9,CR!$Z$15:$AC154,4,FALSE)) -> CN 2015-0203 - Axe de roue avant et vis de fixation - Inspection | BE9: Visite 1650 ; Visite ; CN F-1982-089 - Corrosion ; CN F-1986-160 R1 - Stabilisateur horizontal ; CN F-2000-174 - Manilles de commandes de gouvernes de profondeur et de direction - 100 h. ; CN F-2001-400 - Bâti moteur ; CN 2015-0203 - Axe de roue avant et vis de fixation - Inspection | BG9: =IF(MAX(CR!$Z$157:$Z$170)>BG8,BG8+1,"") ->  | BH9: =IF(BG9="","",VLOOKUP(BG9,CR!$Z$149:$AA$161,2,FALSE)) -> 
BC10: =IF(MAX(BC$3:BC9)+1>MAX(CR!Z$16:Z$145),"",BC9+1) -> 8 | BD10: =IF(BC10="","",VLOOKUP(BC10,CR!$Z$15:$AC154,4,FALSE)) -> CN F-1977-168 - Interrupteurs d’allumage Bendix | BE10: Visite 1650 ; Visite ; CN F-1982-089 - Corrosion ; CN F-1986-160 R1 - Stabilisateur horizontal ; CN F-2000-174 - Manilles de commandes de gouvernes de profondeur et de direction - 100 h. ; CN F-2001-400 - Bâti moteur ; CN 2015-0203 - Axe de roue avant et vis de fixation - Inspection ; CN F-1977-168 - Interrupteurs d’allumage Bendix
A11: 6. | B11: Model | F11: 7. | G11: Registration | L11: 8. | M11: Aircraft serial number | T11: 9. | U11: Engine serial number | AD11: 10. | AE11: Propeller serial number | AO11: 11. | AP11: Operator | BC11: =IF(MAX(BC$3:BC10)+1>MAX(CR!Z$16:Z$145),"",BC10+1) -> 9 | BD11: =IF(BC11="","",VLOOKUP(BC11,CR!$Z$15:$AC154,4,FALSE)) -> Balise de détresse - Test fonctionnel | BE11: Visite 1650 ; Visite ; CN F-1982-089 - Corrosion ; CN F-1986-160 R1 - Stabilisateur horizontal ; CN F-2000-174 - Manilles de commandes de gouvernes de profondeur et de direction - 100 h. ; CN F-2001-400 - Bâti moteur ; CN 2015-0203 - Axe de roue avant et vis de fixation - Inspection ; CN F-1977-168 - Interrupteurs d’allumage Bendix ; Balise de détresse - Test fonctionnel
B12: Type | G12: Immatriculation | M12: N° de série | U12: N° de série du moteur | AE12: N° de série de l'hélice | AP12: Exploitant | BC12: =IF(MAX(BC$3:BC11)+1>MAX(CR!Z$16:Z$145),"",BC11+1) -> 10 | BD12: =IF(BC12="","",VLOOKUP(BC12,CR!$Z$15:$AC154,4,FALSE)) -> Magnéto gauche - Inspection 500 h | BE12: Visite 1650 ; Visite ; CN F-1982-089 - Corrosion ; CN F-1986-160 R1 - Stabilisateur horizontal ; CN F-2000-174 - Manilles de commandes de gouvernes de profondeur et de direction - 100 h. ; CN F-2001-400 - Bâti moteur ; CN 2015-0203 - Axe de roue avant et vis de fixation - Inspection ; CN F-1977-168 - Interrupteurs d’allumage Bendix ; Balise de détresse - Test fonctionnel ; Magnéto gauche - Inspection 500 h
A13: =IF(BL!I8="","",BL!I8) -> Rallye 150 ST | F13: =IF(BL!U8="","",BL!U8) -> F-TEST | L13: =IF(BL!P8="","",BL!P8) -> 3142 | T13: =IF(CR!M12="","",CR!M12) -> L-19951-27A | AD13: =IF(CR!M13="","",CR!M13) -> A-54663 | AO13: Aéroclub du Gaillacois | BC13: =IF(MAX(BC$3:BC12)+1>MAX(CR!Z$16:Z$145),"",BC12+1) -> 11 | BD13: =IF(BC13="","",VLOOKUP(BC13,CR!$Z$15:$AC154,4,FALSE)) -> Magnéto droite - Inspection 500 h | BE13: Visite 1650 ; Visite ; CN F-1982-089 - Corrosion ; CN F-1986-160 R1 - Stabilisateur horizontal ; CN F-2000-174 - Manilles de commandes de gouvernes de profondeur et de direction - 100 h. ; CN F-2001-400 - Bâti moteur ; CN 2015-0203 - Axe de roue avant et vis de fixation - Inspection ; CN F-1977-168 - Interrupteurs d’allumage Bendix ; Balise de détresse - Test fonctionnel ; Magnéto gauche - Inspection 500 h ; Magnéto droite - Inspection 500 h
BC14: =IF(MAX(BC$3:BC13)+1>MAX(CR!Z$16:Z$145),"",BC13+1) -> 12 | BD14: =IF(BC14="","",VLOOKUP(BC14,CR!$Z$15:$AC154,4,FALSE)) -> Carburateur - BS Lycoming n° 366A | BE14: Visite 1650 ; Visite ; CN F-1982-089 - Corrosion ; CN F-1986-160 R1 - Stabilisateur horizontal ; CN F-2000-174 - Manilles de commandes de gouvernes de profondeur et de direction - 100 h. ; CN F-2001-400 - Bâti moteur ; CN 2015-0203 - Axe de roue avant et vis de fixation - Inspection ; CN F-1977-168 - Interrupteurs d’allumage Bendix ; Balise de détresse - Test fonctionnel ; Magnéto gauche - Inspection 500 h ; Magnéto droite - Inspection 500 h ; Carburateur - BS Lycoming n° 366A
A15: 12. | B15: Status / Work performed - Etat / Travaux effectués | BC15: =IF(MAX(BC$3:BC14)+1>MAX(CR!Z$16:Z$145),"",BC14+1) ->  | BD15: =IF(BC15="","",VLOOKUP(BC15,CR!$Z$15:$AC154,4,FALSE)) -> 
A16: =IF(ISERROR(VLOOKUP(MAX(BC:BC),BC:BE,3,FALSE)),"",VLOOKUP(MAX(BC:BC),BC:BE,3,FALSE)&".") -> Visite 1650 ; Visite ; CN F-1982-089 - Corrosion ; CN F-1986-160 R1 - Stabilisateur horizontal ; CN F-2000-174 - Manilles de commandes de gouvernes de profondeur et de direction - 100 h. ; CN F-2001-400 - Bâti moteur ; CN 2015-0203 - Axe de roue avant et vis de fixation - Inspection ; CN F-1977-168 - Interrupteurs d’allumage Bendix ; Balise de détresse - Test fonctionnel ; Magnéto gauche - Inspection 500 h ; Magnéto droite - Inspection 500 h ; Carburateur - BS Lycoming n° 366A. | BC16: =IF(MAX(BC$3:BC15)+1>MAX(CR!Z$16:Z$145),"",BC15+1) ->  | BD16: =IF(BC16="","",VLOOKUP(BC16,CR!$Z$15:$AC154,4,FALSE)) -> 
BC17: =IF(MAX(BC$3:BC16)+1>MAX(CR!Z$16:Z$145),"",BC16+1) ->  | BD17: =IF(BC17="","",VLOOKUP(BC17,CR!$Z$15:$AC154,4,FALSE)) -> 
BC18: =IF(MAX(BC$3:BC17)+1>MAX(CR!Z$16:Z$145),"",BC17+1) ->  | BD18: =IF(BC18="","",VLOOKUP(BC18,CR!$Z$15:$AC154,4,FALSE)) -> 
BC19: =IF(MAX(BC$3:BC18)+1>MAX(CR!Z$16:Z$145),"",BC18+1) ->  | BD19: =IF(BC19="","",VLOOKUP(BC19,CR!$Z$15:$AC154,4,FALSE)) -> 
BC20: =IF(MAX(BC$3:BC19)+1>MAX(CR!Z$16:Z$145),"",BC19+1) ->  | BD20: =IF(BC20="","",VLOOKUP(BC20,CR!$Z$15:$AC154,4,FALSE)) -> 
BC21: =IF(MAX(BC$3:BC20)+1>MAX(CR!Z$16:Z$145),"",BC20+1) ->  | BD21: =IF(BC21="","",VLOOKUP(BC21,CR!$Z$15:$AC154,4,FALSE)) -> 
BC22: =IF(MAX(BC$3:BC21)+1>MAX(CR!Z$16:Z$145),"",BC21+1) ->  | BD22: =IF(BC22="","",VLOOKUP(BC22,CR!$Z$15:$AC154,4,FALSE)) -> 
BC23: =IF(MAX(BC$3:BC22)+1>MAX(CR!Z$16:Z$145),"",BC22+1) ->  | BD23: =IF(BC23="","",VLOOKUP(BC23,CR!$Z$15:$AC154,4,FALSE)) -> 
A24: 13. | B24: Remarks - Remarques | BC24: =IF(MAX(BC$3:BC23)+1>MAX(CR!Z$16:Z$145),"",BC23+1) ->  | BD24: =IF(BC24="","",VLOOKUP(BC24,CR!$Z$15:$AC154,4,FALSE)) -> 
A25: =IF(BH3="Pas de travaux reportés",BH3,"Travaux reportés : "&VLOOKUP(MAX(BG:BG),BG:BI,3,FALSE)&".") -> Pas de travaux reportés | BC25: =IF(MAX(BC$3:BC24)+1>MAX(CR!Z$16:Z$145),"",BC24+1) ->  | BD25: =IF(BC25="","",VLOOKUP(BC25,CR!$Z$15:$AC154,4,FALSE)) -> 
BC26: =IF(MAX(BC$3:BC25)+1>MAX(CR!Z$16:Z$145),"",BC25+1) ->  | BD26: =IF(BC26="","",VLOOKUP(BC26,CR!$Z$15:$AC154,4,FALSE)) -> 
BC27: =IF(MAX(BC$3:BC26)+1>MAX(CR!Z$16:Z$145),"",BC26+1) ->  | BD27: =IF(BC27="","",VLOOKUP(BC27,CR!$Z$15:$AC154,4,FALSE)) -> 
BC28: =IF(MAX(BC$3:BC27)+1>MAX(CR!Z$16:Z$145),"",BC27+1) ->  | BD28: =IF(BC28="","",VLOOKUP(BC28,CR!$Z$15:$AC154,4,FALSE)) -> 
A29: 14. | B29: Approved maintenance program - Prg. d'entretien approuvé | T29: 15. | U29: Work order reference | AD29: 16. | AF29: Date of performance - Date de travaux | AR29: 17. | AS29: Flight hours | AX29: 18. | AY29: Cycles | BC29: =IF(MAX(BC$3:BC28)+1>MAX(CR!Z$16:Z$145),"",BC28+1) ->  | BD29: =IF(BC29="","",VLOOKUP(BC29,CR!$Z$15:$AC154,4,FALSE)) -> 
A30: Issue - Edition | F30: Amendement - Révision | N30: Date - Date | T30: Référence du dossier de visite | AD30: Beginning - Début | AK30: Ending - Fin | AS30: Heures de vol | AY30: Cycles | BC30: =IF(MAX(BC$3:BC29)+1>MAX(CR!Z$16:Z$145),"",BC29+1) ->  | BD30: =IF(BC30="","",VLOOKUP(BC30,CR!$Z$15:$AC154,4,FALSE)) -> 
A31: =BL!N11 -> 2 | F31: =BL!T11 -> 0 | N31: =BL!V11 -> 2014-04-28 | T31: =IF(AO3="","",AO3) -> 01/2016/ST | AD31: =IF(CR!H7="","",CR!H7) ->  | AK31: =IF(CR!Q7="","",CR!Q7) ->  | AR31: =IF(CR!P11="","",CR!P11) ->  | AX31: N/A | BC31: =IF(MAX(BC$3:BC30)+1>MAX(CR!Z$16:Z$145),"",BC30+1) ->  | BD31: =IF(BC31="","",VLOOKUP(BC31,CR!$Z$15:$AC154,4,FALSE)) -> 
BC32: =IF(MAX(BC$3:BC31)+1>MAX(CR!Z$16:Z$145),"",BC31+1) ->  | BD32: =IF(BC32="","",VLOOKUP(BC32,CR!$Z$15:$AC154,4,FALSE)) -> 
A33: 19. | B33: Part M s/p f Release to Service - Approbation Pour Remise en Service selon la Partie M s/p f | BC33: =IF(MAX(BC$3:BC32)+1>MAX(CR!Z$16:Z$145),"",BC32+1) ->  | BD33: =IF(BC33="","",VLOOKUP(BC33,CR!$Z$15:$AC154,4,FALSE)) -> 
BC34: =IF(MAX(BC$3:BC33)+1>MAX(CR!Z$16:Z$145),"",BC33+1) ->  | BD34: =IF(BC34="","",VLOOKUP(BC34,CR!$Z$15:$AC154,4,FALSE)) -> 
B35: Certifies that unless otherwise specifid in block 13, the work identified on block 12 and described in block 13, was accomplished in accordance with Part M s/p f and in respect to that work the aircraft are considered ready for release to service. | BC35: =IF(MAX(BC$3:BC34)+1>MAX(CR!Z$16:Z$145),"",BC34+1) ->  | BD35: =IF(BC35="","",VLOOKUP(BC35,CR!$Z$15:$AC154,4,FALSE)) -> 
BC36: =IF(MAX(BC$3:BC35)+1>MAX(CR!Z$16:Z$145),"",BC35+1) ->  | BD36: =IF(BC36="","",VLOOKUP(BC36,CR!$Z$15:$AC154,4,FALSE)) -> 
B37: Certifie que sauf indication contraire spécifiée dans la case 13, les travaux identifiés en case 12 et décrits en case 13 ont été réalisés conformément à la Partie M s/p f et qu'au vu de ces travaux, l'aéronef est considéré prêt à la remise en service. | BC37: =IF(MAX(BC$3:BC36)+1>MAX(CR!Z$16:Z$145),"",BC36+1) ->  | BD37: =IF(BC37="","",VLOOKUP(BC37,CR!$Z$15:$AC154,4,FALSE)) -> 
BC38: =IF(MAX(BC$3:BC37)+1>MAX(CR!Z$16:Z$145),"",BC37+1) ->  | BD38: =IF(BC38="","",VLOOKUP(BC38,CR!$Z$15:$AC154,4,FALSE)) -> 
A39: FALSE | C39: Subject to the satisfactory performance of the test flight | BC39: =IF(MAX(BC$3:BC38)+1>MAX(CR!Z$16:Z$145),"",BC38+1) ->  | BD39: =IF(BC39="","",VLOOKUP(BC39,CR!$Z$15:$AC154,4,FALSE)) -> 
C40: Sous réserve de l'exécution satisfaisante du vol de contrôle | BC40: =IF(MAX(BC$3:BC39)+1>MAX(CR!Z$16:Z$145),"",BC39+1) ->  | BD40: =IF(BC40="","",VLOOKUP(BC40,CR!$Z$15:$AC154,4,FALSE)) -> 
A41: FALSE | C41: For ferry flight and under the conditions in conformity with documents of approval associated with this ferry flight ref: | BC41: =IF(MAX(BC$3:BC40)+1>MAX(CR!Z$16:Z$145),"",BC40+1) ->  | BD41: =IF(BC41="","",VLOOKUP(BC41,CR!$Z$15:$AC154,4,FALSE)) -> 
C42: Pour vol de convoyage et dans les conditions conformes au document d'approbation associé à ce vol de convoyage ref : | BC42: =IF(MAX(BC$3:BC41)+1>MAX(CR!Z$16:Z$145),"",BC41+1) ->  | BD42: =IF(BC42="","",VLOOKUP(BC42,CR!$Z$15:$AC154,4,FALSE)) -> 
BC43: =IF(MAX(BC$3:BC42)+1>MAX(CR!Z$16:Z$145),"",BC42+1) ->  | BD43: =IF(BC43="","",VLOOKUP(BC43,CR!$Z$15:$AC154,4,FALSE)) -> 
A44: 20. | B44: Authorized signature - Signature | L44: 21. | M44: Certificate / Approval Ref N° - N° de certificat / d'agrément | AE44: 22. | AF44: Name - Nom | AL44: 23. | AM44: Date (dd/mm/yy) / Time | AV44: 24. | AW44: Location - Lieu | BC44: =IF(MAX(BC$3:BC43)+1>MAX(CR!Z$16:Z$145),"",BC43+1) ->  | BD44: =IF(BC44="","",VLOOKUP(BC44,CR!$Z$15:$AC154,4,FALSE)) -> 
L45: =RIGHT(CR!E4,9) -> FR.MF-007 | AE45: =IF(CR!AE349="","",CR!AE349) -> J.R. GIMENEZ | AM45: Date (jj/mm/aa) / Heure | AV45: Gaillac | BC45: =IF(MAX(BC$3:BC44)+1>MAX(CR!Z$16:Z$145),"",BC44+1) ->  | BD45: =IF(BC45="","",VLOOKUP(BC45,CR!$Z$15:$AC154,4,FALSE)) -> 
AL46: =IF(CR!Q7="","",CR!Q7+CR!X7) ->  | BC46: =IF(MAX(BC$3:BC45)+1>MAX(CR!Z$16:Z$145),"",BC45+1) ->  | BD46: =IF(BC46="","",VLOOKUP(BC46,CR!$Z$15:$AC154,4,FALSE)) -> 
AE47: =IF(AE45="","",VLOOKUP(AE45,CR!AG2:AN7,5,FALSE)) -> FR66.006687 | BC47: =IF(MAX(BC$3:BC46)+1>MAX(CR!Z$16:Z$145),"",BC46+1) ->  | BD47: =IF(BC47="","",VLOOKUP(BC47,CR!$Z$15:$AC154,4,FALSE)) -> 
A48: Formulaire du 30 septembre 2009 | AE48: =CONCATENATE("Annexe 5 au dossier de travaux ",CR!R1," - Page 1 / 1") -> Annexe 5 au dossier de travaux 01/2016/ST - Page 1 / 1 | BC48: =IF(MAX(BC$3:BC47)+1>MAX(CR!Z$16:Z$145),"",BC47+1) ->  | BD48: =IF(BC48="","",VLOOKUP(BC48,CR!$Z$15:$AC154,4,FALSE)) -> 
BC49: =IF(MAX(BC$3:BC48)+1>MAX(CR!Z$16:Z$145),"",BC48+1) ->  | BD49: =IF(BC49="","",VLOOKUP(BC49,CR!$Z$15:$AC154,4,FALSE)) -> 
BC50: =IF(MAX(BC$3:BC49)+1>MAX(CR!Z$16:Z$145),"",BC49+1) ->  | BD50: =IF(BC50="","",VLOOKUP(BC50,CR!$Z$15:$AC154,4,FALSE)) -> 
BC51: =IF(MAX(BC$3:BC50)+1>MAX(CR!Z$16:Z$145),"",BC50+1) ->  | BD51: =IF(BC51="","",VLOOKUP(BC51,CR!$Z$15:$AC154,4,FALSE)) -> 
BC52: =IF(MAX(BC$3:BC51)+1>MAX(CR!Z$16:Z$145),"",BC51+1) ->  | BD52: =IF(BC52="","",VLOOKUP(BC52,CR!$Z$15:$AC154,4,FALSE)) -> 
BC53: =IF(MAX(BC$3:BC52)+1>MAX(CR!Z$16:Z$145),"",BC52+1) ->  | BD53: =IF(BC53="","",VLOOKUP(BC53,CR!$Z$15:$AC154,4,FALSE)) -> 
BC54: =IF(MAX(BC$3:BC53)+1>MAX(CR!Z$16:Z$145),"",BC53+1) ->  | BD54: =IF(BC54="","",VLOOKUP(BC54,CR!$Z$15:$AC154,4,FALSE)) -> 
BC55: =IF(MAX(BC$3:BC54)+1>MAX(CR!Z$16:Z$145),"",BC54+1) ->  | BD55: =IF(BC55="","",VLOOKUP(BC55,CR!$Z$15:$AC154,4,FALSE)) -> 
BC56: =IF(MAX(BC$3:BC55)+1>MAX(CR!Z$16:Z$145),"",BC55+1) ->  | BD56: =IF(BC56="","",VLOOKUP(BC56,CR!$Z$15:$AC154,4,FALSE)) -> 
BC57: =IF(MAX(BC$3:BC56)+1>MAX(CR!Z$16:Z$145),"",BC56+1) ->  | BD57: =IF(BC57="","",VLOOKUP(BC57,CR!$Z$15:$AC154,4,FALSE)) -> 
BC58: =IF(MAX(BC$3:BC57)+1>MAX(CR!Z$16:Z$145),"",BC57+1) ->  | BD58: =IF(BC58="","",VLOOKUP(BC58,CR!$Z$15:$AC154,4,FALSE)) -> 
BC59: =IF(MAX(BC$3:BC58)+1>MAX(CR!Z$16:Z$145),"",BC58+1) ->  | BD59: =IF(BC59="","",VLOOKUP(BC59,CR!$Z$15:$AC154,4,FALSE)) -> 
BC60: =IF(MAX(BC$3:BC59)+1>MAX(CR!Z$16:Z$145),"",BC59+1) ->  | BD60: =IF(BC60="","",VLOOKUP(BC60,CR!$Z$15:$AC154,4,FALSE)) -> 
BC61: =IF(MAX(BC$3:BC60)+1>MAX(CR!Z$16:Z$145),"",BC60+1) ->  | BD61: =IF(BC61="","",VLOOKUP(BC61,CR!$Z$15:$AC154,4,FALSE)) -> 
BC62: =IF(MAX(BC$3:BC61)+1>MAX(CR!Z$16:Z$145),"",BC61+1) ->  | BD62: =IF(BC62="","",VLOOKUP(BC62,CR!$Z$15:$AC154,4,FALSE)) -> 
BC63: =IF(MAX(BC$3:BC62)+1>MAX(CR!Z$16:Z$145),"",BC62+1) ->  | BD63: =IF(BC63="","",VLOOKUP(BC63,CR!$Z$15:$AC154,4,FALSE)) -> 
BC64: =IF(MAX(BC$3:BC63)+1>MAX(CR!Z$16:Z$145),"",BC63+1) ->  | BD64: =IF(BC64="","",VLOOKUP(BC64,CR!$Z$15:$AC154,4,FALSE)) -> 
BC65: =IF(MAX(BC$3:BC64)+1>MAX(CR!Z$16:Z$145),"",BC64+1) ->  | BD65: =IF(BC65="","",VLOOKUP(BC65,CR!$Z$15:$AC154,4,FALSE)) -> 
BC66: =IF(MAX(BC$3:BC65)+1>MAX(CR!Z$16:Z$145),"",BC65+1) ->  | BD66: =IF(BC66="","",VLOOKUP(BC66,CR!$Z$15:$AC154,4,FALSE)) -> 
BC67: =IF(MAX(BC$3:BC66)+1>MAX(CR!Z$16:Z$145),"",BC66+1) ->  | BD67: =IF(BC67="","",VLOOKUP(BC67,CR!$Z$15:$AC154,4,FALSE)) -> 
BC68: =IF(MAX(BC$3:BC67)+1>MAX(CR!Z$16:Z$145),"",BC67+1) ->  | BD68: =IF(BC68="","",VLOOKUP(BC68,CR!$Z$15:$AC154,4,FALSE)) -> 
BC69: =IF(MAX(BC$3:BC68)+1>MAX(CR!Z$16:Z$145),"",BC68+1) ->  | BD69: =IF(BC69="","",VLOOKUP(BC69,CR!$Z$15:$AC154,4,FALSE)) ->  | BE69: =IF(BC69="","",BE68&" ; "&BD69) -> 
BC70: =IF(MAX(BC$3:BC69)+1>MAX(CR!Z$16:Z$145),"",BC69+1) ->  | BD70: =IF(BC70="","",VLOOKUP(BC70,CR!$Z$15:$AC154,4,FALSE)) -> 
BC71: =IF(MAX(BC$3:BC70)+1>MAX(CR!Z$16:Z$145),"",BC70+1) ->  | BD71: =IF(BC71="","",VLOOKUP(BC71,CR!$Z$15:$AC154,4,FALSE)) -> 
BC72: =IF(MAX(BC$3:BC71)+1>MAX(CR!Z$16:Z$145),"",BC71+1) ->  | BD72: =IF(BC72="","",VLOOKUP(BC72,CR!$Z$15:$AC154,4,FALSE)) -> 
BC73: =IF(MAX(BC$3:BC72)+1>MAX(CR!Z$16:Z$145),"",BC72+1) ->  | BD73: =IF(BC73="","",VLOOKUP(BC73,CR!$Z$15:$AC154,4,FALSE)) -> 
BC74: =IF(MAX(BC$3:BC73)+1>MAX(CR!Z$16:Z$145),"",BC73+1) ->  | BD74: =IF(BC74="","",VLOOKUP(BC74,CR!$Z$15:$AC154,4,FALSE)) -> 
BC75: =IF(MAX(BC$3:BC74)+1>MAX(CR!Z$16:Z$145),"",BC74+1) ->  | BD75: =IF(BC75="","",VLOOKUP(BC75,CR!$Z$15:$AC154,4,FALSE)) -> 
BC76: =IF(MAX(BC$3:BC75)+1>MAX(CR!Z$16:Z$145),"",BC75+1) ->  | BD76: =IF(BC76="","",VLOOKUP(BC76,CR!$Z$15:$AC154,4,FALSE)) -> 
BC77: =IF(MAX(BC$3:BC76)+1>MAX(CR!Z$16:Z$145),"",BC76+1) ->  | BD77: =IF(BC77="","",VLOOKUP(BC77,CR!$Z$15:$AC154,4,FALSE)) -> 
BC78: =IF(MAX(BC$3:BC77)+1>MAX(CR!Z$16:Z$145),"",BC77+1) ->  | BD78: =IF(BC78="","",VLOOKUP(BC78,CR!$Z$15:$AC154,4,FALSE)) -> 
BC79: =IF(MAX(BC$3:BC78)+1>MAX(CR!Z$16:Z$145),"",BC78+1) ->  | BD79: =IF(BC79="","",VLOOKUP(BC79,CR!$Z$15:$AC154,4,FALSE)) -> 
BC80: =IF(MAX(BC$3:BC79)+1>MAX(CR!Z$16:Z$145),"",BC79+1) ->  | BD80: =IF(BC80="","",VLOOKUP(BC80,CR!$Z$15:$AC154,4,FALSE)) -> 
BC81: =IF(MAX(BC$3:BC80)+1>MAX(CR!Z$16:Z$145),"",BC80+1) ->  | BD81: =IF(BC81="","",VLOOKUP(BC81,CR!$Z$15:$AC154,4,FALSE)) -> 
BC82: =IF(MAX(BC$3:BC81)+1>MAX(CR!Z$16:Z$145),"",BC81+1) ->  | BD82: =IF(BC82="","",VLOOKUP(BC82,CR!$Z$15:$AC154,4,FALSE)) -> 
BC83: =IF(MAX(BC$3:BC82)+1>MAX(CR!Z$16:Z$145),"",BC82+1) ->  | BD83: =IF(BC83="","",VLOOKUP(BC83,CR!$Z$15:$AC154,4,FALSE)) -> 
BC84: =IF(MAX(BC$3:BC83)+1>MAX(CR!Z$16:Z$145),"",BC83+1) ->  | BD84: =IF(BC84="","",VLOOKUP(BC84,CR!$Z$15:$AC154,4,FALSE)) -> 
BC85: =IF(MAX(BC$3:BC84)+1>MAX(CR!Z$16:Z$145),"",BC84+1) ->  | BD85: =IF(BC85="","",VLOOKUP(BC85,CR!$Z$15:$AC154,4,FALSE)) -> 
BC86: =IF(MAX(BC$3:BC85)+1>MAX(CR!Z$16:Z$145),"",BC85+1) ->  | BD86: =IF(BC86="","",VLOOKUP(BC86,CR!$Z$15:$AC154,4,FALSE)) -> 
BC87: =IF(MAX(BC$3:BC86)+1>MAX(CR!Z$16:Z$145),"",BC86+1) ->  | BD87: =IF(BC87="","",VLOOKUP(BC87,CR!$Z$15:$AC154,4,FALSE)) -> 
BC88: =IF(MAX(BC$3:BC87)+1>MAX(CR!Z$16:Z$145),"",BC87+1) ->  | BD88: =IF(BC88="","",VLOOKUP(BC88,CR!$Z$15:$AC154,4,FALSE)) -> 
BC89: =IF(MAX(BC$3:BC88)+1>MAX(CR!Z$16:Z$145),"",BC88+1) ->  | BD89: =IF(BC89="","",VLOOKUP(BC89,CR!$Z$15:$AC154,4,FALSE)) -> 
BC90: =IF(MAX(BC$3:BC89)+1>MAX(CR!Z$16:Z$145),"",BC89+1) ->  | BD90: =IF(BC90="","",VLOOKUP(BC90,CR!$Z$15:$AC154,4,FALSE)) -> 
BC91: =IF(MAX(BC$3:BC90)+1>MAX(CR!Z$16:Z$145),"",BC90+1) ->  | BD91: =IF(BC91="","",VLOOKUP(BC91,CR!$Z$15:$AC154,4,FALSE)) -> 
BC92: =IF(MAX(BC$3:BC91)+1>MAX(CR!Z$16:Z$145),"",BC91+1) ->  | BD92: =IF(BC92="","",VLOOKUP(BC92,CR!$Z$15:$AC154,4,FALSE)) -> 
BC93: =IF(MAX(BC$3:BC92)+1>MAX(CR!Z$16:Z$145),"",BC92+1) ->  | BD93: =IF(BC93="","",VLOOKUP(BC93,CR!$Z$15:$AC154,4,FALSE)) -> 
BC94: =IF(MAX(BC$3:BC93)+1>MAX(CR!Z$16:Z$145),"",BC93+1) ->  | BD94: =IF(BC94="","",VLOOKUP(BC94,CR!$Z$15:$AC154,4,FALSE)) -> 
BC95: =IF(MAX(BC$3:BC94)+1>MAX(CR!Z$16:Z$145),"",BC94+1) ->  | BD95: =IF(BC95="","",VLOOKUP(BC95,CR!$Z$15:$AC154,4,FALSE)) -> 
BC96: =IF(MAX(BC$3:BC95)+1>MAX(CR!Z$16:Z$145),"",BC95+1) ->  | BD96: =IF(BC96="","",VLOOKUP(BC96,CR!$Z$15:$AC154,4,FALSE)) -> 
BC97: =IF(MAX(BC$3:BC96)+1>MAX(CR!Z$16:Z$145),"",BC96+1) ->  | BD97: =IF(BC97="","",VLOOKUP(BC97,CR!$Z$15:$AC154,4,FALSE)) -> 
BC98: =IF(MAX(BC$3:BC97)+1>MAX(CR!Z$16:Z$145),"",BC97+1) ->  | BD98: =IF(BC98="","",VLOOKUP(BC98,CR!$Z$15:$AC154,4,FALSE)) -> 
BC99: =IF(MAX(BC$3:BC98)+1>MAX(CR!Z$16:Z$145),"",BC98+1) ->  | BD99: =IF(BC99="","",VLOOKUP(BC99,CR!$Z$15:$AC154,4,FALSE)) -> 
BC100: =IF(MAX(BC$3:BC99)+1>MAX(CR!Z$16:Z$145),"",BC99+1) ->  | BD100: =IF(BC100="","",VLOOKUP(BC100,CR!$Z$15:$AC154,4,FALSE)) -> 
BC101: =IF(MAX(BC$3:BC100)+1>MAX(CR!Z$16:Z$145),"",BC100+1) ->  | BD101: =IF(BC101="","",VLOOKUP(BC101,CR!$Z$15:$AC154,4,FALSE)) -> 
BC102: =IF(MAX(BC$3:BC101)+1>MAX(CR!Z$16:Z$145),"",BC101+1) ->  | BD102: =IF(BC102="","",VLOOKUP(BC102,CR!$Z$15:$AC154,4,FALSE)) -> 
BC103: =IF(MAX(BC$3:BC102)+1>MAX(CR!Z$16:Z$145),"",BC102+1) ->  | BD103: =IF(BC103="","",VLOOKUP(BC103,CR!$Z$15:$AC154,4,FALSE)) -> 
BC104: =IF(MAX(BC$3:BC103)+1>MAX(CR!Z$16:Z$145),"",BC103+1) ->  | BD104: =IF(BC104="","",VLOOKUP(BC104,CR!$Z$15:$AC154,4,FALSE)) -> 
BC105: =IF(MAX(BC$3:BC104)+1>MAX(CR!Z$16:Z$145),"",BC104+1) ->  | BD105: =IF(BC105="","",VLOOKUP(BC105,CR!$Z$15:$AC154,4,FALSE)) -> 

Sheet Livrets
A1: 1. | B1: Approving competent authority / Country | N1: 2. | AO1: 3. | AP1: Form tracking number
B2: Authorité compétente / Pays | N2: AIRCRAFT CERTIFICATE OF RELEASE TO SERVICE | AP2: N° de repère du formulaire
AO3: =APRS!$AO$3 -> 01/2016/ST
A4: DIRECTION GENERALE DE | N4: Certificat d'approbation pour remise en service d'aéronef
A5: L'AVIATION CIVILE
A6: FRANCE
A7: 4. | B7: Approval organisation name and address | R7: Aéro-club du Gaillacois | AO7: 5. | AP7: Work order / Contract / Invoice
B8: Nom et adresse de l'organisme agréé | R8: Aérodrome de Gaillac | AP8: Bon de commande / Contrat / Facture
R9: 81600 Gaillac | AO9: =APRS!$AO$9 -> 01/2016/ST
A11: 6. | B11: Model | F11: 7. | G11: Registration | L11: 8. | M11: Aircraft serial number | T11: 9. | U11: Engine serial number | AD11: 10. | AE11: Propeller serial number | AO11: 11. | AP11: Operator
B12: Type | G12: Immatriculation | M12: N° de série | U12: N° de série du moteur | AE12: N° de série de l'hélice | AP12: Exploitant
A13: =APRS!$A$13 -> Rallye 150 ST | F13: =APRS!$F$13 -> F-TEST | L13: =APRS!$L$13 -> 3142 | T13: =APRS!$T$13 -> L-19951-27A | AD13: =APRS!$AD$13 -> A-54663 | AO13: =APRS!$AO$13 -> Aéroclub du Gaillacois
A15: 12. | B15: Status / Work performed - Etat / Travaux effectués
A16: =APRS!$A$16 -> Visite 1650 ; Visite ; CN F-1982-089 - Corrosion ; CN F-1986-160 R1 - Stabilisateur horizontal ; CN F-2000-174 - Manilles de commandes de gouvernes de profondeur et de direction - 100 h. ; CN F-2001-400 - Bâti moteur ; CN 2015-0203 - Axe de roue avant et vis de fixation - Inspection ; CN F-1977-168 - Interrupteurs d’allumage Bendix ; Balise de détresse - Test fonctionnel ; Magnéto gauche - Inspection 500 h ; Magnéto droite - Inspection 500 h ; Carburateur - BS Lycoming n° 366A.
A24: 13. | B24: Remarks - Remarques
A25: =APRS!$A$25 -> Pas de travaux reportés
A29: 14. | B29: Approved maintenance program - Prg. d'entretien approuvé | T29: 15. | U29: Work order reference | AD29: 16. | AF29: Date of performance - Date de travaux | AR29: 17. | AS29: Flight hours | AX29: 18. | AY29: Cycles
A30: Issue - Edition | F30: Amendement - Révision | N30: Date - Date | T30: Référence du dossier de visite | AD30: Beginning - Début | AK30: Ending - Fin | AS30: Heures de vol | AY30: Cycles
A31: =APRS!$A$31 -> 2 | F31: =APRS!$F$31 -> 0 | N31: =APRS!$N$31 -> 2014-04-28 | T31: =APRS!$T$31 -> 01/2016/ST | AD31: =APRS!$AD$31 ->  | AK31: =APRS!$AK$31 ->  | AR31: =APRS!$AR$31 ->  | AX31: =APRS!$AX$31 -> N/A
A33: 19. | B33: Part M s/p f Release to Service - Approbation Pour Remise en Service selon la Partie M s/p f
B35: Certifies that unless otherwise specifid in block 13, the work identified on block 12 and described in block 13, was accomplished in accordance with Part M s/p f and in respect to that work the aircraft are considered ready for release to service.
B37: Certifie que sauf indication contraire spécifiée dans la case 13, les travaux identifiés en case 12 et décrits en case 13 ont été réalisés conformément à la Partie M s/p f et qu'au vu de ces travaux, l'aéronef est considéré prêt à la remise en service.
A39: =APRS!$A$39 -> FALSE | C39: Subject to the satisfactory performance of the test flight
C40: Sous réserve de l'exécution satisfaisante du vol de contrôle
A41: =APRS!$A$41 -> FALSE | C41: For ferry flight and under the conditions in conformity with documents of approval associated with this ferry flight ref:
C42: Pour vol de convoyage et dans les conditions conformes au document d'approbation associé à ce vol de convoyage ref :
A45: 20. | B45: Authorized signature - Signature | L45: 21. | M45: Certificate / Approval Ref N° - N° de certificat / d'agrément | AE45: 22. | AF45: Name - Nom | AL45: 23. | AM45: Date (dd/mm/yy) / Time | AV45: 24. | AW45: Location - Lieu
L46: =APRS!$L$45 -> FR.MF-007 | AE46: =APRS!$AE$45 -> J.R. GIMENEZ | AM46: Date (jj/mm/aa) / Heure | AV46: =APRS!$AV$45 -> Gaillac
AL47: =APRS!$AL$46 -> 
AE48: =IF($AE46="","",VLOOKUP($AE46,CR!AG:AN,5,FALSE)) -> FR66.006687
A50: 1. | B50: Approving competent authority / Country | N50: 2. | AO50: 3. | AP50: Form tracking number
B51: Authorité compétente / Pays | N51: AIRCRAFT CERTIFICATE OF RELEASE TO SERVICE | AP51: N° de repère du formulaire
AO52: =APRS!$AO$3 -> 01/2016/ST
A53: DIRECTION GENERALE DE | N53: Certificat d'approbation pour remise en service d'aéronef
A54: L'AVIATION CIVILE
A55: FRANCE
A56: 4. | B56: Approval organisation name and address | R56: Aéro-club du Gaillacois | AO56: 5. | AP56: Work order / Contract / Invoice
B57: Nom et adresse de l'organisme agréé | R57: Aérodrome de Gaillac | AP57: Bon de commande / Contrat / Facture
R58: 81600 Gaillac | AO58: =APRS!$AO$9 -> 01/2016/ST
A60: 6. | B60: Model | F60: 7. | G60: Registration | L60: 8. | M60: Aircraft serial number | T60: 9. | U60: Engine serial number | AD60: 10. | AE60: Propeller serial number | AO60: 11. | AP60: Operator
B61: Type | G61: Immatriculation | M61: N° de série | U61: N° de série du moteur | AE61: N° de série de l'hélice | AP61: Exploitant
A62: =APRS!$A$13 -> Rallye 150 ST | F62: =APRS!$F$13 -> F-TEST | L62: =APRS!$L$13 -> 3142 | T62: =APRS!$T$13 -> L-19951-27A | AD62: =APRS!$AD$13 -> A-54663 | AO62: =APRS!$AO$13 -> Aéroclub du Gaillacois
A64: 12. | B64: Status / Work performed - Etat / Travaux effectués
A65: =APRS!$A$16 -> Visite 1650 ; Visite ; CN F-1982-089 - Corrosion ; CN F-1986-160 R1 - Stabilisateur horizontal ; CN F-2000-174 - Manilles de commandes de gouvernes de profondeur et de direction - 100 h. ; CN F-2001-400 - Bâti moteur ; CN 2015-0203 - Axe de roue avant et vis de fixation - Inspection ; CN F-1977-168 - Interrupteurs d’allumage Bendix ; Balise de détresse - Test fonctionnel ; Magnéto gauche - Inspection 500 h ; Magnéto droite - Inspection 500 h ; Carburateur - BS Lycoming n° 366A.
A73: 13. | B73: Remarks - Remarques
A74: =APRS!$A$25 -> Pas de travaux reportés
A78: 14. | B78: Approved maintenance program - Prg. d'entretien approuvé | T78: 15. | U78: Work order reference | AD78: 16. | AF78: Date of performance - Date de travaux | AR78: 17. | AS78: Flight hours | AX78: 18. | AY78: Cycles
A79: Issue - Edition | F79: Amendement - Révision | N79: Date - Date | T79: Référence du dossier de visite | AD79: Beginning - Début | AK79: Ending - Fin | AS79: Heures de vol | AY79: Cycles
A80: =APRS!$A$31 -> 2 | F80: =APRS!$F$31 -> 0 | N80: =APRS!$N$31 -> 2014-04-28 | T80: =APRS!$T$31 -> 01/2016/ST | AD80: =APRS!$AD$31 ->  | AK80: =APRS!$AK$31 ->  | AR80: =APRS!$AR$31 ->  | AX80: =APRS!$AX$31 -> N/A
A82: 19. | B82: Part M s/p f Release to Service - Approbation Pour Remise en Service selon la Partie M s/p f
B84: Certifies that unless otherwise specifid in block 13, the work identified on block 12 and described in block 13, was accomplished in accordance with Part M s/p f and in respect to that work the aircraft are considered ready for release to service.
B86: Certifie que sauf indication contraire spécifiée dans la case 13, les travaux identifiés en case 12 et décrits en case 13 ont été réalisés conformément à la Partie M s/p f et qu'au vu de ces travaux, l'aéronef est considéré prêt à la remise en service.
A88: =APRS!$A$39 -> FALSE | C88: Subject to the satisfactory performance of the test flight
C89: Sous réserve de l'exécution satisfaisante du vol de contrôle
A90: =APRS!$A$41 -> FALSE | C90: For ferry flight and under the conditions in conformity with documents of approval associated with this ferry flight ref:
C91: Pour vol de convoyage et dans les conditions conformes au document d'approbation associé à ce vol de convoyage ref :
A93: 20. | B93: Authorized signature - Signature | L93: 21. | M93: Certificate / Approval Ref N° - N° de certificat / d'agrément | AE93: 22. | AF93: Name - Nom | AL93: 23. | AM93: Date (dd/mm/yy) / Time | AV93: 24. | AW93: Location - Lieu
L94: =APRS!$L$45 -> FR.MF-007 | AE94: =APRS!$AE$45 -> J.R. GIMENEZ | AM94: Date (jj/mm/aa) / Heure | AV94: =APRS!$AV$45 -> Gaillac
AL95: =APRS!$AL$46 -> 
AE96: =IF($AE94="","",VLOOKUP($AE94,CR!AG:AN,5,FALSE)) -> FR66.006687
A98: 1. | B98: Approving competent authority / Country | N98: 2. | AO98: 3. | AP98: Form tracking number
B99: Authorité compétente / Pays | N99: AIRCRAFT CERTIFICATE OF RELEASE TO SERVICE | AP99: N° de repère du formulaire
AO100: =APRS!$AO$3 -> 01/2016/ST
A101: DIRECTION GENERALE DE | N101: Certificat d'approbation pour remise en service d'aéronef
A102: L'AVIATION CIVILE
A103: FRANCE
A104: 4. | B104: Approval organisation name and address | R104: Aéro-club du Gaillacois | AO104: 5. | AP104: Work order / Contract / Invoice
B105: Nom et adresse de l'organisme agréé | R105: Aérodrome de Gaillac | AP105: Bon de commande / Contrat / Facture
R106: 81600 Gaillac | AO106: =APRS!$AO$9 -> 01/2016/ST
A108: 6. | B108: Model | F108: 7. | G108: Registration | L108: 8. | M108: Aircraft serial number | T108: 9. | U108: Engine serial number | AD108: 10. | AE108: Propeller serial number | AO108: 11. | AP108: Operator
B109: Type | G109: Immatriculation | M109: N° de série | U109: N° de série du moteur | AE109: N° de série de l'hélice | AP109: Exploitant
A110: =APRS!$A$13 -> Rallye 150 ST | F110: =APRS!$F$13 -> F-TEST | L110: =APRS!$L$13 -> 3142 | T110: =APRS!$T$13 -> L-19951-27A | AD110: =APRS!$AD$13 -> A-54663 | AO110: =APRS!$AO$13 -> Aéroclub du Gaillacois
A112: 12. | B112: Status / Work performed - Etat / Travaux effectués
A113: =APRS!$A$16 -> Visite 1650 ; Visite ; CN F-1982-089 - Corrosion ; CN F-1986-160 R1 - Stabilisateur horizontal ; CN F-2000-174 - Manilles de commandes de gouvernes de profondeur et de direction - 100 h. ; CN F-2001-400 - Bâti moteur ; CN 2015-0203 - Axe de roue avant et vis de fixation - Inspection ; CN F-1977-168 - Interrupteurs d’allumage Bendix ; Balise de détresse - Test fonctionnel ; Magnéto gauche - Inspection 500 h ; Magnéto droite - Inspection 500 h ; Carburateur - BS Lycoming n° 366A.
A121: 13. | B121: Remarks - Remarques
A122: =APRS!$A$25 -> Pas de travaux reportés
A126: 14. | B126: Approved maintenance program - Prg. d'entretien approuvé | T126: 15. | U126: Work order reference | AD126: 16. | AF126: Date of performance - Date de travaux | AR126: 17. | AS126: Flight hours | AX126: 18. | AY126: Cycles
A127: Issue - Edition | F127: Amendement - Révision | N127: Date - Date | T127: Référence du dossier de visite | AD127: Beginning - Début | AK127: Ending - Fin | AS127: Heures de vol | AY127: Cycles
A128: =APRS!$A$31 -> 2 | F128: =APRS!$F$31 -> 0 | N128: =APRS!$N$31 -> 2014-04-28 | T128: =APRS!$T$31 -> 01/2016/ST | AD128: =APRS!$AD$31 ->  | AK128: =APRS!$AK$31 ->  | AR128: =APRS!$AR$31 ->  | AX128: =APRS!$AX$31 -> N/A
A130: 19. | B130: Part M s/p f Release to Service - Approbation Pour Remise en Service selon la Partie M s/p f
B132: Certifies that unless otherwise specifid in block 13, the work identified on block 12 and described in block 13, was accomplished in accordance with Part M s/p f and in respect to that work the aircraft are considered ready for release to service.
B134: Certifie que sauf indication contraire spécifiée dans la case 13, les travaux identifiés en case 12 et décrits en case 13 ont été réalisés conformément à la Partie M s/p f et qu'au vu de ces travaux, l'aéronef est considéré prêt à la remise en service.
A136: =APRS!$A$39 -> FALSE | C136: Subject to the satisfactory performance of the test flight
C137: Sous réserve de l'exécution satisfaisante du vol de contrôle
A138: =APRS!$A$41 -> FALSE | C138: For ferry flight and under the conditions in conformity with documents of approval associated with this ferry flight ref:
C139: Pour vol de convoyage et dans les conditions conformes au document d'approbation associé à ce vol de convoyage ref :
A141: 20. | B141: Authorized signature - Signature | L141: 21. | M141: Certificate / Approval Ref N° - N° de certificat / d'agrément | AE141: 22. | AF141: Name - Nom | AL141: 23. | AM141: Date (dd/mm/yy) / Time | AV141: 24. | AW141: Location - Lieu
L142: =APRS!$L$45 -> FR.MF-007 | AE142: =APRS!$AE$45 -> J.R. GIMENEZ | AM142: Date (jj/mm/aa) / Heure | AV142: =APRS!$AV$45 -> Gaillac
AL143: =APRS!$AL$46 -> 
AE144: =IF($AE142="","",VLOOKUP($AE142,CR!AG:AN,5,FALSE)) -> FR66.006687

Sheet Carnet
B1: Mécano | L1: =IF(CR!AB2="","",CR!AB2) -> J.R. GIMENEZ
B2: Date | C2: Type | D2: Immat | E2: ATA | F2: Tâche / Intervention | G2: Fonction | L2: =IF(CR!AB3="","",CR!AB3) -> A. MANN
A3: =IF(C1=CR!AS15,MAX(CR!AP:AP),MAX(CR!AR:AR)) -> 0 | G3: Formation | H3: Exécution | I3: Contrôle | J3: Encadrement | K3: APRS | L3: =IF(CR!AB4="","",CR!AB4) -> Voir page n° 5
A4: 1 | B4: =IF($A4>A$3,"",CR!$Q$7) ->  | C4: =IF($A4>A$3,"",CR!$H$11) ->  | D4: =IF($A4>A$3,"",BL!$U$8) ->  | F4: =IF($A4>A$3,"",IF($A4>CR!$AS$15,VLOOKUP($A4,CR!$AP:$AQ,2,FALSE),VLOOKUP($A4,BL!$AR:$AS,2,FALSE))) ->  | G4: =IF(AND(A4<A$3,$C$1="A. MANN"),"X","") ->  | H4: =IF(A4>A$3,"","X") ->  | K4: =IF(AND($C$1=APRS!$AE$45,A4<A$3),"X","") ->  | L4: =IF(CR!AB5="","",CR!AB5) -> -
A5: 2 | B5: =IF($A5>A$3,"",CR!$Q$7) ->  | C5: =IF($A5>A$3,"",CR!$H$11) ->  | D5: =IF($A5>A$3,"",BL!$U$8) ->  | F5: =IF($A5>A$3,"",IF($A5>CR!$AS$15,VLOOKUP($A5,CR!$AP:$AQ,2,FALSE),VLOOKUP($A5,BL!$AR:$AS,2,FALSE))) ->  | G5: =IF(AND(A5<A$3,$C$1="A. MANN"),"X","") ->  | H5: =IF(A5>A$3,"","X") ->  | K5: =IF(AND($C$1=APRS!$AE$45,A5<A$3),"X","") ->  | L5: =IF(CR!AB6="","",CR!AB6) -> -
A6: 3 | B6: =IF($A6>A$3,"",CR!$Q$7) ->  | C6: =IF($A6>A$3,"",CR!$H$11) ->  | D6: =IF($A6>A$3,"",BL!$U$8) ->  | F6: =IF($A6>A$3,"",IF($A6>CR!$AS$15,VLOOKUP($A6,CR!$AP:$AQ,2,FALSE),VLOOKUP($A6,BL!$AR:$AS,2,FALSE))) ->  | K6: =IF(AND($C$1=APRS!$AE$45,A6<A$3),"X","") ->  | L6: =IF(CR!AB7="","",CR!AB7) -> -
A7: 4 | B7: =IF($A7>A$3,"",CR!$Q$7) ->  | C7: =IF($A7>A$3,"",CR!$H$11) ->  | D7: =IF($A7>A$3,"",BL!$U$8) ->  | F7: =IF($A7>A$3,"",IF($A7>CR!$AS$15,VLOOKUP($A7,CR!$AP:$AQ,2,FALSE),VLOOKUP($A7,BL!$AR:$AS,2,FALSE))) ->  | K7: =IF(AND($C$1=APRS!$AE$45,A7<A$3),"X","") -> 
A8: 5 | B8: =IF($A8>A$3,"",CR!$Q$7) ->  | C8: =IF($A8>A$3,"",CR!$H$11) ->  | D8: =IF($A8>A$3,"",BL!$U$8) ->  | F8: =IF($A8>A$3,"",IF($A8>CR!$AS$15,VLOOKUP($A8,CR!$AP:$AQ,2,FALSE),VLOOKUP($A8,BL!$AR:$AS,2,FALSE))) ->  | K8: =IF(AND($C$1=APRS!$AE$45,A8<A$3),"X","") -> 
A9: 6 | B9: =IF($A9>A$3,"",CR!$Q$7) ->  | C9: =IF($A9>A$3,"",CR!$H$11) ->  | D9: =IF($A9>A$3,"",BL!$U$8) ->  | F9: =IF($A9>A$3,"",IF($A9>CR!$AS$15,VLOOKUP($A9,CR!$AP:$AQ,2,FALSE),VLOOKUP($A9,BL!$AR:$AS,2,FALSE))) ->  | K9: =IF(AND($C$1=APRS!$AE$45,A9<A$3),"X","") -> 
A10: 7 | B10: =IF($A10>A$3,"",CR!$Q$7) ->  | C10: =IF($A10>A$3,"",CR!$H$11) ->  | D10: =IF($A10>A$3,"",BL!$U$8) ->  | F10: =IF($A10>A$3,"",IF($A10>CR!$AS$15,VLOOKUP($A10,CR!$AP:$AQ,2,FALSE),VLOOKUP($A10,BL!$AR:$AS,2,FALSE))) ->  | K10: =IF(AND($C$1=APRS!$AE$45,A10<A$3),"X","") -> 
A11: 8 | B11: =IF($A11>A$3,"",CR!$Q$7) ->  | C11: =IF($A11>A$3,"",CR!$H$11) ->  | D11: =IF($A11>A$3,"",BL!$U$8) ->  | F11: =IF($A11>A$3,"",IF($A11>CR!$AS$15,VLOOKUP($A11,CR!$AP:$AQ,2,FALSE),VLOOKUP($A11,BL!$AR:$AS,2,FALSE))) ->  | K11: =IF(AND($C$1=APRS!$AE$45,A11<A$3),"X","") -> 
A12: 9 | B12: =IF($A12>A$3,"",CR!$Q$7) ->  | C12: =IF($A12>A$3,"",CR!$H$11) ->  | D12: =IF($A12>A$3,"",BL!$U$8) ->  | F12: =IF($A12>A$3,"",IF($A12>CR!$AS$15,VLOOKUP($A12,CR!$AP:$AQ,2,FALSE),VLOOKUP($A12,BL!$AR:$AS,2,FALSE))) ->  | K12: =IF(AND($C$1=APRS!$AE$45,A12<A$3),"X","") -> 
A13: 10 | B13: =IF($A13>A$3,"",CR!$Q$7) ->  | C13: =IF($A13>A$3,"",CR!$H$11) ->  | D13: =IF($A13>A$3,"",BL!$U$8) ->  | F13: =IF($A13>A$3,"",IF($A13>CR!$AS$15,VLOOKUP($A13,CR!$AP:$AQ,2,FALSE),VLOOKUP($A13,BL!$AR:$AS,2,FALSE))) ->  | K13: =IF(AND($C$1=APRS!$AE$45,A13<A$3),"X","") -> 
A14: 11 | B14: =IF($A14>A$3,"",CR!$Q$7) ->  | C14: =IF($A14>A$3,"",CR!$H$11) ->  | D14: =IF($A14>A$3,"",BL!$U$8) ->  | F14: =IF($A14>A$3,"",IF($A14>CR!$AS$15,VLOOKUP($A14,CR!$AP:$AQ,2,FALSE),VLOOKUP($A14,BL!$AR:$AS,2,FALSE))) ->  | K14: =IF(AND($C$1=APRS!$AE$45,A14<A$3),"X","") -> 
A15: 12 | B15: =IF($A15>A$3,"",CR!$Q$7) ->  | C15: =IF($A15>A$3,"",CR!$H$11) ->  | D15: =IF($A15>A$3,"",BL!$U$8) ->  | F15: =IF($A15>A$3,"",IF($A15>CR!$AS$15,VLOOKUP($A15,CR!$AP:$AQ,2,FALSE),VLOOKUP($A15,BL!$AR:$AS,2,FALSE))) ->  | K15: =IF(AND($C$1=APRS!$AE$45,A15<A$3),"X","") -> 
A16: 13 | B16: =IF($A16>A$3,"",CR!$Q$7) ->  | C16: =IF($A16>A$3,"",CR!$H$11) ->  | D16: =IF($A16>A$3,"",BL!$U$8) ->  | F16: =IF($A16>A$3,"",IF($A16>CR!$AS$15,VLOOKUP($A16,CR!$AP:$AQ,2,FALSE),VLOOKUP($A16,BL!$AR:$AS,2,FALSE))) ->  | K16: =IF(AND($C$1=APRS!$AE$45,A16<A$3),"X","") -> 
A17: 14 | B17: =IF($A17>A$3,"",CR!$Q$7) ->  | C17: =IF($A17>A$3,"",CR!$H$11) ->  | D17: =IF($A17>A$3,"",BL!$U$8) ->  | F17: =IF($A17>A$3,"",IF($A17>CR!$AS$15,VLOOKUP($A17,CR!$AP:$AQ,2,FALSE),VLOOKUP($A17,BL!$AR:$AS,2,FALSE))) ->  | K17: =IF(AND($C$1=APRS!$AE$45,A17<A$3),"X","") -> 
A18: 15 | B18: =IF($A18>A$3,"",CR!$Q$7) ->  | C18: =IF($A18>A$3,"",CR!$H$11) ->  | D18: =IF($A18>A$3,"",BL!$U$8) ->  | F18: =IF($A18>A$3,"",IF($A18>CR!$AS$15,VLOOKUP($A18,CR!$AP:$AQ,2,FALSE),VLOOKUP($A18,BL!$AR:$AS,2,FALSE))) ->  | K18: =IF(AND($C$1=APRS!$AE$45,A18<A$3),"X","") -> 
A19: 16 | B19: =IF($A19>A$3,"",CR!$Q$7) ->  | C19: =IF($A19>A$3,"",CR!$H$11) ->  | D19: =IF($A19>A$3,"",BL!$U$8) ->  | F19: =IF($A19>A$3,"",IF($A19>CR!$AS$15,VLOOKUP($A19,CR!$AP:$AQ,2,FALSE),VLOOKUP($A19,BL!$AR:$AS,2,FALSE))) ->  | K19: =IF(AND($C$1=APRS!$AE$45,A19<A$3),"X","") -> 
A20: 17 | B20: =IF($A20>A$3,"",CR!$Q$7) ->  | C20: =IF($A20>A$3,"",CR!$H$11) ->  | D20: =IF($A20>A$3,"",BL!$U$8) ->  | F20: =IF($A20>A$3,"",IF($A20>CR!$AS$15,VLOOKUP($A20,CR!$AP:$AQ,2,FALSE),VLOOKUP($A20,BL!$AR:$AS,2,FALSE))) ->  | K20: =IF(AND($C$1=APRS!$AE$45,A20<A$3),"X","") -> 
A21: 18 | B21: =IF($A21>A$3,"",CR!$Q$7) ->  | C21: =IF($A21>A$3,"",CR!$H$11) ->  | D21: =IF($A21>A$3,"",BL!$U$8) ->  | F21: =IF($A21>A$3,"",IF($A21>CR!$AS$15,VLOOKUP($A21,CR!$AP:$AQ,2,FALSE),VLOOKUP($A21,BL!$AR:$AS,2,FALSE))) ->  | K21: =IF(AND($C$1=APRS!$AE$45,A21<A$3),"X","") -> 
A22: 19 | B22: =IF($A22>A$3,"",CR!$Q$7) ->  | C22: =IF($A22>A$3,"",CR!$H$11) ->  | D22: =IF($A22>A$3,"",BL!$U$8) ->  | F22: =IF($A22>A$3,"",IF($A22>CR!$AS$15,VLOOKUP($A22,CR!$AP:$AQ,2,FALSE),VLOOKUP($A22,BL!$AR:$AS,2,FALSE))) ->  | K22: =IF(AND($C$1=APRS!$AE$45,A22<A$3),"X","") -> 
A23: 20 | B23: =IF($A23>A$3,"",CR!$Q$7) ->  | C23: =IF($A23>A$3,"",CR!$H$11) ->  | D23: =IF($A23>A$3,"",BL!$U$8) ->  | F23: =IF($A23>A$3,"",IF($A23>CR!$AS$15,VLOOKUP($A23,CR!$AP:$AQ,2,FALSE),VLOOKUP($A23,BL!$AR:$AS,2,FALSE))) ->  | K23: =IF(AND($C$1=APRS!$AE$45,A23<A$3),"X","") -> 
A24: 21 | B24: =IF($A24>A$3,"",CR!$Q$7) ->  | C24: =IF($A24>A$3,"",CR!$H$11) ->  | D24: =IF($A24>A$3,"",BL!$U$8) ->  | F24: =IF($A24>A$3,"",IF($A24>CR!$AS$15,VLOOKUP($A24,CR!$AP:$AQ,2,FALSE),VLOOKUP($A24,BL!$AR:$AS,2,FALSE))) ->  | K24: =IF(AND($C$1=APRS!$AE$45,A24<A$3),"X","") -> 
A25: 22 | B25: =IF($A25>A$3,"",CR!$Q$7) ->  | C25: =IF($A25>A$3,"",CR!$H$11) ->  | D25: =IF($A25>A$3,"",BL!$U$8) ->  | F25: =IF($A25>A$3,"",IF($A25>CR!$AS$15,VLOOKUP($A25,CR!$AP:$AQ,2,FALSE),VLOOKUP($A25,BL!$AR:$AS,2,FALSE))) ->  | K25: =IF(AND($C$1=APRS!$AE$45,A25<A$3),"X","") -> 
A26: 23 | B26: =IF($A26>A$3,"",CR!$Q$7) ->  | C26: =IF($A26>A$3,"",CR!$H$11) ->  | D26: =IF($A26>A$3,"",BL!$U$8) ->  | F26: =IF($A26>A$3,"",IF($A26>CR!$AS$15,VLOOKUP($A26,CR!$AP:$AQ,2,FALSE),VLOOKUP($A26,BL!$AR:$AS,2,FALSE))) ->  | K26: =IF(AND($C$1=APRS!$AE$45,A26<A$3),"X","") -> 
A27: 24 | B27: =IF($A27>A$3,"",CR!$Q$7) ->  | C27: =IF($A27>A$3,"",CR!$H$11) ->  | D27: =IF($A27>A$3,"",BL!$U$8) ->  | F27: =IF($A27>A$3,"",IF($A27>CR!$AS$15,VLOOKUP($A27,CR!$AP:$AQ,2,FALSE),VLOOKUP($A27,BL!$AR:$AS,2,FALSE))) ->  | K27: =IF(AND($C$1=APRS!$AE$45,A27<A$3),"X","") -> 
A28: 25 | B28: =IF($A28>A$3,"",CR!$Q$7) ->  | C28: =IF($A28>A$3,"",CR!$H$11) ->  | D28: =IF($A28>A$3,"",BL!$U$8) ->  | F28: =IF($A28>A$3,"",IF($A28>CR!$AS$15,VLOOKUP($A28,CR!$AP:$AQ,2,FALSE),VLOOKUP($A28,BL!$AR:$AS,2,FALSE))) ->  | K28: =IF(AND($C$1=APRS!$AE$45,A28<A$3),"X","") -> 
A29: 26 | B29: =IF($A29>A$3,"",CR!$Q$7) ->  | C29: =IF($A29>A$3,"",CR!$H$11) ->  | D29: =IF($A29>A$3,"",BL!$U$8) ->  | F29: =IF($A29>A$3,"",IF($A29>CR!$AS$15,VLOOKUP($A29,CR!$AP:$AQ,2,FALSE),VLOOKUP($A29,BL!$AR:$AS,2,FALSE))) ->  | K29: =IF(AND($C$1=APRS!$AE$45,A29<A$3),"X","") -> 
A30: 27 | B30: =IF($A30>A$3,"",CR!$Q$7) ->  | C30: =IF($A30>A$3,"",CR!$H$11) ->  | D30: =IF($A30>A$3,"",BL!$U$8) ->  | F30: =IF($A30>A$3,"",IF($A30>CR!$AS$15,VLOOKUP($A30,CR!$AP:$AQ,2,FALSE),VLOOKUP($A30,BL!$AR:$AS,2,FALSE))) ->  | K30: =IF(AND($C$1=APRS!$AE$45,A30<A$3),"X","") -> 
A31: 28 | B31: =IF($A31>A$3,"",CR!$Q$7) ->  | C31: =IF($A31>A$3,"",CR!$H$11) ->  | D31: =IF($A31>A$3,"",BL!$U$8) ->  | F31: =IF($A31>A$3,"",IF($A31>CR!$AS$15,VLOOKUP($A31,CR!$AP:$AQ,2,FALSE),VLOOKUP($A31,BL!$AR:$AS,2,FALSE))) ->  | K31: =IF(AND($C$1=APRS!$AE$45,A31<A$3),"X","") -> 
A32: 29 | B32: =IF($A32>A$3,"",CR!$Q$7) ->  | C32: =IF($A32>A$3,"",CR!$H$11) ->  | D32: =IF($A32>A$3,"",BL!$U$8) ->  | F32: =IF($A32>A$3,"",IF($A32>CR!$AS$15,VLOOKUP($A32,CR!$AP:$AQ,2,FALSE),VLOOKUP($A32,BL!$AR:$AS,2,FALSE))) ->  | K32: =IF(AND($C$1=APRS!$AE$45,A32<A$3),"X","") -> 
A33: 30 | B33: =IF($A33>A$3,"",CR!$Q$7) ->  | C33: =IF($A33>A$3,"",CR!$H$11) ->  | D33: =IF($A33>A$3,"",BL!$U$8) ->  | F33: =IF($A33>A$3,"",IF($A33>CR!$AS$15,VLOOKUP($A33,CR!$AP:$AQ,2,FALSE),VLOOKUP($A33,BL!$AR:$AS,2,FALSE))) ->  | K33: =IF(AND($C$1=APRS!$AE$45,A33<A$3),"X","") -> 
A34: 31 | B34: =IF($A34>A$3,"",CR!$Q$7) ->  | C34: =IF($A34>A$3,"",CR!$H$11) ->  | D34: =IF($A34>A$3,"",BL!$U$8) ->  | F34: =IF($A34>A$3,"",IF($A34>CR!$AS$15,VLOOKUP($A34,CR!$AP:$AQ,2,FALSE),VLOOKUP($A34,BL!$AR:$AS,2,FALSE))) ->  | K34: =IF(AND($C$1=APRS!$AE$45,A34<A$3),"X","") -> 
A35: 32 | B35: =IF($A35>A$3,"",CR!$Q$7) ->  | C35: =IF($A35>A$3,"",CR!$H$11) ->  | D35: =IF($A35>A$3,"",BL!$U$8) ->  | F35: =IF($A35>A$3,"",IF($A35>CR!$AS$15,VLOOKUP($A35,CR!$AP:$AQ,2,FALSE),VLOOKUP($A35,BL!$AR:$AS,2,FALSE))) ->  | K35: =IF(AND($C$1=APRS!$AE$45,A35<A$3),"X","") -> 
A36: 33 | B36: =IF($A36>A$3,"",CR!$Q$7) ->  | C36: =IF($A36>A$3,"",CR!$H$11) ->  | D36: =IF($A36>A$3,"",BL!$U$8) ->  | F36: =IF($A36>A$3,"",IF($A36>CR!$AS$15,VLOOKUP($A36,CR!$AP:$AQ,2,FALSE),VLOOKUP($A36,BL!$AR:$AS,2,FALSE))) ->  | K36: =IF(AND($C$1=APRS!$AE$45,A36<A$3),"X","") -> 
A37: 34 | B37: =IF($A37>A$3,"",CR!$Q$7) ->  | C37: =IF($A37>A$3,"",CR!$H$11) ->  | D37: =IF($A37>A$3,"",BL!$U$8) ->  | F37: =IF($A37>A$3,"",IF($A37>CR!$AS$15,VLOOKUP($A37,CR!$AP:$AQ,2,FALSE),VLOOKUP($A37,BL!$AR:$AS,2,FALSE))) ->  | K37: =IF(AND($C$1=APRS!$AE$45,A37<A$3),"X","") -> 
A38: 35 | B38: =IF($A38>A$3,"",CR!$Q$7) ->  | C38: =IF($A38>A$3,"",CR!$H$11) ->  | D38: =IF($A38>A$3,"",BL!$U$8) ->  | F38: =IF($A38>A$3,"",IF($A38>CR!$AS$15,VLOOKUP($A38,CR!$AP:$AQ,2,FALSE),VLOOKUP($A38,BL!$AR:$AS,2,FALSE))) ->  | K38: =IF(AND($C$1=APRS!$AE$45,A38<A$3),"X","") -> 
A39: 36 | B39: =IF($A39>A$3,"",CR!$Q$7) ->  | C39: =IF($A39>A$3,"",CR!$H$11) ->  | D39: =IF($A39>A$3,"",BL!$U$8) ->  | F39: =IF($A39>A$3,"",IF($A39>CR!$AS$15,VLOOKUP($A39,CR!$AP:$AQ,2,FALSE),VLOOKUP($A39,BL!$AR:$AS,2,FALSE))) ->  | K39: =IF(AND($C$1=APRS!$AE$45,A39<A$3),"X","") -> 
A40: 37 | B40: =IF($A40>A$3,"",CR!$Q$7) ->  | C40: =IF($A40>A$3,"",CR!$H$11) ->  | D40: =IF($A40>A$3,"",BL!$U$8) ->  | F40: =IF($A40>A$3,"",IF($A40>CR!$AS$15,VLOOKUP($A40,CR!$AP:$AQ,2,FALSE),VLOOKUP($A40,BL!$AR:$AS,2,FALSE))) ->  | K40: =IF(AND($C$1=APRS!$AE$45,A40<A$3),"X","") -> 
A41: 38 | B41: =IF($A41>A$3,"",CR!$Q$7) ->  | C41: =IF($A41>A$3,"",CR!$H$11) ->  | D41: =IF($A41>A$3,"",BL!$U$8) ->  | F41: =IF($A41>A$3,"",IF($A41>CR!$AS$15,VLOOKUP($A41,CR!$AP:$AQ,2,FALSE),VLOOKUP($A41,BL!$AR:$AS,2,FALSE))) ->  | K41: =IF(AND($C$1=APRS!$AE$45,A41<A$3),"X","") -> 
A42: 39 | B42: =IF($A42>A$3,"",CR!$Q$7) ->  | C42: =IF($A42>A$3,"",CR!$H$11) ->  | D42: =IF($A42>A$3,"",BL!$U$8) ->  | F42: =IF($A42>A$3,"",IF($A42>CR!$AS$15,VLOOKUP($A42,CR!$AP:$AQ,2,FALSE),VLOOKUP($A42,BL!$AR:$AS,2,FALSE))) ->  | K42: =IF(AND($C$1=APRS!$AE$45,A42<A$3),"X","") -> 
A43: 40 | B43: =IF($A43>A$3,"",CR!$Q$7) ->  | C43: =IF($A43>A$3,"",CR!$H$11) ->  | D43: =IF($A43>A$3,"",BL!$U$8) ->  | F43: =IF($A43>A$3,"",IF($A43>CR!$AS$15,VLOOKUP($A43,CR!$AP:$AQ,2,FALSE),VLOOKUP($A43,BL!$AR:$AS,2,FALSE))) ->  | K43: =IF(AND($C$1=APRS!$AE$45,A43<A$3),"X","") -> 
A44: 41 | B44: =IF($A44>A$3,"",CR!$Q$7) ->  | C44: =IF($A44>A$3,"",CR!$H$11) ->  | D44: =IF($A44>A$3,"",BL!$U$8) ->  | F44: =IF($A44>A$3,"",IF($A44>CR!$AS$15,VLOOKUP($A44,CR!$AP:$AQ,2,FALSE),VLOOKUP($A44,BL!$AR:$AS,2,FALSE))) ->  | K44: =IF(AND($C$1=APRS!$AE$45,A44<A$3),"X","") -> 
A45: 42 | B45: =IF($A45>A$3,"",CR!$Q$7) ->  | C45: =IF($A45>A$3,"",CR!$H$11) ->  | D45: =IF($A45>A$3,"",BL!$U$8) ->  | F45: =IF($A45>A$3,"",IF($A45>CR!$AS$15,VLOOKUP($A45,CR!$AP:$AQ,2,FALSE),VLOOKUP($A45,BL!$AR:$AS,2,FALSE))) ->  | K45: =IF(AND($C$1=APRS!$AE$45,A45<A$3),"X","") -> 
A46: 43 | B46: =IF($A46>A$3,"",CR!$Q$7) ->  | C46: =IF($A46>A$3,"",CR!$H$11) ->  | D46: =IF($A46>A$3,"",BL!$U$8) ->  | F46: =IF($A46>A$3,"",IF($A46>CR!$AS$15,VLOOKUP($A46,CR!$AP:$AQ,2,FALSE),VLOOKUP($A46,BL!$AR:$AS,2,FALSE))) ->  | K46: =IF(AND($C$1=APRS!$AE$45,A46<A$3),"X","") -> 
A47: 44 | B47: =IF($A47>A$3,"",CR!$Q$7) ->  | C47: =IF($A47>A$3,"",CR!$H$11) ->  | D47: =IF($A47>A$3,"",BL!$U$8) ->  | F47: =IF($A47>A$3,"",IF($A47>CR!$AS$15,VLOOKUP($A47,CR!$AP:$AQ,2,FALSE),VLOOKUP($A47,BL!$AR:$AS,2,FALSE))) ->  | K47: =IF(AND($C$1=APRS!$AE$45,A47<A$3),"X","") -> 
A48: 45 | B48: =IF($A48>A$3,"",CR!$Q$7) ->  | C48: =IF($A48>A$3,"",CR!$H$11) ->  | D48: =IF($A48>A$3,"",BL!$U$8) ->  | F48: =IF($A48>A$3,"",IF($A48>CR!$AS$15,VLOOKUP($A48,CR!$AP:$AQ,2,FALSE),VLOOKUP($A48,BL!$AR:$AS,2,FALSE))) ->  | K48: =IF(AND($C$1=APRS!$AE$45,A48<A$3),"X","") -> 
A49: 46 | B49: =IF($A49>A$3,"",CR!$Q$7) ->  | C49: =IF($A49>A$3,"",CR!$H$11) ->  | D49: =IF($A49>A$3,"",BL!$U$8) ->  | F49: =IF($A49>A$3,"",IF($A49>CR!$AS$15,VLOOKUP($A49,CR!$AP:$AQ,2,FALSE),VLOOKUP($A49,BL!$AR:$AS,2,FALSE))) ->  | K49: =IF(AND($C$1=APRS!$AE$45,A49<A$3),"X","") -> 
A50: 47 | B50: =IF($A50>A$3,"",CR!$Q$7) ->  | C50: =IF($A50>A$3,"",CR!$H$11) ->  | D50: =IF($A50>A$3,"",BL!$U$8) ->  | F50: =IF($A50>A$3,"",IF($A50>CR!$AS$15,VLOOKUP($A50,CR!$AP:$AQ,2,FALSE),VLOOKUP($A50,BL!$AR:$AS,2,FALSE))) ->  | K50: =IF(AND($C$1=APRS!$AE$45,A50<A$3),"X","") -> 
A51: 48 | B51: =IF($A51>A$3,"",CR!$Q$7) ->  | C51: =IF($A51>A$3,"",CR!$H$11) ->  | D51: =IF($A51>A$3,"",BL!$U$8) ->  | F51: =IF($A51>A$3,"",IF($A51>CR!$AS$15,VLOOKUP($A51,CR!$AP:$AQ,2,FALSE),VLOOKUP($A51,BL!$AR:$AS,2,FALSE))) ->  | K51: =IF(AND($C$1=APRS!$AE$45,A51<A$3),"X","") -> 
A52: 49 | B52: =IF($A52>A$3,"",CR!$Q$7) ->  | C52: =IF($A52>A$3,"",CR!$H$11) ->  | D52: =IF($A52>A$3,"",BL!$U$8) ->  | F52: =IF($A52>A$3,"",IF($A52>CR!$AS$15,VLOOKUP($A52,CR!$AP:$AQ,2,FALSE),VLOOKUP($A52,BL!$AR:$AS,2,FALSE))) ->  | K52: =IF(AND($C$1=APRS!$AE$45,A52<A$3),"X","") -> 
A53: 50 | B53: =IF($A53>A$3,"",CR!$Q$7) ->  | C53: =IF($A53>A$3,"",CR!$H$11) ->  | D53: =IF($A53>A$3,"",BL!$U$8) ->  | F53: =IF($A53>A$3,"",IF($A53>CR!$AS$15,VLOOKUP($A53,CR!$AP:$AQ,2,FALSE),VLOOKUP($A53,BL!$AR:$AS,2,FALSE))) ->  | K53: =IF(AND($C$1=APRS!$AE$45,A53<A$3),"X","") -> 
A54: 51 | B54: =IF($A54>A$3,"",CR!$Q$7) ->  | C54: =IF($A54>A$3,"",CR!$H$11) ->  | D54: =IF($A54>A$3,"",BL!$U$8) ->  | F54: =IF($A54>A$3,"",IF($A54>CR!$AS$15,VLOOKUP($A54,CR!$AP:$AQ,2,FALSE),VLOOKUP($A54,BL!$AR:$AS,2,FALSE))) ->  | K54: =IF(AND($C$1=APRS!$AE$45,A54<A$3),"X","") -> 
A55: 52 | B55: =IF($A55>A$3,"",CR!$Q$7) ->  | C55: =IF($A55>A$3,"",CR!$H$11) ->  | D55: =IF($A55>A$3,"",BL!$U$8) ->  | F55: =IF($A55>A$3,"",IF($A55>CR!$AS$15,VLOOKUP($A55,CR!$AP:$AQ,2,FALSE),VLOOKUP($A55,BL!$AR:$AS,2,FALSE))) ->  | K55: =IF(AND($C$1=APRS!$AE$45,A55<A$3),"X","") -> 
A56: 53 | B56: =IF($A56>A$3,"",CR!$Q$7) ->  | C56: =IF($A56>A$3,"",CR!$H$11) ->  | D56: =IF($A56>A$3,"",BL!$U$8) ->  | F56: =IF($A56>A$3,"",IF($A56>CR!$AS$15,VLOOKUP($A56,CR!$AP:$AQ,2,FALSE),VLOOKUP($A56,BL!$AR:$AS,2,FALSE))) ->  | K56: =IF(AND($C$1=APRS!$AE$45,A56<A$3),"X","") -> 
A57: 54 | B57: =IF($A57>A$3,"",CR!$Q$7) ->  | C57: =IF($A57>A$3,"",CR!$H$11) ->  | D57: =IF($A57>A$3,"",BL!$U$8) ->  | F57: =IF($A57>A$3,"",IF($A57>CR!$AS$15,VLOOKUP($A57,CR!$AP:$AQ,2,FALSE),VLOOKUP($A57,BL!$AR:$AS,2,FALSE))) ->  | K57: =IF(AND($C$1=APRS!$AE$45,A57<A$3),"X","") -> 
A58: 55 | B58: =IF($A58>A$3,"",CR!$Q$7) ->  | C58: =IF($A58>A$3,"",CR!$H$11) ->  | D58: =IF($A58>A$3,"",BL!$U$8) ->  | F58: =IF($A58>A$3,"",IF($A58>CR!$AS$15,VLOOKUP($A58,CR!$AP:$AQ,2,FALSE),VLOOKUP($A58,BL!$AR:$AS,2,FALSE))) ->  | K58: =IF(AND($C$1=APRS!$AE$45,A58<A$3),"X","") -> 
A59: 56 | B59: =IF($A59>A$3,"",CR!$Q$7) ->  | C59: =IF($A59>A$3,"",CR!$H$11) ->  | D59: =IF($A59>A$3,"",BL!$U$8) ->  | F59: =IF($A59>A$3,"",IF($A59>CR!$AS$15,VLOOKUP($A59,CR!$AP:$AQ,2,FALSE),VLOOKUP($A59,BL!$AR:$AS,2,FALSE))) ->  | K59: =IF(AND($C$1=APRS!$AE$45,A59<A$3),"X","") -> 
A60: 57 | B60: =IF($A60>A$3,"",CR!$Q$7) ->  | C60: =IF($A60>A$3,"",CR!$H$11) ->  | D60: =IF($A60>A$3,"",BL!$U$8) ->  | F60: =IF($A60>A$3,"",IF($A60>CR!$AS$15,VLOOKUP($A60,CR!$AP:$AQ,2,FALSE),VLOOKUP($A60,BL!$AR:$AS,2,FALSE))) ->  | K60: =IF(AND($C$1=APRS!$AE$45,A60<A$3),"X","") -> 
A61: 58 | B61: =IF($A61>A$3,"",CR!$Q$7) ->  | C61: =IF($A61>A$3,"",CR!$H$11) ->  | D61: =IF($A61>A$3,"",BL!$U$8) ->  | F61: =IF($A61>A$3,"",IF($A61>CR!$AS$15,VLOOKUP($A61,CR!$AP:$AQ,2,FALSE),VLOOKUP($A61,BL!$AR:$AS,2,FALSE))) ->  | K61: =IF(AND($C$1=APRS!$AE$45,A61<A$3),"X","") -> 
A62: 59 | B62: =IF($A62>A$3,"",CR!$Q$7) ->  | C62: =IF($A62>A$3,"",CR!$H$11) ->  | D62: =IF($A62>A$3,"",BL!$U$8) ->  | F62: =IF($A62>A$3,"",IF($A62>CR!$AS$15,VLOOKUP($A62,CR!$AP:$AQ,2,FALSE),VLOOKUP($A62,BL!$AR:$AS,2,FALSE))) ->  | K62: =IF(AND($C$1=APRS!$AE$45,A62<A$3),"X","") -> 
A63: 60 | B63: =IF($A63>A$3,"",CR!$Q$7) ->  | C63: =IF($A63>A$3,"",CR!$H$11) ->  | D63: =IF($A63>A$3,"",BL!$U$8) ->  | F63: =IF($A63>A$3,"",IF($A63>CR!$AS$15,VLOOKUP($A63,CR!$AP:$AQ,2,FALSE),VLOOKUP($A63,BL!$AR:$AS,2,FALSE))) ->  | K63: =IF(AND($C$1=APRS!$AE$45,A63<A$3),"X","") -> 
A64: 61 | B64: =IF($A64>A$3,"",CR!$Q$7) ->  | C64: =IF($A64>A$3,"",CR!$H$11) ->  | D64: =IF($A64>A$3,"",BL!$U$8) ->  | F64: =IF($A64>A$3,"",IF($A64>CR!$AS$15,VLOOKUP($A64,CR!$AP:$AQ,2,FALSE),VLOOKUP($A64,BL!$AR:$AS,2,FALSE))) ->  | K64: =IF(AND($C$1=APRS!$AE$45,A64<A$3),"X","") -> 
A65: 62 | B65: =IF($A65>A$3,"",CR!$Q$7) ->  | C65: =IF($A65>A$3,"",CR!$H$11) ->  | D65: =IF($A65>A$3,"",BL!$U$8) ->  | F65: =IF($A65>A$3,"",IF($A65>CR!$AS$15,VLOOKUP($A65,CR!$AP:$AQ,2,FALSE),VLOOKUP($A65,BL!$AR:$AS,2,FALSE))) ->  | K65: =IF(AND($C$1=APRS!$AE$45,A65<A$3),"X","") -> 
A66: 63 | B66: =IF($A66>A$3,"",CR!$Q$7) ->  | C66: =IF($A66>A$3,"",CR!$H$11) ->  | D66: =IF($A66>A$3,"",BL!$U$8) ->  | F66: =IF($A66>A$3,"",IF($A66>CR!$AS$15,VLOOKUP($A66,CR!$AP:$AQ,2,FALSE),VLOOKUP($A66,BL!$AR:$AS,2,FALSE))) ->  | K66: =IF(AND($C$1=APRS!$AE$45,A66<A$3),"X","") -> 
A67: 64 | B67: =IF($A67>A$3,"",CR!$Q$7) ->  | C67: =IF($A67>A$3,"",CR!$H$11) ->  | D67: =IF($A67>A$3,"",BL!$U$8) ->  | F67: =IF($A67>A$3,"",IF($A67>CR!$AS$15,VLOOKUP($A67,CR!$AP:$AQ,2,FALSE),VLOOKUP($A67,BL!$AR:$AS,2,FALSE))) ->  | K67: =IF(AND($C$1=APRS!$AE$45,A67<A$3),"X","") -> 
A68: 65 | B68: =IF($A68>A$3,"",CR!$Q$7) ->  | C68: =IF($A68>A$3,"",CR!$H$11) ->  | D68: =IF($A68>A$3,"",BL!$U$8) ->  | F68: =IF($A68>A$3,"",IF($A68>CR!$AS$15,VLOOKUP($A68,CR!$AP:$AQ,2,FALSE),VLOOKUP($A68,BL!$AR:$AS,2,FALSE))) ->  | K68: =IF(AND($C$1=APRS!$AE$45,A68<A$3),"X","") -> 
A69: 66 | B69: =IF($A69>A$3,"",CR!$Q$7) ->  | C69: =IF($A69>A$3,"",CR!$H$11) ->  | D69: =IF($A69>A$3,"",BL!$U$8) ->  | F69: =IF($A69>A$3,"",IF($A69>CR!$AS$15,VLOOKUP($A69,CR!$AP:$AQ,2,FALSE),VLOOKUP($A69,BL!$AR:$AS,2,FALSE))) ->  | G69: =IF(AND(A69<A$3,$C$1="A. MANN"),"X","") ->  | H69: =IF(A69>A$3,"","X") ->  | K69: =IF(AND($C$1=APRS!$AE$45,A69<A$3),"X","") -> 
A70: 67 | B70: =IF($A70>A$3,"",CR!$Q$7) ->  | C70: =IF($A70>A$3,"",CR!$H$11) ->  | D70: =IF($A70>A$3,"",BL!$U$8) ->  | F70: =IF($A70>A$3,"",IF($A70>CR!$AS$15,VLOOKUP($A70,CR!$AP:$AQ,2,FALSE),VLOOKUP($A70,BL!$AR:$AS,2,FALSE))) ->  | K70: =IF(AND($C$1=APRS!$AE$45,A70<A$3),"X","") -> 
A71: 68 | B71: =IF($A71>A$3,"",CR!$Q$7) ->  | C71: =IF($A71>A$3,"",CR!$H$11) ->  | D71: =IF($A71>A$3,"",BL!$U$8) ->  | F71: =IF($A71>A$3,"",IF($A71>CR!$AS$15,VLOOKUP($A71,CR!$AP:$AQ,2,FALSE),VLOOKUP($A71,BL!$AR:$AS,2,FALSE))) ->  | K71: =IF(AND($C$1=APRS!$AE$45,A71<A$3),"X","") -> 
A72: 69 | B72: =IF($A72>A$3,"",CR!$Q$7) ->  | C72: =IF($A72>A$3,"",CR!$H$11) ->  | D72: =IF($A72>A$3,"",BL!$U$8) ->  | F72: =IF($A72>A$3,"",IF($A72>CR!$AS$15,VLOOKUP($A72,CR!$AP:$AQ,2,FALSE),VLOOKUP($A72,BL!$AR:$AS,2,FALSE))) ->  | K72: =IF(AND($C$1=APRS!$AE$45,A72<A$3),"X","") -> 
A73: 70 | B73: =IF($A73>A$3,"",CR!$Q$7) ->  | C73: =IF($A73>A$3,"",CR!$H$11) ->  | D73: =IF($A73>A$3,"",BL!$U$8) ->  | F73: =IF($A73>A$3,"",IF($A73>CR!$AS$15,VLOOKUP($A73,CR!$AP:$AQ,2,FALSE),VLOOKUP($A73,BL!$AR:$AS,2,FALSE))) ->  | K73: =IF(AND($C$1=APRS!$AE$45,A73<A$3),"X","") -> 
A74: 71 | B74: =IF($A74>A$3,"",CR!$Q$7) ->  | C74: =IF($A74>A$3,"",CR!$H$11) ->  | D74: =IF($A74>A$3,"",BL!$U$8) ->  | F74: =IF($A74>A$3,"",IF($A74>CR!$AS$15,VLOOKUP($A74,CR!$AP:$AQ,2,FALSE),VLOOKUP($A74,BL!$AR:$AS,2,FALSE))) ->  | K74: =IF(AND($C$1=APRS!$AE$45,A74<A$3),"X","") -> 
A75: 72 | B75: =IF($A75>A$3,"",CR!$Q$7) ->  | C75: =IF($A75>A$3,"",CR!$H$11) ->  | D75: =IF($A75>A$3,"",BL!$U$8) ->  | F75: =IF($A75>A$3,"",IF($A75>CR!$AS$15,VLOOKUP($A75,CR!$AP:$AQ,2,FALSE),VLOOKUP($A75,BL!$AR:$AS,2,FALSE))) ->  | K75: =IF(AND($C$1=APRS!$AE$45,A75<A$3),"X","") -> 
A76: 73 | B76: =IF($A76>A$3,"",CR!$Q$7) ->  | C76: =IF($A76>A$3,"",CR!$H$11) ->  | D76: =IF($A76>A$3,"",BL!$U$8) ->  | F76: =IF($A76>A$3,"",IF($A76>CR!$AS$15,VLOOKUP($A76,CR!$AP:$AQ,2,FALSE),VLOOKUP($A76,BL!$AR:$AS,2,FALSE))) ->  | K76: =IF(AND($C$1=APRS!$AE$45,A76<A$3),"X","") -> 
A77: 74 | B77: =IF($A77>A$3,"",CR!$Q$7) ->  | C77: =IF($A77>A$3,"",CR!$H$11) ->  | D77: =IF($A77>A$3,"",BL!$U$8) ->  | F77: =IF($A77>A$3,"",IF($A77>CR!$AS$15,VLOOKUP($A77,CR!$AP:$AQ,2,FALSE),VLOOKUP($A77,BL!$AR:$AS,2,FALSE))) ->  | K77: =IF(AND($C$1=APRS!$AE$45,A77<A$3),"X","") -> 
A78: 75 | B78: =IF($A78>A$3,"",CR!$Q$7) ->  | C78: =IF($A78>A$3,"",CR!$H$11) ->  | D78: =IF($A78>A$3,"",BL!$U$8) ->  | F78: =IF($A78>A$3,"",IF($A78>CR!$AS$15,VLOOKUP($A78,CR!$AP:$AQ,2,FALSE),VLOOKUP($A78,BL!$AR:$AS,2,FALSE))) ->  | K78: =IF(AND($C$1=APRS!$AE$45,A78<A$3),"X","") -> 
A79: 76 | B79: =IF($A79>A$3,"",CR!$Q$7) ->  | C79: =IF($A79>A$3,"",CR!$H$11) ->  | D79: =IF($A79>A$3,"",BL!$U$8) ->  | F79: =IF($A79>A$3,"",IF($A79>CR!$AS$15,VLOOKUP($A79,CR!$AP:$AQ,2,FALSE),VLOOKUP($A79,BL!$AR:$AS,2,FALSE))) ->  | K79: =IF(AND($C$1=APRS!$AE$45,A79<A$3),"X","") -> 
A80: 77 | B80: =IF($A80>A$3,"",CR!$Q$7) ->  | C80: =IF($A80>A$3,"",CR!$H$11) ->  | D80: =IF($A80>A$3,"",BL!$U$8) ->  | F80: =IF($A80>A$3,"",IF($A80>CR!$AS$15,VLOOKUP($A80,CR!$AP:$AQ,2,FALSE),VLOOKUP($A80,BL!$AR:$AS,2,FALSE))) ->  | K80: =IF(AND($C$1=APRS!$AE$45,A80<A$3),"X","") -> 
A81: 78 | B81: =IF($A81>A$3,"",CR!$Q$7) ->  | C81: =IF($A81>A$3,"",CR!$H$11) ->  | D81: =IF($A81>A$3,"",BL!$U$8) ->  | F81: =IF($A81>A$3,"",IF($A81>CR!$AS$15,VLOOKUP($A81,CR!$AP:$AQ,2,FALSE),VLOOKUP($A81,BL!$AR:$AS,2,FALSE))) ->  | K81: =IF(AND($C$1=APRS!$AE$45,A81<A$3),"X","") -> 
A82: 79 | B82: =IF($A82>A$3,"",CR!$Q$7) ->  | C82: =IF($A82>A$3,"",CR!$H$11) ->  | D82: =IF($A82>A$3,"",BL!$U$8) ->  | F82: =IF($A82>A$3,"",IF($A82>CR!$AS$15,VLOOKUP($A82,CR!$AP:$AQ,2,FALSE),VLOOKUP($A82,BL!$AR:$AS,2,FALSE))) ->  | K82: =IF(AND($C$1=APRS!$AE$45,A82<A$3),"X","") -> 
A83: 80 | B83: =IF($A83>A$3,"",CR!$Q$7) ->  | C83: =IF($A83>A$3,"",CR!$H$11) ->  | D83: =IF($A83>A$3,"",BL!$U$8) ->  | F83: =IF($A83>A$3,"",IF($A83>CR!$AS$15,VLOOKUP($A83,CR!$AP:$AQ,2,FALSE),VLOOKUP($A83,BL!$AR:$AS,2,FALSE))) ->  | K83: =IF(AND($C$1=APRS!$AE$45,A83<A$3),"X","") -> 
A84: 81 | B84: =IF($A84>A$3,"",CR!$Q$7) ->  | C84: =IF($A84>A$3,"",CR!$H$11) ->  | D84: =IF($A84>A$3,"",BL!$U$8) ->  | F84: =IF($A84>A$3,"",IF($A84>CR!$AS$15,VLOOKUP($A84,CR!$AP:$AQ,2,FALSE),VLOOKUP($A84,BL!$AR:$AS,2,FALSE))) ->  | K84: =IF(AND($C$1=APRS!$AE$45,A84<A$3),"X","") -> 
A85: 82 | B85: =IF($A85>A$3,"",CR!$Q$7) ->  | C85: =IF($A85>A$3,"",CR!$H$11) ->  | D85: =IF($A85>A$3,"",BL!$U$8) ->  | F85: =IF($A85>A$3,"",IF($A85>CR!$AS$15,VLOOKUP($A85,CR!$AP:$AQ,2,FALSE),VLOOKUP($A85,BL!$AR:$AS,2,FALSE))) ->  | K85: =IF(AND($C$1=APRS!$AE$45,A85<A$3),"X","") -> 
A86: 83 | B86: =IF($A86>A$3,"",CR!$Q$7) ->  | C86: =IF($A86>A$3,"",CR!$H$11) ->  | D86: =IF($A86>A$3,"",BL!$U$8) ->  | F86: =IF($A86>A$3,"",IF($A86>CR!$AS$15,VLOOKUP($A86,CR!$AP:$AQ,2,FALSE),VLOOKUP($A86,BL!$AR:$AS,2,FALSE))) ->  | K86: =IF(AND($C$1=APRS!$AE$45,A86<A$3),"X","") -> 
A87: 84 | B87: =IF($A87>A$3,"",CR!$Q$7) ->  | C87: =IF($A87>A$3,"",CR!$H$11) ->  | D87: =IF($A87>A$3,"",BL!$U$8) ->  | F87: =IF($A87>A$3,"",IF($A87>CR!$AS$15,VLOOKUP($A87,CR!$AP:$AQ,2,FALSE),VLOOKUP($A87,BL!$AR:$AS,2,FALSE))) ->  | K87: =IF(AND($C$1=APRS!$AE$45,A87<A$3),"X","") -> 
A88: 85 | B88: =IF($A88>A$3,"",CR!$Q$7) ->  | C88: =IF($A88>A$3,"",CR!$H$11) ->  | D88: =IF($A88>A$3,"",BL!$U$8) ->  | F88: =IF($A88>A$3,"",IF($A88>CR!$AS$15,VLOOKUP($A88,CR!$AP:$AQ,2,FALSE),VLOOKUP($A88,BL!$AR:$AS,2,FALSE))) ->  | K88: =IF(AND($C$1=APRS!$AE$45,A88<A$3),"X","") -> 
A89: 86 | B89: =IF($A89>A$3,"",CR!$Q$7) ->  | C89: =IF($A89>A$3,"",CR!$H$11) ->  | D89: =IF($A89>A$3,"",BL!$U$8) ->  | F89: =IF($A89>A$3,"",IF($A89>CR!$AS$15,VLOOKUP($A89,CR!$AP:$AQ,2,FALSE),VLOOKUP($A89,BL!$AR:$AS,2,FALSE))) ->  | K89: =IF(AND($C$1=APRS!$AE$45,A89<A$3),"X","") -> 
A90: 87 | B90: =IF($A90>A$3,"",CR!$Q$7) ->  | C90: =IF($A90>A$3,"",CR!$H$11) ->  | D90: =IF($A90>A$3,"",BL!$U$8) ->  | F90: =IF($A90>A$3,"",IF($A90>CR!$AS$15,VLOOKUP($A90,CR!$AP:$AQ,2,FALSE),VLOOKUP($A90,BL!$AR:$AS,2,FALSE))) ->  | K90: =IF(AND($C$1=APRS!$AE$45,A90<A$3),"X","") -> 
A91: 88 | B91: =IF($A91>A$3,"",CR!$Q$7) ->  | C91: =IF($A91>A$3,"",CR!$H$11) ->  | D91: =IF($A91>A$3,"",BL!$U$8) ->  | F91: =IF($A91>A$3,"",IF($A91>CR!$AS$15,VLOOKUP($A91,CR!$AP:$AQ,2,FALSE),VLOOKUP($A91,BL!$AR:$AS,2,FALSE))) ->  | K91: =IF(AND($C$1=APRS!$AE$45,A91<A$3),"X","") -> 
A92: 89 | B92: =IF($A92>A$3,"",CR!$Q$7) ->  | C92: =IF($A92>A$3,"",CR!$H$11) ->  | D92: =IF($A92>A$3,"",BL!$U$8) ->  | F92: =IF($A92>A$3,"",IF($A92>CR!$AS$15,VLOOKUP($A92,CR!$AP:$AQ,2,FALSE),VLOOKUP($A92,BL!$AR:$AS,2,FALSE))) ->  | K92: =IF(AND($C$1=APRS!$AE$45,A92<A$3),"X","") -> 
A93: 90 | B93: =IF($A93>A$3,"",CR!$Q$7) ->  | C93: =IF($A93>A$3,"",CR!$H$11) ->  | D93: =IF($A93>A$3,"",BL!$U$8) ->  | F93: =IF($A93>A$3,"",IF($A93>CR!$AS$15,VLOOKUP($A93,CR!$AP:$AQ,2,FALSE),VLOOKUP($A93,BL!$AR:$AS,2,FALSE))) ->  | K93: =IF(AND($C$1=APRS!$AE$45,A93<A$3),"X","") -> 
A94: 91 | B94: =IF($A94>A$3,"",CR!$Q$7) ->  | C94: =IF($A94>A$3,"",CR!$H$11) ->  | D94: =IF($A94>A$3,"",BL!$U$8) ->  | F94: =IF($A94>A$3,"",IF($A94>CR!$AS$15,VLOOKUP($A94,CR!$AP:$AQ,2,FALSE),VLOOKUP($A94,BL!$AR:$AS,2,FALSE))) ->  | K94: =IF(AND($C$1=APRS!$AE$45,A94<A$3),"X","") -> 
A95: 92 | B95: =IF($A95>A$3,"",CR!$Q$7) ->  | C95: =IF($A95>A$3,"",CR!$H$11) ->  | D95: =IF($A95>A$3,"",BL!$U$8) ->  | F95: =IF($A95>A$3,"",IF($A95>CR!$AS$15,VLOOKUP($A95,CR!$AP:$AQ,2,FALSE),VLOOKUP($A95,BL!$AR:$AS,2,FALSE))) ->  | K95: =IF(AND($C$1=APRS!$AE$45,A95<A$3),"X","") -> 
A96: 93 | B96: =IF($A96>A$3,"",CR!$Q$7) ->  | C96: =IF($A96>A$3,"",CR!$H$11) ->  | D96: =IF($A96>A$3,"",BL!$U$8) ->  | F96: =IF($A96>A$3,"",IF($A96>CR!$AS$15,VLOOKUP($A96,CR!$AP:$AQ,2,FALSE),VLOOKUP($A96,BL!$AR:$AS,2,FALSE))) ->  | K96: =IF(AND($C$1=APRS!$AE$45,A96<A$3),"X","") -> 
A97: 94 | B97: =IF($A97>A$3,"",CR!$Q$7) ->  | C97: =IF($A97>A$3,"",CR!$H$11) ->  | D97: =IF($A97>A$3,"",BL!$U$8) ->  | F97: =IF($A97>A$3,"",IF($A97>CR!$AS$15,VLOOKUP($A97,CR!$AP:$AQ,2,FALSE),VLOOKUP($A97,BL!$AR:$AS,2,FALSE))) ->  | K97: =IF(AND($C$1=APRS!$AE$45,A97<A$3),"X","") -> 
A98: 95 | B98: =IF($A98>A$3,"",CR!$Q$7) ->  | C98: =IF($A98>A$3,"",CR!$H$11) ->  | D98: =IF($A98>A$3,"",BL!$U$8) ->  | F98: =IF($A98>A$3,"",IF($A98>CR!$AS$15,VLOOKUP($A98,CR!$AP:$AQ,2,FALSE),VLOOKUP($A98,BL!$AR:$AS,2,FALSE))) ->  | K98: =IF(AND($C$1=APRS!$AE$45,A98<A$3),"X","") -> 
A99: 96 | B99: =IF($A99>A$3,"",CR!$Q$7) ->  | C99: =IF($A99>A$3,"",CR!$H$11) ->  | D99: =IF($A99>A$3,"",BL!$U$8) ->  | F99: =IF($A99>A$3,"",IF($A99>CR!$AS$15,VLOOKUP($A99,CR!$AP:$AQ,2,FALSE),VLOOKUP($A99,BL!$AR:$AS,2,FALSE))) ->  | K99: =IF(AND($C$1=APRS!$AE$45,A99<A$3),"X","") -> 
A100: 97 | B100: =IF($A100>A$3,"",CR!$Q$7) ->  | C100: =IF($A100>A$3,"",CR!$H$11) ->  | D100: =IF($A100>A$3,"",BL!$U$8) ->  | F100: =IF($A100>A$3,"",IF($A100>CR!$AS$15,VLOOKUP($A100,CR!$AP:$AQ,2,FALSE),VLOOKUP($A100,BL!$AR:$AS,2,FALSE))) ->  | K100: =IF(AND($C$1=APRS!$AE$45,A100<A$3),"X","") -> 
A101: 98 | B101: =IF($A101>A$3,"",CR!$Q$7) ->  | C101: =IF($A101>A$3,"",CR!$H$11) ->  | D101: =IF($A101>A$3,"",BL!$U$8) ->  | F101: =IF($A101>A$3,"",IF($A101>CR!$AS$15,VLOOKUP($A101,CR!$AP:$AQ,2,FALSE),VLOOKUP($A101,BL!$AR:$AS,2,FALSE))) ->  | K101: =IF(AND($C$1=APRS!$AE$45,A101<A$3),"X","") -> 
A102: 99 | B102: =IF($A102>A$3,"",CR!$Q$7) ->  | C102: =IF($A102>A$3,"",CR!$H$11) ->  | D102: =IF($A102>A$3,"",BL!$U$8) ->  | F102: =IF($A102>A$3,"",IF($A102>CR!$AS$15,VLOOKUP($A102,CR!$AP:$AQ,2,FALSE),VLOOKUP($A102,BL!$AR:$AS,2,FALSE))) ->  | K102: =IF(AND($C$1=APRS!$AE$45,A102<A$3),"X","") -> 
A103: 100 | B103: =IF($A103>A$3,"",CR!$Q$7) ->  | C103: =IF($A103>A$3,"",CR!$H$11) ->  | D103: =IF($A103>A$3,"",BL!$U$8) ->  | F103: =IF($A103>A$3,"",IF($A103>CR!$AS$15,VLOOKUP($A103,CR!$AP:$AQ,2,FALSE),VLOOKUP($A103,BL!$AR:$AS,2,FALSE))) ->  | K103: =IF(AND($C$1=APRS!$AE$45,A103<A$3),"X","") -> 
A104: 101 | B104: =IF($A104>A$3,"",CR!$Q$7) ->  | C104: =IF($A104>A$3,"",CR!$H$11) ->  | D104: =IF($A104>A$3,"",BL!$U$8) ->  | F104: =IF($A104>A$3,"",IF($A104>CR!$AS$15,VLOOKUP($A104,CR!$AP:$AQ,2,FALSE),VLOOKUP($A104,BL!$AR:$AS,2,FALSE))) ->  | K104: =IF(AND($C$1=APRS!$AE$45,A104<A$3),"X","") -> 
A105: 102 | B105: =IF($A105>A$3,"",CR!$Q$7) ->  | C105: =IF($A105>A$3,"",CR!$H$11) ->  | D105: =IF($A105>A$3,"",BL!$U$8) ->  | F105: =IF($A105>A$3,"",IF($A105>CR!$AS$15,VLOOKUP($A105,CR!$AP:$AQ,2,FALSE),VLOOKUP($A105,BL!$AR:$AS,2,FALSE))) ->  | K105: =IF(AND($C$1=APRS!$AE$45,A105<A$3),"X","") -> 
A106: 103 | B106: =IF($A106>A$3,"",CR!$Q$7) ->  | C106: =IF($A106>A$3,"",CR!$H$11) ->  | D106: =IF($A106>A$3,"",BL!$U$8) ->  | F106: =IF($A106>A$3,"",IF($A106>CR!$AS$15,VLOOKUP($A106,CR!$AP:$AQ,2,FALSE),VLOOKUP($A106,BL!$AR:$AS,2,FALSE))) ->  | K106: =IF(AND($C$1=APRS!$AE$45,A106<A$3),"X","") -> 
A107: 104 | B107: =IF($A107>A$3,"",CR!$Q$7) ->  | C107: =IF($A107>A$3,"",CR!$H$11) ->  | D107: =IF($A107>A$3,"",BL!$U$8) ->  | F107: =IF($A107>A$3,"",IF($A107>CR!$AS$15,VLOOKUP($A107,CR!$AP:$AQ,2,FALSE),VLOOKUP($A107,BL!$AR:$AS,2,FALSE))) ->  | K107: =IF(AND($C$1=APRS!$AE$45,A107<A$3),"X","") -> 
A108: 105 | B108: =IF($A108>A$3,"",CR!$Q$7) ->  | C108: =IF($A108>A$3,"",CR!$H$11) ->  | D108: =IF($A108>A$3,"",BL!$U$8) ->  | F108: =IF($A108>A$3,"",IF($A108>CR!$AS$15,VLOOKUP($A108,CR!$AP:$AQ,2,FALSE),VLOOKUP($A108,BL!$AR:$AS,2,FALSE))) ->  | K108: =IF(AND($C$1=APRS!$AE$45,A108<A$3),"X","") -> 
A109: 106 | B109: =IF($A109>A$3,"",CR!$Q$7) ->  | C109: =IF($A109>A$3,"",CR!$H$11) ->  | D109: =IF($A109>A$3,"",BL!$U$8) ->  | F109: =IF($A109>A$3,"",IF($A109>CR!$AS$15,VLOOKUP($A109,CR!$AP:$AQ,2,FALSE),VLOOKUP($A109,BL!$AR:$AS,2,FALSE))) ->  | K109: =IF(AND($C$1=APRS!$AE$45,A109<A$3),"X","") -> 
A110: 107 | B110: =IF($A110>A$3,"",CR!$Q$7) ->  | C110: =IF($A110>A$3,"",CR!$H$11) ->  | D110: =IF($A110>A$3,"",BL!$U$8) ->  | F110: =IF($A110>A$3,"",IF($A110>CR!$AS$15,VLOOKUP($A110,CR!$AP:$AQ,2,FALSE),VLOOKUP($A110,BL!$AR:$AS,2,FALSE))) ->  | K110: =IF(AND($C$1=APRS!$AE$45,A110<A$3),"X","") -> 
A111: 108 | B111: =IF($A111>A$3,"",CR!$Q$7) ->  | C111: =IF($A111>A$3,"",CR!$H$11) ->  | D111: =IF($A111>A$3,"",BL!$U$8) ->  | F111: =IF($A111>A$3,"",IF($A111>CR!$AS$15,VLOOKUP($A111,CR!$AP:$AQ,2,FALSE),VLOOKUP($A111,BL!$AR:$AS,2,FALSE))) ->  | K111: =IF(AND($C$1=APRS!$AE$45,A111<A$3),"X","") -> 
A112: 109 | B112: =IF($A112>A$3,"",CR!$Q$7) ->  | C112: =IF($A112>A$3,"",CR!$H$11) ->  | D112: =IF($A112>A$3,"",BL!$U$8) ->  | F112: =IF($A112>A$3,"",IF($A112>CR!$AS$15,VLOOKUP($A112,CR!$AP:$AQ,2,FALSE),VLOOKUP($A112,BL!$AR:$AS,2,FALSE))) ->  | K112: =IF(AND($C$1=APRS!$AE$45,A112<A$3),"X","") -> 
A113: 110 | B113: =IF($A113>A$3,"",CR!$Q$7) ->  | C113: =IF($A113>A$3,"",CR!$H$11) ->  | D113: =IF($A113>A$3,"",BL!$U$8) ->  | F113: =IF($A113>A$3,"",IF($A113>CR!$AS$15,VLOOKUP($A113,CR!$AP:$AQ,2,FALSE),VLOOKUP($A113,BL!$AR:$AS,2,FALSE))) ->  | K113: =IF(AND($C$1=APRS!$AE$45,A113<A$3),"X","") -> 
A114: 111 | B114: =IF($A114>A$3,"",CR!$Q$7) ->  | C114: =IF($A114>A$3,"",CR!$H$11) ->  | D114: =IF($A114>A$3,"",BL!$U$8) ->  | F114: =IF($A114>A$3,"",IF($A114>CR!$AS$15,VLOOKUP($A114,CR!$AP:$AQ,2,FALSE),VLOOKUP($A114,BL!$AR:$AS,2,FALSE))) ->  | K114: =IF(AND($C$1=APRS!$AE$45,A114<A$3),"X","") -> 
A115: 112 | B115: =IF($A115>A$3,"",CR!$Q$7) ->  | C115: =IF($A115>A$3,"",CR!$H$11) ->  | D115: =IF($A115>A$3,"",BL!$U$8) ->  | F115: =IF($A115>A$3,"",IF($A115>CR!$AS$15,VLOOKUP($A115,CR!$AP:$AQ,2,FALSE),VLOOKUP($A115,BL!$AR:$AS,2,FALSE))) ->  | K115: =IF(AND($C$1=APRS!$AE$45,A115<A$3),"X","") -> 
A116: 113 | B116: =IF($A116>A$3,"",CR!$Q$7) ->  | C116: =IF($A116>A$3,"",CR!$H$11) ->  | D116: =IF($A116>A$3,"",BL!$U$8) ->  | F116: =IF($A116>A$3,"",IF($A116>CR!$AS$15,VLOOKUP($A116,CR!$AP:$AQ,2,FALSE),VLOOKUP($A116,BL!$AR:$AS,2,FALSE))) ->  | K116: =IF(AND($C$1=APRS!$AE$45,A116<A$3),"X","") -> 
A117: 114 | B117: =IF($A117>A$3,"",CR!$Q$7) ->  | C117: =IF($A117>A$3,"",CR!$H$11) ->  | D117: =IF($A117>A$3,"",BL!$U$8) ->  | F117: =IF($A117>A$3,"",IF($A117>CR!$AS$15,VLOOKUP($A117,CR!$AP:$AQ,2,FALSE),VLOOKUP($A117,BL!$AR:$AS,2,FALSE))) ->  | K117: =IF(AND($C$1=APRS!$AE$45,A117<A$3),"X","") -> 
A118: 115 | B118: =IF($A118>A$3,"",CR!$Q$7) ->  | C118: =IF($A118>A$3,"",CR!$H$11) ->  | D118: =IF($A118>A$3,"",BL!$U$8) ->  | F118: =IF($A118>A$3,"",IF($A118>CR!$AS$15,VLOOKUP($A118,CR!$AP:$AQ,2,FALSE),VLOOKUP($A118,BL!$AR:$AS,2,FALSE))) ->  | K118: =IF(AND($C$1=APRS!$AE$45,A118<A$3),"X","") -> 
A119: 116 | B119: =IF($A119>A$3,"",CR!$Q$7) ->  | C119: =IF($A119>A$3,"",CR!$H$11) ->  | D119: =IF($A119>A$3,"",BL!$U$8) ->  | F119: =IF($A119>A$3,"",IF($A119>CR!$AS$15,VLOOKUP($A119,CR!$AP:$AQ,2,FALSE),VLOOKUP($A119,BL!$AR:$AS,2,FALSE))) ->  | K119: =IF(AND($C$1=APRS!$AE$45,A119<A$3),"X","") -> 
A120: 117 | B120: =IF($A120>A$3,"",CR!$Q$7) ->  | C120: =IF($A120>A$3,"",CR!$H$11) ->  | D120: =IF($A120>A$3,"",BL!$U$8) ->  | F120: =IF($A120>A$3,"",IF($A120>CR!$AS$15,VLOOKUP($A120,CR!$AP:$AQ,2,FALSE),VLOOKUP($A120,BL!$AR:$AS,2,FALSE))) ->  | K120: =IF(AND($C$1=APRS!$AE$45,A120<A$3),"X","") -> 
A121: 118 | B121: =IF($A121>A$3,"",CR!$Q$7) ->  | C121: =IF($A121>A$3,"",CR!$H$11) ->  | D121: =IF($A121>A$3,"",BL!$U$8) ->  | F121: =IF($A121>A$3,"",IF($A121>CR!$AS$15,VLOOKUP($A121,CR!$AP:$AQ,2,FALSE),VLOOKUP($A121,BL!$AR:$AS,2,FALSE))) ->  | K121: =IF(AND($C$1=APRS!$AE$45,A121<A$3),"X","") -> 
A122: 119 | B122: =IF($A122>A$3,"",CR!$Q$7) ->  | C122: =IF($A122>A$3,"",CR!$H$11) ->  | D122: =IF($A122>A$3,"",BL!$U$8) ->  | F122: =IF($A122>A$3,"",IF($A122>CR!$AS$15,VLOOKUP($A122,CR!$AP:$AQ,2,FALSE),VLOOKUP($A122,BL!$AR:$AS,2,FALSE))) ->  | K122: =IF(AND($C$1=APRS!$AE$45,A122<A$3),"X","") -> 
A123: 120 | B123: =IF($A123>A$3,"",CR!$Q$7) ->  | C123: =IF($A123>A$3,"",CR!$H$11) ->  | D123: =IF($A123>A$3,"",BL!$U$8) ->  | F123: =IF($A123>A$3,"",IF($A123>CR!$AS$15,VLOOKUP($A123,CR!$AP:$AQ,2,FALSE),VLOOKUP($A123,BL!$AR:$AS,2,FALSE))) ->  | K123: =IF(AND($C$1=APRS!$AE$45,A123<A$3),"X","") -> 
A124: 121 | B124: =IF($A124>A$3,"",CR!$Q$7) ->  | C124: =IF($A124>A$3,"",CR!$H$11) ->  | D124: =IF($A124>A$3,"",BL!$U$8) ->  | F124: =IF($A124>A$3,"",IF($A124>CR!$AS$15,VLOOKUP($A124,CR!$AP:$AQ,2,FALSE),VLOOKUP($A124,BL!$AR:$AS,2,FALSE))) ->  | K124: =IF(AND($C$1=APRS!$AE$45,A124<A$3),"X","") -> 
A125: 122 | B125: =IF($A125>A$3,"",CR!$Q$7) ->  | C125: =IF($A125>A$3,"",CR!$H$11) ->  | D125: =IF($A125>A$3,"",BL!$U$8) ->  | F125: =IF($A125>A$3,"",IF($A125>CR!$AS$15,VLOOKUP($A125,CR!$AP:$AQ,2,FALSE),VLOOKUP($A125,BL!$AR:$AS,2,FALSE))) ->  | K125: =IF(AND($C$1=APRS!$AE$45,A125<A$3),"X","") -> 
A126: 123 | B126: =IF($A126>A$3,"",CR!$Q$7) ->  | C126: =IF($A126>A$3,"",CR!$H$11) ->  | D126: =IF($A126>A$3,"",BL!$U$8) ->  | F126: =IF($A126>A$3,"",IF($A126>CR!$AS$15,VLOOKUP($A126,CR!$AP:$AQ,2,FALSE),VLOOKUP($A126,BL!$AR:$AS,2,FALSE))) ->  | K126: =IF(AND($C$1=APRS!$AE$45,A126<A$3),"X","") -> 
A127: 124 | B127: =IF($A127>A$3,"",CR!$Q$7) ->  | C127: =IF($A127>A$3,"",CR!$H$11) ->  | D127: =IF($A127>A$3,"",BL!$U$8) ->  | F127: =IF($A127>A$3,"",IF($A127>CR!$AS$15,VLOOKUP($A127,CR!$AP:$AQ,2,FALSE),VLOOKUP($A127,BL!$AR:$AS,2,FALSE))) ->  | K127: =IF(AND($C$1=APRS!$AE$45,A127<A$3),"X","") -> 
A128: 125 | B128: =IF($A128>A$3,"",CR!$Q$7) ->  | C128: =IF($A128>A$3,"",CR!$H$11) ->  | D128: =IF($A128>A$3,"",BL!$U$8) ->  | F128: =IF($A128>A$3,"",IF($A128>CR!$AS$15,VLOOKUP($A128,CR!$AP:$AQ,2,FALSE),VLOOKUP($A128,BL!$AR:$AS,2,FALSE))) ->  | K128: =IF(AND($C$1=APRS!$AE$45,A128<A$3),"X","") -> 
A129: 126 | B129: =IF($A129>A$3,"",CR!$Q$7) ->  | C129: =IF($A129>A$3,"",CR!$H$11) ->  | D129: =IF($A129>A$3,"",BL!$U$8) ->  | F129: =IF($A129>A$3,"",IF($A129>CR!$AS$15,VLOOKUP($A129,CR!$AP:$AQ,2,FALSE),VLOOKUP($A129,BL!$AR:$AS,2,FALSE))) ->  | K129: =IF(AND($C$1=APRS!$AE$45,A129<A$3),"X","") -> 
A130: 127 | B130: =IF($A130>A$3,"",CR!$Q$7) ->  | C130: =IF($A130>A$3,"",CR!$H$11) ->  | D130: =IF($A130>A$3,"",BL!$U$8) ->  | F130: =IF($A130>A$3,"",IF($A130>CR!$AS$15,VLOOKUP($A130,CR!$AP:$AQ,2,FALSE),VLOOKUP($A130,BL!$AR:$AS,2,FALSE))) ->  | K130: =IF(AND($C$1=APRS!$AE$45,A130<A$3),"X","") -> 
A131: 128 | B131: =IF($A131>A$3,"",CR!$Q$7) ->  | C131: =IF($A131>A$3,"",CR!$H$11) ->  | D131: =IF($A131>A$3,"",BL!$U$8) ->  | F131: =IF($A131>A$3,"",IF($A131>CR!$AS$15,VLOOKUP($A131,CR!$AP:$AQ,2,FALSE),VLOOKUP($A131,BL!$AR:$AS,2,FALSE))) ->  | K131: =IF(AND($C$1=APRS!$AE$45,A131<A$3),"X","") -> 
A132: 129 | B132: =IF($A132>A$3,"",CR!$Q$7) ->  | C132: =IF($A132>A$3,"",CR!$H$11) ->  | D132: =IF($A132>A$3,"",BL!$U$8) ->  | F132: =IF($A132>A$3,"",IF($A132>CR!$AS$15,VLOOKUP($A132,CR!$AP:$AQ,2,FALSE),VLOOKUP($A132,BL!$AR:$AS,2,FALSE))) ->  | K132: =IF(AND($C$1=APRS!$AE$45,A132<A$3),"X","") -> 
A133: 130 | B133: =IF($A133>A$3,"",CR!$Q$7) ->  | C133: =IF($A133>A$3,"",CR!$H$11) ->  | D133: =IF($A133>A$3,"",BL!$U$8) ->  | F133: =IF($A133>A$3,"",IF($A133>CR!$AS$15,VLOOKUP($A133,CR!$AP:$AQ,2,FALSE),VLOOKUP($A133,BL!$AR:$AS,2,FALSE))) ->  | G133: =IF(AND(A133<A$3,$C$1="A. MANN"),"X","") ->  | H133: =IF(A133>A$3,"","X") ->  | K133: =IF(AND($C$1=APRS!$AE$45,A133<A$3),"X","") -> 
A134: 131 | B134: =IF($A134>A$3,"",CR!$Q$7) ->  | C134: =IF($A134>A$3,"",CR!$H$11) ->  | D134: =IF($A134>A$3,"",BL!$U$8) ->  | F134: =IF($A134>A$3,"",IF($A134>CR!$AS$15,VLOOKUP($A134,CR!$AP:$AQ,2,FALSE),VLOOKUP($A134,BL!$AR:$AS,2,FALSE))) ->  | K134: =IF(AND($C$1=APRS!$AE$45,A134<A$3),"X","") -> 
A135: 132 | B135: =IF($A135>A$3,"",CR!$Q$7) ->  | C135: =IF($A135>A$3,"",CR!$H$11) ->  | D135: =IF($A135>A$3,"",BL!$U$8) ->  | F135: =IF($A135>A$3,"",IF($A135>CR!$AS$15,VLOOKUP($A135,CR!$AP:$AQ,2,FALSE),VLOOKUP($A135,BL!$AR:$AS,2,FALSE))) ->  | K135: =IF(AND($C$1=APRS!$AE$45,A135<A$3),"X","") -> 
A136: 133 | B136: =IF($A136>A$3,"",CR!$Q$7) ->  | C136: =IF($A136>A$3,"",CR!$H$11) ->  | D136: =IF($A136>A$3,"",BL!$U$8) ->  | F136: =IF($A136>A$3,"",IF($A136>CR!$AS$15,VLOOKUP($A136,CR!$AP:$AQ,2,FALSE),VLOOKUP($A136,BL!$AR:$AS,2,FALSE))) ->  | K136: =IF(AND($C$1=APRS!$AE$45,A136<A$3),"X","") -> 
A137: 134 | B137: =IF($A137>A$3,"",CR!$Q$7) ->  | C137: =IF($A137>A$3,"",CR!$H$11) ->  | D137: =IF($A137>A$3,"",BL!$U$8) ->  | F137: =IF($A137>A$3,"",IF($A137>CR!$AS$15,VLOOKUP($A137,CR!$AP:$AQ,2,FALSE),VLOOKUP($A137,BL!$AR:$AS,2,FALSE))) ->  | K137: =IF(AND($C$1=APRS!$AE$45,A137<A$3),"X","") -> 
A138: 135 | B138: =IF($A138>A$3,"",CR!$Q$7) ->  | C138: =IF($A138>A$3,"",CR!$H$11) ->  | D138: =IF($A138>A$3,"",BL!$U$8) ->  | F138: =IF($A138>A$3,"",IF($A138>CR!$AS$15,VLOOKUP($A138,CR!$AP:$AQ,2,FALSE),VLOOKUP($A138,BL!$AR:$AS,2,FALSE))) ->  | K138: =IF(AND($C$1=APRS!$AE$45,A138<A$3),"X","") -> 
A139: 136 | B139: =IF($A139>A$3,"",CR!$Q$7) ->  | C139: =IF($A139>A$3,"",CR!$H$11) ->  | D139: =IF($A139>A$3,"",BL!$U$8) ->  | F139: =IF($A139>A$3,"",IF($A139>CR!$AS$15,VLOOKUP($A139,CR!$AP:$AQ,2,FALSE),VLOOKUP($A139,BL!$AR:$AS,2,FALSE))) ->  | K139: =IF(AND($C$1=APRS!$AE$45,A139<A$3),"X","") -> 
A140: 137 | B140: =IF($A140>A$3,"",CR!$Q$7) ->  | C140: =IF($A140>A$3,"",CR!$H$11) ->  | D140: =IF($A140>A$3,"",BL!$U$8) ->  | F140: =IF($A140>A$3,"",IF($A140>CR!$AS$15,VLOOKUP($A140,CR!$AP:$AQ,2,FALSE),VLOOKUP($A140,BL!$AR:$AS,2,FALSE))) ->  | K140: =IF(AND($C$1=APRS!$AE$45,A140<A$3),"X","") -> 
A141: 138 | B141: =IF($A141>A$3,"",CR!$Q$7) ->  | C141: =IF($A141>A$3,"",CR!$H$11) ->  | D141: =IF($A141>A$3,"",BL!$U$8) ->  | F141: =IF($A141>A$3,"",IF($A141>CR!$AS$15,VLOOKUP($A141,CR!$AP:$AQ,2,FALSE),VLOOKUP($A141,BL!$AR:$AS,2,FALSE))) ->  | K141: =IF(AND($C$1=APRS!$AE$45,A141<A$3),"X","") -> 
A142: 139 | B142: =IF($A142>A$3,"",CR!$Q$7) ->  | C142: =IF($A142>A$3,"",CR!$H$11) ->  | D142: =IF($A142>A$3,"",BL!$U$8) ->  | F142: =IF($A142>A$3,"",IF($A142>CR!$AS$15,VLOOKUP($A142,CR!$AP:$AQ,2,FALSE),VLOOKUP($A142,BL!$AR:$AS,2,FALSE))) ->  | K142: =IF(AND($C$1=APRS!$AE$45,A142<A$3),"X","") -> 
A143: 140 | B143: =IF($A143>A$3,"",CR!$Q$7) ->  | C143: =IF($A143>A$3,"",CR!$H$11) ->  | D143: =IF($A143>A$3,"",BL!$U$8) ->  | F143: =IF($A143>A$3,"",IF($A143>CR!$AS$15,VLOOKUP($A143,CR!$AP:$AQ,2,FALSE),VLOOKUP($A143,BL!$AR:$AS,2,FALSE))) ->  | K143: =IF(AND($C$1=APRS!$AE$45,A143<A$3),"X","") -> 
A144: 141 | B144: =IF($A144>A$3,"",CR!$Q$7) ->  | C144: =IF($A144>A$3,"",CR!$H$11) ->  | D144: =IF($A144>A$3,"",BL!$U$8) ->  | F144: =IF($A144>A$3,"",IF($A144>CR!$AS$15,VLOOKUP($A144,CR!$AP:$AQ,2,FALSE),VLOOKUP($A144,BL!$AR:$AS,2,FALSE))) ->  | K144: =IF(AND($C$1=APRS!$AE$45,A144<A$3),"X","") -> 
A145: 142 | B145: =IF($A145>A$3,"",CR!$Q$7) ->  | C145: =IF($A145>A$3,"",CR!$H$11) ->  | D145: =IF($A145>A$3,"",BL!$U$8) ->  | F145: =IF($A145>A$3,"",IF($A145>CR!$AS$15,VLOOKUP($A145,CR!$AP:$AQ,2,FALSE),VLOOKUP($A145,BL!$AR:$AS,2,FALSE))) ->  | K145: =IF(AND($C$1=APRS!$AE$45,A145<A$3),"X","") -> 
A146: 143 | B146: =IF($A146>A$3,"",CR!$Q$7) ->  | C146: =IF($A146>A$3,"",CR!$H$11) ->  | D146: =IF($A146>A$3,"",BL!$U$8) ->  | F146: =IF($A146>A$3,"",IF($A146>CR!$AS$15,VLOOKUP($A146,CR!$AP:$AQ,2,FALSE),VLOOKUP($A146,BL!$AR:$AS,2,FALSE))) ->  | K146: =IF(AND($C$1=APRS!$AE$45,A146<A$3),"X","") -> 
A147: 144 | B147: =IF($A147>A$3,"",CR!$Q$7) ->  | C147: =IF($A147>A$3,"",CR!$H$11) ->  | D147: =IF($A147>A$3,"",BL!$U$8) ->  | F147: =IF($A147>A$3,"",IF($A147>CR!$AS$15,VLOOKUP($A147,CR!$AP:$AQ,2,FALSE),VLOOKUP($A147,BL!$AR:$AS,2,FALSE))) ->  | K147: =IF(AND($C$1=APRS!$AE$45,A147<A$3),"X","") -> 
A148: 145 | B148: =IF($A148>A$3,"",CR!$Q$7) ->  | C148: =IF($A148>A$3,"",CR!$H$11) ->  | D148: =IF($A148>A$3,"",BL!$U$8) ->  | F148: =IF($A148>A$3,"",IF($A148>CR!$AS$15,VLOOKUP($A148,CR!$AP:$AQ,2,FALSE),VLOOKUP($A148,BL!$AR:$AS,2,FALSE))) ->  | K148: =IF(AND($C$1=APRS!$AE$45,A148<A$3),"X","") -> 
A149: 146 | B149: =IF($A149>A$3,"",CR!$Q$7) ->  | C149: =IF($A149>A$3,"",CR!$H$11) ->  | D149: =IF($A149>A$3,"",BL!$U$8) ->  | F149: =IF($A149>A$3,"",IF($A149>CR!$AS$15,VLOOKUP($A149,CR!$AP:$AQ,2,FALSE),VLOOKUP($A149,BL!$AR:$AS,2,FALSE))) ->  | K149: =IF(AND($C$1=APRS!$AE$45,A149<A$3),"X","") -> 
A150: 147 | B150: =IF($A150>A$3,"",CR!$Q$7) ->  | C150: =IF($A150>A$3,"",CR!$H$11) ->  | D150: =IF($A150>A$3,"",BL!$U$8) ->  | F150: =IF($A150>A$3,"",IF($A150>CR!$AS$15,VLOOKUP($A150,CR!$AP:$AQ,2,FALSE),VLOOKUP($A150,BL!$AR:$AS,2,FALSE))) ->  | K150: =IF(AND($C$1=APRS!$AE$45,A150<A$3),"X","") -> 
A151: 148 | B151: =IF($A151>A$3,"",CR!$Q$7) ->  | C151: =IF($A151>A$3,"",CR!$H$11) ->  | D151: =IF($A151>A$3,"",BL!$U$8) ->  | F151: =IF($A151>A$3,"",IF($A151>CR!$AS$15,VLOOKUP($A151,CR!$AP:$AQ,2,FALSE),VLOOKUP($A151,BL!$AR:$AS,2,FALSE))) ->  | K151: =IF(AND($C$1=APRS!$AE$45,A151<A$3),"X","") -> 
A152: 149 | B152: =IF($A152>A$3,"",CR!$Q$7) ->  | C152: =IF($A152>A$3,"",CR!$H$11) ->  | D152: =IF($A152>A$3,"",BL!$U$8) ->  | F152: =IF($A152>A$3,"",IF($A152>CR!$AS$15,VLOOKUP($A152,CR!$AP:$AQ,2,FALSE),VLOOKUP($A152,BL!$AR:$AS,2,FALSE))) ->  | K152: =IF(AND($C$1=APRS!$AE$45,A152<A$3),"X","") -> 
A153: 150 | B153: =IF($A153>A$3,"",CR!$Q$7) ->  | C153: =IF($A153>A$3,"",CR!$H$11) ->  | D153: =IF($A153>A$3,"",BL!$U$8) ->  | F153: =IF($A153>A$3,"",IF($A153>CR!$AS$15,VLOOKUP($A153,CR!$AP:$AQ,2,FALSE),VLOOKUP($A153,BL!$AR:$AS,2,FALSE))) ->  | K153: =IF(AND($C$1=APRS!$AE$45,A153<A$3),"X","") -> 
A154: 151 | B154: =IF($A154>A$3,"",CR!$Q$7) ->  | C154: =IF($A154>A$3,"",CR!$H$11) ->  | D154: =IF($A154>A$3,"",BL!$U$8) ->  | F154: =IF($A154>A$3,"",IF($A154>CR!$AS$15,VLOOKUP($A154,CR!$AP:$AQ,2,FALSE),VLOOKUP($A154,BL!$AR:$AS,2,FALSE))) ->  | K154: =IF(AND($C$1=APRS!$AE$45,A154<A$3),"X","") -> 
A155: 152 | B155: =IF($A155>A$3,"",CR!$Q$7) ->  | C155: =IF($A155>A$3,"",CR!$H$11) ->  | D155: =IF($A155>A$3,"",BL!$U$8) ->  | F155: =IF($A155>A$3,"",IF($A155>CR!$AS$15,VLOOKUP($A155,CR!$AP:$AQ,2,FALSE),VLOOKUP($A155,BL!$AR:$AS,2,FALSE))) ->  | K155: =IF(AND($C$1=APRS!$AE$45,A155<A$3),"X","") -> 
A156: 153 | B156: =IF($A156>A$3,"",CR!$Q$7) ->  | C156: =IF($A156>A$3,"",CR!$H$11) ->  | D156: =IF($A156>A$3,"",BL!$U$8) ->  | F156: =IF($A156>A$3,"",IF($A156>CR!$AS$15,VLOOKUP($A156,CR!$AP:$AQ,2,FALSE),VLOOKUP($A156,BL!$AR:$AS,2,FALSE))) ->  | K156: =IF(AND($C$1=APRS!$AE$45,A156<A$3),"X","") -> 
A157: 154 | B157: =IF($A157>A$3,"",CR!$Q$7) ->  | C157: =IF($A157>A$3,"",CR!$H$11) ->  | D157: =IF($A157>A$3,"",BL!$U$8) ->  | F157: =IF($A157>A$3,"",IF($A157>CR!$AS$15,VLOOKUP($A157,CR!$AP:$AQ,2,FALSE),VLOOKUP($A157,BL!$AR:$AS,2,FALSE))) ->  | K157: =IF(AND($C$1=APRS!$AE$45,A157<A$3),"X","") -> 
A158: 155 | B158: =IF($A158>A$3,"",CR!$Q$7) ->  | C158: =IF($A158>A$3,"",CR!$H$11) ->  | D158: =IF($A158>A$3,"",BL!$U$8) ->  | F158: =IF($A158>A$3,"",IF($A158>CR!$AS$15,VLOOKUP($A158,CR!$AP:$AQ,2,FALSE),VLOOKUP($A158,BL!$AR:$AS,2,FALSE))) ->  | K158: =IF(AND($C$1=APRS!$AE$45,A158<A$3),"X","") -> 
A159: 156 | B159: =IF($A159>A$3,"",CR!$Q$7) ->  | C159: =IF($A159>A$3,"",CR!$H$11) ->  | D159: =IF($A159>A$3,"",BL!$U$8) ->  | F159: =IF($A159>A$3,"",IF($A159>CR!$AS$15,VLOOKUP($A159,CR!$AP:$AQ,2,FALSE),VLOOKUP($A159,BL!$AR:$AS,2,FALSE))) ->  | K159: =IF(AND($C$1=APRS!$AE$45,A159<A$3),"X","") -> 
A160: 157 | B160: =IF($A160>A$3,"",CR!$Q$7) ->  | C160: =IF($A160>A$3,"",CR!$H$11) ->  | D160: =IF($A160>A$3,"",BL!$U$8) ->  | F160: =IF($A160>A$3,"",IF($A160>CR!$AS$15,VLOOKUP($A160,CR!$AP:$AQ,2,FALSE),VLOOKUP($A160,BL!$AR:$AS,2,FALSE))) ->  | K160: =IF(AND($C$1=APRS!$AE$45,A160<A$3),"X","") -> 
A161: 158 | B161: =IF($A161>A$3,"",CR!$Q$7) ->  | C161: =IF($A161>A$3,"",CR!$H$11) ->  | D161: =IF($A161>A$3,"",BL!$U$8) ->  | F161: =IF($A161>A$3,"",IF($A161>CR!$AS$15,VLOOKUP($A161,CR!$AP:$AQ,2,FALSE),VLOOKUP($A161,BL!$AR:$AS,2,FALSE))) ->  | K161: =IF(AND($C$1=APRS!$AE$45,A161<A$3),"X","") -> 
A162: 159 | B162: =IF($A162>A$3,"",CR!$Q$7) ->  | C162: =IF($A162>A$3,"",CR!$H$11) ->  | D162: =IF($A162>A$3,"",BL!$U$8) ->  | F162: =IF($A162>A$3,"",IF($A162>CR!$AS$15,VLOOKUP($A162,CR!$AP:$AQ,2,FALSE),VLOOKUP($A162,BL!$AR:$AS,2,FALSE))) ->  | K162: =IF(AND($C$1=APRS!$AE$45,A162<A$3),"X","") -> 
A163: 160 | B163: =IF($A163>A$3,"",CR!$Q$7) ->  | C163: =IF($A163>A$3,"",CR!$H$11) ->  | D163: =IF($A163>A$3,"",BL!$U$8) ->  | F163: =IF($A163>A$3,"",IF($A163>CR!$AS$15,VLOOKUP($A163,CR!$AP:$AQ,2,FALSE),VLOOKUP($A163,BL!$AR:$AS,2,FALSE))) ->  | K163: =IF(AND($C$1=APRS!$AE$45,A163<A$3),"X","") -> 
A164: 161 | B164: =IF($A164>A$3,"",CR!$Q$7) ->  | C164: =IF($A164>A$3,"",CR!$H$11) ->  | D164: =IF($A164>A$3,"",BL!$U$8) ->  | F164: =IF($A164>A$3,"",IF($A164>CR!$AS$15,VLOOKUP($A164,CR!$AP:$AQ,2,FALSE),VLOOKUP($A164,BL!$AR:$AS,2,FALSE))) ->  | K164: =IF(AND($C$1=APRS!$AE$45,A164<A$3),"X","") -> 
A165: 162 | B165: =IF($A165>A$3,"",CR!$Q$7) ->  | C165: =IF($A165>A$3,"",CR!$H$11) ->  | D165: =IF($A165>A$3,"",BL!$U$8) ->  | F165: =IF($A165>A$3,"",IF($A165>CR!$AS$15,VLOOKUP($A165,CR!$AP:$AQ,2,FALSE),VLOOKUP($A165,BL!$AR:$AS,2,FALSE))) ->  | K165: =IF(AND($C$1=APRS!$AE$45,A165<A$3),"X","") -> 
A166: 163 | B166: =IF($A166>A$3,"",CR!$Q$7) ->  | C166: =IF($A166>A$3,"",CR!$H$11) ->  | D166: =IF($A166>A$3,"",BL!$U$8) ->  | F166: =IF($A166>A$3,"",IF($A166>CR!$AS$15,VLOOKUP($A166,CR!$AP:$AQ,2,FALSE),VLOOKUP($A166,BL!$AR:$AS,2,FALSE))) ->  | K166: =IF(AND($C$1=APRS!$AE$45,A166<A$3),"X","") -> 
A167: 164 | B167: =IF($A167>A$3,"",CR!$Q$7) ->  | C167: =IF($A167>A$3,"",CR!$H$11) ->  | D167: =IF($A167>A$3,"",BL!$U$8) ->  | F167: =IF($A167>A$3,"",IF($A167>CR!$AS$15,VLOOKUP($A167,CR!$AP:$AQ,2,FALSE),VLOOKUP($A167,BL!$AR:$AS,2,FALSE))) ->  | K167: =IF(AND($C$1=APRS!$AE$45,A167<A$3),"X","") -> 
A168: 165 | B168: =IF($A168>A$3,"",CR!$Q$7) ->  | C168: =IF($A168>A$3,"",CR!$H$11) ->  | D168: =IF($A168>A$3,"",BL!$U$8) ->  | F168: =IF($A168>A$3,"",IF($A168>CR!$AS$15,VLOOKUP($A168,CR!$AP:$AQ,2,FALSE),VLOOKUP($A168,BL!$AR:$AS,2,FALSE))) ->  | K168: =IF(AND($C$1=APRS!$AE$45,A168<A$3),"X","") -> 
A169: 166 | B169: =IF($A169>A$3,"",CR!$Q$7) ->  | C169: =IF($A169>A$3,"",CR!$H$11) ->  | D169: =IF($A169>A$3,"",BL!$U$8) ->  | F169: =IF($A169>A$3,"",IF($A169>CR!$AS$15,VLOOKUP($A169,CR!$AP:$AQ,2,FALSE),VLOOKUP($A169,BL!$AR:$AS,2,FALSE))) ->  | K169: =IF(AND($C$1=APRS!$AE$45,A169<A$3),"X","") -> 
A170: 167 | B170: =IF($A170>A$3,"",CR!$Q$7) ->  | C170: =IF($A170>A$3,"",CR!$H$11) ->  | D170: =IF($A170>A$3,"",BL!$U$8) ->  | F170: =IF($A170>A$3,"",IF($A170>CR!$AS$15,VLOOKUP($A170,CR!$AP:$AQ,2,FALSE),VLOOKUP($A170,BL!$AR:$AS,2,FALSE))) ->  | K170: =IF(AND($C$1=APRS!$AE$45,A170<A$3),"X","") -> 
A171: 168 | B171: =IF($A171>A$3,"",CR!$Q$7) ->  | C171: =IF($A171>A$3,"",CR!$H$11) ->  | D171: =IF($A171>A$3,"",BL!$U$8) ->  | F171: =IF($A171>A$3,"",IF($A171>CR!$AS$15,VLOOKUP($A171,CR!$AP:$AQ,2,FALSE),VLOOKUP($A171,BL!$AR:$AS,2,FALSE))) ->  | K171: =IF(AND($C$1=APRS!$AE$45,A171<A$3),"X","") -> 
A172: 169 | B172: =IF($A172>A$3,"",CR!$Q$7) ->  | C172: =IF($A172>A$3,"",CR!$H$11) ->  | D172: =IF($A172>A$3,"",BL!$U$8) ->  | F172: =IF($A172>A$3,"",IF($A172>CR!$AS$15,VLOOKUP($A172,CR!$AP:$AQ,2,FALSE),VLOOKUP($A172,BL!$AR:$AS,2,FALSE))) ->  | K172: =IF(AND($C$1=APRS!$AE$45,A172<A$3),"X","") -> 
A173: 170 | B173: =IF($A173>A$3,"",CR!$Q$7) ->  | C173: =IF($A173>A$3,"",CR!$H$11) ->  | D173: =IF($A173>A$3,"",BL!$U$8) ->  | F173: =IF($A173>A$3,"",IF($A173>CR!$AS$15,VLOOKUP($A173,CR!$AP:$AQ,2,FALSE),VLOOKUP($A173,BL!$AR:$AS,2,FALSE))) ->  | K173: =IF(AND($C$1=APRS!$AE$45,A173<A$3),"X","") -> 
A174: 171 | B174: =IF($A174>A$3,"",CR!$Q$7) ->  | C174: =IF($A174>A$3,"",CR!$H$11) ->  | D174: =IF($A174>A$3,"",BL!$U$8) ->  | F174: =IF($A174>A$3,"",IF($A174>CR!$AS$15,VLOOKUP($A174,CR!$AP:$AQ,2,FALSE),VLOOKUP($A174,BL!$AR:$AS,2,FALSE))) ->  | K174: =IF(AND($C$1=APRS!$AE$45,A174<A$3),"X","") -> 
A175: 172 | B175: =IF($A175>A$3,"",CR!$Q$7) ->  | C175: =IF($A175>A$3,"",CR!$H$11) ->  | D175: =IF($A175>A$3,"",BL!$U$8) ->  | F175: =IF($A175>A$3,"",IF($A175>CR!$AS$15,VLOOKUP($A175,CR!$AP:$AQ,2,FALSE),VLOOKUP($A175,BL!$AR:$AS,2,FALSE))) ->  | K175: =IF(AND($C$1=APRS!$AE$45,A175<A$3),"X","") -> 
A176: 173 | B176: =IF($A176>A$3,"",CR!$Q$7) ->  | C176: =IF($A176>A$3,"",CR!$H$11) ->  | D176: =IF($A176>A$3,"",BL!$U$8) ->  | F176: =IF($A176>A$3,"",IF($A176>CR!$AS$15,VLOOKUP($A176,CR!$AP:$AQ,2,FALSE),VLOOKUP($A176,BL!$AR:$AS,2,FALSE))) ->  | K176: =IF(AND($C$1=APRS!$AE$45,A176<A$3),"X","") -> 
A177: 174 | B177: =IF($A177>A$3,"",CR!$Q$7) ->  | C177: =IF($A177>A$3,"",CR!$H$11) ->  | D177: =IF($A177>A$3,"",BL!$U$8) ->  | F177: =IF($A177>A$3,"",IF($A177>CR!$AS$15,VLOOKUP($A177,CR!$AP:$AQ,2,FALSE),VLOOKUP($A177,BL!$AR:$AS,2,FALSE))) ->  | K177: =IF(AND($C$1=APRS!$AE$45,A177<A$3),"X","") -> 
A178: 175 | B178: =IF($A178>A$3,"",CR!$Q$7) ->  | C178: =IF($A178>A$3,"",CR!$H$11) ->  | D178: =IF($A178>A$3,"",BL!$U$8) ->  | F178: =IF($A178>A$3,"",IF($A178>CR!$AS$15,VLOOKUP($A178,CR!$AP:$AQ,2,FALSE),VLOOKUP($A178,BL!$AR:$AS,2,FALSE))) ->  | K178: =IF(AND($C$1=APRS!$AE$45,A178<A$3),"X","") -> 
A179: 176 | B179: =IF($A179>A$3,"",CR!$Q$7) ->  | C179: =IF($A179>A$3,"",CR!$H$11) ->  | D179: =IF($A179>A$3,"",BL!$U$8) ->  | F179: =IF($A179>A$3,"",IF($A179>CR!$AS$15,VLOOKUP($A179,CR!$AP:$AQ,2,FALSE),VLOOKUP($A179,BL!$AR:$AS,2,FALSE))) ->  | K179: =IF(AND($C$1=APRS!$AE$45,A179<A$3),"X","") -> 
A180: 177 | B180: =IF($A180>A$3,"",CR!$Q$7) ->  | C180: =IF($A180>A$3,"",CR!$H$11) ->  | D180: =IF($A180>A$3,"",BL!$U$8) ->  | F180: =IF($A180>A$3,"",IF($A180>CR!$AS$15,VLOOKUP($A180,CR!$AP:$AQ,2,FALSE),VLOOKUP($A180,BL!$AR:$AS,2,FALSE))) ->  | K180: =IF(AND($C$1=APRS!$AE$45,A180<A$3),"X","") -> 
A181: 178 | B181: =IF($A181>A$3,"",CR!$Q$7) ->  | C181: =IF($A181>A$3,"",CR!$H$11) ->  | D181: =IF($A181>A$3,"",BL!$U$8) ->  | F181: =IF($A181>A$3,"",IF($A181>CR!$AS$15,VLOOKUP($A181,CR!$AP:$AQ,2,FALSE),VLOOKUP($A181,BL!$AR:$AS,2,FALSE))) ->  | K181: =IF(AND($C$1=APRS!$AE$45,A181<A$3),"X","") -> 
A182: 179 | B182: =IF($A182>A$3,"",CR!$Q$7) ->  | C182: =IF($A182>A$3,"",CR!$H$11) ->  | D182: =IF($A182>A$3,"",BL!$U$8) ->  | F182: =IF($A182>A$3,"",IF($A182>CR!$AS$15,VLOOKUP($A182,CR!$AP:$AQ,2,FALSE),VLOOKUP($A182,BL!$AR:$AS,2,FALSE))) ->  | K182: =IF(AND($C$1=APRS!$AE$45,A182<A$3),"X","") -> 
A183: 180 | B183: =IF($A183>A$3,"",CR!$Q$7) ->  | C183: =IF($A183>A$3,"",CR!$H$11) ->  | D183: =IF($A183>A$3,"",BL!$U$8) ->  | F183: =IF($A183>A$3,"",IF($A183>CR!$AS$15,VLOOKUP($A183,CR!$AP:$AQ,2,FALSE),VLOOKUP($A183,BL!$AR:$AS,2,FALSE))) ->  | K183: =IF(AND($C$1=APRS!$AE$45,A183<A$3),"X","") -> 
A184: 181 | B184: =IF($A184>A$3,"",CR!$Q$7) ->  | C184: =IF($A184>A$3,"",CR!$H$11) ->  | D184: =IF($A184>A$3,"",BL!$U$8) ->  | F184: =IF($A184>A$3,"",IF($A184>CR!$AS$15,VLOOKUP($A184,CR!$AP:$AQ,2,FALSE),VLOOKUP($A184,BL!$AR:$AS,2,FALSE))) ->  | K184: =IF(AND($C$1=APRS!$AE$45,A184<A$3),"X","") -> 
